{"text_format":"2","workbook":"xlsx","n_sheets":2,"sheets":["PURCHASE ORDER","CATALOG"],"not_rendered":{"charts":0,"images":2,"macros":0,"external_links":0,"defined_names":6,"comments":0,"pivot_tables":0},"unopened":[],"bounds":{"document_bytes":16777216,"sheet_cells":100000,"run_cost":"one","rows_first":2000,"rows_last":500,"rows_between":2000,"halvings":0,"cell_chars":16384,"cell_head_chars":4096},"cells_cut":0,"cells_raw":0,"read":"whole","date_system":"1900"}

{"sheet":"PURCHASE ORDER","index":0,"n_rows":117,"n_cols":9,"rows_kept":117,"cut":false,"hidden":false,"merged":[]}
[null,"              Order Form"]
[null,"Account Name: "]
[null,"Customer #: ",null,{"$f":"B3&\" \"&C3","v":"Customer #:  "}]
[null,"Contact Name: ",null,{"$f":"B4&\" \"&C4","v":"Contact Name:  "}]
[null,"Contact Phone #: ",null,{"$f":"B5&\" \"&IF(C5=\"\",\"\",TEXT(C5,\"(###) ###-####\")&IF(C6=\"\",\"\",\" Ext. \"&C6))","v":"Contact Phone #:  "}]
[null,"Contact Phone Extension: "]
[null,"Contact Email: ",null,{"$f":"B7&\" \"&C7","v":"Contact Email:  "}]
[null,"Pricing Bracket"]
[null,"Ship To Name:"]
[null,"Ship To Contact:"]
[null,"Ship To Address: "]
[null,"City, State, Zip Code:",null,{"$f":"C9&\"\n\"&C10&\"\n\"&C11&\"\n\"&C12&\"\n\"&D13","v":"\n\n\n\n"}]
[null,"Ship To Phone #:",null,{"$f":"IF(C13=\"\",\"\",TEXT(C13,\"(###) ###-####\")&IF(C14=\"\",\"\",\" Ext. \"&C14))","v":""}]
[null,"Phone Extension:"]
[null,"Order Date: ",null,{"$f":"IF(C15=\"\",B15&\" \"&TEXT(TODAY(),\"mm/dd/yyyy\"),B15&\" \"&TEXT(C15,\"mm/dd/yyyy\"))","v":"Order Date:  12/07/2025"}]
[null,"Requested Delivery Date: ",null,{"$f":"IF(C16=\"\",B16,B16&\" \"&TEXT(C16,\"mm/dd/yyyy\"))","v":"Requested Delivery Date: "}]
[null,"PO #: ",null,{"$f":"B17&\" \"&C17","v":"PO #:  "}]
[null,null,null,{"$f":"B4&\" \"&C4","v":"Contact Name:  "}]
[null,null,null,{"$f":"B5&\" \"&C5","v":"Contact Phone #:  "}]
[null,null,{"$f":"IFERROR(SUM(IF(MOD(PurchaseOrderLines[Qty],PurchaseOrderLines[Qty Increment])>0,1,0)),0)","v":0},{"$f":"B7&\" \"&C7","v":"Contact Email:  "}]
[null,null,{"$f":"COUNTIF(PurchaseOrderLines[Qty],0)+COUNTIF(PurchaseOrderLines[Qty],\"\")","v":78},{"$f":"IF(C21>1,\"This PO includes \"&TEXT(C21,\"0\")&\" lines without a quantity and is invalid.  Please add quantities to all PO Lines.\n\",IF(C21>0,\"This PO includes \"&TEXT(C21,\"0\")&\" line without a quantity and is invalid.  Please add quantities to all PO Lines.\n\",\"\"))&IF(C20>1,\"This PO includes \"&TEXT(C20,\"0\")&\" lines that do not round to even layers. Please ensure quantities round to appropriate layer quantities.\",IF(C20>0,\"This PO includes \"&TEXT(C20,\"0\")&\" line that do not round to even layers. Please ensure quantities round to appropriate layer quantities.\",\"\"))","v":"This PO includes 78 lines without a quantity and is invalid.  Please add quantities to all PO Lines.\n"}]
{"$rows_empty":13}
[{"$nulls":5},"Order Subtotal",{"$f":"SUM(PurchaseOrderLines[Total])","v":0}]
[{"$nulls":5},"Pallets",{"$f":"SUM(PurchaseOrderLines[Pallets])","v":0}]
[]
[]
[null,"Material","Description","Qty","UOM","Unit Price","Total","Qty Increment","Pallets"]
[null,{"$f":"IFERROR(VLOOKUP(ROW()-39,'CATALOG'!A:F,6,FALSE),\"\")","v":""},{"$f":"IF(PurchaseOrderLines[[#This Row],[Material]]=\"\",\"\",INDEX(Catalog[Material Description],MATCH(PurchaseOrderLines[[#This Row],[Material]],Catalog[Material '#],0)))","v":""},{"$f":"IF(PurchaseOrderLines[[#This Row],[Material]]=\"\",\"\",INDEX(Catalog[Enter Quantity To Add to PO],MATCH(PurchaseOrderLines[[#This Row],[Material]],Catalog[Material '#],0)))","v":""},{"$f":"IF(PurchaseOrderLines[[#This Row],[Material]]=\"\",\"\",INDEX(Catalog[UOM],MATCH(PurchaseOrderLines[[#This Row],[Material]],Catalog[Material '#],0)))","v":""},{"$f":"IF(PurchaseOrderLines[[#This Row],[Material]]=\"\",\"\",INDEX(Catalog[[Base]:[Efficient]],MATCH(PurchaseOrderLines[[#This Row],[Material]],Catalog[Material '#],0),MATCH(Pricing_Bracket,Catalog[[#Headers],[Base]:[Efficient]],0)))","v":""},{"$f":"IF(PurchaseOrderLines[[#This Row],[Material]]=\"\",0,PurchaseOrderLines[[#This Row],[Qty]]*PurchaseOrderLines[[#This Row],[Unit Price]])","v":0},{"$f":"IF(PurchaseOrderLines[[#This Row],[Material]]=\"\",\"\",INDEX(Catalog[MOQ/Qty Increments],MATCH(PurchaseOrderLines[[#This Row],[Material]],Catalog[Material '#],0)))","v":""},{"$f":"IFERROR(PurchaseOrderLines[[#This Row],[Qty]]/IF(PurchaseOrderLines[[#This Row],[Material]]=\"\",\"\",INDEX(Catalog[Pallet],MATCH(PurchaseOrderLines[[#This Row],[Material]],Catalog[Material '#],0))),0)","v":0}]
[null,{"$f":"IFERROR(VLOOKUP(ROW()-39,'CATALOG'!A:F,6,FALSE),\"\")","v":""},{"$f":"IF(PurchaseOrderLines[[#This Row],[Material]]=\"\",\"\",INDEX(Catalog[Material Description],MATCH(PurchaseOrderLines[[#This Row],[Material]],Catalog[Material '#],0)))","v":""},{"$f":"IF(PurchaseOrderLines[[#This Row],[Material]]=\"\",\"\",INDEX(Catalog[Enter Quantity To Add to PO],MATCH(PurchaseOrderLines[[#This Row],[Material]],Catalog[Material '#],0)))","v":""},{"$f":"IF(PurchaseOrderLines[[#This Row],[Material]]=\"\",\"\",INDEX(Catalog[UOM],MATCH(PurchaseOrderLines[[#This Row],[Material]],Catalog[Material '#],0)))","v":""},{"$f":"IF(PurchaseOrderLines[[#This Row],[Material]]=\"\",\"\",INDEX(Catalog[[Base]:[Efficient]],MATCH(PurchaseOrderLines[[#This Row],[Material]],Catalog[Material '#],0),MATCH(Pricing_Bracket,Catalog[[#Headers],[Base]:[Efficient]],0)))","v":""},{"$f":"IF(PurchaseOrderLines[[#This Row],[Material]]=\"\",0,PurchaseOrderLines[[#This Row],[Qty]]*PurchaseOrderLines[[#This Row],[Unit Price]])","v":0},{"$f":"IF(PurchaseOrderLines[[#This Row],[Material]]=\"\",\"\",INDEX(Catalog[MOQ/Qty Increments],MATCH(PurchaseOrderLines[[#This Row],[Material]],Catalog[Material '#],0)))","v":""},{"$f":"IFERROR(PurchaseOrderLines[[#This Row],[Qty]]/IF(PurchaseOrderLines[[#This Row],[Material]]=\"\",\"\",INDEX(Catalog[Pallet],MATCH(PurchaseOrderLines[[#This Row],[Material]],Catalog[Material '#],0))),0)","v":0}]
[null,{"$f":"IFERROR(VLOOKUP(ROW()-39,'CATALOG'!A:F,6,FALSE),\"\")","v":""},{"$f":"IF(PurchaseOrderLines[[#This Row],[Material]]=\"\",\"\",INDEX(Catalog[Material Description],MATCH(PurchaseOrderLines[[#This Row],[Material]],Catalog[Material '#],0)))","v":""},{"$f":"IF(PurchaseOrderLines[[#This Row],[Material]]=\"\",\"\",INDEX(Catalog[Enter Quantity To Add to PO],MATCH(PurchaseOrderLines[[#This Row],[Material]],Catalog[Material '#],0)))","v":""},{"$f":"IF(PurchaseOrderLines[[#This Row],[Material]]=\"\",\"\",INDEX(Catalog[UOM],MATCH(PurchaseOrderLines[[#This Row],[Material]],Catalog[Material '#],0)))","v":""},{"$f":"IF(PurchaseOrderLines[[#This Row],[Material]]=\"\",\"\",INDEX(Catalog[[Base]:[Efficient]],MATCH(PurchaseOrderLines[[#This Row],[Material]],Catalog[Material '#],0),MATCH(Pricing_Bracket,Catalog[[#Headers],[Base]:[Efficient]],0)))","v":""},{"$f":"IF(PurchaseOrderLines[[#This Row],[Material]]=\"\",0,PurchaseOrderLines[[#This Row],[Qty]]*PurchaseOrderLines[[#This Row],[Unit Price]])","v":0},{"$f":"IF(PurchaseOrderLines[[#This Row],[Material]]=\"\",\"\",INDEX(Catalog[MOQ/Qty Increments],MATCH(PurchaseOrderLines[[#This Row],[Material]],Catalog[Material '#],0)))","v":""},{"$f":"IFERROR(PurchaseOrderLines[[#This Row],[Qty]]/IF(PurchaseOrderLines[[#This Row],[Material]]=\"\",\"\",INDEX(Catalog[Pallet],MATCH(PurchaseOrderLines[[#This Row],[Material]],Catalog[Material '#],0))),0)","v":0}]
[null,{"$f":"IFERROR(VLOOKUP(ROW()-39,'CATALOG'!A:F,6,FALSE),\"\")","v":""},{"$f":"IF(PurchaseOrderLines[[#This Row],[Material]]=\"\",\"\",INDEX(Catalog[Material Description],MATCH(PurchaseOrderLines[[#This Row],[Material]],Catalog[Material '#],0)))","v":""},{"$f":"IF(PurchaseOrderLines[[#This Row],[Material]]=\"\",\"\",INDEX(Catalog[Enter Quantity To Add to PO],MATCH(PurchaseOrderLines[[#This Row],[Material]],Catalog[Material '#],0)))","v":""},{"$f":"IF(PurchaseOrderLines[[#This Row],[Material]]=\"\",\"\",INDEX(Catalog[UOM],MATCH(PurchaseOrderLines[[#This Row],[Material]],Catalog[Material '#],0)))","v":""},{"$f":"IF(PurchaseOrderLines[[#This Row],[Material]]=\"\",\"\",INDEX(Catalog[[Base]:[Efficient]],MATCH(PurchaseOrderLines[[#This Row],[Material]],Catalog[Material '#],0),MATCH(Pricing_Bracket,Catalog[[#Headers],[Base]:[Efficient]],0)))","v":""},{"$f":"IF(PurchaseOrderLines[[#This Row],[Material]]=\"\",0,PurchaseOrderLines[[#This Row],[Qty]]*PurchaseOrderLines[[#This Row],[Unit Price]])","v":0},{"$f":"IF(PurchaseOrderLines[[#This Row],[Material]]=\"\",\"\",INDEX(Catalog[MOQ/Qty Increments],MATCH(PurchaseOrderLines[[#This Row],[Material]],Catalog[Material '#],0)))","v":""},{"$f":"IFERROR(PurchaseOrderLines[[#This Row],[Qty]]/IF(PurchaseOrderLines[[#This Row],[Material]]=\"\",\"\",INDEX(Catalog[Pallet],MATCH(PurchaseOrderLines[[#This Row],[Material]],Catalog[Material '#],0))),0)","v":0}]
[null,{"$f":"IFERROR(VLOOKUP(ROW()-39,'CATALOG'!A:F,6,FALSE),\"\")","v":""},{"$f":"IF(PurchaseOrderLines[[#This Row],[Material]]=\"\",\"\",INDEX(Catalog[Material Description],MATCH(PurchaseOrderLines[[#This Row],[Material]],Catalog[Material '#],0)))","v":""},{"$f":"IF(PurchaseOrderLines[[#This Row],[Material]]=\"\",\"\",INDEX(Catalog[Enter Quantity To Add to PO],MATCH(PurchaseOrderLines[[#This Row],[Material]],Catalog[Material '#],0)))","v":""},{"$f":"IF(PurchaseOrderLines[[#This Row],[Material]]=\"\",\"\",INDEX(Catalog[UOM],MATCH(PurchaseOrderLines[[#This Row],[Material]],Catalog[Material '#],0)))","v":""},{"$f":"IF(PurchaseOrderLines[[#This Row],[Material]]=\"\",\"\",INDEX(Catalog[[Base]:[Efficient]],MATCH(PurchaseOrderLines[[#This Row],[Material]],Catalog[Material '#],0),MATCH(Pricing_Bracket,Catalog[[#Headers],[Base]:[Efficient]],0)))","v":""},{"$f":"IF(PurchaseOrderLines[[#This Row],[Material]]=\"\",0,PurchaseOrderLines[[#This Row],[Qty]]*PurchaseOrderLines[[#This Row],[Unit Price]])","v":0},{"$f":"IF(PurchaseOrderLines[[#This Row],[Material]]=\"\",\"\",INDEX(Catalog[MOQ/Qty Increments],MATCH(PurchaseOrderLines[[#This Row],[Material]],Catalog[Material '#],0)))","v":""},{"$f":"IFERROR(PurchaseOrderLines[[#This Row],[Qty]]/IF(PurchaseOrderLines[[#This Row],[Material]]=\"\",\"\",INDEX(Catalog[Pallet],MATCH(PurchaseOrderLines[[#This Row],[Material]],Catalog[Material '#],0))),0)","v":0}]
[null,{"$f":"IFERROR(VLOOKUP(ROW()-39,'CATALOG'!A:F,6,FALSE),\"\")","v":""},{"$f":"IF(PurchaseOrderLines[[#This Row],[Material]]=\"\",\"\",INDEX(Catalog[Material Description],MATCH(PurchaseOrderLines[[#This Row],[Material]],Catalog[Material '#],0)))","v":""},{"$f":"IF(PurchaseOrderLines[[#This Row],[Material]]=\"\",\"\",INDEX(Catalog[Enter Quantity To Add to PO],MATCH(PurchaseOrderLines[[#This Row],[Material]],Catalog[Material '#],0)))","v":""},{"$f":"IF(PurchaseOrderLines[[#This Row],[Material]]=\"\",\"\",INDEX(Catalog[UOM],MATCH(PurchaseOrderLines[[#This Row],[Material]],Catalog[Material '#],0)))","v":""},{"$f":"IF(PurchaseOrderLines[[#This Row],[Material]]=\"\",\"\",INDEX(Catalog[[Base]:[Efficient]],MATCH(PurchaseOrderLines[[#This Row],[Material]],Catalog[Material '#],0),MATCH(Pricing_Bracket,Catalog[[#Headers],[Base]:[Efficient]],0)))","v":""},{"$f":"IF(PurchaseOrderLines[[#This Row],[Material]]=\"\",0,PurchaseOrderLines[[#This Row],[Qty]]*PurchaseOrderLines[[#This Row],[Unit Price]])","v":0},{"$f":"IF(PurchaseOrderLines[[#This Row],[Material]]=\"\",\"\",INDEX(Catalog[MOQ/Qty Increments],MATCH(PurchaseOrderLines[[#This Row],[Material]],Catalog[Material '#],0)))","v":""},{"$f":"IFERROR(PurchaseOrderLines[[#This Row],[Qty]]/IF(PurchaseOrderLines[[#This Row],[Material]]=\"\",\"\",INDEX(Catalog[Pallet],MATCH(PurchaseOrderLines[[#This Row],[Material]],Catalog[Material '#],0))),0)","v":0}]
[null,{"$f":"IFERROR(VLOOKUP(ROW()-39,'CATALOG'!A:F,6,FALSE),\"\")","v":""},{"$f":"IF(PurchaseOrderLines[[#This Row],[Material]]=\"\",\"\",INDEX(Catalog[Material Description],MATCH(PurchaseOrderLines[[#This Row],[Material]],Catalog[Material '#],0)))","v":""},{"$f":"IF(PurchaseOrderLines[[#This Row],[Material]]=\"\",\"\",INDEX(Catalog[Enter Quantity To Add to PO],MATCH(PurchaseOrderLines[[#This Row],[Material]],Catalog[Material '#],0)))","v":""},{"$f":"IF(PurchaseOrderLines[[#This Row],[Material]]=\"\",\"\",INDEX(Catalog[UOM],MATCH(PurchaseOrderLines[[#This Row],[Material]],Catalog[Material '#],0)))","v":""},{"$f":"IF(PurchaseOrderLines[[#This Row],[Material]]=\"\",\"\",INDEX(Catalog[[Base]:[Efficient]],MATCH(PurchaseOrderLines[[#This Row],[Material]],Catalog[Material '#],0),MATCH(Pricing_Bracket,Catalog[[#Headers],[Base]:[Efficient]],0)))","v":""},{"$f":"IF(PurchaseOrderLines[[#This Row],[Material]]=\"\",0,PurchaseOrderLines[[#This Row],[Qty]]*PurchaseOrderLines[[#This Row],[Unit Price]])","v":0},{"$f":"IF(PurchaseOrderLines[[#This Row],[Material]]=\"\",\"\",INDEX(Catalog[MOQ/Qty Increments],MATCH(PurchaseOrderLines[[#This Row],[Material]],Catalog[Material '#],0)))","v":""},{"$f":"IFERROR(PurchaseOrderLines[[#This Row],[Qty]]/IF(PurchaseOrderLines[[#This Row],[Material]]=\"\",\"\",INDEX(Catalog[Pallet],MATCH(PurchaseOrderLines[[#This Row],[Material]],Catalog[Material '#],0))),0)","v":0}]
[null,{"$f":"IFERROR(VLOOKUP(ROW()-39,'CATALOG'!A:F,6,FALSE),\"\")","v":""},{"$f":"IF(PurchaseOrderLines[[#This Row],[Material]]=\"\",\"\",INDEX(Catalog[Material Description],MATCH(PurchaseOrderLines[[#This Row],[Material]],Catalog[Material '#],0)))","v":""},{"$f":"IF(PurchaseOrderLines[[#This Row],[Material]]=\"\",\"\",INDEX(Catalog[Enter Quantity To Add to PO],MATCH(PurchaseOrderLines[[#This Row],[Material]],Catalog[Material '#],0)))","v":""},{"$f":"IF(PurchaseOrderLines[[#This Row],[Material]]=\"\",\"\",INDEX(Catalog[UOM],MATCH(PurchaseOrderLines[[#This Row],[Material]],Catalog[Material '#],0)))","v":""},{"$f":"IF(PurchaseOrderLines[[#This Row],[Material]]=\"\",\"\",INDEX(Catalog[[Base]:[Efficient]],MATCH(PurchaseOrderLines[[#This Row],[Material]],Catalog[Material '#],0),MATCH(Pricing_Bracket,Catalog[[#Headers],[Base]:[Efficient]],0)))","v":""},{"$f":"IF(PurchaseOrderLines[[#This Row],[Material]]=\"\",0,PurchaseOrderLines[[#This Row],[Qty]]*PurchaseOrderLines[[#This Row],[Unit Price]])","v":0},{"$f":"IF(PurchaseOrderLines[[#This Row],[Material]]=\"\",\"\",INDEX(Catalog[MOQ/Qty Increments],MATCH(PurchaseOrderLines[[#This Row],[Material]],Catalog[Material '#],0)))","v":""},{"$f":"IFERROR(PurchaseOrderLines[[#This Row],[Qty]]/IF(PurchaseOrderLines[[#This Row],[Material]]=\"\",\"\",INDEX(Catalog[Pallet],MATCH(PurchaseOrderLines[[#This Row],[Material]],Catalog[Material '#],0))),0)","v":0}]
[null,{"$f":"IFERROR(VLOOKUP(ROW()-39,'CATALOG'!A:F,6,FALSE),\"\")","v":""},{"$f":"IF(PurchaseOrderLines[[#This Row],[Material]]=\"\",\"\",INDEX(Catalog[Material Description],MATCH(PurchaseOrderLines[[#This Row],[Material]],Catalog[Material '#],0)))","v":""},{"$f":"IF(PurchaseOrderLines[[#This Row],[Material]]=\"\",\"\",INDEX(Catalog[Enter Quantity To Add to PO],MATCH(PurchaseOrderLines[[#This Row],[Material]],Catalog[Material '#],0)))","v":""},{"$f":"IF(PurchaseOrderLines[[#This Row],[Material]]=\"\",\"\",INDEX(Catalog[UOM],MATCH(PurchaseOrderLines[[#This Row],[Material]],Catalog[Material '#],0)))","v":""},{"$f":"IF(PurchaseOrderLines[[#This Row],[Material]]=\"\",\"\",INDEX(Catalog[[Base]:[Efficient]],MATCH(PurchaseOrderLines[[#This Row],[Material]],Catalog[Material '#],0),MATCH(Pricing_Bracket,Catalog[[#Headers],[Base]:[Efficient]],0)))","v":""},{"$f":"IF(PurchaseOrderLines[[#This Row],[Material]]=\"\",0,PurchaseOrderLines[[#This Row],[Qty]]*PurchaseOrderLines[[#This Row],[Unit Price]])","v":0},{"$f":"IF(PurchaseOrderLines[[#This Row],[Material]]=\"\",\"\",INDEX(Catalog[MOQ/Qty Increments],MATCH(PurchaseOrderLines[[#This Row],[Material]],Catalog[Material '#],0)))","v":""},{"$f":"IFERROR(PurchaseOrderLines[[#This Row],[Qty]]/IF(PurchaseOrderLines[[#This Row],[Material]]=\"\",\"\",INDEX(Catalog[Pallet],MATCH(PurchaseOrderLines[[#This Row],[Material]],Catalog[Material '#],0))),0)","v":0}]
[null,{"$f":"IFERROR(VLOOKUP(ROW()-39,'CATALOG'!A:F,6,FALSE),\"\")","v":""},{"$f":"IF(PurchaseOrderLines[[#This Row],[Material]]=\"\",\"\",INDEX(Catalog[Material Description],MATCH(PurchaseOrderLines[[#This Row],[Material]],Catalog[Material '#],0)))","v":""},{"$f":"IF(PurchaseOrderLines[[#This Row],[Material]]=\"\",\"\",INDEX(Catalog[Enter Quantity To Add to PO],MATCH(PurchaseOrderLines[[#This Row],[Material]],Catalog[Material '#],0)))","v":""},{"$f":"IF(PurchaseOrderLines[[#This Row],[Material]]=\"\",\"\",INDEX(Catalog[UOM],MATCH(PurchaseOrderLines[[#This Row],[Material]],Catalog[Material '#],0)))","v":""},{"$f":"IF(PurchaseOrderLines[[#This Row],[Material]]=\"\",\"\",INDEX(Catalog[[Base]:[Efficient]],MATCH(PurchaseOrderLines[[#This Row],[Material]],Catalog[Material '#],0),MATCH(Pricing_Bracket,Catalog[[#Headers],[Base]:[Efficient]],0)))","v":""},{"$f":"IF(PurchaseOrderLines[[#This Row],[Material]]=\"\",0,PurchaseOrderLines[[#This Row],[Qty]]*PurchaseOrderLines[[#This Row],[Unit Price]])","v":0},{"$f":"IF(PurchaseOrderLines[[#This Row],[Material]]=\"\",\"\",INDEX(Catalog[MOQ/Qty Increments],MATCH(PurchaseOrderLines[[#This Row],[Material]],Catalog[Material '#],0)))","v":""},{"$f":"IFERROR(PurchaseOrderLines[[#This Row],[Qty]]/IF(PurchaseOrderLines[[#This Row],[Material]]=\"\",\"\",INDEX(Catalog[Pallet],MATCH(PurchaseOrderLines[[#This Row],[Material]],Catalog[Material '#],0))),0)","v":0}]
[null,{"$f":"IFERROR(VLOOKUP(ROW()-39,'CATALOG'!A:F,6,FALSE),\"\")","v":""},{"$f":"IF(PurchaseOrderLines[[#This Row],[Material]]=\"\",\"\",INDEX(Catalog[Material Description],MATCH(PurchaseOrderLines[[#This Row],[Material]],Catalog[Material '#],0)))","v":""},{"$f":"IF(PurchaseOrderLines[[#This Row],[Material]]=\"\",\"\",INDEX(Catalog[Enter Quantity To Add to PO],MATCH(PurchaseOrderLines[[#This Row],[Material]],Catalog[Material '#],0)))","v":""},{"$f":"IF(PurchaseOrderLines[[#This Row],[Material]]=\"\",\"\",INDEX(Catalog[UOM],MATCH(PurchaseOrderLines[[#This Row],[Material]],Catalog[Material '#],0)))","v":""},{"$f":"IF(PurchaseOrderLines[[#This Row],[Material]]=\"\",\"\",INDEX(Catalog[[Base]:[Efficient]],MATCH(PurchaseOrderLines[[#This Row],[Material]],Catalog[Material '#],0),MATCH(Pricing_Bracket,Catalog[[#Headers],[Base]:[Efficient]],0)))","v":""},{"$f":"IF(PurchaseOrderLines[[#This Row],[Material]]=\"\",0,PurchaseOrderLines[[#This Row],[Qty]]*PurchaseOrderLines[[#This Row],[Unit Price]])","v":0},{"$f":"IF(PurchaseOrderLines[[#This Row],[Material]]=\"\",\"\",INDEX(Catalog[MOQ/Qty Increments],MATCH(PurchaseOrderLines[[#This Row],[Material]],Catalog[Material '#],0)))","v":""},{"$f":"IFERROR(PurchaseOrderLines[[#This Row],[Qty]]/IF(PurchaseOrderLines[[#This Row],[Material]]=\"\",\"\",INDEX(Catalog[Pallet],MATCH(PurchaseOrderLines[[#This Row],[Material]],Catalog[Material '#],0))),0)","v":0}]
[null,{"$f":"IFERROR(VLOOKUP(ROW()-39,'CATALOG'!A:F,6,FALSE),\"\")","v":""},{"$f":"IF(PurchaseOrderLines[[#This Row],[Material]]=\"\",\"\",INDEX(Catalog[Material Description],MATCH(PurchaseOrderLines[[#This Row],[Material]],Catalog[Material '#],0)))","v":""},{"$f":"IF(PurchaseOrderLines[[#This Row],[Material]]=\"\",\"\",INDEX(Catalog[Enter Quantity To Add to PO],MATCH(PurchaseOrderLines[[#This Row],[Material]],Catalog[Material '#],0)))","v":""},{"$f":"IF(PurchaseOrderLines[[#This Row],[Material]]=\"\",\"\",INDEX(Catalog[UOM],MATCH(PurchaseOrderLines[[#This Row],[Material]],Catalog[Material '#],0)))","v":""},{"$f":"IF(PurchaseOrderLines[[#This Row],[Material]]=\"\",\"\",INDEX(Catalog[[Base]:[Efficient]],MATCH(PurchaseOrderLines[[#This Row],[Material]],Catalog[Material '#],0),MATCH(Pricing_Bracket,Catalog[[#Headers],[Base]:[Efficient]],0)))","v":""},{"$f":"IF(PurchaseOrderLines[[#This Row],[Material]]=\"\",0,PurchaseOrderLines[[#This Row],[Qty]]*PurchaseOrderLines[[#This Row],[Unit Price]])","v":0},{"$f":"IF(PurchaseOrderLines[[#This Row],[Material]]=\"\",\"\",INDEX(Catalog[MOQ/Qty Increments],MATCH(PurchaseOrderLines[[#This Row],[Material]],Catalog[Material '#],0)))","v":""},{"$f":"IFERROR(PurchaseOrderLines[[#This Row],[Qty]]/IF(PurchaseOrderLines[[#This Row],[Material]]=\"\",\"\",INDEX(Catalog[Pallet],MATCH(PurchaseOrderLines[[#This Row],[Material]],Catalog[Material '#],0))),0)","v":0}]
[null,{"$f":"IFERROR(VLOOKUP(ROW()-39,'CATALOG'!A:F,6,FALSE),\"\")","v":""},{"$f":"IF(PurchaseOrderLines[[#This Row],[Material]]=\"\",\"\",INDEX(Catalog[Material Description],MATCH(PurchaseOrderLines[[#This Row],[Material]],Catalog[Material '#],0)))","v":""},{"$f":"IF(PurchaseOrderLines[[#This Row],[Material]]=\"\",\"\",INDEX(Catalog[Enter Quantity To Add to PO],MATCH(PurchaseOrderLines[[#This Row],[Material]],Catalog[Material '#],0)))","v":""},{"$f":"IF(PurchaseOrderLines[[#This Row],[Material]]=\"\",\"\",INDEX(Catalog[UOM],MATCH(PurchaseOrderLines[[#This Row],[Material]],Catalog[Material '#],0)))","v":""},{"$f":"IF(PurchaseOrderLines[[#This Row],[Material]]=\"\",\"\",INDEX(Catalog[[Base]:[Efficient]],MATCH(PurchaseOrderLines[[#This Row],[Material]],Catalog[Material '#],0),MATCH(Pricing_Bracket,Catalog[[#Headers],[Base]:[Efficient]],0)))","v":""},{"$f":"IF(PurchaseOrderLines[[#This Row],[Material]]=\"\",0,PurchaseOrderLines[[#This Row],[Qty]]*PurchaseOrderLines[[#This Row],[Unit Price]])","v":0},{"$f":"IF(PurchaseOrderLines[[#This Row],[Material]]=\"\",\"\",INDEX(Catalog[MOQ/Qty Increments],MATCH(PurchaseOrderLines[[#This Row],[Material]],Catalog[Material '#],0)))","v":""},{"$f":"IFERROR(PurchaseOrderLines[[#This Row],[Qty]]/IF(PurchaseOrderLines[[#This Row],[Material]]=\"\",\"\",INDEX(Catalog[Pallet],MATCH(PurchaseOrderLines[[#This Row],[Material]],Catalog[Material '#],0))),0)","v":0}]
[null,{"$f":"IFERROR(VLOOKUP(ROW()-39,'CATALOG'!A:F,6,FALSE),\"\")","v":""},{"$f":"IF(PurchaseOrderLines[[#This Row],[Material]]=\"\",\"\",INDEX(Catalog[Material Description],MATCH(PurchaseOrderLines[[#This Row],[Material]],Catalog[Material '#],0)))","v":""},{"$f":"IF(PurchaseOrderLines[[#This Row],[Material]]=\"\",\"\",INDEX(Catalog[Enter Quantity To Add to PO],MATCH(PurchaseOrderLines[[#This Row],[Material]],Catalog[Material '#],0)))","v":""},{"$f":"IF(PurchaseOrderLines[[#This Row],[Material]]=\"\",\"\",INDEX(Catalog[UOM],MATCH(PurchaseOrderLines[[#This Row],[Material]],Catalog[Material '#],0)))","v":""},{"$f":"IF(PurchaseOrderLines[[#This Row],[Material]]=\"\",\"\",INDEX(Catalog[[Base]:[Efficient]],MATCH(PurchaseOrderLines[[#This Row],[Material]],Catalog[Material '#],0),MATCH(Pricing_Bracket,Catalog[[#Headers],[Base]:[Efficient]],0)))","v":""},{"$f":"IF(PurchaseOrderLines[[#This Row],[Material]]=\"\",0,PurchaseOrderLines[[#This Row],[Qty]]*PurchaseOrderLines[[#This Row],[Unit Price]])","v":0},{"$f":"IF(PurchaseOrderLines[[#This Row],[Material]]=\"\",\"\",INDEX(Catalog[MOQ/Qty Increments],MATCH(PurchaseOrderLines[[#This Row],[Material]],Catalog[Material '#],0)))","v":""},{"$f":"IFERROR(PurchaseOrderLines[[#This Row],[Qty]]/IF(PurchaseOrderLines[[#This Row],[Material]]=\"\",\"\",INDEX(Catalog[Pallet],MATCH(PurchaseOrderLines[[#This Row],[Material]],Catalog[Material '#],0))),0)","v":0}]
[null,{"$f":"IFERROR(VLOOKUP(ROW()-39,'CATALOG'!A:F,6,FALSE),\"\")","v":""},{"$f":"IF(PurchaseOrderLines[[#This Row],[Material]]=\"\",\"\",INDEX(Catalog[Material Description],MATCH(PurchaseOrderLines[[#This Row],[Material]],Catalog[Material '#],0)))","v":""},{"$f":"IF(PurchaseOrderLines[[#This Row],[Material]]=\"\",\"\",INDEX(Catalog[Enter Quantity To Add to PO],MATCH(PurchaseOrderLines[[#This Row],[Material]],Catalog[Material '#],0)))","v":""},{"$f":"IF(PurchaseOrderLines[[#This Row],[Material]]=\"\",\"\",INDEX(Catalog[UOM],MATCH(PurchaseOrderLines[[#This Row],[Material]],Catalog[Material '#],0)))","v":""},{"$f":"IF(PurchaseOrderLines[[#This Row],[Material]]=\"\",\"\",INDEX(Catalog[[Base]:[Efficient]],MATCH(PurchaseOrderLines[[#This Row],[Material]],Catalog[Material '#],0),MATCH(Pricing_Bracket,Catalog[[#Headers],[Base]:[Efficient]],0)))","v":""},{"$f":"IF(PurchaseOrderLines[[#This Row],[Material]]=\"\",0,PurchaseOrderLines[[#This Row],[Qty]]*PurchaseOrderLines[[#This Row],[Unit Price]])","v":0},{"$f":"IF(PurchaseOrderLines[[#This Row],[Material]]=\"\",\"\",INDEX(Catalog[MOQ/Qty Increments],MATCH(PurchaseOrderLines[[#This Row],[Material]],Catalog[Material '#],0)))","v":""},{"$f":"IFERROR(PurchaseOrderLines[[#This Row],[Qty]]/IF(PurchaseOrderLines[[#This Row],[Material]]=\"\",\"\",INDEX(Catalog[Pallet],MATCH(PurchaseOrderLines[[#This Row],[Material]],Catalog[Material '#],0))),0)","v":0}]
[null,{"$f":"IFERROR(VLOOKUP(ROW()-39,'CATALOG'!A:F,6,FALSE),\"\")","v":""},{"$f":"IF(PurchaseOrderLines[[#This Row],[Material]]=\"\",\"\",INDEX(Catalog[Material Description],MATCH(PurchaseOrderLines[[#This Row],[Material]],Catalog[Material '#],0)))","v":""},{"$f":"IF(PurchaseOrderLines[[#This Row],[Material]]=\"\",\"\",INDEX(Catalog[Enter Quantity To Add to PO],MATCH(PurchaseOrderLines[[#This Row],[Material]],Catalog[Material '#],0)))","v":""},{"$f":"IF(PurchaseOrderLines[[#This Row],[Material]]=\"\",\"\",INDEX(Catalog[UOM],MATCH(PurchaseOrderLines[[#This Row],[Material]],Catalog[Material '#],0)))","v":""},{"$f":"IF(PurchaseOrderLines[[#This Row],[Material]]=\"\",\"\",INDEX(Catalog[[Base]:[Efficient]],MATCH(PurchaseOrderLines[[#This Row],[Material]],Catalog[Material '#],0),MATCH(Pricing_Bracket,Catalog[[#Headers],[Base]:[Efficient]],0)))","v":""},{"$f":"IF(PurchaseOrderLines[[#This Row],[Material]]=\"\",0,PurchaseOrderLines[[#This Row],[Qty]]*PurchaseOrderLines[[#This Row],[Unit Price]])","v":0},{"$f":"IF(PurchaseOrderLines[[#This Row],[Material]]=\"\",\"\",INDEX(Catalog[MOQ/Qty Increments],MATCH(PurchaseOrderLines[[#This Row],[Material]],Catalog[Material '#],0)))","v":""},{"$f":"IFERROR(PurchaseOrderLines[[#This Row],[Qty]]/IF(PurchaseOrderLines[[#This Row],[Material]]=\"\",\"\",INDEX(Catalog[Pallet],MATCH(PurchaseOrderLines[[#This Row],[Material]],Catalog[Material '#],0))),0)","v":0}]
[null,{"$f":"IFERROR(VLOOKUP(ROW()-39,'CATALOG'!A:F,6,FALSE),\"\")","v":""},{"$f":"IF(PurchaseOrderLines[[#This Row],[Material]]=\"\",\"\",INDEX(Catalog[Material Description],MATCH(PurchaseOrderLines[[#This Row],[Material]],Catalog[Material '#],0)))","v":""},{"$f":"IF(PurchaseOrderLines[[#This Row],[Material]]=\"\",\"\",INDEX(Catalog[Enter Quantity To Add to PO],MATCH(PurchaseOrderLines[[#This Row],[Material]],Catalog[Material '#],0)))","v":""},{"$f":"IF(PurchaseOrderLines[[#This Row],[Material]]=\"\",\"\",INDEX(Catalog[UOM],MATCH(PurchaseOrderLines[[#This Row],[Material]],Catalog[Material '#],0)))","v":""},{"$f":"IF(PurchaseOrderLines[[#This Row],[Material]]=\"\",\"\",INDEX(Catalog[[Base]:[Efficient]],MATCH(PurchaseOrderLines[[#This Row],[Material]],Catalog[Material '#],0),MATCH(Pricing_Bracket,Catalog[[#Headers],[Base]:[Efficient]],0)))","v":""},{"$f":"IF(PurchaseOrderLines[[#This Row],[Material]]=\"\",0,PurchaseOrderLines[[#This Row],[Qty]]*PurchaseOrderLines[[#This Row],[Unit Price]])","v":0},{"$f":"IF(PurchaseOrderLines[[#This Row],[Material]]=\"\",\"\",INDEX(Catalog[MOQ/Qty Increments],MATCH(PurchaseOrderLines[[#This Row],[Material]],Catalog[Material '#],0)))","v":""},{"$f":"IFERROR(PurchaseOrderLines[[#This Row],[Qty]]/IF(PurchaseOrderLines[[#This Row],[Material]]=\"\",\"\",INDEX(Catalog[Pallet],MATCH(PurchaseOrderLines[[#This Row],[Material]],Catalog[Material '#],0))),0)","v":0}]
[null,{"$f":"IFERROR(VLOOKUP(ROW()-39,'CATALOG'!A:F,6,FALSE),\"\")","v":""},{"$f":"IF(PurchaseOrderLines[[#This Row],[Material]]=\"\",\"\",INDEX(Catalog[Material Description],MATCH(PurchaseOrderLines[[#This Row],[Material]],Catalog[Material '#],0)))","v":""},{"$f":"IF(PurchaseOrderLines[[#This Row],[Material]]=\"\",\"\",INDEX(Catalog[Enter Quantity To Add to PO],MATCH(PurchaseOrderLines[[#This Row],[Material]],Catalog[Material '#],0)))","v":""},{"$f":"IF(PurchaseOrderLines[[#This Row],[Material]]=\"\",\"\",INDEX(Catalog[UOM],MATCH(PurchaseOrderLines[[#This Row],[Material]],Catalog[Material '#],0)))","v":""},{"$f":"IF(PurchaseOrderLines[[#This Row],[Material]]=\"\",\"\",INDEX(Catalog[[Base]:[Efficient]],MATCH(PurchaseOrderLines[[#This Row],[Material]],Catalog[Material '#],0),MATCH(Pricing_Bracket,Catalog[[#Headers],[Base]:[Efficient]],0)))","v":""},{"$f":"IF(PurchaseOrderLines[[#This Row],[Material]]=\"\",0,PurchaseOrderLines[[#This Row],[Qty]]*PurchaseOrderLines[[#This Row],[Unit Price]])","v":0},{"$f":"IF(PurchaseOrderLines[[#This Row],[Material]]=\"\",\"\",INDEX(Catalog[MOQ/Qty Increments],MATCH(PurchaseOrderLines[[#This Row],[Material]],Catalog[Material '#],0)))","v":""},{"$f":"IFERROR(PurchaseOrderLines[[#This Row],[Qty]]/IF(PurchaseOrderLines[[#This Row],[Material]]=\"\",\"\",INDEX(Catalog[Pallet],MATCH(PurchaseOrderLines[[#This Row],[Material]],Catalog[Material '#],0))),0)","v":0}]
[null,{"$f":"IFERROR(VLOOKUP(ROW()-39,'CATALOG'!A:F,6,FALSE),\"\")","v":""},{"$f":"IF(PurchaseOrderLines[[#This Row],[Material]]=\"\",\"\",INDEX(Catalog[Material Description],MATCH(PurchaseOrderLines[[#This Row],[Material]],Catalog[Material '#],0)))","v":""},{"$f":"IF(PurchaseOrderLines[[#This Row],[Material]]=\"\",\"\",INDEX(Catalog[Enter Quantity To Add to PO],MATCH(PurchaseOrderLines[[#This Row],[Material]],Catalog[Material '#],0)))","v":""},{"$f":"IF(PurchaseOrderLines[[#This Row],[Material]]=\"\",\"\",INDEX(Catalog[UOM],MATCH(PurchaseOrderLines[[#This Row],[Material]],Catalog[Material '#],0)))","v":""},{"$f":"IF(PurchaseOrderLines[[#This Row],[Material]]=\"\",\"\",INDEX(Catalog[[Base]:[Efficient]],MATCH(PurchaseOrderLines[[#This Row],[Material]],Catalog[Material '#],0),MATCH(Pricing_Bracket,Catalog[[#Headers],[Base]:[Efficient]],0)))","v":""},{"$f":"IF(PurchaseOrderLines[[#This Row],[Material]]=\"\",0,PurchaseOrderLines[[#This Row],[Qty]]*PurchaseOrderLines[[#This Row],[Unit Price]])","v":0},{"$f":"IF(PurchaseOrderLines[[#This Row],[Material]]=\"\",\"\",INDEX(Catalog[MOQ/Qty Increments],MATCH(PurchaseOrderLines[[#This Row],[Material]],Catalog[Material '#],0)))","v":""},{"$f":"IFERROR(PurchaseOrderLines[[#This Row],[Qty]]/IF(PurchaseOrderLines[[#This Row],[Material]]=\"\",\"\",INDEX(Catalog[Pallet],MATCH(PurchaseOrderLines[[#This Row],[Material]],Catalog[Material '#],0))),0)","v":0}]
[null,{"$f":"IFERROR(VLOOKUP(ROW()-39,'CATALOG'!A:F,6,FALSE),\"\")","v":""},{"$f":"IF(PurchaseOrderLines[[#This Row],[Material]]=\"\",\"\",INDEX(Catalog[Material Description],MATCH(PurchaseOrderLines[[#This Row],[Material]],Catalog[Material '#],0)))","v":""},{"$f":"IF(PurchaseOrderLines[[#This Row],[Material]]=\"\",\"\",INDEX(Catalog[Enter Quantity To Add to PO],MATCH(PurchaseOrderLines[[#This Row],[Material]],Catalog[Material '#],0)))","v":""},{"$f":"IF(PurchaseOrderLines[[#This Row],[Material]]=\"\",\"\",INDEX(Catalog[UOM],MATCH(PurchaseOrderLines[[#This Row],[Material]],Catalog[Material '#],0)))","v":""},{"$f":"IF(PurchaseOrderLines[[#This Row],[Material]]=\"\",\"\",INDEX(Catalog[[Base]:[Efficient]],MATCH(PurchaseOrderLines[[#This Row],[Material]],Catalog[Material '#],0),MATCH(Pricing_Bracket,Catalog[[#Headers],[Base]:[Efficient]],0)))","v":""},{"$f":"IF(PurchaseOrderLines[[#This Row],[Material]]=\"\",0,PurchaseOrderLines[[#This Row],[Qty]]*PurchaseOrderLines[[#This Row],[Unit Price]])","v":0},{"$f":"IF(PurchaseOrderLines[[#This Row],[Material]]=\"\",\"\",INDEX(Catalog[MOQ/Qty Increments],MATCH(PurchaseOrderLines[[#This Row],[Material]],Catalog[Material '#],0)))","v":""},{"$f":"IFERROR(PurchaseOrderLines[[#This Row],[Qty]]/IF(PurchaseOrderLines[[#This Row],[Material]]=\"\",\"\",INDEX(Catalog[Pallet],MATCH(PurchaseOrderLines[[#This Row],[Material]],Catalog[Material '#],0))),0)","v":0}]
[null,{"$f":"IFERROR(VLOOKUP(ROW()-39,'CATALOG'!A:F,6,FALSE),\"\")","v":""},{"$f":"IF(PurchaseOrderLines[[#This Row],[Material]]=\"\",\"\",INDEX(Catalog[Material Description],MATCH(PurchaseOrderLines[[#This Row],[Material]],Catalog[Material '#],0)))","v":""},{"$f":"IF(PurchaseOrderLines[[#This Row],[Material]]=\"\",\"\",INDEX(Catalog[Enter Quantity To Add to PO],MATCH(PurchaseOrderLines[[#This Row],[Material]],Catalog[Material '#],0)))","v":""},{"$f":"IF(PurchaseOrderLines[[#This Row],[Material]]=\"\",\"\",INDEX(Catalog[UOM],MATCH(PurchaseOrderLines[[#This Row],[Material]],Catalog[Material '#],0)))","v":""},{"$f":"IF(PurchaseOrderLines[[#This Row],[Material]]=\"\",\"\",INDEX(Catalog[[Base]:[Efficient]],MATCH(PurchaseOrderLines[[#This Row],[Material]],Catalog[Material '#],0),MATCH(Pricing_Bracket,Catalog[[#Headers],[Base]:[Efficient]],0)))","v":""},{"$f":"IF(PurchaseOrderLines[[#This Row],[Material]]=\"\",0,PurchaseOrderLines[[#This Row],[Qty]]*PurchaseOrderLines[[#This Row],[Unit Price]])","v":0},{"$f":"IF(PurchaseOrderLines[[#This Row],[Material]]=\"\",\"\",INDEX(Catalog[MOQ/Qty Increments],MATCH(PurchaseOrderLines[[#This Row],[Material]],Catalog[Material '#],0)))","v":""},{"$f":"IFERROR(PurchaseOrderLines[[#This Row],[Qty]]/IF(PurchaseOrderLines[[#This Row],[Material]]=\"\",\"\",INDEX(Catalog[Pallet],MATCH(PurchaseOrderLines[[#This Row],[Material]],Catalog[Material '#],0))),0)","v":0}]
[null,{"$f":"IFERROR(VLOOKUP(ROW()-39,'CATALOG'!A:F,6,FALSE),\"\")","v":""},{"$f":"IF(PurchaseOrderLines[[#This Row],[Material]]=\"\",\"\",INDEX(Catalog[Material Description],MATCH(PurchaseOrderLines[[#This Row],[Material]],Catalog[Material '#],0)))","v":""},{"$f":"IF(PurchaseOrderLines[[#This Row],[Material]]=\"\",\"\",INDEX(Catalog[Enter Quantity To Add to PO],MATCH(PurchaseOrderLines[[#This Row],[Material]],Catalog[Material '#],0)))","v":""},{"$f":"IF(PurchaseOrderLines[[#This Row],[Material]]=\"\",\"\",INDEX(Catalog[UOM],MATCH(PurchaseOrderLines[[#This Row],[Material]],Catalog[Material '#],0)))","v":""},{"$f":"IF(PurchaseOrderLines[[#This Row],[Material]]=\"\",\"\",INDEX(Catalog[[Base]:[Efficient]],MATCH(PurchaseOrderLines[[#This Row],[Material]],Catalog[Material '#],0),MATCH(Pricing_Bracket,Catalog[[#Headers],[Base]:[Efficient]],0)))","v":""},{"$f":"IF(PurchaseOrderLines[[#This Row],[Material]]=\"\",0,PurchaseOrderLines[[#This Row],[Qty]]*PurchaseOrderLines[[#This Row],[Unit Price]])","v":0},{"$f":"IF(PurchaseOrderLines[[#This Row],[Material]]=\"\",\"\",INDEX(Catalog[MOQ/Qty Increments],MATCH(PurchaseOrderLines[[#This Row],[Material]],Catalog[Material '#],0)))","v":""},{"$f":"IFERROR(PurchaseOrderLines[[#This Row],[Qty]]/IF(PurchaseOrderLines[[#This Row],[Material]]=\"\",\"\",INDEX(Catalog[Pallet],MATCH(PurchaseOrderLines[[#This Row],[Material]],Catalog[Material '#],0))),0)","v":0}]
[null,{"$f":"IFERROR(VLOOKUP(ROW()-39,'CATALOG'!A:F,6,FALSE),\"\")","v":""},{"$f":"IF(PurchaseOrderLines[[#This Row],[Material]]=\"\",\"\",INDEX(Catalog[Material Description],MATCH(PurchaseOrderLines[[#This Row],[Material]],Catalog[Material '#],0)))","v":""},{"$f":"IF(PurchaseOrderLines[[#This Row],[Material]]=\"\",\"\",INDEX(Catalog[Enter Quantity To Add to PO],MATCH(PurchaseOrderLines[[#This Row],[Material]],Catalog[Material '#],0)))","v":""},{"$f":"IF(PurchaseOrderLines[[#This Row],[Material]]=\"\",\"\",INDEX(Catalog[UOM],MATCH(PurchaseOrderLines[[#This Row],[Material]],Catalog[Material '#],0)))","v":""},{"$f":"IF(PurchaseOrderLines[[#This Row],[Material]]=\"\",\"\",INDEX(Catalog[[Base]:[Efficient]],MATCH(PurchaseOrderLines[[#This Row],[Material]],Catalog[Material '#],0),MATCH(Pricing_Bracket,Catalog[[#Headers],[Base]:[Efficient]],0)))","v":""},{"$f":"IF(PurchaseOrderLines[[#This Row],[Material]]=\"\",0,PurchaseOrderLines[[#This Row],[Qty]]*PurchaseOrderLines[[#This Row],[Unit Price]])","v":0},{"$f":"IF(PurchaseOrderLines[[#This Row],[Material]]=\"\",\"\",INDEX(Catalog[MOQ/Qty Increments],MATCH(PurchaseOrderLines[[#This Row],[Material]],Catalog[Material '#],0)))","v":""},{"$f":"IFERROR(PurchaseOrderLines[[#This Row],[Qty]]/IF(PurchaseOrderLines[[#This Row],[Material]]=\"\",\"\",INDEX(Catalog[Pallet],MATCH(PurchaseOrderLines[[#This Row],[Material]],Catalog[Material '#],0))),0)","v":0}]
[null,{"$f":"IFERROR(VLOOKUP(ROW()-39,'CATALOG'!A:F,6,FALSE),\"\")","v":""},{"$f":"IF(PurchaseOrderLines[[#This Row],[Material]]=\"\",\"\",INDEX(Catalog[Material Description],MATCH(PurchaseOrderLines[[#This Row],[Material]],Catalog[Material '#],0)))","v":""},{"$f":"IF(PurchaseOrderLines[[#This Row],[Material]]=\"\",\"\",INDEX(Catalog[Enter Quantity To Add to PO],MATCH(PurchaseOrderLines[[#This Row],[Material]],Catalog[Material '#],0)))","v":""},{"$f":"IF(PurchaseOrderLines[[#This Row],[Material]]=\"\",\"\",INDEX(Catalog[UOM],MATCH(PurchaseOrderLines[[#This Row],[Material]],Catalog[Material '#],0)))","v":""},{"$f":"IF(PurchaseOrderLines[[#This Row],[Material]]=\"\",\"\",INDEX(Catalog[[Base]:[Efficient]],MATCH(PurchaseOrderLines[[#This Row],[Material]],Catalog[Material '#],0),MATCH(Pricing_Bracket,Catalog[[#Headers],[Base]:[Efficient]],0)))","v":""},{"$f":"IF(PurchaseOrderLines[[#This Row],[Material]]=\"\",0,PurchaseOrderLines[[#This Row],[Qty]]*PurchaseOrderLines[[#This Row],[Unit Price]])","v":0},{"$f":"IF(PurchaseOrderLines[[#This Row],[Material]]=\"\",\"\",INDEX(Catalog[MOQ/Qty Increments],MATCH(PurchaseOrderLines[[#This Row],[Material]],Catalog[Material '#],0)))","v":""},{"$f":"IFERROR(PurchaseOrderLines[[#This Row],[Qty]]/IF(PurchaseOrderLines[[#This Row],[Material]]=\"\",\"\",INDEX(Catalog[Pallet],MATCH(PurchaseOrderLines[[#This Row],[Material]],Catalog[Material '#],0))),0)","v":0}]
[null,{"$f":"IFERROR(VLOOKUP(ROW()-39,'CATALOG'!A:F,6,FALSE),\"\")","v":""},{"$f":"IF(PurchaseOrderLines[[#This Row],[Material]]=\"\",\"\",INDEX(Catalog[Material Description],MATCH(PurchaseOrderLines[[#This Row],[Material]],Catalog[Material '#],0)))","v":""},{"$f":"IF(PurchaseOrderLines[[#This Row],[Material]]=\"\",\"\",INDEX(Catalog[Enter Quantity To Add to PO],MATCH(PurchaseOrderLines[[#This Row],[Material]],Catalog[Material '#],0)))","v":""},{"$f":"IF(PurchaseOrderLines[[#This Row],[Material]]=\"\",\"\",INDEX(Catalog[UOM],MATCH(PurchaseOrderLines[[#This Row],[Material]],Catalog[Material '#],0)))","v":""},{"$f":"IF(PurchaseOrderLines[[#This Row],[Material]]=\"\",\"\",INDEX(Catalog[[Base]:[Efficient]],MATCH(PurchaseOrderLines[[#This Row],[Material]],Catalog[Material '#],0),MATCH(Pricing_Bracket,Catalog[[#Headers],[Base]:[Efficient]],0)))","v":""},{"$f":"IF(PurchaseOrderLines[[#This Row],[Material]]=\"\",0,PurchaseOrderLines[[#This Row],[Qty]]*PurchaseOrderLines[[#This Row],[Unit Price]])","v":0},{"$f":"IF(PurchaseOrderLines[[#This Row],[Material]]=\"\",\"\",INDEX(Catalog[MOQ/Qty Increments],MATCH(PurchaseOrderLines[[#This Row],[Material]],Catalog[Material '#],0)))","v":""},{"$f":"IFERROR(PurchaseOrderLines[[#This Row],[Qty]]/IF(PurchaseOrderLines[[#This Row],[Material]]=\"\",\"\",INDEX(Catalog[Pallet],MATCH(PurchaseOrderLines[[#This Row],[Material]],Catalog[Material '#],0))),0)","v":0}]
[null,{"$f":"IFERROR(VLOOKUP(ROW()-39,'CATALOG'!A:F,6,FALSE),\"\")","v":""},{"$f":"IF(PurchaseOrderLines[[#This Row],[Material]]=\"\",\"\",INDEX(Catalog[Material Description],MATCH(PurchaseOrderLines[[#This Row],[Material]],Catalog[Material '#],0)))","v":""},{"$f":"IF(PurchaseOrderLines[[#This Row],[Material]]=\"\",\"\",INDEX(Catalog[Enter Quantity To Add to PO],MATCH(PurchaseOrderLines[[#This Row],[Material]],Catalog[Material '#],0)))","v":""},{"$f":"IF(PurchaseOrderLines[[#This Row],[Material]]=\"\",\"\",INDEX(Catalog[UOM],MATCH(PurchaseOrderLines[[#This Row],[Material]],Catalog[Material '#],0)))","v":""},{"$f":"IF(PurchaseOrderLines[[#This Row],[Material]]=\"\",\"\",INDEX(Catalog[[Base]:[Efficient]],MATCH(PurchaseOrderLines[[#This Row],[Material]],Catalog[Material '#],0),MATCH(Pricing_Bracket,Catalog[[#Headers],[Base]:[Efficient]],0)))","v":""},{"$f":"IF(PurchaseOrderLines[[#This Row],[Material]]=\"\",0,PurchaseOrderLines[[#This Row],[Qty]]*PurchaseOrderLines[[#This Row],[Unit Price]])","v":0},{"$f":"IF(PurchaseOrderLines[[#This Row],[Material]]=\"\",\"\",INDEX(Catalog[MOQ/Qty Increments],MATCH(PurchaseOrderLines[[#This Row],[Material]],Catalog[Material '#],0)))","v":""},{"$f":"IFERROR(PurchaseOrderLines[[#This Row],[Qty]]/IF(PurchaseOrderLines[[#This Row],[Material]]=\"\",\"\",INDEX(Catalog[Pallet],MATCH(PurchaseOrderLines[[#This Row],[Material]],Catalog[Material '#],0))),0)","v":0}]
[null,{"$f":"IFERROR(VLOOKUP(ROW()-39,'CATALOG'!A:F,6,FALSE),\"\")","v":""},{"$f":"IF(PurchaseOrderLines[[#This Row],[Material]]=\"\",\"\",INDEX(Catalog[Material Description],MATCH(PurchaseOrderLines[[#This Row],[Material]],Catalog[Material '#],0)))","v":""},{"$f":"IF(PurchaseOrderLines[[#This Row],[Material]]=\"\",\"\",INDEX(Catalog[Enter Quantity To Add to PO],MATCH(PurchaseOrderLines[[#This Row],[Material]],Catalog[Material '#],0)))","v":""},{"$f":"IF(PurchaseOrderLines[[#This Row],[Material]]=\"\",\"\",INDEX(Catalog[UOM],MATCH(PurchaseOrderLines[[#This Row],[Material]],Catalog[Material '#],0)))","v":""},{"$f":"IF(PurchaseOrderLines[[#This Row],[Material]]=\"\",\"\",INDEX(Catalog[[Base]:[Efficient]],MATCH(PurchaseOrderLines[[#This Row],[Material]],Catalog[Material '#],0),MATCH(Pricing_Bracket,Catalog[[#Headers],[Base]:[Efficient]],0)))","v":""},{"$f":"IF(PurchaseOrderLines[[#This Row],[Material]]=\"\",0,PurchaseOrderLines[[#This Row],[Qty]]*PurchaseOrderLines[[#This Row],[Unit Price]])","v":0},{"$f":"IF(PurchaseOrderLines[[#This Row],[Material]]=\"\",\"\",INDEX(Catalog[MOQ/Qty Increments],MATCH(PurchaseOrderLines[[#This Row],[Material]],Catalog[Material '#],0)))","v":""},{"$f":"IFERROR(PurchaseOrderLines[[#This Row],[Qty]]/IF(PurchaseOrderLines[[#This Row],[Material]]=\"\",\"\",INDEX(Catalog[Pallet],MATCH(PurchaseOrderLines[[#This Row],[Material]],Catalog[Material '#],0))),0)","v":0}]
[null,{"$f":"IFERROR(VLOOKUP(ROW()-39,'CATALOG'!A:F,6,FALSE),\"\")","v":""},{"$f":"IF(PurchaseOrderLines[[#This Row],[Material]]=\"\",\"\",INDEX(Catalog[Material Description],MATCH(PurchaseOrderLines[[#This Row],[Material]],Catalog[Material '#],0)))","v":""},{"$f":"IF(PurchaseOrderLines[[#This Row],[Material]]=\"\",\"\",INDEX(Catalog[Enter Quantity To Add to PO],MATCH(PurchaseOrderLines[[#This Row],[Material]],Catalog[Material '#],0)))","v":""},{"$f":"IF(PurchaseOrderLines[[#This Row],[Material]]=\"\",\"\",INDEX(Catalog[UOM],MATCH(PurchaseOrderLines[[#This Row],[Material]],Catalog[Material '#],0)))","v":""},{"$f":"IF(PurchaseOrderLines[[#This Row],[Material]]=\"\",\"\",INDEX(Catalog[[Base]:[Efficient]],MATCH(PurchaseOrderLines[[#This Row],[Material]],Catalog[Material '#],0),MATCH(Pricing_Bracket,Catalog[[#Headers],[Base]:[Efficient]],0)))","v":""},{"$f":"IF(PurchaseOrderLines[[#This Row],[Material]]=\"\",0,PurchaseOrderLines[[#This Row],[Qty]]*PurchaseOrderLines[[#This Row],[Unit Price]])","v":0},{"$f":"IF(PurchaseOrderLines[[#This Row],[Material]]=\"\",\"\",INDEX(Catalog[MOQ/Qty Increments],MATCH(PurchaseOrderLines[[#This Row],[Material]],Catalog[Material '#],0)))","v":""},{"$f":"IFERROR(PurchaseOrderLines[[#This Row],[Qty]]/IF(PurchaseOrderLines[[#This Row],[Material]]=\"\",\"\",INDEX(Catalog[Pallet],MATCH(PurchaseOrderLines[[#This Row],[Material]],Catalog[Material '#],0))),0)","v":0}]
[null,{"$f":"IFERROR(VLOOKUP(ROW()-39,'CATALOG'!A:F,6,FALSE),\"\")","v":""},{"$f":"IF(PurchaseOrderLines[[#This Row],[Material]]=\"\",\"\",INDEX(Catalog[Material Description],MATCH(PurchaseOrderLines[[#This Row],[Material]],Catalog[Material '#],0)))","v":""},{"$f":"IF(PurchaseOrderLines[[#This Row],[Material]]=\"\",\"\",INDEX(Catalog[Enter Quantity To Add to PO],MATCH(PurchaseOrderLines[[#This Row],[Material]],Catalog[Material '#],0)))","v":""},{"$f":"IF(PurchaseOrderLines[[#This Row],[Material]]=\"\",\"\",INDEX(Catalog[UOM],MATCH(PurchaseOrderLines[[#This Row],[Material]],Catalog[Material '#],0)))","v":""},{"$f":"IF(PurchaseOrderLines[[#This Row],[Material]]=\"\",\"\",INDEX(Catalog[[Base]:[Efficient]],MATCH(PurchaseOrderLines[[#This Row],[Material]],Catalog[Material '#],0),MATCH(Pricing_Bracket,Catalog[[#Headers],[Base]:[Efficient]],0)))","v":""},{"$f":"IF(PurchaseOrderLines[[#This Row],[Material]]=\"\",0,PurchaseOrderLines[[#This Row],[Qty]]*PurchaseOrderLines[[#This Row],[Unit Price]])","v":0},{"$f":"IF(PurchaseOrderLines[[#This Row],[Material]]=\"\",\"\",INDEX(Catalog[MOQ/Qty Increments],MATCH(PurchaseOrderLines[[#This Row],[Material]],Catalog[Material '#],0)))","v":""},{"$f":"IFERROR(PurchaseOrderLines[[#This Row],[Qty]]/IF(PurchaseOrderLines[[#This Row],[Material]]=\"\",\"\",INDEX(Catalog[Pallet],MATCH(PurchaseOrderLines[[#This Row],[Material]],Catalog[Material '#],0))),0)","v":0}]
[null,{"$f":"IFERROR(VLOOKUP(ROW()-39,'CATALOG'!A:F,6,FALSE),\"\")","v":""},{"$f":"IF(PurchaseOrderLines[[#This Row],[Material]]=\"\",\"\",INDEX(Catalog[Material Description],MATCH(PurchaseOrderLines[[#This Row],[Material]],Catalog[Material '#],0)))","v":""},{"$f":"IF(PurchaseOrderLines[[#This Row],[Material]]=\"\",\"\",INDEX(Catalog[Enter Quantity To Add to PO],MATCH(PurchaseOrderLines[[#This Row],[Material]],Catalog[Material '#],0)))","v":""},{"$f":"IF(PurchaseOrderLines[[#This Row],[Material]]=\"\",\"\",INDEX(Catalog[UOM],MATCH(PurchaseOrderLines[[#This Row],[Material]],Catalog[Material '#],0)))","v":""},{"$f":"IF(PurchaseOrderLines[[#This Row],[Material]]=\"\",\"\",INDEX(Catalog[[Base]:[Efficient]],MATCH(PurchaseOrderLines[[#This Row],[Material]],Catalog[Material '#],0),MATCH(Pricing_Bracket,Catalog[[#Headers],[Base]:[Efficient]],0)))","v":""},{"$f":"IF(PurchaseOrderLines[[#This Row],[Material]]=\"\",0,PurchaseOrderLines[[#This Row],[Qty]]*PurchaseOrderLines[[#This Row],[Unit Price]])","v":0},{"$f":"IF(PurchaseOrderLines[[#This Row],[Material]]=\"\",\"\",INDEX(Catalog[MOQ/Qty Increments],MATCH(PurchaseOrderLines[[#This Row],[Material]],Catalog[Material '#],0)))","v":""},{"$f":"IFERROR(PurchaseOrderLines[[#This Row],[Qty]]/IF(PurchaseOrderLines[[#This Row],[Material]]=\"\",\"\",INDEX(Catalog[Pallet],MATCH(PurchaseOrderLines[[#This Row],[Material]],Catalog[Material '#],0))),0)","v":0}]
[null,{"$f":"IFERROR(VLOOKUP(ROW()-39,'CATALOG'!A:F,6,FALSE),\"\")","v":""},{"$f":"IF(PurchaseOrderLines[[#This Row],[Material]]=\"\",\"\",INDEX(Catalog[Material Description],MATCH(PurchaseOrderLines[[#This Row],[Material]],Catalog[Material '#],0)))","v":""},{"$f":"IF(PurchaseOrderLines[[#This Row],[Material]]=\"\",\"\",INDEX(Catalog[Enter Quantity To Add to PO],MATCH(PurchaseOrderLines[[#This Row],[Material]],Catalog[Material '#],0)))","v":""},{"$f":"IF(PurchaseOrderLines[[#This Row],[Material]]=\"\",\"\",INDEX(Catalog[UOM],MATCH(PurchaseOrderLines[[#This Row],[Material]],Catalog[Material '#],0)))","v":""},{"$f":"IF(PurchaseOrderLines[[#This Row],[Material]]=\"\",\"\",INDEX(Catalog[[Base]:[Efficient]],MATCH(PurchaseOrderLines[[#This Row],[Material]],Catalog[Material '#],0),MATCH(Pricing_Bracket,Catalog[[#Headers],[Base]:[Efficient]],0)))","v":""},{"$f":"IF(PurchaseOrderLines[[#This Row],[Material]]=\"\",0,PurchaseOrderLines[[#This Row],[Qty]]*PurchaseOrderLines[[#This Row],[Unit Price]])","v":0},{"$f":"IF(PurchaseOrderLines[[#This Row],[Material]]=\"\",\"\",INDEX(Catalog[MOQ/Qty Increments],MATCH(PurchaseOrderLines[[#This Row],[Material]],Catalog[Material '#],0)))","v":""},{"$f":"IFERROR(PurchaseOrderLines[[#This Row],[Qty]]/IF(PurchaseOrderLines[[#This Row],[Material]]=\"\",\"\",INDEX(Catalog[Pallet],MATCH(PurchaseOrderLines[[#This Row],[Material]],Catalog[Material '#],0))),0)","v":0}]
[null,{"$f":"IFERROR(VLOOKUP(ROW()-39,'CATALOG'!A:F,6,FALSE),\"\")","v":""},{"$f":"IF(PurchaseOrderLines[[#This Row],[Material]]=\"\",\"\",INDEX(Catalog[Material Description],MATCH(PurchaseOrderLines[[#This Row],[Material]],Catalog[Material '#],0)))","v":""},{"$f":"IF(PurchaseOrderLines[[#This Row],[Material]]=\"\",\"\",INDEX(Catalog[Enter Quantity To Add to PO],MATCH(PurchaseOrderLines[[#This Row],[Material]],Catalog[Material '#],0)))","v":""},{"$f":"IF(PurchaseOrderLines[[#This Row],[Material]]=\"\",\"\",INDEX(Catalog[UOM],MATCH(PurchaseOrderLines[[#This Row],[Material]],Catalog[Material '#],0)))","v":""},{"$f":"IF(PurchaseOrderLines[[#This Row],[Material]]=\"\",\"\",INDEX(Catalog[[Base]:[Efficient]],MATCH(PurchaseOrderLines[[#This Row],[Material]],Catalog[Material '#],0),MATCH(Pricing_Bracket,Catalog[[#Headers],[Base]:[Efficient]],0)))","v":""},{"$f":"IF(PurchaseOrderLines[[#This Row],[Material]]=\"\",0,PurchaseOrderLines[[#This Row],[Qty]]*PurchaseOrderLines[[#This Row],[Unit Price]])","v":0},{"$f":"IF(PurchaseOrderLines[[#This Row],[Material]]=\"\",\"\",INDEX(Catalog[MOQ/Qty Increments],MATCH(PurchaseOrderLines[[#This Row],[Material]],Catalog[Material '#],0)))","v":""},{"$f":"IFERROR(PurchaseOrderLines[[#This Row],[Qty]]/IF(PurchaseOrderLines[[#This Row],[Material]]=\"\",\"\",INDEX(Catalog[Pallet],MATCH(PurchaseOrderLines[[#This Row],[Material]],Catalog[Material '#],0))),0)","v":0}]
[null,{"$f":"IFERROR(VLOOKUP(ROW()-39,'CATALOG'!A:F,6,FALSE),\"\")","v":""},{"$f":"IF(PurchaseOrderLines[[#This Row],[Material]]=\"\",\"\",INDEX(Catalog[Material Description],MATCH(PurchaseOrderLines[[#This Row],[Material]],Catalog[Material '#],0)))","v":""},{"$f":"IF(PurchaseOrderLines[[#This Row],[Material]]=\"\",\"\",INDEX(Catalog[Enter Quantity To Add to PO],MATCH(PurchaseOrderLines[[#This Row],[Material]],Catalog[Material '#],0)))","v":""},{"$f":"IF(PurchaseOrderLines[[#This Row],[Material]]=\"\",\"\",INDEX(Catalog[UOM],MATCH(PurchaseOrderLines[[#This Row],[Material]],Catalog[Material '#],0)))","v":""},{"$f":"IF(PurchaseOrderLines[[#This Row],[Material]]=\"\",\"\",INDEX(Catalog[[Base]:[Efficient]],MATCH(PurchaseOrderLines[[#This Row],[Material]],Catalog[Material '#],0),MATCH(Pricing_Bracket,Catalog[[#Headers],[Base]:[Efficient]],0)))","v":""},{"$f":"IF(PurchaseOrderLines[[#This Row],[Material]]=\"\",0,PurchaseOrderLines[[#This Row],[Qty]]*PurchaseOrderLines[[#This Row],[Unit Price]])","v":0},{"$f":"IF(PurchaseOrderLines[[#This Row],[Material]]=\"\",\"\",INDEX(Catalog[MOQ/Qty Increments],MATCH(PurchaseOrderLines[[#This Row],[Material]],Catalog[Material '#],0)))","v":""},{"$f":"IFERROR(PurchaseOrderLines[[#This Row],[Qty]]/IF(PurchaseOrderLines[[#This Row],[Material]]=\"\",\"\",INDEX(Catalog[Pallet],MATCH(PurchaseOrderLines[[#This Row],[Material]],Catalog[Material '#],0))),0)","v":0}]
[null,{"$f":"IFERROR(VLOOKUP(ROW()-39,'CATALOG'!A:F,6,FALSE),\"\")","v":""},{"$f":"IF(PurchaseOrderLines[[#This Row],[Material]]=\"\",\"\",INDEX(Catalog[Material Description],MATCH(PurchaseOrderLines[[#This Row],[Material]],Catalog[Material '#],0)))","v":""},{"$f":"IF(PurchaseOrderLines[[#This Row],[Material]]=\"\",\"\",INDEX(Catalog[Enter Quantity To Add to PO],MATCH(PurchaseOrderLines[[#This Row],[Material]],Catalog[Material '#],0)))","v":""},{"$f":"IF(PurchaseOrderLines[[#This Row],[Material]]=\"\",\"\",INDEX(Catalog[UOM],MATCH(PurchaseOrderLines[[#This Row],[Material]],Catalog[Material '#],0)))","v":""},{"$f":"IF(PurchaseOrderLines[[#This Row],[Material]]=\"\",\"\",INDEX(Catalog[[Base]:[Efficient]],MATCH(PurchaseOrderLines[[#This Row],[Material]],Catalog[Material '#],0),MATCH(Pricing_Bracket,Catalog[[#Headers],[Base]:[Efficient]],0)))","v":""},{"$f":"IF(PurchaseOrderLines[[#This Row],[Material]]=\"\",0,PurchaseOrderLines[[#This Row],[Qty]]*PurchaseOrderLines[[#This Row],[Unit Price]])","v":0},{"$f":"IF(PurchaseOrderLines[[#This Row],[Material]]=\"\",\"\",INDEX(Catalog[MOQ/Qty Increments],MATCH(PurchaseOrderLines[[#This Row],[Material]],Catalog[Material '#],0)))","v":""},{"$f":"IFERROR(PurchaseOrderLines[[#This Row],[Qty]]/IF(PurchaseOrderLines[[#This Row],[Material]]=\"\",\"\",INDEX(Catalog[Pallet],MATCH(PurchaseOrderLines[[#This Row],[Material]],Catalog[Material '#],0))),0)","v":0}]
[null,{"$f":"IFERROR(VLOOKUP(ROW()-39,'CATALOG'!A:F,6,FALSE),\"\")","v":""},{"$f":"IF(PurchaseOrderLines[[#This Row],[Material]]=\"\",\"\",INDEX(Catalog[Material Description],MATCH(PurchaseOrderLines[[#This Row],[Material]],Catalog[Material '#],0)))","v":""},{"$f":"IF(PurchaseOrderLines[[#This Row],[Material]]=\"\",\"\",INDEX(Catalog[Enter Quantity To Add to PO],MATCH(PurchaseOrderLines[[#This Row],[Material]],Catalog[Material '#],0)))","v":""},{"$f":"IF(PurchaseOrderLines[[#This Row],[Material]]=\"\",\"\",INDEX(Catalog[UOM],MATCH(PurchaseOrderLines[[#This Row],[Material]],Catalog[Material '#],0)))","v":""},{"$f":"IF(PurchaseOrderLines[[#This Row],[Material]]=\"\",\"\",INDEX(Catalog[[Base]:[Efficient]],MATCH(PurchaseOrderLines[[#This Row],[Material]],Catalog[Material '#],0),MATCH(Pricing_Bracket,Catalog[[#Headers],[Base]:[Efficient]],0)))","v":""},{"$f":"IF(PurchaseOrderLines[[#This Row],[Material]]=\"\",0,PurchaseOrderLines[[#This Row],[Qty]]*PurchaseOrderLines[[#This Row],[Unit Price]])","v":0},{"$f":"IF(PurchaseOrderLines[[#This Row],[Material]]=\"\",\"\",INDEX(Catalog[MOQ/Qty Increments],MATCH(PurchaseOrderLines[[#This Row],[Material]],Catalog[Material '#],0)))","v":""},{"$f":"IFERROR(PurchaseOrderLines[[#This Row],[Qty]]/IF(PurchaseOrderLines[[#This Row],[Material]]=\"\",\"\",INDEX(Catalog[Pallet],MATCH(PurchaseOrderLines[[#This Row],[Material]],Catalog[Material '#],0))),0)","v":0}]
[null,{"$f":"IFERROR(VLOOKUP(ROW()-39,'CATALOG'!A:F,6,FALSE),\"\")","v":""},{"$f":"IF(PurchaseOrderLines[[#This Row],[Material]]=\"\",\"\",INDEX(Catalog[Material Description],MATCH(PurchaseOrderLines[[#This Row],[Material]],Catalog[Material '#],0)))","v":""},{"$f":"IF(PurchaseOrderLines[[#This Row],[Material]]=\"\",\"\",INDEX(Catalog[Enter Quantity To Add to PO],MATCH(PurchaseOrderLines[[#This Row],[Material]],Catalog[Material '#],0)))","v":""},{"$f":"IF(PurchaseOrderLines[[#This Row],[Material]]=\"\",\"\",INDEX(Catalog[UOM],MATCH(PurchaseOrderLines[[#This Row],[Material]],Catalog[Material '#],0)))","v":""},{"$f":"IF(PurchaseOrderLines[[#This Row],[Material]]=\"\",\"\",INDEX(Catalog[[Base]:[Efficient]],MATCH(PurchaseOrderLines[[#This Row],[Material]],Catalog[Material '#],0),MATCH(Pricing_Bracket,Catalog[[#Headers],[Base]:[Efficient]],0)))","v":""},{"$f":"IF(PurchaseOrderLines[[#This Row],[Material]]=\"\",0,PurchaseOrderLines[[#This Row],[Qty]]*PurchaseOrderLines[[#This Row],[Unit Price]])","v":0},{"$f":"IF(PurchaseOrderLines[[#This Row],[Material]]=\"\",\"\",INDEX(Catalog[MOQ/Qty Increments],MATCH(PurchaseOrderLines[[#This Row],[Material]],Catalog[Material '#],0)))","v":""},{"$f":"IFERROR(PurchaseOrderLines[[#This Row],[Qty]]/IF(PurchaseOrderLines[[#This Row],[Material]]=\"\",\"\",INDEX(Catalog[Pallet],MATCH(PurchaseOrderLines[[#This Row],[Material]],Catalog[Material '#],0))),0)","v":0}]
[null,{"$f":"IFERROR(VLOOKUP(ROW()-39,'CATALOG'!A:F,6,FALSE),\"\")","v":""},{"$f":"IF(PurchaseOrderLines[[#This Row],[Material]]=\"\",\"\",INDEX(Catalog[Material Description],MATCH(PurchaseOrderLines[[#This Row],[Material]],Catalog[Material '#],0)))","v":""},{"$f":"IF(PurchaseOrderLines[[#This Row],[Material]]=\"\",\"\",INDEX(Catalog[Enter Quantity To Add to PO],MATCH(PurchaseOrderLines[[#This Row],[Material]],Catalog[Material '#],0)))","v":""},{"$f":"IF(PurchaseOrderLines[[#This Row],[Material]]=\"\",\"\",INDEX(Catalog[UOM],MATCH(PurchaseOrderLines[[#This Row],[Material]],Catalog[Material '#],0)))","v":""},{"$f":"IF(PurchaseOrderLines[[#This Row],[Material]]=\"\",\"\",INDEX(Catalog[[Base]:[Efficient]],MATCH(PurchaseOrderLines[[#This Row],[Material]],Catalog[Material '#],0),MATCH(Pricing_Bracket,Catalog[[#Headers],[Base]:[Efficient]],0)))","v":""},{"$f":"IF(PurchaseOrderLines[[#This Row],[Material]]=\"\",0,PurchaseOrderLines[[#This Row],[Qty]]*PurchaseOrderLines[[#This Row],[Unit Price]])","v":0},{"$f":"IF(PurchaseOrderLines[[#This Row],[Material]]=\"\",\"\",INDEX(Catalog[MOQ/Qty Increments],MATCH(PurchaseOrderLines[[#This Row],[Material]],Catalog[Material '#],0)))","v":""},{"$f":"IFERROR(PurchaseOrderLines[[#This Row],[Qty]]/IF(PurchaseOrderLines[[#This Row],[Material]]=\"\",\"\",INDEX(Catalog[Pallet],MATCH(PurchaseOrderLines[[#This Row],[Material]],Catalog[Material '#],0))),0)","v":0}]
[null,{"$f":"IFERROR(VLOOKUP(ROW()-39,'CATALOG'!A:F,6,FALSE),\"\")","v":""},{"$f":"IF(PurchaseOrderLines[[#This Row],[Material]]=\"\",\"\",INDEX(Catalog[Material Description],MATCH(PurchaseOrderLines[[#This Row],[Material]],Catalog[Material '#],0)))","v":""},{"$f":"IF(PurchaseOrderLines[[#This Row],[Material]]=\"\",\"\",INDEX(Catalog[Enter Quantity To Add to PO],MATCH(PurchaseOrderLines[[#This Row],[Material]],Catalog[Material '#],0)))","v":""},{"$f":"IF(PurchaseOrderLines[[#This Row],[Material]]=\"\",\"\",INDEX(Catalog[UOM],MATCH(PurchaseOrderLines[[#This Row],[Material]],Catalog[Material '#],0)))","v":""},{"$f":"IF(PurchaseOrderLines[[#This Row],[Material]]=\"\",\"\",INDEX(Catalog[[Base]:[Efficient]],MATCH(PurchaseOrderLines[[#This Row],[Material]],Catalog[Material '#],0),MATCH(Pricing_Bracket,Catalog[[#Headers],[Base]:[Efficient]],0)))","v":""},{"$f":"IF(PurchaseOrderLines[[#This Row],[Material]]=\"\",0,PurchaseOrderLines[[#This Row],[Qty]]*PurchaseOrderLines[[#This Row],[Unit Price]])","v":0},{"$f":"IF(PurchaseOrderLines[[#This Row],[Material]]=\"\",\"\",INDEX(Catalog[MOQ/Qty Increments],MATCH(PurchaseOrderLines[[#This Row],[Material]],Catalog[Material '#],0)))","v":""},{"$f":"IFERROR(PurchaseOrderLines[[#This Row],[Qty]]/IF(PurchaseOrderLines[[#This Row],[Material]]=\"\",\"\",INDEX(Catalog[Pallet],MATCH(PurchaseOrderLines[[#This Row],[Material]],Catalog[Material '#],0))),0)","v":0}]
[null,{"$f":"IFERROR(VLOOKUP(ROW()-39,'CATALOG'!A:F,6,FALSE),\"\")","v":""},{"$f":"IF(PurchaseOrderLines[[#This Row],[Material]]=\"\",\"\",INDEX(Catalog[Material Description],MATCH(PurchaseOrderLines[[#This Row],[Material]],Catalog[Material '#],0)))","v":""},{"$f":"IF(PurchaseOrderLines[[#This Row],[Material]]=\"\",\"\",INDEX(Catalog[Enter Quantity To Add to PO],MATCH(PurchaseOrderLines[[#This Row],[Material]],Catalog[Material '#],0)))","v":""},{"$f":"IF(PurchaseOrderLines[[#This Row],[Material]]=\"\",\"\",INDEX(Catalog[UOM],MATCH(PurchaseOrderLines[[#This Row],[Material]],Catalog[Material '#],0)))","v":""},{"$f":"IF(PurchaseOrderLines[[#This Row],[Material]]=\"\",\"\",INDEX(Catalog[[Base]:[Efficient]],MATCH(PurchaseOrderLines[[#This Row],[Material]],Catalog[Material '#],0),MATCH(Pricing_Bracket,Catalog[[#Headers],[Base]:[Efficient]],0)))","v":""},{"$f":"IF(PurchaseOrderLines[[#This Row],[Material]]=\"\",0,PurchaseOrderLines[[#This Row],[Qty]]*PurchaseOrderLines[[#This Row],[Unit Price]])","v":0},{"$f":"IF(PurchaseOrderLines[[#This Row],[Material]]=\"\",\"\",INDEX(Catalog[MOQ/Qty Increments],MATCH(PurchaseOrderLines[[#This Row],[Material]],Catalog[Material '#],0)))","v":""},{"$f":"IFERROR(PurchaseOrderLines[[#This Row],[Qty]]/IF(PurchaseOrderLines[[#This Row],[Material]]=\"\",\"\",INDEX(Catalog[Pallet],MATCH(PurchaseOrderLines[[#This Row],[Material]],Catalog[Material '#],0))),0)","v":0}]
[null,{"$f":"IFERROR(VLOOKUP(ROW()-39,'CATALOG'!A:F,6,FALSE),\"\")","v":""},{"$f":"IF(PurchaseOrderLines[[#This Row],[Material]]=\"\",\"\",INDEX(Catalog[Material Description],MATCH(PurchaseOrderLines[[#This Row],[Material]],Catalog[Material '#],0)))","v":""},{"$f":"IF(PurchaseOrderLines[[#This Row],[Material]]=\"\",\"\",INDEX(Catalog[Enter Quantity To Add to PO],MATCH(PurchaseOrderLines[[#This Row],[Material]],Catalog[Material '#],0)))","v":""},{"$f":"IF(PurchaseOrderLines[[#This Row],[Material]]=\"\",\"\",INDEX(Catalog[UOM],MATCH(PurchaseOrderLines[[#This Row],[Material]],Catalog[Material '#],0)))","v":""},{"$f":"IF(PurchaseOrderLines[[#This Row],[Material]]=\"\",\"\",INDEX(Catalog[[Base]:[Efficient]],MATCH(PurchaseOrderLines[[#This Row],[Material]],Catalog[Material '#],0),MATCH(Pricing_Bracket,Catalog[[#Headers],[Base]:[Efficient]],0)))","v":""},{"$f":"IF(PurchaseOrderLines[[#This Row],[Material]]=\"\",0,PurchaseOrderLines[[#This Row],[Qty]]*PurchaseOrderLines[[#This Row],[Unit Price]])","v":0},{"$f":"IF(PurchaseOrderLines[[#This Row],[Material]]=\"\",\"\",INDEX(Catalog[MOQ/Qty Increments],MATCH(PurchaseOrderLines[[#This Row],[Material]],Catalog[Material '#],0)))","v":""},{"$f":"IFERROR(PurchaseOrderLines[[#This Row],[Qty]]/IF(PurchaseOrderLines[[#This Row],[Material]]=\"\",\"\",INDEX(Catalog[Pallet],MATCH(PurchaseOrderLines[[#This Row],[Material]],Catalog[Material '#],0))),0)","v":0}]
[null,{"$f":"IFERROR(VLOOKUP(ROW()-39,'CATALOG'!A:F,6,FALSE),\"\")","v":""},{"$f":"IF(PurchaseOrderLines[[#This Row],[Material]]=\"\",\"\",INDEX(Catalog[Material Description],MATCH(PurchaseOrderLines[[#This Row],[Material]],Catalog[Material '#],0)))","v":""},{"$f":"IF(PurchaseOrderLines[[#This Row],[Material]]=\"\",\"\",INDEX(Catalog[Enter Quantity To Add to PO],MATCH(PurchaseOrderLines[[#This Row],[Material]],Catalog[Material '#],0)))","v":""},{"$f":"IF(PurchaseOrderLines[[#This Row],[Material]]=\"\",\"\",INDEX(Catalog[UOM],MATCH(PurchaseOrderLines[[#This Row],[Material]],Catalog[Material '#],0)))","v":""},{"$f":"IF(PurchaseOrderLines[[#This Row],[Material]]=\"\",\"\",INDEX(Catalog[[Base]:[Efficient]],MATCH(PurchaseOrderLines[[#This Row],[Material]],Catalog[Material '#],0),MATCH(Pricing_Bracket,Catalog[[#Headers],[Base]:[Efficient]],0)))","v":""},{"$f":"IF(PurchaseOrderLines[[#This Row],[Material]]=\"\",0,PurchaseOrderLines[[#This Row],[Qty]]*PurchaseOrderLines[[#This Row],[Unit Price]])","v":0},{"$f":"IF(PurchaseOrderLines[[#This Row],[Material]]=\"\",\"\",INDEX(Catalog[MOQ/Qty Increments],MATCH(PurchaseOrderLines[[#This Row],[Material]],Catalog[Material '#],0)))","v":""},{"$f":"IFERROR(PurchaseOrderLines[[#This Row],[Qty]]/IF(PurchaseOrderLines[[#This Row],[Material]]=\"\",\"\",INDEX(Catalog[Pallet],MATCH(PurchaseOrderLines[[#This Row],[Material]],Catalog[Material '#],0))),0)","v":0}]
[null,{"$f":"IFERROR(VLOOKUP(ROW()-39,'CATALOG'!A:F,6,FALSE),\"\")","v":""},{"$f":"IF(PurchaseOrderLines[[#This Row],[Material]]=\"\",\"\",INDEX(Catalog[Material Description],MATCH(PurchaseOrderLines[[#This Row],[Material]],Catalog[Material '#],0)))","v":""},{"$f":"IF(PurchaseOrderLines[[#This Row],[Material]]=\"\",\"\",INDEX(Catalog[Enter Quantity To Add to PO],MATCH(PurchaseOrderLines[[#This Row],[Material]],Catalog[Material '#],0)))","v":""},{"$f":"IF(PurchaseOrderLines[[#This Row],[Material]]=\"\",\"\",INDEX(Catalog[UOM],MATCH(PurchaseOrderLines[[#This Row],[Material]],Catalog[Material '#],0)))","v":""},{"$f":"IF(PurchaseOrderLines[[#This Row],[Material]]=\"\",\"\",INDEX(Catalog[[Base]:[Efficient]],MATCH(PurchaseOrderLines[[#This Row],[Material]],Catalog[Material '#],0),MATCH(Pricing_Bracket,Catalog[[#Headers],[Base]:[Efficient]],0)))","v":""},{"$f":"IF(PurchaseOrderLines[[#This Row],[Material]]=\"\",0,PurchaseOrderLines[[#This Row],[Qty]]*PurchaseOrderLines[[#This Row],[Unit Price]])","v":0},{"$f":"IF(PurchaseOrderLines[[#This Row],[Material]]=\"\",\"\",INDEX(Catalog[MOQ/Qty Increments],MATCH(PurchaseOrderLines[[#This Row],[Material]],Catalog[Material '#],0)))","v":""},{"$f":"IFERROR(PurchaseOrderLines[[#This Row],[Qty]]/IF(PurchaseOrderLines[[#This Row],[Material]]=\"\",\"\",INDEX(Catalog[Pallet],MATCH(PurchaseOrderLines[[#This Row],[Material]],Catalog[Material '#],0))),0)","v":0}]
[null,{"$f":"IFERROR(VLOOKUP(ROW()-39,'CATALOG'!A:F,6,FALSE),\"\")","v":""},{"$f":"IF(PurchaseOrderLines[[#This Row],[Material]]=\"\",\"\",INDEX(Catalog[Material Description],MATCH(PurchaseOrderLines[[#This Row],[Material]],Catalog[Material '#],0)))","v":""},{"$f":"IF(PurchaseOrderLines[[#This Row],[Material]]=\"\",\"\",INDEX(Catalog[Enter Quantity To Add to PO],MATCH(PurchaseOrderLines[[#This Row],[Material]],Catalog[Material '#],0)))","v":""},{"$f":"IF(PurchaseOrderLines[[#This Row],[Material]]=\"\",\"\",INDEX(Catalog[UOM],MATCH(PurchaseOrderLines[[#This Row],[Material]],Catalog[Material '#],0)))","v":""},{"$f":"IF(PurchaseOrderLines[[#This Row],[Material]]=\"\",\"\",INDEX(Catalog[[Base]:[Efficient]],MATCH(PurchaseOrderLines[[#This Row],[Material]],Catalog[Material '#],0),MATCH(Pricing_Bracket,Catalog[[#Headers],[Base]:[Efficient]],0)))","v":""},{"$f":"IF(PurchaseOrderLines[[#This Row],[Material]]=\"\",0,PurchaseOrderLines[[#This Row],[Qty]]*PurchaseOrderLines[[#This Row],[Unit Price]])","v":0},{"$f":"IF(PurchaseOrderLines[[#This Row],[Material]]=\"\",\"\",INDEX(Catalog[MOQ/Qty Increments],MATCH(PurchaseOrderLines[[#This Row],[Material]],Catalog[Material '#],0)))","v":""},{"$f":"IFERROR(PurchaseOrderLines[[#This Row],[Qty]]/IF(PurchaseOrderLines[[#This Row],[Material]]=\"\",\"\",INDEX(Catalog[Pallet],MATCH(PurchaseOrderLines[[#This Row],[Material]],Catalog[Material '#],0))),0)","v":0}]
[null,{"$f":"IFERROR(VLOOKUP(ROW()-39,'CATALOG'!A:F,6,FALSE),\"\")","v":""},{"$f":"IF(PurchaseOrderLines[[#This Row],[Material]]=\"\",\"\",INDEX(Catalog[Material Description],MATCH(PurchaseOrderLines[[#This Row],[Material]],Catalog[Material '#],0)))","v":""},{"$f":"IF(PurchaseOrderLines[[#This Row],[Material]]=\"\",\"\",INDEX(Catalog[Enter Quantity To Add to PO],MATCH(PurchaseOrderLines[[#This Row],[Material]],Catalog[Material '#],0)))","v":""},{"$f":"IF(PurchaseOrderLines[[#This Row],[Material]]=\"\",\"\",INDEX(Catalog[UOM],MATCH(PurchaseOrderLines[[#This Row],[Material]],Catalog[Material '#],0)))","v":""},{"$f":"IF(PurchaseOrderLines[[#This Row],[Material]]=\"\",\"\",INDEX(Catalog[[Base]:[Efficient]],MATCH(PurchaseOrderLines[[#This Row],[Material]],Catalog[Material '#],0),MATCH(Pricing_Bracket,Catalog[[#Headers],[Base]:[Efficient]],0)))","v":""},{"$f":"IF(PurchaseOrderLines[[#This Row],[Material]]=\"\",0,PurchaseOrderLines[[#This Row],[Qty]]*PurchaseOrderLines[[#This Row],[Unit Price]])","v":0},{"$f":"IF(PurchaseOrderLines[[#This Row],[Material]]=\"\",\"\",INDEX(Catalog[MOQ/Qty Increments],MATCH(PurchaseOrderLines[[#This Row],[Material]],Catalog[Material '#],0)))","v":""},{"$f":"IFERROR(PurchaseOrderLines[[#This Row],[Qty]]/IF(PurchaseOrderLines[[#This Row],[Material]]=\"\",\"\",INDEX(Catalog[Pallet],MATCH(PurchaseOrderLines[[#This Row],[Material]],Catalog[Material '#],0))),0)","v":0}]
[null,{"$f":"IFERROR(VLOOKUP(ROW()-39,'CATALOG'!A:F,6,FALSE),\"\")","v":""},{"$f":"IF(PurchaseOrderLines[[#This Row],[Material]]=\"\",\"\",INDEX(Catalog[Material Description],MATCH(PurchaseOrderLines[[#This Row],[Material]],Catalog[Material '#],0)))","v":""},{"$f":"IF(PurchaseOrderLines[[#This Row],[Material]]=\"\",\"\",INDEX(Catalog[Enter Quantity To Add to PO],MATCH(PurchaseOrderLines[[#This Row],[Material]],Catalog[Material '#],0)))","v":""},{"$f":"IF(PurchaseOrderLines[[#This Row],[Material]]=\"\",\"\",INDEX(Catalog[UOM],MATCH(PurchaseOrderLines[[#This Row],[Material]],Catalog[Material '#],0)))","v":""},{"$f":"IF(PurchaseOrderLines[[#This Row],[Material]]=\"\",\"\",INDEX(Catalog[[Base]:[Efficient]],MATCH(PurchaseOrderLines[[#This Row],[Material]],Catalog[Material '#],0),MATCH(Pricing_Bracket,Catalog[[#Headers],[Base]:[Efficient]],0)))","v":""},{"$f":"IF(PurchaseOrderLines[[#This Row],[Material]]=\"\",0,PurchaseOrderLines[[#This Row],[Qty]]*PurchaseOrderLines[[#This Row],[Unit Price]])","v":0},{"$f":"IF(PurchaseOrderLines[[#This Row],[Material]]=\"\",\"\",INDEX(Catalog[MOQ/Qty Increments],MATCH(PurchaseOrderLines[[#This Row],[Material]],Catalog[Material '#],0)))","v":""},{"$f":"IFERROR(PurchaseOrderLines[[#This Row],[Qty]]/IF(PurchaseOrderLines[[#This Row],[Material]]=\"\",\"\",INDEX(Catalog[Pallet],MATCH(PurchaseOrderLines[[#This Row],[Material]],Catalog[Material '#],0))),0)","v":0}]
[null,{"$f":"IFERROR(VLOOKUP(ROW()-39,'CATALOG'!A:F,6,FALSE),\"\")","v":""},{"$f":"IF(PurchaseOrderLines[[#This Row],[Material]]=\"\",\"\",INDEX(Catalog[Material Description],MATCH(PurchaseOrderLines[[#This Row],[Material]],Catalog[Material '#],0)))","v":""},{"$f":"IF(PurchaseOrderLines[[#This Row],[Material]]=\"\",\"\",INDEX(Catalog[Enter Quantity To Add to PO],MATCH(PurchaseOrderLines[[#This Row],[Material]],Catalog[Material '#],0)))","v":""},{"$f":"IF(PurchaseOrderLines[[#This Row],[Material]]=\"\",\"\",INDEX(Catalog[UOM],MATCH(PurchaseOrderLines[[#This Row],[Material]],Catalog[Material '#],0)))","v":""},{"$f":"IF(PurchaseOrderLines[[#This Row],[Material]]=\"\",\"\",INDEX(Catalog[[Base]:[Efficient]],MATCH(PurchaseOrderLines[[#This Row],[Material]],Catalog[Material '#],0),MATCH(Pricing_Bracket,Catalog[[#Headers],[Base]:[Efficient]],0)))","v":""},{"$f":"IF(PurchaseOrderLines[[#This Row],[Material]]=\"\",0,PurchaseOrderLines[[#This Row],[Qty]]*PurchaseOrderLines[[#This Row],[Unit Price]])","v":0},{"$f":"IF(PurchaseOrderLines[[#This Row],[Material]]=\"\",\"\",INDEX(Catalog[MOQ/Qty Increments],MATCH(PurchaseOrderLines[[#This Row],[Material]],Catalog[Material '#],0)))","v":""},{"$f":"IFERROR(PurchaseOrderLines[[#This Row],[Qty]]/IF(PurchaseOrderLines[[#This Row],[Material]]=\"\",\"\",INDEX(Catalog[Pallet],MATCH(PurchaseOrderLines[[#This Row],[Material]],Catalog[Material '#],0))),0)","v":0}]
[null,{"$f":"IFERROR(VLOOKUP(ROW()-39,'CATALOG'!A:F,6,FALSE),\"\")","v":""},{"$f":"IF(PurchaseOrderLines[[#This Row],[Material]]=\"\",\"\",INDEX(Catalog[Material Description],MATCH(PurchaseOrderLines[[#This Row],[Material]],Catalog[Material '#],0)))","v":""},{"$f":"IF(PurchaseOrderLines[[#This Row],[Material]]=\"\",\"\",INDEX(Catalog[Enter Quantity To Add to PO],MATCH(PurchaseOrderLines[[#This Row],[Material]],Catalog[Material '#],0)))","v":""},{"$f":"IF(PurchaseOrderLines[[#This Row],[Material]]=\"\",\"\",INDEX(Catalog[UOM],MATCH(PurchaseOrderLines[[#This Row],[Material]],Catalog[Material '#],0)))","v":""},{"$f":"IF(PurchaseOrderLines[[#This Row],[Material]]=\"\",\"\",INDEX(Catalog[[Base]:[Efficient]],MATCH(PurchaseOrderLines[[#This Row],[Material]],Catalog[Material '#],0),MATCH(Pricing_Bracket,Catalog[[#Headers],[Base]:[Efficient]],0)))","v":""},{"$f":"IF(PurchaseOrderLines[[#This Row],[Material]]=\"\",0,PurchaseOrderLines[[#This Row],[Qty]]*PurchaseOrderLines[[#This Row],[Unit Price]])","v":0},{"$f":"IF(PurchaseOrderLines[[#This Row],[Material]]=\"\",\"\",INDEX(Catalog[MOQ/Qty Increments],MATCH(PurchaseOrderLines[[#This Row],[Material]],Catalog[Material '#],0)))","v":""},{"$f":"IFERROR(PurchaseOrderLines[[#This Row],[Qty]]/IF(PurchaseOrderLines[[#This Row],[Material]]=\"\",\"\",INDEX(Catalog[Pallet],MATCH(PurchaseOrderLines[[#This Row],[Material]],Catalog[Material '#],0))),0)","v":0}]
[null,{"$f":"IFERROR(VLOOKUP(ROW()-39,'CATALOG'!A:F,6,FALSE),\"\")","v":""},{"$f":"IF(PurchaseOrderLines[[#This Row],[Material]]=\"\",\"\",INDEX(Catalog[Material Description],MATCH(PurchaseOrderLines[[#This Row],[Material]],Catalog[Material '#],0)))","v":""},{"$f":"IF(PurchaseOrderLines[[#This Row],[Material]]=\"\",\"\",INDEX(Catalog[Enter Quantity To Add to PO],MATCH(PurchaseOrderLines[[#This Row],[Material]],Catalog[Material '#],0)))","v":""},{"$f":"IF(PurchaseOrderLines[[#This Row],[Material]]=\"\",\"\",INDEX(Catalog[UOM],MATCH(PurchaseOrderLines[[#This Row],[Material]],Catalog[Material '#],0)))","v":""},{"$f":"IF(PurchaseOrderLines[[#This Row],[Material]]=\"\",\"\",INDEX(Catalog[[Base]:[Efficient]],MATCH(PurchaseOrderLines[[#This Row],[Material]],Catalog[Material '#],0),MATCH(Pricing_Bracket,Catalog[[#Headers],[Base]:[Efficient]],0)))","v":""},{"$f":"IF(PurchaseOrderLines[[#This Row],[Material]]=\"\",0,PurchaseOrderLines[[#This Row],[Qty]]*PurchaseOrderLines[[#This Row],[Unit Price]])","v":0},{"$f":"IF(PurchaseOrderLines[[#This Row],[Material]]=\"\",\"\",INDEX(Catalog[MOQ/Qty Increments],MATCH(PurchaseOrderLines[[#This Row],[Material]],Catalog[Material '#],0)))","v":""},{"$f":"IFERROR(PurchaseOrderLines[[#This Row],[Qty]]/IF(PurchaseOrderLines[[#This Row],[Material]]=\"\",\"\",INDEX(Catalog[Pallet],MATCH(PurchaseOrderLines[[#This Row],[Material]],Catalog[Material '#],0))),0)","v":0}]
[null,{"$f":"IFERROR(VLOOKUP(ROW()-39,'CATALOG'!A:F,6,FALSE),\"\")","v":""},{"$f":"IF(PurchaseOrderLines[[#This Row],[Material]]=\"\",\"\",INDEX(Catalog[Material Description],MATCH(PurchaseOrderLines[[#This Row],[Material]],Catalog[Material '#],0)))","v":""},{"$f":"IF(PurchaseOrderLines[[#This Row],[Material]]=\"\",\"\",INDEX(Catalog[Enter Quantity To Add to PO],MATCH(PurchaseOrderLines[[#This Row],[Material]],Catalog[Material '#],0)))","v":""},{"$f":"IF(PurchaseOrderLines[[#This Row],[Material]]=\"\",\"\",INDEX(Catalog[UOM],MATCH(PurchaseOrderLines[[#This Row],[Material]],Catalog[Material '#],0)))","v":""},{"$f":"IF(PurchaseOrderLines[[#This Row],[Material]]=\"\",\"\",INDEX(Catalog[[Base]:[Efficient]],MATCH(PurchaseOrderLines[[#This Row],[Material]],Catalog[Material '#],0),MATCH(Pricing_Bracket,Catalog[[#Headers],[Base]:[Efficient]],0)))","v":""},{"$f":"IF(PurchaseOrderLines[[#This Row],[Material]]=\"\",0,PurchaseOrderLines[[#This Row],[Qty]]*PurchaseOrderLines[[#This Row],[Unit Price]])","v":0},{"$f":"IF(PurchaseOrderLines[[#This Row],[Material]]=\"\",\"\",INDEX(Catalog[MOQ/Qty Increments],MATCH(PurchaseOrderLines[[#This Row],[Material]],Catalog[Material '#],0)))","v":""},{"$f":"IFERROR(PurchaseOrderLines[[#This Row],[Qty]]/IF(PurchaseOrderLines[[#This Row],[Material]]=\"\",\"\",INDEX(Catalog[Pallet],MATCH(PurchaseOrderLines[[#This Row],[Material]],Catalog[Material '#],0))),0)","v":0}]
[null,{"$f":"IFERROR(VLOOKUP(ROW()-39,'CATALOG'!A:F,6,FALSE),\"\")","v":""},{"$f":"IF(PurchaseOrderLines[[#This Row],[Material]]=\"\",\"\",INDEX(Catalog[Material Description],MATCH(PurchaseOrderLines[[#This Row],[Material]],Catalog[Material '#],0)))","v":""},{"$f":"IF(PurchaseOrderLines[[#This Row],[Material]]=\"\",\"\",INDEX(Catalog[Enter Quantity To Add to PO],MATCH(PurchaseOrderLines[[#This Row],[Material]],Catalog[Material '#],0)))","v":""},{"$f":"IF(PurchaseOrderLines[[#This Row],[Material]]=\"\",\"\",INDEX(Catalog[UOM],MATCH(PurchaseOrderLines[[#This Row],[Material]],Catalog[Material '#],0)))","v":""},{"$f":"IF(PurchaseOrderLines[[#This Row],[Material]]=\"\",\"\",INDEX(Catalog[[Base]:[Efficient]],MATCH(PurchaseOrderLines[[#This Row],[Material]],Catalog[Material '#],0),MATCH(Pricing_Bracket,Catalog[[#Headers],[Base]:[Efficient]],0)))","v":""},{"$f":"IF(PurchaseOrderLines[[#This Row],[Material]]=\"\",0,PurchaseOrderLines[[#This Row],[Qty]]*PurchaseOrderLines[[#This Row],[Unit Price]])","v":0},{"$f":"IF(PurchaseOrderLines[[#This Row],[Material]]=\"\",\"\",INDEX(Catalog[MOQ/Qty Increments],MATCH(PurchaseOrderLines[[#This Row],[Material]],Catalog[Material '#],0)))","v":""},{"$f":"IFERROR(PurchaseOrderLines[[#This Row],[Qty]]/IF(PurchaseOrderLines[[#This Row],[Material]]=\"\",\"\",INDEX(Catalog[Pallet],MATCH(PurchaseOrderLines[[#This Row],[Material]],Catalog[Material '#],0))),0)","v":0}]
[null,{"$f":"IFERROR(VLOOKUP(ROW()-39,'CATALOG'!A:F,6,FALSE),\"\")","v":""},{"$f":"IF(PurchaseOrderLines[[#This Row],[Material]]=\"\",\"\",INDEX(Catalog[Material Description],MATCH(PurchaseOrderLines[[#This Row],[Material]],Catalog[Material '#],0)))","v":""},{"$f":"IF(PurchaseOrderLines[[#This Row],[Material]]=\"\",\"\",INDEX(Catalog[Enter Quantity To Add to PO],MATCH(PurchaseOrderLines[[#This Row],[Material]],Catalog[Material '#],0)))","v":""},{"$f":"IF(PurchaseOrderLines[[#This Row],[Material]]=\"\",\"\",INDEX(Catalog[UOM],MATCH(PurchaseOrderLines[[#This Row],[Material]],Catalog[Material '#],0)))","v":""},{"$f":"IF(PurchaseOrderLines[[#This Row],[Material]]=\"\",\"\",INDEX(Catalog[[Base]:[Efficient]],MATCH(PurchaseOrderLines[[#This Row],[Material]],Catalog[Material '#],0),MATCH(Pricing_Bracket,Catalog[[#Headers],[Base]:[Efficient]],0)))","v":""},{"$f":"IF(PurchaseOrderLines[[#This Row],[Material]]=\"\",0,PurchaseOrderLines[[#This Row],[Qty]]*PurchaseOrderLines[[#This Row],[Unit Price]])","v":0},{"$f":"IF(PurchaseOrderLines[[#This Row],[Material]]=\"\",\"\",INDEX(Catalog[MOQ/Qty Increments],MATCH(PurchaseOrderLines[[#This Row],[Material]],Catalog[Material '#],0)))","v":""},{"$f":"IFERROR(PurchaseOrderLines[[#This Row],[Qty]]/IF(PurchaseOrderLines[[#This Row],[Material]]=\"\",\"\",INDEX(Catalog[Pallet],MATCH(PurchaseOrderLines[[#This Row],[Material]],Catalog[Material '#],0))),0)","v":0}]
[null,{"$f":"IFERROR(VLOOKUP(ROW()-39,'CATALOG'!A:F,6,FALSE),\"\")","v":""},{"$f":"IF(PurchaseOrderLines[[#This Row],[Material]]=\"\",\"\",INDEX(Catalog[Material Description],MATCH(PurchaseOrderLines[[#This Row],[Material]],Catalog[Material '#],0)))","v":""},{"$f":"IF(PurchaseOrderLines[[#This Row],[Material]]=\"\",\"\",INDEX(Catalog[Enter Quantity To Add to PO],MATCH(PurchaseOrderLines[[#This Row],[Material]],Catalog[Material '#],0)))","v":""},{"$f":"IF(PurchaseOrderLines[[#This Row],[Material]]=\"\",\"\",INDEX(Catalog[UOM],MATCH(PurchaseOrderLines[[#This Row],[Material]],Catalog[Material '#],0)))","v":""},{"$f":"IF(PurchaseOrderLines[[#This Row],[Material]]=\"\",\"\",INDEX(Catalog[[Base]:[Efficient]],MATCH(PurchaseOrderLines[[#This Row],[Material]],Catalog[Material '#],0),MATCH(Pricing_Bracket,Catalog[[#Headers],[Base]:[Efficient]],0)))","v":""},{"$f":"IF(PurchaseOrderLines[[#This Row],[Material]]=\"\",0,PurchaseOrderLines[[#This Row],[Qty]]*PurchaseOrderLines[[#This Row],[Unit Price]])","v":0},{"$f":"IF(PurchaseOrderLines[[#This Row],[Material]]=\"\",\"\",INDEX(Catalog[MOQ/Qty Increments],MATCH(PurchaseOrderLines[[#This Row],[Material]],Catalog[Material '#],0)))","v":""},{"$f":"IFERROR(PurchaseOrderLines[[#This Row],[Qty]]/IF(PurchaseOrderLines[[#This Row],[Material]]=\"\",\"\",INDEX(Catalog[Pallet],MATCH(PurchaseOrderLines[[#This Row],[Material]],Catalog[Material '#],0))),0)","v":0}]
[null,{"$f":"IFERROR(VLOOKUP(ROW()-39,'CATALOG'!A:F,6,FALSE),\"\")","v":""},{"$f":"IF(PurchaseOrderLines[[#This Row],[Material]]=\"\",\"\",INDEX(Catalog[Material Description],MATCH(PurchaseOrderLines[[#This Row],[Material]],Catalog[Material '#],0)))","v":""},{"$f":"IF(PurchaseOrderLines[[#This Row],[Material]]=\"\",\"\",INDEX(Catalog[Enter Quantity To Add to PO],MATCH(PurchaseOrderLines[[#This Row],[Material]],Catalog[Material '#],0)))","v":""},{"$f":"IF(PurchaseOrderLines[[#This Row],[Material]]=\"\",\"\",INDEX(Catalog[UOM],MATCH(PurchaseOrderLines[[#This Row],[Material]],Catalog[Material '#],0)))","v":""},{"$f":"IF(PurchaseOrderLines[[#This Row],[Material]]=\"\",\"\",INDEX(Catalog[[Base]:[Efficient]],MATCH(PurchaseOrderLines[[#This Row],[Material]],Catalog[Material '#],0),MATCH(Pricing_Bracket,Catalog[[#Headers],[Base]:[Efficient]],0)))","v":""},{"$f":"IF(PurchaseOrderLines[[#This Row],[Material]]=\"\",0,PurchaseOrderLines[[#This Row],[Qty]]*PurchaseOrderLines[[#This Row],[Unit Price]])","v":0},{"$f":"IF(PurchaseOrderLines[[#This Row],[Material]]=\"\",\"\",INDEX(Catalog[MOQ/Qty Increments],MATCH(PurchaseOrderLines[[#This Row],[Material]],Catalog[Material '#],0)))","v":""},{"$f":"IFERROR(PurchaseOrderLines[[#This Row],[Qty]]/IF(PurchaseOrderLines[[#This Row],[Material]]=\"\",\"\",INDEX(Catalog[Pallet],MATCH(PurchaseOrderLines[[#This Row],[Material]],Catalog[Material '#],0))),0)","v":0}]
[null,{"$f":"IFERROR(VLOOKUP(ROW()-39,'CATALOG'!A:F,6,FALSE),\"\")","v":""},{"$f":"IF(PurchaseOrderLines[[#This Row],[Material]]=\"\",\"\",INDEX(Catalog[Material Description],MATCH(PurchaseOrderLines[[#This Row],[Material]],Catalog[Material '#],0)))","v":""},{"$f":"IF(PurchaseOrderLines[[#This Row],[Material]]=\"\",\"\",INDEX(Catalog[Enter Quantity To Add to PO],MATCH(PurchaseOrderLines[[#This Row],[Material]],Catalog[Material '#],0)))","v":""},{"$f":"IF(PurchaseOrderLines[[#This Row],[Material]]=\"\",\"\",INDEX(Catalog[UOM],MATCH(PurchaseOrderLines[[#This Row],[Material]],Catalog[Material '#],0)))","v":""},{"$f":"IF(PurchaseOrderLines[[#This Row],[Material]]=\"\",\"\",INDEX(Catalog[[Base]:[Efficient]],MATCH(PurchaseOrderLines[[#This Row],[Material]],Catalog[Material '#],0),MATCH(Pricing_Bracket,Catalog[[#Headers],[Base]:[Efficient]],0)))","v":""},{"$f":"IF(PurchaseOrderLines[[#This Row],[Material]]=\"\",0,PurchaseOrderLines[[#This Row],[Qty]]*PurchaseOrderLines[[#This Row],[Unit Price]])","v":0},{"$f":"IF(PurchaseOrderLines[[#This Row],[Material]]=\"\",\"\",INDEX(Catalog[MOQ/Qty Increments],MATCH(PurchaseOrderLines[[#This Row],[Material]],Catalog[Material '#],0)))","v":""},{"$f":"IFERROR(PurchaseOrderLines[[#This Row],[Qty]]/IF(PurchaseOrderLines[[#This Row],[Material]]=\"\",\"\",INDEX(Catalog[Pallet],MATCH(PurchaseOrderLines[[#This Row],[Material]],Catalog[Material '#],0))),0)","v":0}]
[null,{"$f":"IFERROR(VLOOKUP(ROW()-39,'CATALOG'!A:F,6,FALSE),\"\")","v":""},{"$f":"IF(PurchaseOrderLines[[#This Row],[Material]]=\"\",\"\",INDEX(Catalog[Material Description],MATCH(PurchaseOrderLines[[#This Row],[Material]],Catalog[Material '#],0)))","v":""},{"$f":"IF(PurchaseOrderLines[[#This Row],[Material]]=\"\",\"\",INDEX(Catalog[Enter Quantity To Add to PO],MATCH(PurchaseOrderLines[[#This Row],[Material]],Catalog[Material '#],0)))","v":""},{"$f":"IF(PurchaseOrderLines[[#This Row],[Material]]=\"\",\"\",INDEX(Catalog[UOM],MATCH(PurchaseOrderLines[[#This Row],[Material]],Catalog[Material '#],0)))","v":""},{"$f":"IF(PurchaseOrderLines[[#This Row],[Material]]=\"\",\"\",INDEX(Catalog[[Base]:[Efficient]],MATCH(PurchaseOrderLines[[#This Row],[Material]],Catalog[Material '#],0),MATCH(Pricing_Bracket,Catalog[[#Headers],[Base]:[Efficient]],0)))","v":""},{"$f":"IF(PurchaseOrderLines[[#This Row],[Material]]=\"\",0,PurchaseOrderLines[[#This Row],[Qty]]*PurchaseOrderLines[[#This Row],[Unit Price]])","v":0},{"$f":"IF(PurchaseOrderLines[[#This Row],[Material]]=\"\",\"\",INDEX(Catalog[MOQ/Qty Increments],MATCH(PurchaseOrderLines[[#This Row],[Material]],Catalog[Material '#],0)))","v":""},{"$f":"IFERROR(PurchaseOrderLines[[#This Row],[Qty]]/IF(PurchaseOrderLines[[#This Row],[Material]]=\"\",\"\",INDEX(Catalog[Pallet],MATCH(PurchaseOrderLines[[#This Row],[Material]],Catalog[Material '#],0))),0)","v":0}]
[null,{"$f":"IFERROR(VLOOKUP(ROW()-39,'CATALOG'!A:F,6,FALSE),\"\")","v":""},{"$f":"IF(PurchaseOrderLines[[#This Row],[Material]]=\"\",\"\",INDEX(Catalog[Material Description],MATCH(PurchaseOrderLines[[#This Row],[Material]],Catalog[Material '#],0)))","v":""},{"$f":"IF(PurchaseOrderLines[[#This Row],[Material]]=\"\",\"\",INDEX(Catalog[Enter Quantity To Add to PO],MATCH(PurchaseOrderLines[[#This Row],[Material]],Catalog[Material '#],0)))","v":""},{"$f":"IF(PurchaseOrderLines[[#This Row],[Material]]=\"\",\"\",INDEX(Catalog[UOM],MATCH(PurchaseOrderLines[[#This Row],[Material]],Catalog[Material '#],0)))","v":""},{"$f":"IF(PurchaseOrderLines[[#This Row],[Material]]=\"\",\"\",INDEX(Catalog[[Base]:[Efficient]],MATCH(PurchaseOrderLines[[#This Row],[Material]],Catalog[Material '#],0),MATCH(Pricing_Bracket,Catalog[[#Headers],[Base]:[Efficient]],0)))","v":""},{"$f":"IF(PurchaseOrderLines[[#This Row],[Material]]=\"\",0,PurchaseOrderLines[[#This Row],[Qty]]*PurchaseOrderLines[[#This Row],[Unit Price]])","v":0},{"$f":"IF(PurchaseOrderLines[[#This Row],[Material]]=\"\",\"\",INDEX(Catalog[MOQ/Qty Increments],MATCH(PurchaseOrderLines[[#This Row],[Material]],Catalog[Material '#],0)))","v":""},{"$f":"IFERROR(PurchaseOrderLines[[#This Row],[Qty]]/IF(PurchaseOrderLines[[#This Row],[Material]]=\"\",\"\",INDEX(Catalog[Pallet],MATCH(PurchaseOrderLines[[#This Row],[Material]],Catalog[Material '#],0))),0)","v":0}]
[null,{"$f":"IFERROR(VLOOKUP(ROW()-39,'CATALOG'!A:F,6,FALSE),\"\")","v":""},{"$f":"IF(PurchaseOrderLines[[#This Row],[Material]]=\"\",\"\",INDEX(Catalog[Material Description],MATCH(PurchaseOrderLines[[#This Row],[Material]],Catalog[Material '#],0)))","v":""},{"$f":"IF(PurchaseOrderLines[[#This Row],[Material]]=\"\",\"\",INDEX(Catalog[Enter Quantity To Add to PO],MATCH(PurchaseOrderLines[[#This Row],[Material]],Catalog[Material '#],0)))","v":""},{"$f":"IF(PurchaseOrderLines[[#This Row],[Material]]=\"\",\"\",INDEX(Catalog[UOM],MATCH(PurchaseOrderLines[[#This Row],[Material]],Catalog[Material '#],0)))","v":""},{"$f":"IF(PurchaseOrderLines[[#This Row],[Material]]=\"\",\"\",INDEX(Catalog[[Base]:[Efficient]],MATCH(PurchaseOrderLines[[#This Row],[Material]],Catalog[Material '#],0),MATCH(Pricing_Bracket,Catalog[[#Headers],[Base]:[Efficient]],0)))","v":""},{"$f":"IF(PurchaseOrderLines[[#This Row],[Material]]=\"\",0,PurchaseOrderLines[[#This Row],[Qty]]*PurchaseOrderLines[[#This Row],[Unit Price]])","v":0},{"$f":"IF(PurchaseOrderLines[[#This Row],[Material]]=\"\",\"\",INDEX(Catalog[MOQ/Qty Increments],MATCH(PurchaseOrderLines[[#This Row],[Material]],Catalog[Material '#],0)))","v":""},{"$f":"IFERROR(PurchaseOrderLines[[#This Row],[Qty]]/IF(PurchaseOrderLines[[#This Row],[Material]]=\"\",\"\",INDEX(Catalog[Pallet],MATCH(PurchaseOrderLines[[#This Row],[Material]],Catalog[Material '#],0))),0)","v":0}]
[null,{"$f":"IFERROR(VLOOKUP(ROW()-39,'CATALOG'!A:F,6,FALSE),\"\")","v":""},{"$f":"IF(PurchaseOrderLines[[#This Row],[Material]]=\"\",\"\",INDEX(Catalog[Material Description],MATCH(PurchaseOrderLines[[#This Row],[Material]],Catalog[Material '#],0)))","v":""},{"$f":"IF(PurchaseOrderLines[[#This Row],[Material]]=\"\",\"\",INDEX(Catalog[Enter Quantity To Add to PO],MATCH(PurchaseOrderLines[[#This Row],[Material]],Catalog[Material '#],0)))","v":""},{"$f":"IF(PurchaseOrderLines[[#This Row],[Material]]=\"\",\"\",INDEX(Catalog[UOM],MATCH(PurchaseOrderLines[[#This Row],[Material]],Catalog[Material '#],0)))","v":""},{"$f":"IF(PurchaseOrderLines[[#This Row],[Material]]=\"\",\"\",INDEX(Catalog[[Base]:[Efficient]],MATCH(PurchaseOrderLines[[#This Row],[Material]],Catalog[Material '#],0),MATCH(Pricing_Bracket,Catalog[[#Headers],[Base]:[Efficient]],0)))","v":""},{"$f":"IF(PurchaseOrderLines[[#This Row],[Material]]=\"\",0,PurchaseOrderLines[[#This Row],[Qty]]*PurchaseOrderLines[[#This Row],[Unit Price]])","v":0},{"$f":"IF(PurchaseOrderLines[[#This Row],[Material]]=\"\",\"\",INDEX(Catalog[MOQ/Qty Increments],MATCH(PurchaseOrderLines[[#This Row],[Material]],Catalog[Material '#],0)))","v":""},{"$f":"IFERROR(PurchaseOrderLines[[#This Row],[Qty]]/IF(PurchaseOrderLines[[#This Row],[Material]]=\"\",\"\",INDEX(Catalog[Pallet],MATCH(PurchaseOrderLines[[#This Row],[Material]],Catalog[Material '#],0))),0)","v":0}]
[null,{"$f":"IFERROR(VLOOKUP(ROW()-39,'CATALOG'!A:F,6,FALSE),\"\")","v":""},{"$f":"IF(PurchaseOrderLines[[#This Row],[Material]]=\"\",\"\",INDEX(Catalog[Material Description],MATCH(PurchaseOrderLines[[#This Row],[Material]],Catalog[Material '#],0)))","v":""},{"$f":"IF(PurchaseOrderLines[[#This Row],[Material]]=\"\",\"\",INDEX(Catalog[Enter Quantity To Add to PO],MATCH(PurchaseOrderLines[[#This Row],[Material]],Catalog[Material '#],0)))","v":""},{"$f":"IF(PurchaseOrderLines[[#This Row],[Material]]=\"\",\"\",INDEX(Catalog[UOM],MATCH(PurchaseOrderLines[[#This Row],[Material]],Catalog[Material '#],0)))","v":""},{"$f":"IF(PurchaseOrderLines[[#This Row],[Material]]=\"\",\"\",INDEX(Catalog[[Base]:[Efficient]],MATCH(PurchaseOrderLines[[#This Row],[Material]],Catalog[Material '#],0),MATCH(Pricing_Bracket,Catalog[[#Headers],[Base]:[Efficient]],0)))","v":""},{"$f":"IF(PurchaseOrderLines[[#This Row],[Material]]=\"\",0,PurchaseOrderLines[[#This Row],[Qty]]*PurchaseOrderLines[[#This Row],[Unit Price]])","v":0},{"$f":"IF(PurchaseOrderLines[[#This Row],[Material]]=\"\",\"\",INDEX(Catalog[MOQ/Qty Increments],MATCH(PurchaseOrderLines[[#This Row],[Material]],Catalog[Material '#],0)))","v":""},{"$f":"IFERROR(PurchaseOrderLines[[#This Row],[Qty]]/IF(PurchaseOrderLines[[#This Row],[Material]]=\"\",\"\",INDEX(Catalog[Pallet],MATCH(PurchaseOrderLines[[#This Row],[Material]],Catalog[Material '#],0))),0)","v":0}]
[null,{"$f":"IFERROR(VLOOKUP(ROW()-39,'CATALOG'!A:F,6,FALSE),\"\")","v":""},{"$f":"IF(PurchaseOrderLines[[#This Row],[Material]]=\"\",\"\",INDEX(Catalog[Material Description],MATCH(PurchaseOrderLines[[#This Row],[Material]],Catalog[Material '#],0)))","v":""},{"$f":"IF(PurchaseOrderLines[[#This Row],[Material]]=\"\",\"\",INDEX(Catalog[Enter Quantity To Add to PO],MATCH(PurchaseOrderLines[[#This Row],[Material]],Catalog[Material '#],0)))","v":""},{"$f":"IF(PurchaseOrderLines[[#This Row],[Material]]=\"\",\"\",INDEX(Catalog[UOM],MATCH(PurchaseOrderLines[[#This Row],[Material]],Catalog[Material '#],0)))","v":""},{"$f":"IF(PurchaseOrderLines[[#This Row],[Material]]=\"\",\"\",INDEX(Catalog[[Base]:[Efficient]],MATCH(PurchaseOrderLines[[#This Row],[Material]],Catalog[Material '#],0),MATCH(Pricing_Bracket,Catalog[[#Headers],[Base]:[Efficient]],0)))","v":""},{"$f":"IF(PurchaseOrderLines[[#This Row],[Material]]=\"\",0,PurchaseOrderLines[[#This Row],[Qty]]*PurchaseOrderLines[[#This Row],[Unit Price]])","v":0},{"$f":"IF(PurchaseOrderLines[[#This Row],[Material]]=\"\",\"\",INDEX(Catalog[MOQ/Qty Increments],MATCH(PurchaseOrderLines[[#This Row],[Material]],Catalog[Material '#],0)))","v":""},{"$f":"IFERROR(PurchaseOrderLines[[#This Row],[Qty]]/IF(PurchaseOrderLines[[#This Row],[Material]]=\"\",\"\",INDEX(Catalog[Pallet],MATCH(PurchaseOrderLines[[#This Row],[Material]],Catalog[Material '#],0))),0)","v":0}]
[null,{"$f":"IFERROR(VLOOKUP(ROW()-39,'CATALOG'!A:F,6,FALSE),\"\")","v":""},{"$f":"IF(PurchaseOrderLines[[#This Row],[Material]]=\"\",\"\",INDEX(Catalog[Material Description],MATCH(PurchaseOrderLines[[#This Row],[Material]],Catalog[Material '#],0)))","v":""},{"$f":"IF(PurchaseOrderLines[[#This Row],[Material]]=\"\",\"\",INDEX(Catalog[Enter Quantity To Add to PO],MATCH(PurchaseOrderLines[[#This Row],[Material]],Catalog[Material '#],0)))","v":""},{"$f":"IF(PurchaseOrderLines[[#This Row],[Material]]=\"\",\"\",INDEX(Catalog[UOM],MATCH(PurchaseOrderLines[[#This Row],[Material]],Catalog[Material '#],0)))","v":""},{"$f":"IF(PurchaseOrderLines[[#This Row],[Material]]=\"\",\"\",INDEX(Catalog[[Base]:[Efficient]],MATCH(PurchaseOrderLines[[#This Row],[Material]],Catalog[Material '#],0),MATCH(Pricing_Bracket,Catalog[[#Headers],[Base]:[Efficient]],0)))","v":""},{"$f":"IF(PurchaseOrderLines[[#This Row],[Material]]=\"\",0,PurchaseOrderLines[[#This Row],[Qty]]*PurchaseOrderLines[[#This Row],[Unit Price]])","v":0},{"$f":"IF(PurchaseOrderLines[[#This Row],[Material]]=\"\",\"\",INDEX(Catalog[MOQ/Qty Increments],MATCH(PurchaseOrderLines[[#This Row],[Material]],Catalog[Material '#],0)))","v":""},{"$f":"IFERROR(PurchaseOrderLines[[#This Row],[Qty]]/IF(PurchaseOrderLines[[#This Row],[Material]]=\"\",\"\",INDEX(Catalog[Pallet],MATCH(PurchaseOrderLines[[#This Row],[Material]],Catalog[Material '#],0))),0)","v":0}]
[null,{"$f":"IFERROR(VLOOKUP(ROW()-39,'CATALOG'!A:F,6,FALSE),\"\")","v":""},{"$f":"IF(PurchaseOrderLines[[#This Row],[Material]]=\"\",\"\",INDEX(Catalog[Material Description],MATCH(PurchaseOrderLines[[#This Row],[Material]],Catalog[Material '#],0)))","v":""},{"$f":"IF(PurchaseOrderLines[[#This Row],[Material]]=\"\",\"\",INDEX(Catalog[Enter Quantity To Add to PO],MATCH(PurchaseOrderLines[[#This Row],[Material]],Catalog[Material '#],0)))","v":""},{"$f":"IF(PurchaseOrderLines[[#This Row],[Material]]=\"\",\"\",INDEX(Catalog[UOM],MATCH(PurchaseOrderLines[[#This Row],[Material]],Catalog[Material '#],0)))","v":""},{"$f":"IF(PurchaseOrderLines[[#This Row],[Material]]=\"\",\"\",INDEX(Catalog[[Base]:[Efficient]],MATCH(PurchaseOrderLines[[#This Row],[Material]],Catalog[Material '#],0),MATCH(Pricing_Bracket,Catalog[[#Headers],[Base]:[Efficient]],0)))","v":""},{"$f":"IF(PurchaseOrderLines[[#This Row],[Material]]=\"\",0,PurchaseOrderLines[[#This Row],[Qty]]*PurchaseOrderLines[[#This Row],[Unit Price]])","v":0},{"$f":"IF(PurchaseOrderLines[[#This Row],[Material]]=\"\",\"\",INDEX(Catalog[MOQ/Qty Increments],MATCH(PurchaseOrderLines[[#This Row],[Material]],Catalog[Material '#],0)))","v":""},{"$f":"IFERROR(PurchaseOrderLines[[#This Row],[Qty]]/IF(PurchaseOrderLines[[#This Row],[Material]]=\"\",\"\",INDEX(Catalog[Pallet],MATCH(PurchaseOrderLines[[#This Row],[Material]],Catalog[Material '#],0))),0)","v":0}]
[null,{"$f":"IFERROR(VLOOKUP(ROW()-39,'CATALOG'!A:F,6,FALSE),\"\")","v":""},{"$f":"IF(PurchaseOrderLines[[#This Row],[Material]]=\"\",\"\",INDEX(Catalog[Material Description],MATCH(PurchaseOrderLines[[#This Row],[Material]],Catalog[Material '#],0)))","v":""},{"$f":"IF(PurchaseOrderLines[[#This Row],[Material]]=\"\",\"\",INDEX(Catalog[Enter Quantity To Add to PO],MATCH(PurchaseOrderLines[[#This Row],[Material]],Catalog[Material '#],0)))","v":""},{"$f":"IF(PurchaseOrderLines[[#This Row],[Material]]=\"\",\"\",INDEX(Catalog[UOM],MATCH(PurchaseOrderLines[[#This Row],[Material]],Catalog[Material '#],0)))","v":""},{"$f":"IF(PurchaseOrderLines[[#This Row],[Material]]=\"\",\"\",INDEX(Catalog[[Base]:[Efficient]],MATCH(PurchaseOrderLines[[#This Row],[Material]],Catalog[Material '#],0),MATCH(Pricing_Bracket,Catalog[[#Headers],[Base]:[Efficient]],0)))","v":""},{"$f":"IF(PurchaseOrderLines[[#This Row],[Material]]=\"\",0,PurchaseOrderLines[[#This Row],[Qty]]*PurchaseOrderLines[[#This Row],[Unit Price]])","v":0},{"$f":"IF(PurchaseOrderLines[[#This Row],[Material]]=\"\",\"\",INDEX(Catalog[MOQ/Qty Increments],MATCH(PurchaseOrderLines[[#This Row],[Material]],Catalog[Material '#],0)))","v":""},{"$f":"IFERROR(PurchaseOrderLines[[#This Row],[Qty]]/IF(PurchaseOrderLines[[#This Row],[Material]]=\"\",\"\",INDEX(Catalog[Pallet],MATCH(PurchaseOrderLines[[#This Row],[Material]],Catalog[Material '#],0))),0)","v":0}]
[null,{"$f":"IFERROR(VLOOKUP(ROW()-39,'CATALOG'!A:F,6,FALSE),\"\")","v":""},{"$f":"IF(PurchaseOrderLines[[#This Row],[Material]]=\"\",\"\",INDEX(Catalog[Material Description],MATCH(PurchaseOrderLines[[#This Row],[Material]],Catalog[Material '#],0)))","v":""},{"$f":"IF(PurchaseOrderLines[[#This Row],[Material]]=\"\",\"\",INDEX(Catalog[Enter Quantity To Add to PO],MATCH(PurchaseOrderLines[[#This Row],[Material]],Catalog[Material '#],0)))","v":""},{"$f":"IF(PurchaseOrderLines[[#This Row],[Material]]=\"\",\"\",INDEX(Catalog[UOM],MATCH(PurchaseOrderLines[[#This Row],[Material]],Catalog[Material '#],0)))","v":""},{"$f":"IF(PurchaseOrderLines[[#This Row],[Material]]=\"\",\"\",INDEX(Catalog[[Base]:[Efficient]],MATCH(PurchaseOrderLines[[#This Row],[Material]],Catalog[Material '#],0),MATCH(Pricing_Bracket,Catalog[[#Headers],[Base]:[Efficient]],0)))","v":""},{"$f":"IF(PurchaseOrderLines[[#This Row],[Material]]=\"\",0,PurchaseOrderLines[[#This Row],[Qty]]*PurchaseOrderLines[[#This Row],[Unit Price]])","v":0},{"$f":"IF(PurchaseOrderLines[[#This Row],[Material]]=\"\",\"\",INDEX(Catalog[MOQ/Qty Increments],MATCH(PurchaseOrderLines[[#This Row],[Material]],Catalog[Material '#],0)))","v":""},{"$f":"IFERROR(PurchaseOrderLines[[#This Row],[Qty]]/IF(PurchaseOrderLines[[#This Row],[Material]]=\"\",\"\",INDEX(Catalog[Pallet],MATCH(PurchaseOrderLines[[#This Row],[Material]],Catalog[Material '#],0))),0)","v":0}]
[null,{"$f":"IFERROR(VLOOKUP(ROW()-39,'CATALOG'!A:F,6,FALSE),\"\")","v":""},{"$f":"IF(PurchaseOrderLines[[#This Row],[Material]]=\"\",\"\",INDEX(Catalog[Material Description],MATCH(PurchaseOrderLines[[#This Row],[Material]],Catalog[Material '#],0)))","v":""},{"$f":"IF(PurchaseOrderLines[[#This Row],[Material]]=\"\",\"\",INDEX(Catalog[Enter Quantity To Add to PO],MATCH(PurchaseOrderLines[[#This Row],[Material]],Catalog[Material '#],0)))","v":""},{"$f":"IF(PurchaseOrderLines[[#This Row],[Material]]=\"\",\"\",INDEX(Catalog[UOM],MATCH(PurchaseOrderLines[[#This Row],[Material]],Catalog[Material '#],0)))","v":""},{"$f":"IF(PurchaseOrderLines[[#This Row],[Material]]=\"\",\"\",INDEX(Catalog[[Base]:[Efficient]],MATCH(PurchaseOrderLines[[#This Row],[Material]],Catalog[Material '#],0),MATCH(Pricing_Bracket,Catalog[[#Headers],[Base]:[Efficient]],0)))","v":""},{"$f":"IF(PurchaseOrderLines[[#This Row],[Material]]=\"\",0,PurchaseOrderLines[[#This Row],[Qty]]*PurchaseOrderLines[[#This Row],[Unit Price]])","v":0},{"$f":"IF(PurchaseOrderLines[[#This Row],[Material]]=\"\",\"\",INDEX(Catalog[MOQ/Qty Increments],MATCH(PurchaseOrderLines[[#This Row],[Material]],Catalog[Material '#],0)))","v":""},{"$f":"IFERROR(PurchaseOrderLines[[#This Row],[Qty]]/IF(PurchaseOrderLines[[#This Row],[Material]]=\"\",\"\",INDEX(Catalog[Pallet],MATCH(PurchaseOrderLines[[#This Row],[Material]],Catalog[Material '#],0))),0)","v":0}]
[null,{"$f":"IFERROR(VLOOKUP(ROW()-39,'CATALOG'!A:F,6,FALSE),\"\")","v":""},{"$f":"IF(PurchaseOrderLines[[#This Row],[Material]]=\"\",\"\",INDEX(Catalog[Material Description],MATCH(PurchaseOrderLines[[#This Row],[Material]],Catalog[Material '#],0)))","v":""},{"$f":"IF(PurchaseOrderLines[[#This Row],[Material]]=\"\",\"\",INDEX(Catalog[Enter Quantity To Add to PO],MATCH(PurchaseOrderLines[[#This Row],[Material]],Catalog[Material '#],0)))","v":""},{"$f":"IF(PurchaseOrderLines[[#This Row],[Material]]=\"\",\"\",INDEX(Catalog[UOM],MATCH(PurchaseOrderLines[[#This Row],[Material]],Catalog[Material '#],0)))","v":""},{"$f":"IF(PurchaseOrderLines[[#This Row],[Material]]=\"\",\"\",INDEX(Catalog[[Base]:[Efficient]],MATCH(PurchaseOrderLines[[#This Row],[Material]],Catalog[Material '#],0),MATCH(Pricing_Bracket,Catalog[[#Headers],[Base]:[Efficient]],0)))","v":""},{"$f":"IF(PurchaseOrderLines[[#This Row],[Material]]=\"\",0,PurchaseOrderLines[[#This Row],[Qty]]*PurchaseOrderLines[[#This Row],[Unit Price]])","v":0},{"$f":"IF(PurchaseOrderLines[[#This Row],[Material]]=\"\",\"\",INDEX(Catalog[MOQ/Qty Increments],MATCH(PurchaseOrderLines[[#This Row],[Material]],Catalog[Material '#],0)))","v":""},{"$f":"IFERROR(PurchaseOrderLines[[#This Row],[Qty]]/IF(PurchaseOrderLines[[#This Row],[Material]]=\"\",\"\",INDEX(Catalog[Pallet],MATCH(PurchaseOrderLines[[#This Row],[Material]],Catalog[Material '#],0))),0)","v":0}]
[null,{"$f":"IFERROR(VLOOKUP(ROW()-39,'CATALOG'!A:F,6,FALSE),\"\")","v":""},{"$f":"IF(PurchaseOrderLines[[#This Row],[Material]]=\"\",\"\",INDEX(Catalog[Material Description],MATCH(PurchaseOrderLines[[#This Row],[Material]],Catalog[Material '#],0)))","v":""},{"$f":"IF(PurchaseOrderLines[[#This Row],[Material]]=\"\",\"\",INDEX(Catalog[Enter Quantity To Add to PO],MATCH(PurchaseOrderLines[[#This Row],[Material]],Catalog[Material '#],0)))","v":""},{"$f":"IF(PurchaseOrderLines[[#This Row],[Material]]=\"\",\"\",INDEX(Catalog[UOM],MATCH(PurchaseOrderLines[[#This Row],[Material]],Catalog[Material '#],0)))","v":""},{"$f":"IF(PurchaseOrderLines[[#This Row],[Material]]=\"\",\"\",INDEX(Catalog[[Base]:[Efficient]],MATCH(PurchaseOrderLines[[#This Row],[Material]],Catalog[Material '#],0),MATCH(Pricing_Bracket,Catalog[[#Headers],[Base]:[Efficient]],0)))","v":""},{"$f":"IF(PurchaseOrderLines[[#This Row],[Material]]=\"\",0,PurchaseOrderLines[[#This Row],[Qty]]*PurchaseOrderLines[[#This Row],[Unit Price]])","v":0},{"$f":"IF(PurchaseOrderLines[[#This Row],[Material]]=\"\",\"\",INDEX(Catalog[MOQ/Qty Increments],MATCH(PurchaseOrderLines[[#This Row],[Material]],Catalog[Material '#],0)))","v":""},{"$f":"IFERROR(PurchaseOrderLines[[#This Row],[Qty]]/IF(PurchaseOrderLines[[#This Row],[Material]]=\"\",\"\",INDEX(Catalog[Pallet],MATCH(PurchaseOrderLines[[#This Row],[Material]],Catalog[Material '#],0))),0)","v":0}]
[null,{"$f":"IFERROR(VLOOKUP(ROW()-39,'CATALOG'!A:F,6,FALSE),\"\")","v":""},{"$f":"IF(PurchaseOrderLines[[#This Row],[Material]]=\"\",\"\",INDEX(Catalog[Material Description],MATCH(PurchaseOrderLines[[#This Row],[Material]],Catalog[Material '#],0)))","v":""},{"$f":"IF(PurchaseOrderLines[[#This Row],[Material]]=\"\",\"\",INDEX(Catalog[Enter Quantity To Add to PO],MATCH(PurchaseOrderLines[[#This Row],[Material]],Catalog[Material '#],0)))","v":""},{"$f":"IF(PurchaseOrderLines[[#This Row],[Material]]=\"\",\"\",INDEX(Catalog[UOM],MATCH(PurchaseOrderLines[[#This Row],[Material]],Catalog[Material '#],0)))","v":""},{"$f":"IF(PurchaseOrderLines[[#This Row],[Material]]=\"\",\"\",INDEX(Catalog[[Base]:[Efficient]],MATCH(PurchaseOrderLines[[#This Row],[Material]],Catalog[Material '#],0),MATCH(Pricing_Bracket,Catalog[[#Headers],[Base]:[Efficient]],0)))","v":""},{"$f":"IF(PurchaseOrderLines[[#This Row],[Material]]=\"\",0,PurchaseOrderLines[[#This Row],[Qty]]*PurchaseOrderLines[[#This Row],[Unit Price]])","v":0},{"$f":"IF(PurchaseOrderLines[[#This Row],[Material]]=\"\",\"\",INDEX(Catalog[MOQ/Qty Increments],MATCH(PurchaseOrderLines[[#This Row],[Material]],Catalog[Material '#],0)))","v":""},{"$f":"IFERROR(PurchaseOrderLines[[#This Row],[Qty]]/IF(PurchaseOrderLines[[#This Row],[Material]]=\"\",\"\",INDEX(Catalog[Pallet],MATCH(PurchaseOrderLines[[#This Row],[Material]],Catalog[Material '#],0))),0)","v":0}]
[null,{"$f":"IFERROR(VLOOKUP(ROW()-39,'CATALOG'!A:F,6,FALSE),\"\")","v":""},{"$f":"IF(PurchaseOrderLines[[#This Row],[Material]]=\"\",\"\",INDEX(Catalog[Material Description],MATCH(PurchaseOrderLines[[#This Row],[Material]],Catalog[Material '#],0)))","v":""},{"$f":"IF(PurchaseOrderLines[[#This Row],[Material]]=\"\",\"\",INDEX(Catalog[Enter Quantity To Add to PO],MATCH(PurchaseOrderLines[[#This Row],[Material]],Catalog[Material '#],0)))","v":""},{"$f":"IF(PurchaseOrderLines[[#This Row],[Material]]=\"\",\"\",INDEX(Catalog[UOM],MATCH(PurchaseOrderLines[[#This Row],[Material]],Catalog[Material '#],0)))","v":""},{"$f":"IF(PurchaseOrderLines[[#This Row],[Material]]=\"\",\"\",INDEX(Catalog[[Base]:[Efficient]],MATCH(PurchaseOrderLines[[#This Row],[Material]],Catalog[Material '#],0),MATCH(Pricing_Bracket,Catalog[[#Headers],[Base]:[Efficient]],0)))","v":""},{"$f":"IF(PurchaseOrderLines[[#This Row],[Material]]=\"\",0,PurchaseOrderLines[[#This Row],[Qty]]*PurchaseOrderLines[[#This Row],[Unit Price]])","v":0},{"$f":"IF(PurchaseOrderLines[[#This Row],[Material]]=\"\",\"\",INDEX(Catalog[MOQ/Qty Increments],MATCH(PurchaseOrderLines[[#This Row],[Material]],Catalog[Material '#],0)))","v":""},{"$f":"IFERROR(PurchaseOrderLines[[#This Row],[Qty]]/IF(PurchaseOrderLines[[#This Row],[Material]]=\"\",\"\",INDEX(Catalog[Pallet],MATCH(PurchaseOrderLines[[#This Row],[Material]],Catalog[Material '#],0))),0)","v":0}]
[null,{"$f":"IFERROR(VLOOKUP(ROW()-39,'CATALOG'!A:F,6,FALSE),\"\")","v":""},{"$f":"IF(PurchaseOrderLines[[#This Row],[Material]]=\"\",\"\",INDEX(Catalog[Material Description],MATCH(PurchaseOrderLines[[#This Row],[Material]],Catalog[Material '#],0)))","v":""},{"$f":"IF(PurchaseOrderLines[[#This Row],[Material]]=\"\",\"\",INDEX(Catalog[Enter Quantity To Add to PO],MATCH(PurchaseOrderLines[[#This Row],[Material]],Catalog[Material '#],0)))","v":""},{"$f":"IF(PurchaseOrderLines[[#This Row],[Material]]=\"\",\"\",INDEX(Catalog[UOM],MATCH(PurchaseOrderLines[[#This Row],[Material]],Catalog[Material '#],0)))","v":""},{"$f":"IF(PurchaseOrderLines[[#This Row],[Material]]=\"\",\"\",INDEX(Catalog[[Base]:[Efficient]],MATCH(PurchaseOrderLines[[#This Row],[Material]],Catalog[Material '#],0),MATCH(Pricing_Bracket,Catalog[[#Headers],[Base]:[Efficient]],0)))","v":""},{"$f":"IF(PurchaseOrderLines[[#This Row],[Material]]=\"\",0,PurchaseOrderLines[[#This Row],[Qty]]*PurchaseOrderLines[[#This Row],[Unit Price]])","v":0},{"$f":"IF(PurchaseOrderLines[[#This Row],[Material]]=\"\",\"\",INDEX(Catalog[MOQ/Qty Increments],MATCH(PurchaseOrderLines[[#This Row],[Material]],Catalog[Material '#],0)))","v":""},{"$f":"IFERROR(PurchaseOrderLines[[#This Row],[Qty]]/IF(PurchaseOrderLines[[#This Row],[Material]]=\"\",\"\",INDEX(Catalog[Pallet],MATCH(PurchaseOrderLines[[#This Row],[Material]],Catalog[Material '#],0))),0)","v":0}]
[null,{"$f":"IFERROR(VLOOKUP(ROW()-39,'CATALOG'!A:F,6,FALSE),\"\")","v":""},{"$f":"IF(PurchaseOrderLines[[#This Row],[Material]]=\"\",\"\",INDEX(Catalog[Material Description],MATCH(PurchaseOrderLines[[#This Row],[Material]],Catalog[Material '#],0)))","v":""},{"$f":"IF(PurchaseOrderLines[[#This Row],[Material]]=\"\",\"\",INDEX(Catalog[Enter Quantity To Add to PO],MATCH(PurchaseOrderLines[[#This Row],[Material]],Catalog[Material '#],0)))","v":""},{"$f":"IF(PurchaseOrderLines[[#This Row],[Material]]=\"\",\"\",INDEX(Catalog[UOM],MATCH(PurchaseOrderLines[[#This Row],[Material]],Catalog[Material '#],0)))","v":""},{"$f":"IF(PurchaseOrderLines[[#This Row],[Material]]=\"\",\"\",INDEX(Catalog[[Base]:[Efficient]],MATCH(PurchaseOrderLines[[#This Row],[Material]],Catalog[Material '#],0),MATCH(Pricing_Bracket,Catalog[[#Headers],[Base]:[Efficient]],0)))","v":""},{"$f":"IF(PurchaseOrderLines[[#This Row],[Material]]=\"\",0,PurchaseOrderLines[[#This Row],[Qty]]*PurchaseOrderLines[[#This Row],[Unit Price]])","v":0},{"$f":"IF(PurchaseOrderLines[[#This Row],[Material]]=\"\",\"\",INDEX(Catalog[MOQ/Qty Increments],MATCH(PurchaseOrderLines[[#This Row],[Material]],Catalog[Material '#],0)))","v":""},{"$f":"IFERROR(PurchaseOrderLines[[#This Row],[Qty]]/IF(PurchaseOrderLines[[#This Row],[Material]]=\"\",\"\",INDEX(Catalog[Pallet],MATCH(PurchaseOrderLines[[#This Row],[Material]],Catalog[Material '#],0))),0)","v":0}]
[null,{"$f":"IFERROR(VLOOKUP(ROW()-39,'CATALOG'!A:F,6,FALSE),\"\")","v":""},{"$f":"IF(PurchaseOrderLines[[#This Row],[Material]]=\"\",\"\",INDEX(Catalog[Material Description],MATCH(PurchaseOrderLines[[#This Row],[Material]],Catalog[Material '#],0)))","v":""},{"$f":"IF(PurchaseOrderLines[[#This Row],[Material]]=\"\",\"\",INDEX(Catalog[Enter Quantity To Add to PO],MATCH(PurchaseOrderLines[[#This Row],[Material]],Catalog[Material '#],0)))","v":""},{"$f":"IF(PurchaseOrderLines[[#This Row],[Material]]=\"\",\"\",INDEX(Catalog[UOM],MATCH(PurchaseOrderLines[[#This Row],[Material]],Catalog[Material '#],0)))","v":""},{"$f":"IF(PurchaseOrderLines[[#This Row],[Material]]=\"\",\"\",INDEX(Catalog[[Base]:[Efficient]],MATCH(PurchaseOrderLines[[#This Row],[Material]],Catalog[Material '#],0),MATCH(Pricing_Bracket,Catalog[[#Headers],[Base]:[Efficient]],0)))","v":""},{"$f":"IF(PurchaseOrderLines[[#This Row],[Material]]=\"\",0,PurchaseOrderLines[[#This Row],[Qty]]*PurchaseOrderLines[[#This Row],[Unit Price]])","v":0},{"$f":"IF(PurchaseOrderLines[[#This Row],[Material]]=\"\",\"\",INDEX(Catalog[MOQ/Qty Increments],MATCH(PurchaseOrderLines[[#This Row],[Material]],Catalog[Material '#],0)))","v":""},{"$f":"IFERROR(PurchaseOrderLines[[#This Row],[Qty]]/IF(PurchaseOrderLines[[#This Row],[Material]]=\"\",\"\",INDEX(Catalog[Pallet],MATCH(PurchaseOrderLines[[#This Row],[Material]],Catalog[Material '#],0))),0)","v":0}]
[null,{"$f":"IFERROR(VLOOKUP(ROW()-39,'CATALOG'!A:F,6,FALSE),\"\")","v":""},{"$f":"IF(PurchaseOrderLines[[#This Row],[Material]]=\"\",\"\",INDEX(Catalog[Material Description],MATCH(PurchaseOrderLines[[#This Row],[Material]],Catalog[Material '#],0)))","v":""},{"$f":"IF(PurchaseOrderLines[[#This Row],[Material]]=\"\",\"\",INDEX(Catalog[Enter Quantity To Add to PO],MATCH(PurchaseOrderLines[[#This Row],[Material]],Catalog[Material '#],0)))","v":""},{"$f":"IF(PurchaseOrderLines[[#This Row],[Material]]=\"\",\"\",INDEX(Catalog[UOM],MATCH(PurchaseOrderLines[[#This Row],[Material]],Catalog[Material '#],0)))","v":""},{"$f":"IF(PurchaseOrderLines[[#This Row],[Material]]=\"\",\"\",INDEX(Catalog[[Base]:[Efficient]],MATCH(PurchaseOrderLines[[#This Row],[Material]],Catalog[Material '#],0),MATCH(Pricing_Bracket,Catalog[[#Headers],[Base]:[Efficient]],0)))","v":""},{"$f":"IF(PurchaseOrderLines[[#This Row],[Material]]=\"\",0,PurchaseOrderLines[[#This Row],[Qty]]*PurchaseOrderLines[[#This Row],[Unit Price]])","v":0},{"$f":"IF(PurchaseOrderLines[[#This Row],[Material]]=\"\",\"\",INDEX(Catalog[MOQ/Qty Increments],MATCH(PurchaseOrderLines[[#This Row],[Material]],Catalog[Material '#],0)))","v":""},{"$f":"IFERROR(PurchaseOrderLines[[#This Row],[Qty]]/IF(PurchaseOrderLines[[#This Row],[Material]]=\"\",\"\",INDEX(Catalog[Pallet],MATCH(PurchaseOrderLines[[#This Row],[Material]],Catalog[Material '#],0))),0)","v":0}]
[null,{"$f":"IFERROR(VLOOKUP(ROW()-39,'CATALOG'!A:F,6,FALSE),\"\")","v":""},{"$f":"IF(PurchaseOrderLines[[#This Row],[Material]]=\"\",\"\",INDEX(Catalog[Material Description],MATCH(PurchaseOrderLines[[#This Row],[Material]],Catalog[Material '#],0)))","v":""},{"$f":"IF(PurchaseOrderLines[[#This Row],[Material]]=\"\",\"\",INDEX(Catalog[Enter Quantity To Add to PO],MATCH(PurchaseOrderLines[[#This Row],[Material]],Catalog[Material '#],0)))","v":""},{"$f":"IF(PurchaseOrderLines[[#This Row],[Material]]=\"\",\"\",INDEX(Catalog[UOM],MATCH(PurchaseOrderLines[[#This Row],[Material]],Catalog[Material '#],0)))","v":""},{"$f":"IF(PurchaseOrderLines[[#This Row],[Material]]=\"\",\"\",INDEX(Catalog[[Base]:[Efficient]],MATCH(PurchaseOrderLines[[#This Row],[Material]],Catalog[Material '#],0),MATCH(Pricing_Bracket,Catalog[[#Headers],[Base]:[Efficient]],0)))","v":""},{"$f":"IF(PurchaseOrderLines[[#This Row],[Material]]=\"\",0,PurchaseOrderLines[[#This Row],[Qty]]*PurchaseOrderLines[[#This Row],[Unit Price]])","v":0},{"$f":"IF(PurchaseOrderLines[[#This Row],[Material]]=\"\",\"\",INDEX(Catalog[MOQ/Qty Increments],MATCH(PurchaseOrderLines[[#This Row],[Material]],Catalog[Material '#],0)))","v":""},{"$f":"IFERROR(PurchaseOrderLines[[#This Row],[Qty]]/IF(PurchaseOrderLines[[#This Row],[Material]]=\"\",\"\",INDEX(Catalog[Pallet],MATCH(PurchaseOrderLines[[#This Row],[Material]],Catalog[Material '#],0))),0)","v":0}]
[null,{"$f":"IFERROR(VLOOKUP(ROW()-39,'CATALOG'!A:F,6,FALSE),\"\")","v":""},{"$f":"IF(PurchaseOrderLines[[#This Row],[Material]]=\"\",\"\",INDEX(Catalog[Material Description],MATCH(PurchaseOrderLines[[#This Row],[Material]],Catalog[Material '#],0)))","v":""},{"$f":"IF(PurchaseOrderLines[[#This Row],[Material]]=\"\",\"\",INDEX(Catalog[Enter Quantity To Add to PO],MATCH(PurchaseOrderLines[[#This Row],[Material]],Catalog[Material '#],0)))","v":""},{"$f":"IF(PurchaseOrderLines[[#This Row],[Material]]=\"\",\"\",INDEX(Catalog[UOM],MATCH(PurchaseOrderLines[[#This Row],[Material]],Catalog[Material '#],0)))","v":""},{"$f":"IF(PurchaseOrderLines[[#This Row],[Material]]=\"\",\"\",INDEX(Catalog[[Base]:[Efficient]],MATCH(PurchaseOrderLines[[#This Row],[Material]],Catalog[Material '#],0),MATCH(Pricing_Bracket,Catalog[[#Headers],[Base]:[Efficient]],0)))","v":""},{"$f":"IF(PurchaseOrderLines[[#This Row],[Material]]=\"\",0,PurchaseOrderLines[[#This Row],[Qty]]*PurchaseOrderLines[[#This Row],[Unit Price]])","v":0},{"$f":"IF(PurchaseOrderLines[[#This Row],[Material]]=\"\",\"\",INDEX(Catalog[MOQ/Qty Increments],MATCH(PurchaseOrderLines[[#This Row],[Material]],Catalog[Material '#],0)))","v":""},{"$f":"IFERROR(PurchaseOrderLines[[#This Row],[Qty]]/IF(PurchaseOrderLines[[#This Row],[Material]]=\"\",\"\",INDEX(Catalog[Pallet],MATCH(PurchaseOrderLines[[#This Row],[Material]],Catalog[Material '#],0))),0)","v":0}]
[null,{"$f":"IFERROR(VLOOKUP(ROW()-39,'CATALOG'!A:F,6,FALSE),\"\")","v":""},{"$f":"IF(PurchaseOrderLines[[#This Row],[Material]]=\"\",\"\",INDEX(Catalog[Material Description],MATCH(PurchaseOrderLines[[#This Row],[Material]],Catalog[Material '#],0)))","v":""},{"$f":"IF(PurchaseOrderLines[[#This Row],[Material]]=\"\",\"\",INDEX(Catalog[Enter Quantity To Add to PO],MATCH(PurchaseOrderLines[[#This Row],[Material]],Catalog[Material '#],0)))","v":""},{"$f":"IF(PurchaseOrderLines[[#This Row],[Material]]=\"\",\"\",INDEX(Catalog[UOM],MATCH(PurchaseOrderLines[[#This Row],[Material]],Catalog[Material '#],0)))","v":""},{"$f":"IF(PurchaseOrderLines[[#This Row],[Material]]=\"\",\"\",INDEX(Catalog[[Base]:[Efficient]],MATCH(PurchaseOrderLines[[#This Row],[Material]],Catalog[Material '#],0),MATCH(Pricing_Bracket,Catalog[[#Headers],[Base]:[Efficient]],0)))","v":""},{"$f":"IF(PurchaseOrderLines[[#This Row],[Material]]=\"\",0,PurchaseOrderLines[[#This Row],[Qty]]*PurchaseOrderLines[[#This Row],[Unit Price]])","v":0},{"$f":"IF(PurchaseOrderLines[[#This Row],[Material]]=\"\",\"\",INDEX(Catalog[MOQ/Qty Increments],MATCH(PurchaseOrderLines[[#This Row],[Material]],Catalog[Material '#],0)))","v":""},{"$f":"IFERROR(PurchaseOrderLines[[#This Row],[Qty]]/IF(PurchaseOrderLines[[#This Row],[Material]]=\"\",\"\",INDEX(Catalog[Pallet],MATCH(PurchaseOrderLines[[#This Row],[Material]],Catalog[Material '#],0))),0)","v":0}]
[null,{"$f":"IFERROR(VLOOKUP(ROW()-39,'CATALOG'!A:F,6,FALSE),\"\")","v":""},{"$f":"IF(PurchaseOrderLines[[#This Row],[Material]]=\"\",\"\",INDEX(Catalog[Material Description],MATCH(PurchaseOrderLines[[#This Row],[Material]],Catalog[Material '#],0)))","v":""},{"$f":"IF(PurchaseOrderLines[[#This Row],[Material]]=\"\",\"\",INDEX(Catalog[Enter Quantity To Add to PO],MATCH(PurchaseOrderLines[[#This Row],[Material]],Catalog[Material '#],0)))","v":""},{"$f":"IF(PurchaseOrderLines[[#This Row],[Material]]=\"\",\"\",INDEX(Catalog[UOM],MATCH(PurchaseOrderLines[[#This Row],[Material]],Catalog[Material '#],0)))","v":""},{"$f":"IF(PurchaseOrderLines[[#This Row],[Material]]=\"\",\"\",INDEX(Catalog[[Base]:[Efficient]],MATCH(PurchaseOrderLines[[#This Row],[Material]],Catalog[Material '#],0),MATCH(Pricing_Bracket,Catalog[[#Headers],[Base]:[Efficient]],0)))","v":""},{"$f":"IF(PurchaseOrderLines[[#This Row],[Material]]=\"\",0,PurchaseOrderLines[[#This Row],[Qty]]*PurchaseOrderLines[[#This Row],[Unit Price]])","v":0},{"$f":"IF(PurchaseOrderLines[[#This Row],[Material]]=\"\",\"\",INDEX(Catalog[MOQ/Qty Increments],MATCH(PurchaseOrderLines[[#This Row],[Material]],Catalog[Material '#],0)))","v":""},{"$f":"IFERROR(PurchaseOrderLines[[#This Row],[Qty]]/IF(PurchaseOrderLines[[#This Row],[Material]]=\"\",\"\",INDEX(Catalog[Pallet],MATCH(PurchaseOrderLines[[#This Row],[Material]],Catalog[Material '#],0))),0)","v":0}]
[null,{"$f":"IFERROR(VLOOKUP(ROW()-39,'CATALOG'!A:F,6,FALSE),\"\")","v":""},{"$f":"IF(PurchaseOrderLines[[#This Row],[Material]]=\"\",\"\",INDEX(Catalog[Material Description],MATCH(PurchaseOrderLines[[#This Row],[Material]],Catalog[Material '#],0)))","v":""},{"$f":"IF(PurchaseOrderLines[[#This Row],[Material]]=\"\",\"\",INDEX(Catalog[Enter Quantity To Add to PO],MATCH(PurchaseOrderLines[[#This Row],[Material]],Catalog[Material '#],0)))","v":""},{"$f":"IF(PurchaseOrderLines[[#This Row],[Material]]=\"\",\"\",INDEX(Catalog[UOM],MATCH(PurchaseOrderLines[[#This Row],[Material]],Catalog[Material '#],0)))","v":""},{"$f":"IF(PurchaseOrderLines[[#This Row],[Material]]=\"\",\"\",INDEX(Catalog[[Base]:[Efficient]],MATCH(PurchaseOrderLines[[#This Row],[Material]],Catalog[Material '#],0),MATCH(Pricing_Bracket,Catalog[[#Headers],[Base]:[Efficient]],0)))","v":""},{"$f":"IF(PurchaseOrderLines[[#This Row],[Material]]=\"\",0,PurchaseOrderLines[[#This Row],[Qty]]*PurchaseOrderLines[[#This Row],[Unit Price]])","v":0},{"$f":"IF(PurchaseOrderLines[[#This Row],[Material]]=\"\",\"\",INDEX(Catalog[MOQ/Qty Increments],MATCH(PurchaseOrderLines[[#This Row],[Material]],Catalog[Material '#],0)))","v":""},{"$f":"IFERROR(PurchaseOrderLines[[#This Row],[Qty]]/IF(PurchaseOrderLines[[#This Row],[Material]]=\"\",\"\",INDEX(Catalog[Pallet],MATCH(PurchaseOrderLines[[#This Row],[Material]],Catalog[Material '#],0))),0)","v":0}]

{"sheet":"CATALOG","index":1,"n_rows":898,"n_cols":17,"rows_kept":898,"cut":false,"hidden":false,"merged":[]}
["Do not edit this column","Category","Brand","Description","Enter Quantity To Add to PO","Material #","Material Description","Boxes/Packs per Case","Count/Size of Box/Pack","UOM","MOQ/Qty Increments","Pallet","Pallet Calc","Base","Efficient","14-Digit","UPC"]
[{"$f":"IF(E2=0,\"\",1)","v":""},"32oz PET","REVV®","REVV® 32oz Coffee Concentrate",null,"5000376751","REVV® 32oz Coffee Concentrate",6,"32 OZ","CS",1,100,null,87,87,"10611247400996","611247400999"]
[{"$f":"IF(E3=0,\"\",1+MAX($A$2:A2))","v":""},"32oz PET","REVV®","REVV® 32oz Vanilla Coffee Concentrate",null,"5000384301","REVV® 32oz Vanilla Coffee Concentrate",6,"32 OZ","CS",1,100,null,93,93,"10611247406073","611247406076"]
[{"$f":"IF(E4=0,\"\",1+MAX($A$2:A3))","v":""},"32oz PET","The Original Donut Shop®","The Original Donut Shop® Coffee Concentrate, Regular, 32oz",null,"5000384299","The Original Donut Shop® Coffee Concentrate, Regular, 32oz",6,"32 OZ","CS",1,100,null,99,99,"10611247406059","611247406052"]
[{"$f":"IF(E5=0,\"\",1+MAX($A$2:A4))","v":""},"Accessories","Keurig®","Keurig® K-Suite® Coffee Tray ",null,"5000384134","Keurig® K-Suite® Coffee Tray ",null,10,"CS",1,null,null,149.9,149.9,"10611247405984","611247405987"]
[{"$f":"IF(E6=0,\"\",1+MAX($A$2:A5))","v":""},"Accessories","Keurig®","Keurig K-Cup Pod Deep Cleaning Kit",null,"5000359703","Keurig K-Cup Pod Deep Cleaning Kit",0,null,"EA",1,"80",null,49.99,49.99,"10611247390433","611247390436"]
[{"$f":"IF(E7=0,\"\",1+MAX($A$2:A6))","v":""},"Accessories","Keurig®","Keurig Bean to Cup Deep Cleaning Kit",null,"5000359701","Keurig Bean to Cup Deep Cleaning Kit",0,null,"EA",1,"104",null,64.989999999999995,64.989999999999995,"10611247390419","611247390412"]
[{"$f":"IF(E8=0,\"\",1+MAX($A$2:A7))","v":""},"Accessories","Keurig®","Keurig® Rinse Pods - 6, 10-ct boxes/case",null,"5000330357","Keurig® Rinse Pods - 6, 10-ct boxes/case",6,10,"CS",1,7,null,27.54,27.54,"10611247353414","611247353417"]
[{"$f":"IF(E9=0,\"\",1+MAX($A$2:A8))","v":""},"Accessories","Keurig®","K-Cup® Wire Mesh Display Rack - 4-sleeve ",null,"5000202739","K-Cup® Wire Mesh Display Rack - 4-sleeve ",1,null,"CS",1,33,null,30,30,"10611247375829","611247375822"]
[{"$f":"IF(E10=0,\"\",1+MAX($A$2:A9))","v":""},"Accessories","Keurig®","Keurig® Water Filter Refill Cartridges, 2 count* - 12/case",null,"5000367642","Keurig® Water Filter Refill Cartridges, 2 count* - 12/case",12,2,"CS",1,240,null,60.72,60.72,"10649645050840","649645050843"]
[{"$f":"IF(E11=0,\"\",1+MAX($A$2:A10))","v":""},"Accessories","Keurig®","KIT WATER FILTER OMNIPURE KQ8A",null,"5000052788","KIT WATER FILTER OMNIPURE KQ8A",1,1,"CS",1,224,null,48.37,48.37,null,"99555055726"]
[{"$f":"IF(E12=0,\"\",1+MAX($A$2:A11))","v":""},"Accessories","Keurig®","PREMIUM MODULAR MERCHANDISER 8CT",null,"5000380139","PREMIUM MODULAR MERCHANDISER 8CT",1,null,"CS",1,8,null,99.99,60,"10611247402976","611247402979"]
[{"$f":"IF(E13=0,\"\",1+MAX($A$2:A12))","v":""},"Accessories","Keurig®","PREMIUM MODULAR MERCHANDISER 12CT",null,"5000380140","PREMIUM MODULAR MERCHANDISER 12CT",1,null,"CS",1,4,null,129.99,75,"10611247402983","611247402986"]
[{"$f":"IF(E14=0,\"\",1+MAX($A$2:A13))","v":""},"Accessories","Keurig®","Keurig® Water Filter Refill Cartridges - 6/case",null,"5000367711","Keurig® Water Filter Refill Cartridges - 6/case",6,6,"CS",1,240,null,84.24,84.24,"10649645050734","649645050737"]
[{"$f":"IF(E15=0,\"\",1+MAX($A$2:A14))","v":""},"Accessories","Keurig®","K-Cup® 36-ct. Carousel - 1 per case",null,"5000199363","K-Cup® 36-ct. Carousel - 1 per case",1,1,"EA",1,"150",null,17.37,17.37,"10611247368418","6112247368411"]
[{"$f":"IF(E16=0,\"\",1+MAX($A$2:A15))","v":""},"Accessories","Keurig®","Keurig Descaling Solutoin - 6/case",null,"5000367641","Keurig Descaling Solutoin - 6/case",6,null,"CS",1,"250",null,46.32,46.32,"10649645405794","649645405797"]
[{"$f":"IF(E17=0,\"\",1+MAX($A$2:A16))","v":""},"Accessories","REVV","REVV Cold Coffee Pitcher 6:1",null,"5000380495","REVV Cold Coffee Pitcher 6:1",4,null,"EA",1,54,null,120,120,"10611247403140","611247403143"]
[{"$f":"IF(E18=0,\"\",1+MAX($A$2:A17))","v":""},"Accessories","Green Mountain Coffee Roasters®","CUP GMCR SOLO 10OZ 1000UN",null,"5000363812","CUP GMCR SOLO 10OZ 1000UN",1000,null,"CS",1,28,null,68.989999999999995,68.989999999999995,"41594354124","611247392140"]
[{"$f":"IF(E19=0,\"\",1+MAX($A$2:A18))","v":""},"Accessories","Green Mountain Coffee Roasters®","CUP GMCR SOLO 12OZ 1000UN",null,"5000363813","CUP GMCR SOLO 12OZ 1000UN",1000,null,"CS",1,28,null,56.448,56.448,"41594354186","611247392157"]
[{"$f":"IF(E20=0,\"\",1+MAX($A$2:A19))","v":""},"Accessories","Green Mountain Coffee Roasters®","CUP GMCR SOLO 16OZ 1000UN",null,"5000363814","CUP GMCR SOLO 16OZ 1000UN",1000,null,"CS",1,14,null,68.992000000000004,68.992000000000004,"41594354193","611247392164"]
[{"$f":"IF(E21=0,\"\",1+MAX($A$2:A20))","v":""},"Accessories","Green Mountain Coffee Roasters®","CUP GMCR SOLO 20OZ 600UN",null,"5000363815","CUP GMCR SOLO 20OZ 600UN",600,null,"CS",1,36,null,46.099200000000003,46.099200000000003,"41594354209","611247392171"]
[{"$f":"IF(E22=0,\"\",1+MAX($A$2:A21))","v":""},"Accessories","Green Mountain Coffee Roasters®","CUP GMCR SOLO 24OZ 500UN",null,"5000363816","CUP GMCR SOLO 24OZ 500UN",500,null,"CS",1,28,null,47.040000000000006,47.040000000000006,"41594354223","611247392188"]
[{"$f":"IF(E23=0,\"\",1+MAX($A$2:A22))","v":""},"Accessories","Keurig®","LID DOME FOR HOT PAPER CUPS 1000UN",null,"5000363875","LID DOME FOR HOT PAPER CUPS 1000UN",1000,null,"CS",1,48,null,25.088000000000001,25.088000000000001,"41165249286","611247392218"]
[{"$f":"IF(E24=0,\"\",1+MAX($A$2:A23))","v":""},"Accessories","Green Mountain Coffee Roasters®","GMCR CUP SLEEVES 1500/CS 2022",null,"5000370359","GMCR CUP SLEEVES 1500/CS 2022",1500,1500,"CS",1,63,null,48.38,48.38,"10611247398002","611247398005"]
[{"$f":"IF(E25=0,\"\",1+MAX($A$2:A24))","v":""},"Accessories","Green Mountain Coffee Roasters®","Green Mountain Coffee Roasters - 16-18-oz. Cold Cups - 1,000/case",null,"5000054210","Green Mountain Coffee Roasters - 16-18-oz. Cold Cups - 1,000/case",1000,"16 OZ","CS",1,24,null,129.92000000000002,128.30899200000002,"10611247356545","49202630486"]
[{"$f":"IF(E26=0,\"\",1+MAX($A$2:A25))","v":""},"Accessories","Green Mountain Coffee Roasters®","Green Mountain Coffee Roasters -  24-oz. Cold Cups - 600/case",null,"5000054212","Green Mountain Coffee Roasters -  24-oz. Cold Cups - 600/case",600,"24 OZ","CS",1,30,null,103.04,101.76230400000001,"49202681891"]
[{"$f":"IF(E27=0,\"\",1+MAX($A$2:A26))","v":""},"Accessories","Green Mountain Coffee Roasters®","Green Mountain Coffee Roasters - Domed Lid for Cold Cups - 1,000/case",null,"5000054213","Green Mountain Coffee Roasters - Domed Lid for Cold Cups - 1,000/case",1000,null,"CS",1,48,null,51.52,50.881152000000007,"49202013180"]
[{"$f":"IF(E28=0,\"\",1+MAX($A$2:A27))","v":""},"Accessories","Green Mountain Coffee Roasters®","Green Mountain Coffee Roasters - Flat Lids for Cold Cups - 1,000/case",null,"5000054211","Green Mountain Coffee Roasters - Flat Lids for Cold Cups - 1,000/case",1000,null,"CS",1,30,null,36.400000000000006,35.948640000000005,"49202012114","49202012114"]
[{"$f":"IF(E29=0,\"\",1+MAX($A$2:A28))","v":""},"Accessories","Keurig®","Airpot 2-pot rack",null,"5000053435","Airpot 2-pot rack",1,null,"EA",1,32,null,57,56.29,"10099555683285","99555683288"]
[{"$f":"IF(E30=0,\"\",1+MAX($A$2:A29))","v":""},"Accessories","Keurig®","Airpot 4-pot rack ",null,"5000053433","Airpot 4-pot rack ",1,null,"EA",1,32,null,69,68.14,"10099555683254","99555683257"]
[{"$f":"IF(E31=0,\"\",1+MAX($A$2:A30))","v":""},"Accessories","Keurig®","Airpot 6-pot rack ",null,"5000053434","Airpot 6-pot rack ",1,null,"EA",1,32,null,85,83.95,"10099555683261","99555683264"]
[{"$f":"IF(E32=0,\"\",1+MAX($A$2:A31))","v":""},"Accessories","Keurig®","5-Cup Wire Rack and Lid Holder ",null,"5000053431","5-Cup Wire Rack and Lid Holder ",1,null,"EA",1,24,null,38.6,38.119999999999997,"10099555683186","99555683189"]
[{"$f":"IF(E33=0,\"\",1+MAX($A$2:A32))","v":""},"Accessories","Green Mountain Coffee Roasters®","Green Mountain Coffee Roasters 2.2 liter Airpot ",null,"5000351896","Green Mountain Coffee Roasters 2.2 liter Airpot ",1,"2.2 Liter","EA",1,110,null,42.5,41.97,"10611247386962","611247386965"]
[{"$f":"IF(E34=0,\"\",1+MAX($A$2:A33))","v":""},"Accessories","Green Mountain Coffee Roasters®","Decanter GMCR - Brown (regular) 1/2 gallon ",null,"5000053460","Decanter GMCR - Brown (regular) 1/2 gallon ",1,"1/2 Gallon","CS",1,240,null,14.99,14.99,"10099555693000","99555693003"]
[{"$f":"IF(E35=0,\"\",1+MAX($A$2:A34))","v":""},"Accessories","Green Mountain Coffee Roasters®","Decanter GMCR - Orange (decaf) 1/2 gallon ",null,"5000053461","Decanter GMCR - Orange (decaf) 1/2 gallon ",1,"1/2 Gallon","CS",1,240,null,14.99,14.99,"10099555693109","99555693102"]
[{"$f":"IF(E36=0,\"\",1+MAX($A$2:A35))","v":""},"Accessories","Green Mountain Coffee Roasters®","Decanter GMCR - Green (flavor) 1/2 gallon ",null,"5000053462","Decanter GMCR - Green (flavor) 1/2 gallon ",1,"1/2 Gallon","CS",1,240,null,14.99,14.99,"10099555693154","99555693157"]
[{"$f":"IF(E37=0,\"\",1+MAX($A$2:A36))","v":""},"Accessories","Keurig®","K-Cycle Small Bins (5-pack)",null,"5000350630","K-Cycle Small Bins (5-pack)",5,null,"CS",1,100,null,129.94999999999999,129.94999999999999,"10611247386085","10611247386085"]
[{"$f":"IF(E38=0,\"\",1+MAX($A$2:A37))","v":""},"Accessories","Keurig®","K-Cycle Large Bins (5-pack)",null,"5000350631","K-Cycle Large Bins (5-pack)",5,null,"CS",1,50,null,179.95,179.95,"10611247386092","10611247386092"]
[{"$f":"IF(E39=0,\"\",1+MAX($A$2:A38))","v":""},"AFH Misc Spares","Keurig®","K750 (K-Suite) COLD WATER TANK - LID ",null,"5000342080","K750 (K-Suite) COLD WATER TANK - LID ",0,null,"EA",1,null,null,6.72,6.72,"10611247382421","611247382424"]
[{"$f":"IF(E40=0,\"\",1+MAX($A$2:A39))","v":""},"AFH Misc Spares","Keurig®","K750 (K-Suite) DRIP TRAY ASSY ",null,"5000342079","K750 (K-Suite) DRIP TRAY ASSY ",1,null,"EA",1,null,null,13.44,13.44]
[{"$f":"IF(E41=0,\"\",1+MAX($A$2:A40))","v":""},"AFH Misc Spares","Keurig®","Flojet Water Pump",null,"5000052581","Flojet Water Pump",0,null,"CS",1,null,null,131.04,131.04,"99555409895","10099555409892"]
[{"$f":"IF(E42=0,\"\",1+MAX($A$2:A41))","v":""},"AFH Misc Spares","Keurig®","ASM- LOCK SET- COIN MECH- K3000/B3000 SPARE",null,"5000051217","ASM- LOCK SET- COIN MECH- K3000/B3000 SPARE",0,null,"EA",1,null,null,10.55,10.55,"10611247365790","649645096209"]
[{"$f":"IF(E43=0,\"\",1+MAX($A$2:A42))","v":""},"AFH Misc Spares","Keurig®","ASM- TRAY- DRIP- SPARE B130",null,"5000051219","ASM- TRAY- DRIP- SPARE B130",1,null,"EA",1,null,null,13.44,13.44]
[{"$f":"IF(E44=0,\"\",1+MAX($A$2:A43))","v":""},"AFH Misc Spares","Keurig®","K15x COLD WATER TANK",null,"5000051425","K15x COLD WATER TANK",1,null,"EA",1,null,null,39.65,39.65]
[{"$f":"IF(E45=0,\"\",1+MAX($A$2:A44))","v":""},"AFH Misc Spares","Keurig®","GARDEN HOSE CONNECTOR w/ MUR-LOCK FITTING (bags of 10)",null,"5000052589","GARDEN HOSE CONNECTOR w/ MUR-LOCK FITTING (bags of 10)",1,null,"EA",1,null,null,35.880000000000003,35.880000000000003]
[{"$f":"IF(E46=0,\"\",1+MAX($A$2:A45))","v":""},"AFH Misc Spares","Keurig®","OMNIPURE FILTER CARTRIDGE",null,"5000052636","OMNIPURE FILTER CARTRIDGE",1,null,"EA",1,null,null,16.8,16.8]
[{"$f":"IF(E47=0,\"\",1+MAX($A$2:A46))","v":""},"AFH Misc Spares","Keurig®","ASM CWT 155 PO W/O MESH",null,"5000389804","ASM CWT 155 PO W/O MESH",1,null,"EA",1,null,null,5,5,"10611247408329","611247408322"]
[{"$f":"IF(E48=0,\"\",1+MAX($A$2:A47))","v":""},"AFH Misc Spares","Keurig®","ASM GASKET DN: 1500, 2500, 3500",null,"5000384432","ASM GASKET DN: 1500, 2500, 3500",1,null,"EA",1,null,null,5,5,"10611247406158","611247406151"]
[{"$f":"IF(E49=0,\"\",1+MAX($A$2:A48))","v":""},"AFH Misc Spares","Keurig®","ASM POWER MODULE B3000",null,"5000051205","ASM POWER MODULE B3000",1,null,"EA",1,null,null,134.06,134.06]
[{"$f":"IF(E50=0,\"\",1+MAX($A$2:A49))","v":""},"AFH Misc Spares","Keurig®","ASM HWT SPARE B3000",null,"5000051206","ASM HWT SPARE B3000",1,null,"EA",1,null,null,60,60]
[{"$f":"IF(E51=0,\"\",1+MAX($A$2:A50))","v":""},"AFH Misc Spares","Keurig®","ASM MAIN HARNESS SPARE B3000",null,"5000051210","ASM MAIN HARNESS SPARE B3000",1,null,"EA",1,null,null,27.43,27.43]
[{"$f":"IF(E52=0,\"\",1+MAX($A$2:A51))","v":""},"AFH Misc Spares","Keurig®","ASM DRIP TRAY B3000",null,"5000051211","ASM DRIP TRAY B3000",1,null,"EA",1,null,null,18.48,18.48]
[{"$f":"IF(E53=0,\"\",1+MAX($A$2:A52))","v":""},"AFH Misc Spares","Keurig®","B3000SE CONTROL PANEL",null,"5000051214","B3000SE CONTROL PANEL",1,null,"EA",1,null,null,50,50]
[{"$f":"IF(E54=0,\"\",1+MAX($A$2:A53))","v":""},"AFH Misc Spares","Keurig®","ASM HOLDER PIVOT K CUP SPARE B3000",null,"5000051221","ASM HOLDER PIVOT K CUP SPARE B3000",1,null,"EA",1,null,null,8.06,8.06]
[{"$f":"IF(E55=0,\"\",1+MAX($A$2:A54))","v":""},"AFH Misc Spares","Keurig®","ASM PLATE DRIP LOWER SPARE B3000",null,"5000051229","ASM PLATE DRIP LOWER SPARE B3000",1,null,"EA",1,null,null,7.84,7.84]
[{"$f":"IF(E56=0,\"\",1+MAX($A$2:A55))","v":""},"AFH Misc Spares","Keurig®","ASM PLATE HOUSING UPPER SPARE B3000",null,"5000051230","ASM PLATE HOUSING UPPER SPARE B3000",1,null,"EA",1,null,null,8.9600000000000009,8.9600000000000009]
[{"$f":"IF(E57=0,\"\",1+MAX($A$2:A56))","v":""},"AFH Misc Spares","Keurig®","ASM INSERT DRIP TRAY SPARE B3000",null,"5000051231","ASM INSERT DRIP TRAY SPARE B3000",1,null,"EA",1,null,null,6.4,6.4]
[{"$f":"IF(E58=0,\"\",1+MAX($A$2:A57))","v":""},"AFH Misc Spares","Keurig®","ASM KCUP PUNCTURE DN SPARE B3000",null,"5000051235","ASM KCUP PUNCTURE DN SPARE B3000",1,null,"EA",1,null,null,85,85]
[{"$f":"IF(E59=0,\"\",1+MAX($A$2:A58))","v":""},"AFH Misc Spares","Keurig®","ASM KCUP HOLDER SPLIT SPARE B3000",null,"5000051238","ASM KCUP HOLDER SPLIT SPARE B3000",1,null,"EA",1,null,null,12.77,12.77]
[{"$f":"IF(E60=0,\"\",1+MAX($A$2:A59))","v":""},"AFH Misc Spares","Keurig®","ASM ENA DN SPARE B3000",null,"5000051239","ASM ENA DN SPARE B3000",1,null,"EA",1,null,null,12.88,12.88]
[{"$f":"IF(E61=0,\"\",1+MAX($A$2:A60))","v":""},"AFH Misc Spares","Keurig®","ASM DOOR FRONT DN SPARE B3000",null,"5000051241","ASM DOOR FRONT DN SPARE B3000",1,null,"EA",1,null,null,19.420000000000002,19.420000000000002]
[{"$f":"IF(E62=0,\"\",1+MAX($A$2:A61))","v":""},"AFH Misc Spares","Keurig®","ASM HWD TUBE SILICONE SN/& DN SPR B3000",null,"5000051261","ASM HWD TUBE SILICONE SN/& DN SPR B3000",1,null,"EA",1,null,null,10.51,10.51]
[{"$f":"IF(E63=0,\"\",1+MAX($A$2:A62))","v":""},"AFH Misc Spares","Keurig®","ASM PANELS EXTERIOR SPARE B3000",null,"5000051295","ASM PANELS EXTERIOR SPARE B3000",1,null,"EA",1,null,null,87.08,87.08]
[{"$f":"IF(E64=0,\"\",1+MAX($A$2:A63))","v":""},"AFH Misc Spares","Keurig®","ASM INLET WATER VALVE RPE SPARE B3000",null,"5000051296","ASM INLET WATER VALVE RPE SPARE B3000",1,null,"EA",1,null,null,30.32,30.32]
[{"$f":"IF(E65=0,\"\",1+MAX($A$2:A64))","v":""},"Bagged (Ground)","McCafé®","McCafé® Café Styles- Café de Olla R&G, 11oz",null,"5000378552","McCafé® Café Styles- Café de Olla R&G, 11oz",6,"11 OZ","CS",20,125,null,40.18,39.659999999999997,"10611247401900","611247401903"]
[{"$f":"IF(E66=0,\"\",1+MAX($A$2:A65))","v":""},"Bagged (Ground)","McCafé®","McCafé® Premium Roast, 12 oz",null,"5000358163","McCafé® Premium Roast, 12 oz",6,"12 OZ","CS",20,100,null,48.66,48,"43000060902","43000055359"]
[{"$f":"IF(E67=0,\"\",1+MAX($A$2:A66))","v":""},"Bagged (Ground)","McCafé®","McCafé® Breakfast Blend, 12 oz",null,"5000358164","McCafé® Breakfast Blend, 12 oz",6,"12 OZ","CS",20,100,null,48.66,48,"10043000055332","43000055335"]
[{"$f":"IF(E68=0,\"\",1+MAX($A$2:A67))","v":""},"Bagged (Ground)","McCafé®","McCafé® Colombian, 12 oz",null,"5000358162","McCafé® Colombian, 12 oz",6,"12 OZ","CS",20,100,null,48.66,48,"10043000063467","43000063460"]
[{"$f":"IF(E69=0,\"\",1+MAX($A$2:A68))","v":""},"Bagged (Ground)","McCafé®","McCafé® French Roast, 12 oz",null,"5000368320","McCafé® French Roast, 12 oz",6,"12 OZ","CS",20,100,null,48.66,48,"10043000055325","43000055328"]
[{"$f":"IF(E70=0,\"\",1+MAX($A$2:A69))","v":""},"Bagged (Ground)","McCafé®","McCafé® French Vanilla, 12 oz",null,"5000368321","McCafé® French Vanilla, 12 oz",6,"12 OZ","CS",20,100,null,48.66,48,"10043000055301","43000055304"]
[{"$f":"IF(E71=0,\"\",1+MAX($A$2:A70))","v":""},"Bagged (Ground)","McCafé®","McCafé® Premium Roast Decaf, 12 oz",null,"5000368323","McCafé® Premium Roast Decaf, 12 oz",6,"12 OZ","CS",20,100,null,48.66,48,"43000060919","43000055342"]
[{"$f":"IF(E72=0,\"\",1+MAX($A$2:A71))","v":""},"Bagged (Ground)","Tully's®","Tully's® Coffee Espresso Roast, 12 oz",null,"5000198848","Tully's® Coffee Espresso Roast, 12 oz",6,"12 OZ","CS",25,100,null,57.599999999999994,57.599999999999994,"10099555382058","99555382051"]
[{"$f":"IF(E73=0,\"\",1+MAX($A$2:A72))","v":""},"Bagged (Ground)","Tully's®","Tully's® Coffee French Roast, 12 oz",null,"5000373778","Tully's® Coffee French Roast, 12 oz",6,"12 OZ","CS",25,100,null,57.599999999999994,57.599999999999994,"10099555382010","99555382013"]
[{"$f":"IF(E74=0,\"\",1+MAX($A$2:A73))","v":""},"Bagged (Ground)","Tully's®","Tully's® Coffee House Blend, 12 oz",null,"5000198845","Tully's® Coffee House Blend, 12 oz",6,"12 OZ","CS",25,100,null,57.599999999999994,57.599999999999994,"10099555382027","99555382020"]
[{"$f":"IF(E75=0,\"\",1+MAX($A$2:A74))","v":""},"Bagged (Ground)","Tully's®","Tully's® Coffee Italian Roast, 12 oz",null,"5000198849","Tully's® Coffee Italian Roast, 12 oz",6,"12 OZ","CS",25,100,null,57.599999999999994,57.599999999999994,"10099555382041","99555382044"]
[{"$f":"IF(E76=0,\"\",1+MAX($A$2:A75))","v":""},"Bagged (Ground)","Green Mountain Coffee Roasters®","Green Mountain Coffee Roasters® Colombia Select, 10 oz",null,"5000198872","Green Mountain Coffee Roasters® Colombia Select, 10 oz",6,"10 OZ","CS",25,125,null,57.599999999999994,57.599999999999994,"10099555380030","99555380033"]
[{"$f":"IF(E77=0,\"\",1+MAX($A$2:A76))","v":""},"Bagged (Ground)","Green Mountain Coffee Roasters®","Green Mountain Coffee Roasters® Dark Magic® 18oz",null,"5000379130","Green Mountain Coffee Roasters® Dark Magic® 18oz",6,"18 OZ","CS",16,null,null,66.84,66,"10611247371340","611247371343"]
[{"$f":"IF(E78=0,\"\",1+MAX($A$2:A77))","v":""},"Bagged (Ground)","Green Mountain Coffee Roasters®","Green Mountain Coffee Roasters® Breakfast Blend 18oz",null,"5000391259","Green Mountain Coffee Roasters® Breakfast Blend 18oz",6,"18 OZ","CS",16,null,null,66.84,66,"10611247371203","611247371206"]
[{"$f":"IF(E79=0,\"\",1+MAX($A$2:A78))","v":""},"Bagged (Ground)","Green Mountain Coffee Roasters®","Green Mountain Coffee Roasters® Breakfast Blend 12oz",null,"5000391258","Green Mountain Coffee Roasters® Breakfast Blend 12oz",6,"12 OZ","CS",25,null,null,57.599999999999994,57.599999999999994,"10099555385202","99555385205"]
[{"$f":"IF(E80=0,\"\",1+MAX($A$2:A79))","v":""},"Bagged (Ground)","Green Mountain Coffee Roasters®","Green Mountain Coffee Roasters® Breakfast Blend Decaf 12oz",null,"5000379037","Green Mountain Coffee Roasters® Breakfast Blend Decaf 12oz",6,"12 OZ","CS",25,null,null,57.599999999999994,57.599999999999994,"10099555395225","99555395228"]
[{"$f":"IF(E81=0,\"\",1+MAX($A$2:A80))","v":""},"Bagged (Ground)","Green Mountain Coffee Roasters®","Green Mountain Coffee Roasters® Caramel Vanilla Cream 12oz",null,"5000364498","Green Mountain Coffee Roasters® Caramel Vanilla Cream 12oz",6,"12 OZ","CS",25,null,null,57.599999999999994,57.599999999999994,"10099555387008","99555387001"]
[{"$f":"IF(E82=0,\"\",1+MAX($A$2:A81))","v":""},"Bagged (Ground)","Green Mountain Coffee Roasters®","Green Mountain Coffee Roasters® Vermont Country Blend® 12oz",null,"5000345188","Green Mountain Coffee Roasters® Vermont Country Blend® 12oz",6,"12 OZ","CS",25,null,null,57.599999999999994,57.599999999999994,"10099555386025","99555386028"]
[{"$f":"IF(E83=0,\"\",1+MAX($A$2:A82))","v":""},"Bagged (Ground)","Green Mountain Coffee Roasters®","Green Mountain Coffee Roasters® French Roast 12oz",null,"5000198838","Green Mountain Coffee Roasters® French Roast 12oz",6,"12 OZ","CS",25,null,null,57.599999999999994,57.599999999999994,"10099555386940","99555386943"]
[{"$f":"IF(E84=0,\"\",1+MAX($A$2:A83))","v":""},"Bagged (Ground)","Green Mountain Coffee Roasters®","Green Mountain Coffee Roasters® Nantucket Blend® 12oz",null,"5000379128","Green Mountain Coffee Roasters® Nantucket Blend® 12oz",6,"12 OZ","CS",25,null,null,57.599999999999994,57.599999999999994,"10099555386636","99555386639"]
[{"$f":"IF(E85=0,\"\",1+MAX($A$2:A84))","v":""},"Bagged (Ground)","Green Mountain Coffee Roasters®","Green Mountain Coffee Roasters® Dark Magic® Espresso Blend 12oz",null,"5000379132","Green Mountain Coffee Roasters® Dark Magic® Espresso Blend 12oz",6,"12 OZ","CS",25,null,null,57.599999999999994,57.599999999999994,"10099555366713","99555366716"]
[{"$f":"IF(E86=0,\"\",1+MAX($A$2:A85))","v":""},"Bagged (Ground)","Newman's Own® Organics","Newman's Own® Organics Newman's French Roast 10oz",null,"5000351985","Newman's Own® Organics Newman's French Roast 10oz",6,"10 OZ","CS",25,null,null,57.599999999999994,57.599999999999994,"10099555386964","99555386967"]
[{"$f":"IF(E87=0,\"\",1+MAX($A$2:A86))","v":""},"Bagged (Ground)","Newman's Own® Organics","Newman's Own® Organics Nell's Breakfast Blend 10oz",null,"5000351983","Newman's Own® Organics Nell's Breakfast Blend 10oz",6,"10 OZ","CS",25,null,null,57.599999999999994,57.599999999999994,"10099555385370","99555385373"]
[{"$f":"IF(E88=0,\"\",1+MAX($A$2:A87))","v":""},"Bag-in-Box","REVV®","REVV® Cold Brew Concentrate, 1-Gallon Bag in Box",null,"5000351900","REVV® Cold Brew Concentrate, 1-Gallon Bag in Box",1,"Gallon","CS",1,190,null,73.989999999999995,73.989999999999995,"10611247386993","611247386996"]
[{"$f":"IF(E89=0,\"\",1+MAX($A$2:A88))","v":""},"Brewer","Keurig®","Keurig® Mini Plus™ Matte Black Single-Serve Coffee Maker ",null,"5000340544","Keurig® Mini Plus™ Matte Black Single-Serve Coffee Maker ",1,1,"CS",1,null,null,91.64,91.64,"10611247373085","611247373088"]
[{"$f":"IF(E90=0,\"\",1+MAX($A$2:A89))","v":""},"Brewer","Keurig®","KEUR BRWR K1550 COMMERCIAL",null,"5000380411","KEUR BRWR K1550 COMMERCIAL",1,1,"CS",1,null,null,219,219,"10611247403072","611247403075"]
[{"$f":"IF(E91=0,\"\",1+MAX($A$2:A90))","v":""},"Brewer","Keurig®","Keurig® K-Suite® Single-Serve Coffee Maker",null,"5000341225","Keurig® K-Suite® Single-Serve Coffee Maker",1,1,"CS",1,null,null,104.99,104.99,"10611247381394","611247381397"]
[{"$f":"IF(E92=0,\"\",1+MAX($A$2:A91))","v":""},"Brewer","Keurig®","Keurig® K-2550™ Single-Serve Commercial Coffee Maker",null,"5000380341","Keurig® K-2550™ Single-Serve Commercial Coffee Maker",1,1,"CS",1,null,null,577,577,"10611247403027","611247403020"]
[{"$f":"IF(E93=0,\"\",1+MAX($A$2:A92))","v":""},"Brewer","Keurig®","Keurig® K-2550™ Single-Serve Commercial Coffee Maker with Water Reservoir Kit",null,"5000380374","Keurig® K-2550™ Single-Serve Commercial Coffee Maker with Water Reservoir Kit",1,1,"CS",1,null,null,597,597,"10611247403065","611247403068"]
[{"$f":"IF(E94=0,\"\",1+MAX($A$2:A93))","v":""},"Brewer","Keurig®","Keurig® K-3550™ Single-Serve Commercial Coffee Maker",null,"5000380927","Keurig® K-3550™ Single-Serve Commercial Coffee Maker",1,1,"CS",1,null,null,1539,1539,"10611247403584","611247403587"]
[{"$f":"IF(E95=0,\"\",1+MAX($A$2:A94))","v":""},"Brewer","Keurig®"," Keurig® K-4500™ Single Serve Commercial Café System",null,"5000362367","Keurig® K-4500™ Single Serve Commercial Café System",1,1,"CS",1,null,null,1700,1700,"10611247391669 "," 611247391662"]
[{"$f":"IF(E96=0,\"\",1+MAX($A$2:A95))","v":""},"Brewer","Keurig®","Keurig® K-4500™ Single Serve Commercial Café System (Leasing)",null,"5000390230","KEUR BRWR K4500 LOANED PROG",1,1,"CS",1,null,null,0,0,"10611247408633","611247408636"]
[{"$f":"IF(E97=0,\"\",1+MAX($A$2:A96))","v":""},"Brewer","Keurig®","Keurig® Collection Eccellenza Touch™ Bean-to-Cup Brewing System",null,"5000348666","Keurig® Collection Eccellenza Touch™ Bean-to-Cup Brewing System",1,1,"CS",1,null,null,5600,5600,"10611247383831","611247383834"]
[{"$f":"IF(E98=0,\"\",1+MAX($A$2:A97))","v":""},"Brewer","Keurig®","Keurig® Collection Eccellenza Momentum™ Bean-to-Cup Brewing System",null,"5000348695","Keurig® Collection Eccellenza Momentum™ Bean-to-Cup Brewing System",1,1,"CS",1,null,null,8200,8200,"10611247383893","611247383896"]
[{"$f":"IF(E99=0,\"\",1+MAX($A$2:A98))","v":""},"Brewer","Keurig®","BUNN® Axiom® ",null,"5000362222","BUNN® Axiom® ",1,1,"CS",1,null,null,690,690,"-","72504081465"]
[{"$f":"IF(E100=0,\"\",1+MAX($A$2:A99))","v":""},"Can (Ground)","McCafé®","McCafé® Premium Roast Coffee, 30oz",null,"5000358238","McCafé® Premium Roast Coffee, 30oz",6,"30 OZ","CS",7,49,null,75.900000000000006,74.94,"10043000071516","43000071519"]
[{"$f":"IF(E101=0,\"\",1+MAX($A$2:A100))","v":""},"Can (Ground)","McCafé®","McCafé® Breakfast Blend Coffee, 30oz",null,"5000358235","McCafé® Breakfast Blend Coffee, 30oz",6,"30 OZ","CS",7,49,null,75.900000000000006,74.94,"10043000071523","43000071526"]
[{"$f":"IF(E102=0,\"\",1+MAX($A$2:A101))","v":""},"Can (Ground)","McCafé®","McCafé® Colombian Coffee, 30oz",null,"5000358237","McCafé® Colombian Coffee, 30oz",6,"30 OZ","CS",7,49,null,75.900000000000006,74.94,"10043000071530","43000071533"]
[{"$f":"IF(E103=0,\"\",1+MAX($A$2:A102))","v":""},"Can (Ground)","McCafé®","McCafé® French Roast Coffee, 29oz",null,"5000358240","McCafé® French Roast Coffee, 29oz",6,"29 OZ","CS",7,49,null,75.900000000000006,74.94,"10043000078317","43000078310"]
[{"$f":"IF(E104=0,\"\",1+MAX($A$2:A103))","v":""},"Can (Ground)","McCafé®","McCafé® Premium Roast Decaf, 24oz",null,"5000358243","McCafé® Premium Roast Decaf, 24oz",6,"24 OZ","CS",7,63,null,75.900000000000006,74.94,"10043000079734","43000079737"]
[{"$f":"IF(E105=0,\"\",1+MAX($A$2:A104))","v":""},"Eccellenza Spares","Keurig®","ETCH_INLET_VALVE",null,"5000364277","ETCH_INLET_VALVE",1,null,"EA",1,null,null,47.64,47.64,"10611247392918","611247392911"]
[{"$f":"IF(E106=0,\"\",1+MAX($A$2:A105))","v":""},"Eccellenza Spares","Keurig®","ETCH_EMOM_EXTENTION_SPOUT",null,"5000364278","ETCH_EMOM_EXTENTION_SPOUT",10,null,"EA",1,null,null,13.56,13.56,"10611247392925","611247392928"]
[{"$f":"IF(E107=0,\"\",1+MAX($A$2:A106))","v":""},"Eccellenza Spares","Keurig®","ETCH_EMOM_INGREDIENT_MOTOR_24V",null,"5000364279","ETCH_EMOM_INGREDIENT_MOTOR_24V",1,null,"EA",1,null,null,26.88,26.88,"10611247392932","611247392935"]
[{"$f":"IF(E108=0,\"\",1+MAX($A$2:A107))","v":""},"Eccellenza Spares","Keurig®","ETCH_EMOM_SCREW_8-18X5/16",null,"5000364280","ETCH_EMOM_SCREW_8-18X5/16",10,null,"EA",1,null,null,1.8,1.8,"10611247392949","611247392942"]
[{"$f":"IF(E109=0,\"\",1+MAX($A$2:A108))","v":""},"Eccellenza Spares","Keurig®","ETCH_EMOM_RELEASABLE_CLAMP_1/2",null,"5000364281","ETCH_EMOM_RELEASABLE_CLAMP_1/2",10,null,"EA",1,null,null,6.36,6.36,"10611247392956","611247392959"]
[{"$f":"IF(E110=0,\"\",1+MAX($A$2:A109))","v":""},"Eccellenza Spares","Keurig®","ETCH_EMOM_BARBED_DBL_CHECK_VALVE",null,"5000364282","ETCH_EMOM_BARBED_DBL_CHECK_VALVE",1,null,"EA",1,null,null,29.95,29.95,"10611247392963","611247392966"]
[{"$f":"IF(E111=0,\"\",1+MAX($A$2:A110))","v":""},"Eccellenza Spares","Keurig®","ETCH_EMOM_HEATING_ELEM_NUT_1/2-20",null,"5000364285","ETCH_EMOM_HEATING_ELEM_NUT_1/2-20",10,null,"EA",1,null,null,3,3,"10611247392970","611247392973"]
[{"$f":"IF(E112=0,\"\",1+MAX($A$2:A111))","v":""},"Eccellenza Spares","Keurig®","ETCH_VENDING_LOCK_ASM_8645",null,"5000364286","ETCH_VENDING_LOCK_ASM_8645",1,null,"EA",1,null,null,17.7,17.7,"10611247392987","611247392980"]
[{"$f":"IF(E113=0,\"\",1+MAX($A$2:A112))","v":""},"Eccellenza Spares","Keurig®","ETCH_DOOR_LOCK_8625 ",null,"5000364287","ETCH_DOOR_LOCK_8625 ",1,null,"EA",1,null,null,17.7,17.7,"10611247392994","611247392997"]
[{"$f":"IF(E114=0,\"\",1+MAX($A$2:A113))","v":""},"Eccellenza Spares","Keurig®","ETCH_EMOM_BOARD_SPACER",null,"5000364288","ETCH_EMOM_BOARD_SPACER",10,null,"EA",1,null,null,3.12,3.12,"10611247393007","611247393000"]
[{"$f":"IF(E115=0,\"\",1+MAX($A$2:A114))","v":""},"Eccellenza Spares","Keurig®","ETCH_EMOM_POWER_SUPPLY",null,"5000348748","ETCH_EMOM_POWER_SUPPLY",1,null,"EA",1,null,null,147.11000000000001,147.11000000000001,"10611247383961","611247383964"]
[{"$f":"IF(E116=0,\"\",1+MAX($A$2:A115))","v":""},"Eccellenza Spares","Keurig®","ETCH_FUSE_CARRIER_HOLDER_PACK",null,"5000348749","ETCH_FUSE_CARRIER_HOLDER_PACK",5,null,"EA",1,null,null,27.28,27.28,"10611247383978","611247383971"]
[{"$f":"IF(E117=0,\"\",1+MAX($A$2:A116))","v":""},"Eccellenza Spares","Keurig®","ETCH_EMOM_ORING_WHIPPER_BASE_PK",null,"5000348750","ETCH_EMOM_ORING_WHIPPER_BASE_PK",20,null,"EA",1,null,null,78.72,78.72,"10611247383985","611247383988"]
[{"$f":"IF(E118=0,\"\",1+MAX($A$2:A117))","v":""},"Eccellenza Spares","Keurig®","ETCH_GRINDER_CHUTE ",null,"5000364354","ETCH_GRINDER_CHUTE ",1,null,"EA",1,null,null,11.4,11.4,"10611247393014","611247393017"]
[{"$f":"IF(E119=0,\"\",1+MAX($A$2:A118))","v":""},"Eccellenza Spares","Keurig®","ETCH_EMOM_CYLINDER_BASE",null,"5000364353","ETCH_EMOM_CYLINDER_BASE",1,null,"EA",1,null,null,39.01,39.01,"10611247393021","611247393024"]
[{"$f":"IF(E120=0,\"\",1+MAX($A$2:A119))","v":""},"Eccellenza Spares","Keurig®","ETCH_EMOM_LOCKING_LATCH",null,"5000364352","ETCH_EMOM_LOCKING_LATCH",2,null,"EA",1,null,null,31.08,31.08,"10611247393038","611247393031"]
[{"$f":"IF(E121=0,\"\",1+MAX($A$2:A120))","v":""},"Eccellenza Spares","Keurig®","ETCH_EMOM_THRUST_BEARING",null,"5000364351","ETCH_EMOM_THRUST_BEARING",5,null,"EA",1,null,null,4.8,4.8,"10611247393045","611247393048"]
[{"$f":"IF(E122=0,\"\",1+MAX($A$2:A121))","v":""},"Eccellenza Spares","Keurig®","ETCH_EMOM_SLEEVE_BUSHING",null,"5000364350","ETCH_EMOM_SLEEVE_BUSHING",5,null,"EA",1,null,null,11.7,11.7,"10611247393052","611247393055"]
[{"$f":"IF(E123=0,\"\",1+MAX($A$2:A122))","v":""},"Eccellenza Spares","Keurig®","ETCH_EMOM_VALVE_HOUSING_PS",null,"5000364349","ETCH_EMOM_VALVE_HOUSING_PS",1,null,"EA",1,null,null,18.170000000000002,18.170000000000002,"10611247393069","611247393062"]
[{"$f":"IF(E124=0,\"\",1+MAX($A$2:A123))","v":""},"Eccellenza Spares","Keurig®","ETCH_EMOM_VALVE_SPRING",null,"5000364348","ETCH_EMOM_VALVE_SPRING",5,null,"EA",1,null,null,4.5,4.5,"10611247393076","611247393079"]
[{"$f":"IF(E125=0,\"\",1+MAX($A$2:A124))","v":""},"Eccellenza Spares","Keurig®","ETCH_EMOM_CYLINDER PC_ASM",null,"5000364347","ETCH_EMOM_CYLINDER PC_ASM",1,null,"EA",1,null,null,40.28,40.28,"10611247393083","611247393086"]
[{"$f":"IF(E126=0,\"\",1+MAX($A$2:A125))","v":""},"Eccellenza Spares","Keurig®","ETCH_EMOM_CARRIER_WIPER_ARM_ASM",null,"5000364217","ETCH_EMOM_CARRIER_WIPER_ARM_ASM",1,null,"EA",1,null,null,17.59,17.59,"10611247392413","611247392416"]
[{"$f":"IF(E127=0,\"\",1+MAX($A$2:A126))","v":""},"Eccellenza Spares","Keurig®","ETCH_EMOM_WIPER_ARM_ASM",null,"5000364346","ETCH_EMOM_WIPER_ARM_ASM",1,null,"EA",1,null,null,94.46,94.46,"10611247393090","611247393093"]
[{"$f":"IF(E128=0,\"\",1+MAX($A$2:A127))","v":""},"Eccellenza Spares","Keurig®","ETCH_EMOM_LATCH_SPRING",null,"5000364345","ETCH_EMOM_LATCH_SPRING",5,null,"EA",1,null,null,6.96,6.96,"10611247393106","611247393109"]
[{"$f":"IF(E129=0,\"\",1+MAX($A$2:A128))","v":""},"Eccellenza Spares","Keurig®","ETCH_EMOM_BREWER_ENGINE_ASM",null,"5000348756","ETCH_EMOM_BREWER_ENGINE_ASM",1,null,"EA",1,null,null,461.26,461.26,"10611247384043","611247384046"]
[{"$f":"IF(E130=0,\"\",1+MAX($A$2:A129))","v":""},"Eccellenza Spares","Keurig®","ETCH_EMOM_CYLINDER_BASE_SCREWS",null,"5000364344","ETCH_EMOM_CYLINDER_BASE_SCREWS",1,null,"EA",1,null,null,2.4,2.4,"10611247393113","611247393116"]
[{"$f":"IF(E131=0,\"\",1+MAX($A$2:A130))","v":""},"Eccellenza Spares","Keurig®","ETCH_EMOM_BREWER_WATER_INLET",null,"5000364343","ETCH_EMOM_BREWER_WATER_INLET",1,null,"EA",1,null,null,10.46,10.46,"10611247393120","611247393123"]
[{"$f":"IF(E132=0,\"\",1+MAX($A$2:A131))","v":""},"Eccellenza Spares","Keurig®","ETCH_TOP_COVER",null,"5000364342","ETCH_TOP_COVER",1,null,"EA",1,null,null,118.42,118.42,"10611247393137","611247393130"]
[{"$f":"IF(E133=0,\"\",1+MAX($A$2:A132))","v":""},"Eccellenza Spares","Keurig®","ETCH_POWDER_LID",null,"5000364341","ETCH_POWDER_LID",1,null,"EA",1,null,null,32.17,32.17,"10611247393144","611247393147"]
[{"$f":"IF(E134=0,\"\",1+MAX($A$2:A133))","v":""},"Eccellenza Spares","Keurig®","ETCH_POWDER_LID_PACK",null,"5000348758","ETCH_POWDER_LID_PACK",3,null,"EA",1,null,null,91.48,91.48,"10611247384067","611247384060"]
[{"$f":"IF(E135=0,\"\",1+MAX($A$2:A134))","v":""},"Eccellenza Spares","Keurig®","ETCH_DISPLAY_FASCIA",null,"5000364340","ETCH_DISPLAY_FASCIA",1,null,"EA",1,null,null,33.44,33.44,"10611247393151","611247393154"]
[{"$f":"IF(E136=0,\"\",1+MAX($A$2:A135))","v":""},"Eccellenza Spares","Keurig®","ETCH_BOTTOM_TRAY",null,"5000364339","ETCH_BOTTOM_TRAY",1,null,"EA",1,null,null,94.75,94.75,"10611247393168","611247393161"]
[{"$f":"IF(E137=0,\"\",1+MAX($A$2:A136))","v":""},"Eccellenza Spares","Keurig®","ETCH_EMOM_BRWR_OUT_ORING_0.614_PK",null,"5000348760","ETCH_EMOM_BRWR_OUT_ORING_0.614_PK",20,null,"EA",1,null,null,7.2,7.2,"10611247384081","611247384084"]
[{"$f":"IF(E138=0,\"\",1+MAX($A$2:A137))","v":""},"Eccellenza Spares","Keurig®","ETCH_WATER_TANK_COVER",null,"5000364338","ETCH_WATER_TANK_COVER",1,null,"EA",1,null,null,32.94,32.94,"10611247393175","611247393178"]
[{"$f":"IF(E139=0,\"\",1+MAX($A$2:A138))","v":""},"Eccellenza Spares","Keurig®","ETCH_HEATING_ELEMENT",null,"5000364337","ETCH_HEATING_ELEMENT",1,null,"EA",1,null,null,16.600000000000001,16.600000000000001,"10611247393182","611247393185"]
[{"$f":"IF(E140=0,\"\",1+MAX($A$2:A139))","v":""},"Eccellenza Spares","Keurig®","ETCH_WASTE_CONTAINER_ASM",null,"5000348733","ETCH_WASTE_CONTAINER_ASM",1,null,"EA",1,null,null,28.88,28.88,"10611247384104","611247384107"]
[{"$f":"IF(E141=0,\"\",1+MAX($A$2:A140))","v":""},"Eccellenza Spares","Keurig®","ETCH_EMOM_LEVEL_PROBE_PACK",null,"5000348734","ETCH_EMOM_LEVEL_PROBE_PACK",10,null,"EA",1,null,null,8.7100000000000009,8.7100000000000009,"10611247384111","611247384114"]
[{"$f":"IF(E142=0,\"\",1+MAX($A$2:A141))","v":""},"Eccellenza Spares","Keurig®","ETCH_SPOUTS",null,"5000364336","ETCH_SPOUTS",1,null,"EA",1,null,null,11.93,11.93,"10611247393199","611247393192"]
[{"$f":"IF(E143=0,\"\",1+MAX($A$2:A142))","v":""},"Eccellenza Spares","Keurig®","ETCH_WATER_SYSTEM_COMPLETE_ASM",null,"5000364335","ETCH_WATER_SYSTEM_COMPLETE_ASM",1,null,"EA",1,null,null,358.8,358.8,"10611247393205","611247393208"]
[{"$f":"IF(E144=0,\"\",1+MAX($A$2:A143))","v":""},"Eccellenza Spares","Keurig®","ETCH_EMOM_WHIPPER_ASM",null,"5000364334","ETCH_EMOM_WHIPPER_ASM",1,null,"EA",1,null,null,43.09,43.09,"10611247393212","611247393215"]
[{"$f":"IF(E145=0,\"\",1+MAX($A$2:A144))","v":""},"Eccellenza Spares","Keurig®","ETCH_POWDER_HOPPER_ASM",null,"5000364333","ETCH_POWDER_HOPPER_ASM",1,null,"EA",1,null,null,29.94,29.94,"10611247393229","611247393222"]
[{"$f":"IF(E146=0,\"\",1+MAX($A$2:A145))","v":""},"Eccellenza Spares","Keurig®","ETCH_HMI_10,5",null,"5000348738","ETCH_HMI_10,5",1,null,"EA",1,null,null,790.93,790.93,"10611247384159","611247 384 152"]
[{"$f":"IF(E147=0,\"\",1+MAX($A$2:A146))","v":""},"Eccellenza Spares","Keurig®","ETCH_EMOM_POWDER_DRWR",null,"5000364332","ETCH_EMOM_POWDER_DRWR",1,null,"EA",1,null,null,9.9700000000000006,9.9700000000000006,"10611247393236","611247393239"]
[{"$f":"IF(E148=0,\"\",1+MAX($A$2:A147))","v":""},"Eccellenza Spares","Keurig®","ETCH_HOPPER_TO_GRINDER_SEAL",null,"5000364331","ETCH_HOPPER_TO_GRINDER_SEAL",1,null,"EA",1,null,null,7.04,7.04,"10611247393243","611247393246"]
[{"$f":"IF(E149=0,\"\",1+MAX($A$2:A148))","v":""},"Eccellenza Spares","Keurig®","ETCH_WASTE_CHUTE_ASM",null,"5000364218","ETCH_WASTE_CHUTE_ASM",1,null,"EA",1,null,null,44.89,44.89,"10611247392420","611247392423"]
[{"$f":"IF(E150=0,\"\",1+MAX($A$2:A149))","v":""},"Eccellenza Spares","Keurig®","ETCH_EMOM_OUTLET_VALVE_8MM",null,"5000364330","ETCH_EMOM_OUTLET_VALVE_8MM",1,null,"EA",1,null,null,25.68,25.68,"10611247393250","611247393253"]
[{"$f":"IF(E151=0,\"\",1+MAX($A$2:A150))","v":""},"Eccellenza Spares","Keurig®","EMOM_BLOWER",null,"5000348740","EMOM_BLOWER",1,null,"EA",1,null,null,22.79,22.79,"10611247384173","611247 384 176"]
[{"$f":"IF(E152=0,\"\",1+MAX($A$2:A151))","v":""},"Eccellenza Spares","Keurig®","ETCH_EMOM_WELDED_FILTER",null,"5000364250","ETCH_EMOM_WELDED_FILTER",1,null,"EA",1,null,null,30.38,30.38,"10611247393267","611247393260"]
[{"$f":"IF(E153=0,\"\",1+MAX($A$2:A152))","v":""},"Eccellenza Spares","Keurig®","ETCH_EMOM_WASTE_CONT_LEV_SENSOR",null,"5000364329","ETCH_EMOM_WASTE_CONT_LEV_SENSOR",1,null,"EA",1,null,null,10.28,10.28,"10611247393274","611247393277"]
[{"$f":"IF(E154=0,\"\",1+MAX($A$2:A153))","v":""},"Eccellenza Spares","Keurig®","ETCH_CONTROL_BOARD",null,"5000348761","ETCH_CONTROL_BOARD",1,null,"EA",1,null,null,411.72,411.72,"10611247384203","611247 384 206"]
[{"$f":"IF(E155=0,\"\",1+MAX($A$2:A154))","v":""},"Eccellenza Spares","Keurig®","ETCH_EMOM_EXHAUST_FAN",null,"5000364328","ETCH_EMOM_EXHAUST_FAN",1,null,"EA",1,null,null,12.14,12.14,"10611247393281","611247393284"]
[{"$f":"IF(E156=0,\"\",1+MAX($A$2:A155))","v":""},"Eccellenza Spares","Keurig®","ETCH_EMOM_IMPELLER_PACK",null,"5000348764","ETCH_EMOM_IMPELLER_PACK",10,null,"EA",1,null,null,18.71,18.71,"10611247384234","611247 384 237"]
[{"$f":"IF(E157=0,\"\",1+MAX($A$2:A156))","v":""},"Eccellenza Spares","Keurig®","ETCH_EMOM_MIXING_CHAMBER ",null,"5000364326","ETCH_EMOM_MIXING_CHAMBER ",1,null,"EA",1,null,null,7.79,7.79,"10611247393304","611247393307"]
[{"$f":"IF(E158=0,\"\",1+MAX($A$2:A157))","v":""},"Eccellenza Spares","Keurig®","ETCH_EMOM_LOCK_RING_4MM_ASM",null,"5000364325","ETCH_EMOM_LOCK_RING_4MM_ASM",1,null,"EA",1,null,null,6.2,6.2,"10611247393311","611247393314"]
[{"$f":"IF(E159=0,\"\",1+MAX($A$2:A158))","v":""},"Eccellenza Spares","Keurig®","ETCH_EMOM_WHIPPER_GASKET_PACK",null,"5000348765","ETCH_EMOM_WHIPPER_GASKET_PACK",20,null,"EA",1,null,null,96.47,96.47,"10611247384241","611247 384 244"]
[{"$f":"IF(E160=0,\"\",1+MAX($A$2:A159))","v":""},"Eccellenza Spares","Keurig®","ETCH_EMOM_WHIPPER_MOTOR_4MM",null,"5000364264","ETCH_EMOM_WHIPPER_MOTOR_4MM",1,null,"EA",1,null,null,22.98,22.98,"10611247393328","611247393321"]
[{"$f":"IF(E161=0,\"\",1+MAX($A$2:A160))","v":""},"Eccellenza Spares","Keurig®","ETCH_SERVICE_CORD_GFCI",null,"5000348766","ETCH_SERVICE_CORD_GFCI",1,null,"EA",1,null,null,27.06,27.06,"10611247384258","611247 384 251"]
[{"$f":"IF(E162=0,\"\",1+MAX($A$2:A161))","v":""},"Eccellenza Spares","Keurig®","ETCH_POWDER_TUBING_BAND",null,"5000364324","ETCH_POWDER_TUBING_BAND",1,null,"EA",1,null,null,0.34,0.34,"10611247393335","611247393338"]
[{"$f":"IF(E163=0,\"\",1+MAX($A$2:A162))","v":""},"Eccellenza Spares","Keurig®","ETCH_HIGHTEMP_TAPE_1IN (FULL ROLL 108\")",null,"5000364215","ETCH_HIGHTEMP_TAPE_1IN (FULL ROLL 108\")",1,null,"EA",1,null,null,51.84,51.84,"10611247393342","611247393345"]
[{"$f":"IF(E164=0,\"\",1+MAX($A$2:A163))","v":""},"Eccellenza Spares","Keurig®","ETCH_EMOM_DIAPH_OUT_VALVE_PACK",null,"5000348767","ETCH_EMOM_DIAPH_OUT_VALVE_PACK",20,null,"EA",1,null,null,105.08,105.08,"10611247384265","611247 384 268"]
[{"$f":"IF(E165=0,\"\",1+MAX($A$2:A164))","v":""},"Eccellenza Spares","Keurig®","ETCH_EMOM_CLIP_OUTLET_VALVE_PACK",null,"5000348768","ETCH_EMOM_CLIP_OUTLET_VALVE_PACK",20,null,"EA",1,null,null,8.2100000000000009,8.2100000000000009,"10611247384272","611247 384 275"]
[{"$f":"IF(E166=0,\"\",1+MAX($A$2:A165))","v":""},"Eccellenza Spares","Keurig®","ETCH_EMOM_ORING_OUTLET_VALVE_PACK",null,"5000348769","ETCH_EMOM_ORING_OUTLET_VALVE_PACK",20,null,"EA",1,null,null,24.62,24.62,"10611247384289","611247 384 282"]
[{"$f":"IF(E167=0,\"\",1+MAX($A$2:A166))","v":""},"Eccellenza Spares","Keurig®","ETCH_EMOM_BREWER_YRLY_MNTNC_KIT",null,"5000348770","ETCH_EMOM_BREWER_YRLY_MNTNC_KIT",1,null,"EA",1,null,null,105.59,105.59,"10611247384296","611247 384 299"]
[{"$f":"IF(E168=0,\"\",1+MAX($A$2:A167))","v":""},"Eccellenza Spares","Keurig®","ETCH_POWDER_LINER_HOPPER",null,"5000364323","ETCH_POWDER_LINER_HOPPER",1,null,"EA",1,null,null,16.75,16.75,"10611247393359","611247393352"]
[{"$f":"IF(E169=0,\"\",1+MAX($A$2:A168))","v":""},"Eccellenza Spares","Keurig®","ETCH_EMOM_POWDER_HOPPER_CAP",null,"5000364321","ETCH_EMOM_POWDER_HOPPER_CAP",1,null,"EA",1,null,null,6.71,6.71,"10611247393373","611247393376"]
[{"$f":"IF(E170=0,\"\",1+MAX($A$2:A169))","v":""},"Eccellenza Spares","Keurig®","ETCH_VENDING_UNIT",null,"5000364320","ETCH_VENDING_UNIT",1,null,"EA",1,null,null,313.02,313.02,"10611247393380","611247393383"]
[{"$f":"IF(E171=0,\"\",1+MAX($A$2:A170))","v":""},"Eccellenza Spares","Keurig®","ETCH_COFFEE_LINER",null,"5000364319","ETCH_COFFEE_LINER",1,null,"EA",1,null,null,2.2599999999999998,2.2599999999999998,"10611247393397","611247393390"]
[{"$f":"IF(E172=0,\"\",1+MAX($A$2:A171))","v":""},"Eccellenza Spares","Keurig®","ETCH_VENDING_WIRING_HRNSS",null,"5000364322","ETCH_VENDING_WIRING_HRNSS",1,null,"EA",1,null,null,21.73,21.73,"10611247393366","611247393369"]
[{"$f":"IF(E173=0,\"\",1+MAX($A$2:A172))","v":""},"Eccellenza Spares","Keurig®","ETCH_ANTI-SKID_LEVELLER_ASM_OF_4",null,"5000364318","ETCH_ANTI-SKID_LEVELLER_ASM_OF_4",4,null,"EA",1,null,null,1.78,1.78,"10611247393403","611247393406"]
[{"$f":"IF(E174=0,\"\",1+MAX($A$2:A173))","v":""},"Eccellenza Spares","Keurig®","ETCH_DISPENSER_LOCK_ASM",null,"5000364219","ETCH_DISPENSER_LOCK_ASM",1,null,"EA",1,null,null,72.13,72.13,"10611247392437","611247392430"]
[{"$f":"IF(E175=0,\"\",1+MAX($A$2:A174))","v":""},"Eccellenza Spares","Keurig®","ETCH_EMOM_DRAIN_VALVE",null,"5000364317","ETCH_EMOM_DRAIN_VALVE",1,null,"EA",1,null,null,12.18,12.18,"10611247393410","611247393413"]
[{"$f":"IF(E176=0,\"\",1+MAX($A$2:A175))","v":""},"Eccellenza Spares","Keurig®","ETCH_GRINDER_BELT_GEAR_ASM",null,"5000364220","ETCH_GRINDER_BELT_GEAR_ASM",1,null,"EA",1,null,null,32.29,32.29,"10611247392444","611247392447"]
[{"$f":"IF(E177=0,\"\",1+MAX($A$2:A176))","v":""},"Eccellenza Spares","Keurig®","ETCH_BLOWER",null,"5000348806","ETCH_BLOWER",1,null,"EA",1,null,null,56.35,56.35,"10611247384593","611247 384 596"]
[{"$f":"IF(E178=0,\"\",1+MAX($A$2:A177))","v":""},"Eccellenza Spares","Keurig®","ETCH_HARNESS_DOOR_LED",null,"5000364316","ETCH_HARNESS_DOOR_LED",1,null,"EA",1,null,null,13.67,13.67,"10611247393427","611247393420"]
[{"$f":"IF(E179=0,\"\",1+MAX($A$2:A178))","v":""},"Eccellenza Spares","Keurig®","ETCH_HOPPER_EXTSN_ASM",null,"5000364221","ETCH_HOPPER_EXTSN_ASM",1,null,"EA",1,null,null,46.72,46.72,"10611247392451","611247392454"]
[{"$f":"IF(E180=0,\"\",1+MAX($A$2:A179))","v":""},"Eccellenza Spares","Keurig®","ETCH_LOCK_ASM_HOPPER_EXT",null,"5000364222","ETCH_LOCK_ASM_HOPPER_EXT",1,null,"EA",1,null,null,17.649999999999999,17.649999999999999,"10611247392468","611247392461"]
[{"$f":"IF(E181=0,\"\",1+MAX($A$2:A180))","v":""},"Eccellenza Spares","Keurig®","EMOM_BEAN_CHUTE",null,"5000364315","EMOM_BEAN_CHUTE",1,null,"EA",1,null,null,5.38,5.38,"10611247393434","611247393437"]
[{"$f":"IF(E182=0,\"\",1+MAX($A$2:A181))","v":""},"Eccellenza Spares","Keurig®","EMOM_POWDER_HOPPER_ASM",null,"5000348774","EMOM_POWDER_HOPPER_ASM",1,null,"EA",1,null,null,35.590000000000003,35.590000000000003,"10611247384333","611247 384 336"]
[{"$f":"IF(E183=0,\"\",1+MAX($A$2:A182))","v":""},"Eccellenza Spares","Keurig®","EMOM_COFFEE_OUTLET_VALVE_14MM",null,"5000348775","EMOM_COFFEE_OUTLET_VALVE_14MM",1,null,"EA",1,null,null,35.799999999999997,35.799999999999997,"10611247384340","611247 384 343"]
[{"$f":"IF(E184=0,\"\",1+MAX($A$2:A183))","v":""},"Eccellenza Spares","Keurig®","ETCH_AUGER_ASM",null,"5000364223","ETCH_AUGER_ASM",1,null,"EA",1,null,null,22.97,22.97,"10611247392475","611247392478"]
[{"$f":"IF(E185=0,\"\",1+MAX($A$2:A184))","v":""},"Eccellenza Spares","Keurig®","EMOM_HEATING_ELEMENT_1700W_120V",null,"5000348777","EMOM_HEATING_ELEMENT_1700W_120V",1,null,"EA",1,null,null,23.23,23.23,"10611247384364","611247 384 367"]
[{"$f":"IF(E186=0,\"\",1+MAX($A$2:A185))","v":""},"Eccellenza Spares","Keurig®","EMOM_BREWER_WATER_INLET",null,"5000364314","EMOM_BREWER_WATER_INLET",1,null,"EA",1,null,null,5.94,5.94,"10611247393441","611247393444"]
[{"$f":"IF(E187=0,\"\",1+MAX($A$2:A186))","v":""},"Eccellenza Spares","Keurig®","EMOM_TOP_COVER",null,"5000364313","EMOM_TOP_COVER",1,null,"EA",1,null,null,177.78,177.78,"10611247393458","611247393451"]
[{"$f":"IF(E188=0,\"\",1+MAX($A$2:A187))","v":""},"Eccellenza Spares","Keurig®","EMOM_RESIDUE_CONTAINER",null,"5000364312","EMOM_RESIDUE_CONTAINER",1,null,"EA",1,null,null,7.64,7.64,"10611247393465","611247393468"]
[{"$f":"IF(E189=0,\"\",1+MAX($A$2:A188))","v":""},"Eccellenza Spares","Keurig®","EMOM_RESIDUE_CONTAINER_CHUTE",null,"5000364311","EMOM_RESIDUE_CONTAINER_CHUTE",1,null,"EA",1,null,null,6.66,6.66,"10611247393472","611247393475"]
[{"$f":"IF(E190=0,\"\",1+MAX($A$2:A189))","v":""},"Eccellenza Spares","Keurig®","EMOM_CASHLESS_PLATE",null,"5000364310","EMOM_CASHLESS_PLATE",1,null,"EA",1,null,null,52.18,52.18,"10611247393489","611247393482"]
[{"$f":"IF(E191=0,\"\",1+MAX($A$2:A190))","v":""},"Eccellenza Spares","Keurig®","EMOM_CASHLESS_PLATE_NAYAX",null,"5000364309","EMOM_CASHLESS_PLATE_NAYAX",1,null,"EA",1,null,null,52.18,52.18,"10611247393496","611247393499"]
[{"$f":"IF(E192=0,\"\",1+MAX($A$2:A191))","v":""},"Eccellenza Spares","Keurig®","EMOM_CASHLESS_PLATE_COINCO",null,"5000364308","EMOM_CASHLESS_PLATE_COINCO",1,null,"EA",1,null,null,52.18,52.18,"10611247393502","611247393505"]
[{"$f":"IF(E193=0,\"\",1+MAX($A$2:A192))","v":""},"Eccellenza Spares","Keurig®","EMOM_CASHLESS_PLATE_USTECH",null,"5000364307","EMOM_CASHLESS_PLATE_USTECH",1,null,"EA",1,null,null,52.18,52.18,"10611247393519","611247393512"]
[{"$f":"IF(E194=0,\"\",1+MAX($A$2:A193))","v":""},"Eccellenza Spares","Keurig®","EMOM_HOPPER_TO_GRINDER_SEAL",null,"5000364306","EMOM_HOPPER_TO_GRINDER_SEAL",5,null,"EA",1,null,null,29.7,29.7,"10611247393526","611247393529"]
[{"$f":"IF(E195=0,\"\",1+MAX($A$2:A194))","v":""},"Eccellenza Spares","Keurig®","EMOM_SPOUT_SUPPORT",null,"5000364305","EMOM_SPOUT_SUPPORT",1,null,"EA",1,null,null,8.99,8.99,"10611247393533","611247393536"]
[{"$f":"IF(E196=0,\"\",1+MAX($A$2:A195))","v":""},"Eccellenza Spares","Keurig®","EMOM_CUP_RISER",null,"5000348782","EMOM_CUP_RISER",1,null,"EA",1,null,null,9.35,9.35,"10611247384401","611247 384 404"]
[{"$f":"IF(E197=0,\"\",1+MAX($A$2:A196))","v":""},"Eccellenza Spares","Keurig®","ETCH_POWDER_DIVIDER_WALL",null,"5000364245","ETCH_POWDER_DIVIDER_WALL",1,null,"EA",1,null,null,15.48,15.48,"10611247393540","611247393543"]
[{"$f":"IF(E198=0,\"\",1+MAX($A$2:A197))","v":""},"Eccellenza Spares","Keurig®","ETCH_EMOM_RESERV_RESTRICTOR",null,"5000364304","ETCH_EMOM_RESERV_RESTRICTOR",5,null,"EA",1,null,null,10.74,10.74,"10611247393557","611247393550"]
[{"$f":"IF(E199=0,\"\",1+MAX($A$2:A198))","v":""},"Eccellenza Spares","Keurig®","ETCH_SPOUT,_POWDER_DISPENSER",null,"5000364303","ETCH_SPOUT,_POWDER_DISPENSER",1,null,"EA",1,null,null,1.55,1.55,"10611247393564","611247393567"]
[{"$f":"IF(E200=0,\"\",1+MAX($A$2:A199))","v":""},"Eccellenza Spares","Keurig®","ETCH_EMOM_STEAM_TRAP",null,"5000364302","ETCH_EMOM_STEAM_TRAP",1,null,"EA",1,null,null,1.68,1.68,"10611247393571","611247393574"]
[{"$f":"IF(E201=0,\"\",1+MAX($A$2:A200))","v":""},"Eccellenza Spares","Keurig®","EMOM_CUP_RISER_PIVOT",null,"5000348789","EMOM_CUP_RISER_PIVOT",1,null,"EA",1,null,null,3.44,3.44,"10611247384425","611247 384 428"]
[{"$f":"IF(E202=0,\"\",1+MAX($A$2:A201))","v":""},"Eccellenza Spares","Keurig®","EMOM_LEVELLER_FOOT",null,"5000364301","EMOM_LEVELLER_FOOT",4,null,"EA",1,null,null,36.14,36.14,"10611247393588","611247393581"]
[{"$f":"IF(E203=0,\"\",1+MAX($A$2:A202))","v":""},"Eccellenza Spares","Keurig®","ETCH_HIGH_VOLUME_ASM",null,"5000364224","ETCH_HIGH_VOLUME_ASM",1,null,"EA",1,null,null,34.08,34.08,"10611247392482","611247392485"]
[{"$f":"IF(E204=0,\"\",1+MAX($A$2:A203))","v":""},"Eccellenza Spares","Keurig®","EMOM_RIGHT_MALE_HINGE_BLK",null,"5000364300","EMOM_RIGHT_MALE_HINGE_BLK",2,null,"EA",1,null,null,17.739999999999998,17.739999999999998,"10611247393595","611247393598"]
[{"$f":"IF(E205=0,\"\",1+MAX($A$2:A204))","v":""},"Eccellenza Spares","Keurig®","EMOM_HMI_18,5",null,"5000364299","EMOM_HMI_18,5",1,null,"EA",1,null,null,1056.31,1056.31,"10611247393601","611247393604"]
[{"$f":"IF(E206=0,\"\",1+MAX($A$2:A205))","v":""},"Eccellenza Spares","Keurig®","EMOM_BEAN_HOPPER_LOCK_CAM",null,"5000364298","EMOM_BEAN_HOPPER_LOCK_CAM",1,null,"EA",1,null,null,3.08,3.08,"10611247393618","611247393611"]
[{"$f":"IF(E207=0,\"\",1+MAX($A$2:A206))","v":""},"Eccellenza Spares","Keurig®","ETCH_EMOM_TELEMETRY_MODEM",null,"5000348791","ETCH_EMOM_TELEMETRY_MODEM",1,null,"EA",1,null,null,285.16000000000003,285.16000000000003,"10611247384449","611247 384 442"]
[{"$f":"IF(E208=0,\"\",1+MAX($A$2:A207))","v":""},"Eccellenza Spares","Keurig®","EMOM_INLET_VALVE",null,"5000348792","EMOM_INLET_VALVE",1,null,"EA",1,null,null,17.7,17.7,"10611247384456","611247 384 459"]
[{"$f":"IF(E209=0,\"\",1+MAX($A$2:A208))","v":""},"Eccellenza Spares","Keurig®","EMOM_DOOR_LOCK_ASM",null,"5000364225","EMOM_DOOR_LOCK_ASM",1,null,"EA",1,null,null,30,30,"10611247392499","611247392492"]
[{"$f":"IF(E210=0,\"\",1+MAX($A$2:A209))","v":""},"Eccellenza Spares","Keurig®","EMOM_DOOR_LOCK_3POSITION",null,"5000348797","EMOM_DOOR_LOCK_3POSITION",1,null,"EA",1,null,null,19.45,19.45,"10611247384463","611247 384 466"]
[{"$f":"IF(E211=0,\"\",1+MAX($A$2:A210))","v":""},"Eccellenza Spares","Keurig®","EMOM_POWER_CORD_STRAIN_RELIEF",null,"5000364296","EMOM_POWER_CORD_STRAIN_RELIEF",1,null,"EA",1,null,null,2.17,2.17,"10611247393632","611247393635"]
[{"$f":"IF(E212=0,\"\",1+MAX($A$2:A211))","v":""},"Eccellenza Spares","Keurig®","ETCH_EMOM_BREWER_MOTOR_ASM",null,"5000364295","ETCH_EMOM_BREWER_MOTOR_ASM",1,null,"EA",1,null,null,176.09,176.09,"10611247393649","611247393642"]
[{"$f":"IF(E213=0,\"\",1+MAX($A$2:A212))","v":""},"Eccellenza Spares","Keurig®","EMOM_LOCK_2POSITION",null,"5000364294","EMOM_LOCK_2POSITION",1,null,"EA",1,null,null,18.43,18.43,"10611247393656","611247393659"]
[{"$f":"IF(E214=0,\"\",1+MAX($A$2:A213))","v":""},"Eccellenza Spares","Keurig®","ETCH_WATER_TANK_BODY_SERV_ASM",null,"5000364293","ETCH_WATER_TANK_BODY_SERV_ASM",1,null,"EA",1,null,null,124.84,124.84,"10611247393663","611247393666"]
[{"$f":"IF(E215=0,\"\",1+MAX($A$2:A214))","v":""},"Eccellenza Spares","Keurig®","ETCH_EMOM_MODEM_ANTENA",null,"5000348751","ETCH_EMOM_MODEM_ANTENA",1,null,"EA",1,null,null,20.170000000000002,20.170000000000002,"10611247383992","611247 383 995"]
[{"$f":"IF(E216=0,\"\",1+MAX($A$2:A215))","v":""},"Eccellenza Spares","Keurig®","EMOM_ELECTRONIC_CNTRL_BOARD",null,"5000348801","EMOM_ELECTRONIC_CNTRL_BOARD",1,null,"EA",1,null,null,405.88,405.88,"10611247384517","611247 384 510"]
[{"$f":"IF(E217=0,\"\",1+MAX($A$2:A216))","v":""},"Eccellenza Spares","Keurig®","EMOM_MAIN_POWER_SWITCH",null,"5000348802","EMOM_MAIN_POWER_SWITCH",1,null,"EA",1,null,null,10.199999999999999,10.199999999999999,"10611247384524","611247 384 527"]
[{"$f":"IF(E218=0,\"\",1+MAX($A$2:A217))","v":""},"Eccellenza Spares","Keurig®","ETCH_RETROFIT_TELEMETRY_ASM",null,"5000364292","ETCH_RETROFIT_TELEMETRY_ASM",1,null,"EA",1,null,null,330,330,"10611247393670","611247393673"]
[{"$f":"IF(E219=0,\"\",1+MAX($A$2:A218))","v":""},"Eccellenza Spares","Keurig®","ETCH_OVERFLOW_ASM",null,"5000364260","ETCH_OVERFLOW_ASM",1,null,"EA",1,null,null,3.72,3.72,"10611247392819","611247392812"]
[{"$f":"IF(E220=0,\"\",1+MAX($A$2:A219))","v":""},"Eccellenza Spares","Keurig®","EMOM_WATER_TANK_ASM",null,"5000364273","EMOM_WATER_TANK_ASM",1,null,"EA",1,null,null,414.89,414.89,"10611247392895","611247392898"]
[{"$f":"IF(E221=0,\"\",1+MAX($A$2:A220))","v":""},"Eccellenza Spares","Keurig®","EMOM_WHIPPER_ASM",null,"5000364226","EMOM_WHIPPER_ASM",1,null,"EA",1,null,null,118.99,118.99,"10611247392505","611247392508"]
[{"$f":"IF(E222=0,\"\",1+MAX($A$2:A221))","v":""},"Eccellenza Spares","Keurig®","EMOM_COFFEE_DISPENSER_ASM",null,"5000364242","EMOM_COFFEE_DISPENSER_ASM",1,null,"EA",1,null,null,257.23,257.23,"10611247392666","611247392669"]
[{"$f":"IF(E223=0,\"\",1+MAX($A$2:A222))","v":""},"Eccellenza Spares","Keurig®","EMOM_POWDER_LID_ASM",null,"5000364261","EMOM_POWDER_LID_ASM",1,null,"EA",1,null,null,75.72,75.72,"10611247392826","611247392829"]
[{"$f":"IF(E224=0,\"\",1+MAX($A$2:A223))","v":""},"Eccellenza Spares","Keurig®","EMOM_SUB_DOOR_ASM_NO/HMI",null,"5000364291","EMOM_SUB_DOOR_ASM_NO/HMI",1,null,"EA",1,null,null,453.65,453.65,"10611247393687","611247393680"]
[{"$f":"IF(E225=0,\"\",1+MAX($A$2:A224))","v":""},"Eccellenza Spares","Keurig®","EMOM_GRINDER_ASM",null,"5000364255","EMOM_GRINDER_ASM",1,null,"EA",1,null,null,479.4,479.4,"10611247392765","611247392768"]
[{"$f":"IF(E226=0,\"\",1+MAX($A$2:A225))","v":""},"Eccellenza Spares","Keurig®","EMOM_POWER_INPUT_ASM_US",null,"5000364263","EMOM_POWER_INPUT_ASM_US",1,null,"EA",1,null,null,189.6,189.6,"10611247392840","611247392843"]
[{"$f":"IF(E227=0,\"\",1+MAX($A$2:A226))","v":""},"Eccellenza Spares","Keurig®","ETCH_EMOM_RELAY_TCO_ASM",null,"5000364290","ETCH_EMOM_RELAY_TCO_ASM",1,null,"EA",1,null,null,34.31,34.31,"10611247393694","611247393697"]
[{"$f":"IF(E228=0,\"\",1+MAX($A$2:A227))","v":""},"Eccellenza Spares","Keurig®","ETCH_WHIPPER_ASM",null,"5000364227","ETCH_WHIPPER_ASM",1,null,"EA",1,null,null,100.2,100.2,"10611247392512","611247392515"]
[{"$f":"IF(E229=0,\"\",1+MAX($A$2:A228))","v":""},"Eccellenza Spares","Keurig®","ETCH_DOOR_ASM",null,"5000364252","ETCH_DOOR_ASM",1,null,"EA",1,null,null,192.72,192.72,"10611247392734","611247392737"]
[{"$f":"IF(E230=0,\"\",1+MAX($A$2:A229))","v":""},"Eccellenza Spares","Keurig®","ETCH_COFFEE_DISPENSER_ASM",null,"5000364243","ETCH_COFFEE_DISPENSER_ASM",1,null,"EA",1,null,null,135.88,135.88,"10611247392673","611247392676"]
[{"$f":"IF(E231=0,\"\",1+MAX($A$2:A230))","v":""},"Eccellenza Spares","Keurig®","EMOM_VALVE_PROTECTOR_BLK",null,"5000364289","EMOM_VALVE_PROTECTOR_BLK",1,null,"EA",1,null,null,36.020000000000003,36.020000000000003,"10611247393700","611247393703"]
[{"$f":"IF(E232=0,\"\",1+MAX($A$2:A231))","v":""},"Eccellenza Spares","Keurig®","EMOM_POWER_INPUT_ASM_CAN",null,"5000364262","EMOM_POWER_INPUT_ASM_CAN",1,null,"EA",1,null,null,57.05,57.05,"10611247392833","611247392836"]
[{"$f":"IF(E233=0,\"\",1+MAX($A$2:A232))","v":""},"Eccellenza Spares","Keurig®","ETCH_BREWER_MOTOR_ADAPT_HRNSS",null,"5000364284","ETCH_BREWER_MOTOR_ADAPT_HRNSS",1,null,"EA",1,null,null,41.09,41.09,"10611247393717","611247393710"]
[{"$f":"IF(E234=0,\"\",1+MAX($A$2:A233))","v":""},"Eccellenza Spares","Keurig®","EMOM_WASTE_CHUTE_ASM",null,"5000364228","EMOM_WASTE_CHUTE_ASM",1,null,"EA",1,null,null,21.89,21.89,"10611247392529","611247392522"]
[{"$f":"IF(E235=0,\"\",1+MAX($A$2:A234))","v":""},"Eccellenza Spares","Keurig®","ETCH_MOTOR_RETROFIT_ASM",null,"5000364283","ETCH_MOTOR_RETROFIT_ASM",1,null,"EA",1,null,null,179.24,179.24,"10611247393724","611247393727"]
[{"$f":"IF(E236=0,\"\",1+MAX($A$2:A235))","v":""},"Eccellenza Spares","Keurig®","EMOM_COFFEE_LID_ASM",null,"5000364244","EMOM_COFFEE_LID_ASM",1,null,"EA",1,null,null,88.16,88.16,"10611247392680","611247392683"]
[{"$f":"IF(E237=0,\"\",1+MAX($A$2:A236))","v":""},"Eccellenza Spares","Keurig®","EMOM_ALCOVE_PREASSEMBLED_ASM",null,"5000364276","EMOM_ALCOVE_PREASSEMBLED_ASM",1,null,"EA",1,null,null,159.91999999999999,159.91999999999999,"10611247393731","611247393734"]
[{"$f":"IF(E238=0,\"\",1+MAX($A$2:A237))","v":""},"Eccellenza Spares","Keurig®","ETCH_FUSE_HOLDER_ASM",null,"5000364253","ETCH_FUSE_HOLDER_ASM",1,null,"EA",1,null,null,9.9700000000000006,9.9700000000000006,"10611247392741","611247392744"]
[{"$f":"IF(E239=0,\"\",1+MAX($A$2:A238))","v":""},"Eccellenza Spares","Keurig®","ETCH_BUNN_CLEANING_ASM",null,"5000364355","ETCH_BUNN_CLEANING_ASM",1,null,"EA",1,null,null,117.89,117.89,"10611247393748","611247393741"]
[{"$f":"IF(E240=0,\"\",1+MAX($A$2:A239))","v":""},"Eccellenza Spares","Keurig®","EMOM_BUNN_CLEANING_ASM",null,"5000364356","EMOM_BUNN_CLEANING_ASM",1,null,"EA",1,null,null,117.89,117.89,"10611247393755","611247393758"]
[{"$f":"IF(E241=0,\"\",1+MAX($A$2:A240))","v":""},"Eccellenza Spares","Keurig®","ETCH_EMOM_THERMISTOR_TEMP_PROBE",null,"5000364327","ETCH_EMOM_THERMISTOR_TEMP_PROBE",5,null,"EA",1,null,null,104.04,104.04,"10611247393298","611247393291"]
[{"$f":"IF(E242=0,\"\",1+MAX($A$2:A241))","v":""},"Eccellenza Spares","Keurig®","ETCH_SPOUT_ASM_PACK",null,"5000364216","ETCH_SPOUT_ASM_PACK",5,null,"EA",1,null,null,28.26,28.26,"10611247392406","611247392409"]
[{"$f":"IF(E243=0,\"\",1+MAX($A$2:A242))","v":""},"Eccellenza Spares","Keurig®","ETCH_SPOUT_ASM",null,"5000364274","ETCH_SPOUT_ASM",1,null,"EA",1,null,null,5.65,5.65,"10611247393762","611247393765"]
[{"$f":"IF(E244=0,\"\",1+MAX($A$2:A243))","v":""},"Eccellenza Spares","Keurig®","ETCH_RMTBREW_ASM",null,"5000362317","ETCH_RMTBREW_ASM",1,null,"EA",1,null,null,54,54,"10611247391584","611247391587"]
[{"$f":"IF(E245=0,\"\",1+MAX($A$2:A244))","v":""},"Eccellenza Spares","Keurig®","EMOM_RMTBREW_ASM",null,"5000362325","EMOM_RMTBREW_ASM",1,null,"EA",1,null,null,54,54,"10611247391607","611247391600"]
[{"$f":"IF(E246=0,\"\",1+MAX($A$2:A245))","v":""},"Eccellenza Spares","Keurig®","ETCH_CUP_STAND_GRILL_ASM",null,"5000364246","ETCH_CUP_STAND_GRILL_ASM",1,null,"EA",1,null,null,47.71,47.71,"10611247392697","611247392690"]
[{"$f":"IF(E247=0,\"\",1+MAX($A$2:A246))","v":""},"Eccellenza Spares","Keurig®","ETCH_GROUNDS_CHUTE_ASM",null,"5000364256","ETCH_GROUNDS_CHUTE_ASM",1,null,"EA",1,null,null,33.89,33.89,"10611247392772","611247392775"]
[{"$f":"IF(E248=0,\"\",1+MAX($A$2:A247))","v":""},"Eccellenza Spares","Keurig®","ETCH_GRINDER_ASM",null,"5000364254","ETCH_GRINDER_ASM",1,null,"EA",1,null,null,251.2,251.2,"10611247392758","611247392751"]
[{"$f":"IF(E249=0,\"\",1+MAX($A$2:A248))","v":""},"Eccellenza Spares","Keurig®","ETCH_DECAL_ASM",null,"5000364248","ETCH_DECAL_ASM",1,null,"EA",1,null,null,27.3,27.3,"10611247392710","611247392713"]
[{"$f":"IF(E250=0,\"\",1+MAX($A$2:A249))","v":""},"Eccellenza Spares","Keurig®","ETCH_WATER_TANK_HOSE_ASM",null,"5000364265","ETCH_WATER_TANK_HOSE_ASM",1,null,"EA",1,null,null,60.6,60.6,"10611247392857","611247392850"]
[{"$f":"IF(E251=0,\"\",1+MAX($A$2:A250))","v":""},"Eccellenza Spares","Keurig®","ETCH_WHIPPER_HOSE_ASM",null,"5000364267","ETCH_WHIPPER_HOSE_ASM",1,null,"EA",1,null,null,15.86,15.86,"10611247392864","611247392867"]
[{"$f":"IF(E252=0,\"\",1+MAX($A$2:A251))","v":""},"Eccellenza Spares","Keurig®","ETCH_EMOM_WATER_TANK_ANN_MNTNC",null,"5000364271","ETCH_EMOM_WATER_TANK_ANN_MNTNC",5,null,"EA",1,null,null,45.41,45.41,"10611247392888","611247392881"]
[{"$f":"IF(E253=0,\"\",1+MAX($A$2:A252))","v":""},"Eccellenza Spares","Keurig®","ETCH_EMOM_WHIPPER_MNTNC_ASM",null,"5000364275","ETCH_EMOM_WHIPPER_MNTNC_ASM",3,null,"EA",1,null,null,27.76,27.76,"10611247392901","611247392904"]
[{"$f":"IF(E254=0,\"\",1+MAX($A$2:A253))","v":""},"Eccellenza Spares","Keurig®","EMOM_WASTE_CONTAINER_ASM",null,"5000364269","EMOM_WASTE_CONTAINER_ASM",1,null,"EA",1,null,null,99.58,99.58,"10611247392871","611247392874"]
[{"$f":"IF(E255=0,\"\",1+MAX($A$2:A254))","v":""},"Eccellenza Spares","Keurig®","EMOM_GROUNDS_CHUTE_ASM",null,"5000364257","EMOM_GROUNDS_CHUTE_ASM",1,null,"EA",1,null,null,65.56,65.56,"10611247392789","611247392782"]
[{"$f":"IF(E256=0,\"\",1+MAX($A$2:A255))","v":""},"Eccellenza Spares","Keurig®","EMOM_CUP_STAND_GRILL_ASM",null,"5000364247","EMOM_CUP_STAND_GRILL_ASM",1,null,"EA",1,null,null,77.8,77.8,"10611247392703","611247392706"]
[{"$f":"IF(E257=0,\"\",1+MAX($A$2:A256))","v":""},"Eccellenza Spares","Keurig®","EMOM_BREWER_SPOUT_ASM",null,"5000364241","EMOM_BREWER_SPOUT_ASM",1,null,"EA",1,null,null,11.41,11.41,"10611247392659","611247392652"]
[{"$f":"IF(E258=0,\"\",1+MAX($A$2:A257))","v":""},"Eccellenza Spares","Keurig®","EMOM_DECAL_ASM",null,"5000364249","EMOM_DECAL_ASM",1,null,"EA",1,null,null,29.04,29.04,"10611247392727","611247392720"]
[{"$f":"IF(E259=0,\"\",1+MAX($A$2:A258))","v":""},"Eccellenza Spares","Keurig®","EMOM_WATER_TANK_HOSE_ASM",null,"5000364258","EMOM_WATER_TANK_HOSE_ASM",1,null,"EA",1,null,null,48.56,48.56,"10611247392796","611247392799"]
[{"$f":"IF(E260=0,\"\",1+MAX($A$2:A259))","v":""},"Eccellenza Spares","Keurig®","EMOM_WHIPPER_HOSE_ASM",null,"5000364259","EMOM_WHIPPER_HOSE_ASM",1,null,"EA",1,null,null,23.86,23.86,"10611247392802","611247392805"]
[{"$f":"IF(E261=0,\"\",1+MAX($A$2:A260))","v":""},"Eccellenza Spares","Keurig®","ETCH_PRODUCT_WIRING_HRNSS_BNDL",null,"5000364229","ETCH_PRODUCT_WIRING_HRNSS_BNDL",1,null,"EA",1,null,null,113.05,113.05,"10611247392536","611247392539"]
[{"$f":"IF(E262=0,\"\",1+MAX($A$2:A261))","v":""},"Eccellenza Spares","Keurig®","ETCH_HIGH_POWER_WIRING_HRNSS_BNDL",null,"5000364230","ETCH_HIGH_POWER_WIRING_HRNSS_BNDL",1,null,"EA",1,null,null,52.9,52.9,"10611247392543","611247392546"]
[{"$f":"IF(E263=0,\"\",1+MAX($A$2:A262))","v":""},"Eccellenza Spares","Keurig®","ETCH_SWITCH_HEATER_WIRING_BNDL",null,"5000364231","ETCH_SWITCH_HEATER_WIRING_BNDL",1,null,"EA",1,null,null,18.670000000000002,18.670000000000002,"10611247392550","611247392553"]
[{"$f":"IF(E264=0,\"\",1+MAX($A$2:A263))","v":""},"Eccellenza Spares","Keurig®","ETCH_MISC_WIRING_BNDL",null,"5000364232","ETCH_MISC_WIRING_BNDL",1,null,"EA",1,null,null,25.93,25.93,"10611247392567","611247392560"]
[{"$f":"IF(E265=0,\"\",1+MAX($A$2:A264))","v":""},"Eccellenza Spares","Keurig®","ETCH_EMOM_WPR_MTR_SWTCH_WRNG_BNDL",null,"5000364238","ETCH_EMOM_WPR_MTR_SWTCH_WRNG_BNDL",1,null,"EA",1,null,null,25.93,25.93,"10611247392628","611247392621"]
[{"$f":"IF(E266=0,\"\",1+MAX($A$2:A265))","v":""},"Eccellenza Spares","Keurig®","EMOM_PRDCT_WIRING_HRNSS_BNDL",null,"5000364233","EMOM_PRDCT_WIRING_HRNSS_BNDL",1,null,"EA",1,null,null,160.76,160.76,"10611247392574","611247392577"]
[{"$f":"IF(E267=0,\"\",1+MAX($A$2:A266))","v":""},"Eccellenza Spares","Keurig®","EMOM_HIGH_POWER_WIRING_HRNSS_BNDL",null,"5000364234","EMOM_HIGH_POWER_WIRING_HRNSS_BNDL",1,null,"EA",1,null,null,126.54,126.54,"10611247392581","611247392584"]
[{"$f":"IF(E268=0,\"\",1+MAX($A$2:A267))","v":""},"Eccellenza Spares","Keurig®","EMOM_SWITCH_HEATER_WIRING_BNDL",null,"5000364235","EMOM_SWITCH_HEATER_WIRING_BNDL",1,null,"EA",1,null,null,56,56,"10611247392598","611247392591"]
[{"$f":"IF(E269=0,\"\",1+MAX($A$2:A268))","v":""},"Eccellenza Spares","Keurig®","EMOM_MISC_WIRING_BNDL",null,"5000364236","EMOM_MISC_WIRING_BNDL",1,null,"EA",1,null,null,103.72,103.72,"10611247392604","611247392607"]
[{"$f":"IF(E270=0,\"\",1+MAX($A$2:A269))","v":""},"Eccellenza Spares","Keurig®","EMOM_USB_COAXIAL_WIRING_BNDL",null,"5000364237","EMOM_USB_COAXIAL_WIRING_BNDL",1,null,"EA",1,null,null,34.22,34.22,"10611247392611","611247392614"]
[{"$f":"IF(E271=0,\"\",1+MAX($A$2:A270))","v":""},"Eccellenza Spares","Keurig®","EMOM_DOOR_LED_WIRING_HRNSS_BNDL",null,"5000364239","EMOM_DOOR_LED_WIRING_HRNSS_BNDL",1,null,"EA",1,null,null,69.489999999999995,69.489999999999995,"10611247392635","611247392638"]
[{"$f":"IF(E272=0,\"\",1+MAX($A$2:A271))","v":""},"Eccellenza Spares","Keurig®","EMOM_DOOR_MDB_WIRING_HRNSS_BNDL",null,"5000364240","EMOM_DOOR_MDB_WIRING_HRNSS_BNDL",1,null,"EA",1,null,null,80.900000000000006,80.900000000000006,"10611247392642","611247392645"]
[{"$f":"IF(E273=0,\"\",1+MAX($A$2:A272))","v":""},"Eccellenza Spares","Keurig®","ETCH_FUSE,15 AMP,250 VAC-U_PACK",null,"5000348785","ETCH_FUSE,15 AMP,250 VAC-U_PACK",10,null,"EA",1,null,null,10.01,10.01,"10611247384562","611247 384 565"]
[{"$f":"IF(E274=0,\"\",1+MAX($A$2:A273))","v":""},"Eccellenza Spares","Keurig®","ETCH_EMOM_LUBRIFILM",null,"5000364268","ETCH_EMOM_LUBRIFILM",1,null,"EA",1,null,null,8.94,8.94,"10611247393793","611247393796"]
[{"$f":"IF(E275=0,\"\",1+MAX($A$2:A274))","v":""},"Eccellenza Spares","Keurig®","ETCH_EMOM_LUBRIFILM",null,"5000364266","ETCH_EMOM_KEY_X8625_OUTER_V2-3",1,null,"EA",1,null,null,3.82,3.82,"10611247393809","611247393802"]
[{"$f":"IF(E276=0,\"\",1+MAX($A$2:A275))","v":""},"Eccellenza Spares","Keurig®","ETCH_SWITCH_ON-OFF",null,"5000364251","ETCH_SWITCH_ON-OFF",1,null,"EA",1,null,null,5.0999999999999996,5.0999999999999996,"10611247393816","611247393819"]
[{"$f":"IF(E277=0,\"\",1+MAX($A$2:A276))","v":""},"K1500 Spares","Keurig®","ASM DRIP TRAY K1500",null,"5000204823","ASM DRIP TRAY K1500",1,null,"EA",1,null,null,13.37,13.37]
[{"$f":"IF(E278=0,\"\",1+MAX($A$2:A277))","v":""},"K1500 Spares","Keurig®","ASM WATER RESERVOIR K1500",null,"5000204824","ASM WATER RESERVOIR K1500",1,null,"EA",1,null,null,26.81,26.81]
[{"$f":"IF(E279=0,\"\",1+MAX($A$2:A278))","v":""},"K1500 Spares","Keurig®","ASM WATER RESERVOIR LID K1500",null,"5000204816","ASM WATER RESERVOIR LID K1500",1,null,"EA",1,null,null,13.37,13.37]
[{"$f":"IF(E280=0,\"\",1+MAX($A$2:A279))","v":""},"K1500 Spares","Keurig®","ASM DRAIN DOOR K1500",null,"5000204815","ASM DRAIN DOOR K1500",1,null,"EA",1,null,null,33.53,33.53]
[{"$f":"IF(E281=0,\"\",1+MAX($A$2:A280))","v":""},"K1500 Spares","Keurig®","ASM DRAIN TUBE PLUG K1500",null,"5000204814","ASM DRAIN TUBE PLUG K1500",1,null,"EA",1,null,null,13.37,13.37]
[{"$f":"IF(E282=0,\"\",1+MAX($A$2:A281))","v":""},"K2500 Spares","Keurig®","K2500 WTR RESERVOIR KIT",null,"5000350043","K2500 WTR RESERVOIR KIT",1,null,"EA",1,null,null,47.04,47.04]
[{"$f":"IF(E283=0,\"\",1+MAX($A$2:A282))","v":""},"K2500 Spares","Keurig®","ASM TOUCHSCREEN",null,"5000358723","ASM TOUCHSCREEN",1,null,"EA",1,null,null,235.2,235.2]
[{"$f":"IF(E284=0,\"\",1+MAX($A$2:A283))","v":""},"K2500 Spares","Keurig®","ASM PUNCTURE MECHANISM",null,"5000358724","ASM PUNCTURE MECHANISM",1,null,"EA",1,null,null,80.64,80.64]
[{"$f":"IF(E285=0,\"\",1+MAX($A$2:A284))","v":""},"K2500 Spares","Keurig®","ASM SIDE CAR, DOCK VALVE",null,"5000358725","ASM SIDE CAR, DOCK VALVE",1,null,"EA",1,null,null,26.88,26.88]
[{"$f":"IF(E286=0,\"\",1+MAX($A$2:A285))","v":""},"K2500 Spares","Keurig®","ASM KCUP POD HOLDER BRWR ",null,"5000340090","ASM KCUP POD HOLDER BRWR ",0,null,"EA",1,null,null,12.1,12.1,"10611247380472","611247380475"]
[{"$f":"IF(E287=0,\"\",1+MAX($A$2:A286))","v":""},"K2500 Spares","Keurig®","ASM INTERNAL PLUMBING",null,"5000358726","ASM INTERNAL PLUMBING",1,null,"EA",1,null,null,60.48,60.48]
[{"$f":"IF(E288=0,\"\",1+MAX($A$2:A287))","v":""},"K2500 Spares","Keurig®","ASM DRIP TRAY",null,"5000358727","ASM DRIP TRAY",1,null,"EA",1,null,null,33.6,33.6]
[{"$f":"IF(E289=0,\"\",1+MAX($A$2:A288))","v":""},"K2500 Spares","Keurig®","WATER PUMP KIT KEUR BRWR K2500",null,"5000362319","WATER PUMP KIT KEUR BRWR K2500",1,null,"EA",1,null,null,18,18]
[{"$f":"IF(E290=0,\"\",1+MAX($A$2:A289))","v":""},"K2500 Spares","Keurig®","ASM TOUCH SCREEN 2550",null,"5000383220","ASM TOUCH SCREEN 2550",1,null,"EA",1,null,null,196,196,"10611247405557","611247405550"]
[{"$f":"IF(E291=0,\"\",1+MAX($A$2:A290))","v":""},"K3000 Spares","Keurig®","BASE PLATE AND TRANSFORMER  B3000/K3000",null,"5000051216","BASE PLATE AND TRANSFORMER  B3000/K3000",0,null,"EA",1,null,null,26.65,26.65,"10649645093809","649645093802"]
[{"$f":"IF(E292=0,\"\",1+MAX($A$2:A291))","v":""},"K3000 Spares","Keurig®","POWER MODULE B3000/K3000",null,"5000051205","POWER MODULE B3000/K3000",1,null,"EA",1,null,null,134.06,134.06]
[{"$f":"IF(E293=0,\"\",1+MAX($A$2:A292))","v":""},"K3000 Spares","Keurig®","MAIN HARNESS  B3000/K3000",null,"5000051210","MAIN HARNESS  B3000/K3000",1,null,"EA",1,null,null,27.428800000000003,27.428800000000003]
[{"$f":"IF(E294=0,\"\",1+MAX($A$2:A293))","v":""},"K3000 Spares","Keurig®","DISPOSAL BIN  B3000/K3000",null,"5000051218","DISPOSAL BIN  B3000/K3000",1,null,"EA",1,null,null,8.42,8.42]
[{"$f":"IF(E295=0,\"\",1+MAX($A$2:A294))","v":""},"K3000 Spares","Keurig®","HOLDER PIVOT K-CUP  B3000",null,"5000051221","HOLDER PIVOT K-CUP  B3000",1,null,"EA",1,null,null,8.06,8.06]
[{"$f":"IF(E296=0,\"\",1+MAX($A$2:A295))","v":""},"K3000 Spares","Keurig®","K-CUP HOLDER SPLIT B3000/K3000",null,"5000051238","K-CUP HOLDER SPLIT B3000/K3000",1,null,"EA",1,null,null,12.77,12.77]
[{"$f":"IF(E297=0,\"\",1+MAX($A$2:A296))","v":""},"K3000 Spares","Keurig®","K-CUP POD CHUTE B3000/K3000",null,"5000050231","K-CUP POD CHUTE B3000/K3000",0,null,"EA",1,null,null,18,18,"10649645095100","649645095103"]
[{"$f":"IF(E298=0,\"\",1+MAX($A$2:A297))","v":""},"K3000 Spares","Keurig®","INLET WATER VALVE RPE B3000/K3000",null,"5000051296","INLET WATER VALVE RPE B3000/K3000",1,null,"EA",1,null,null,30.32,30.32]
[{"$f":"IF(E299=0,\"\",1+MAX($A$2:A298))","v":""},"K3500 Spares","Keurig®","BASE PLATE AND TRANSFORMER  B3000/K3000",null,"5000051216","BASE PLATE AND TRANSFORMER  B3000/K3000",0,null,"EA",1,null,null,26.65,26.65,"10649645093809","649645093802"]
[{"$f":"IF(E300=0,\"\",1+MAX($A$2:A299))","v":""},"K3500 Spares","Keurig®","POWER MODULE B3000/K3000",null,"5000051205","POWER MODULE B3000/K3000",1,null,"EA",1,null,null,134.06,134.06]
[{"$f":"IF(E301=0,\"\",1+MAX($A$2:A300))","v":""},"K3500 Spares","Keurig®","DISPOSAL BIN  B3000/K3000",null,"5000051218","DISPOSAL BIN  B3000/K3000",1,null,"EA",1,null,null,8.42,8.42]
[{"$f":"IF(E302=0,\"\",1+MAX($A$2:A301))","v":""},"K3500 Spares","Keurig®","HOLDER PIVOT K-CUP  B3000",null,"5000051221","HOLDER PIVOT K-CUP  B3000",1,null,"EA",1,null,null,8.06,8.06]
[{"$f":"IF(E303=0,\"\",1+MAX($A$2:A302))","v":""},"K3500 Spares","Keurig®","K-CUP HOLDER SPLIT B3000/K3000",null,"5000051238","K-CUP HOLDER SPLIT B3000/K3000",1,null,"EA",1,null,null,12.77,12.77]
[{"$f":"IF(E304=0,\"\",1+MAX($A$2:A303))","v":""},"K3500 Spares","Keurig®","K-CUP POD CHUTE B3000/K3000",null,"5000050231","K-CUP POD CHUTE B3000/K3000",0,null,"EA",1,null,null,18,18,"10649645095100","649645095103"]
[{"$f":"IF(E305=0,\"\",1+MAX($A$2:A304))","v":""},"K3500 Spares","Keurig®","INLET WATER VALVE RPE B3000/K3000",null,"5000051296","INLET WATER VALVE RPE B3000/K3000",1,null,"EA",1,null,null,30.32,30.32]
[{"$f":"IF(E306=0,\"\",1+MAX($A$2:A305))","v":""},"K3500 Spares","Keurig®","ASM REAR POWER BRACKET K3500",null,"5000349989","ASM REAR POWER BRACKET K3500",1,null,"EA",1,null,null,161.21,161.21]
[{"$f":"IF(E307=0,\"\",1+MAX($A$2:A306))","v":""},"K3500 Spares","Keurig®","ASM DISPENSE VALVE K3500",null,"5000349990","ASM DISPENSE VALVE K3500",1,null,"EA",1,null,null,46.97,46.97]
[{"$f":"IF(E308=0,\"\",1+MAX($A$2:A307))","v":""},"K3500 Spares","Keurig®","ASM COLD WATER PUMP K3500",null,"5000349991","ASM COLD WATER PUMP K3500",1,null,"EA",1,null,null,100.73,100.73]
[{"$f":"IF(E309=0,\"\",1+MAX($A$2:A308))","v":""},"K3500 Spares","Keurig®","ASM PUNCTURE MECHANISM K3500",null,"5000349992","ASM PUNCTURE MECHANISM K3500",1,null,"EA",1,null,null,201.53,201.53]
[{"$f":"IF(E310=0,\"\",1+MAX($A$2:A309))","v":""},"K3500 Spares","Keurig®","(UPPER) ENTRANCE NEEDLE ASSEMBLY (DISTRIBUTED NEEDLE)          ",null,"5000362956","(UPPER) ENTRANCE NEEDLE ASSEMBLY (DISTRIBUTED NEEDLE)          ",0,null,"EA",1,null,null,12,12,"10611247391959","611247391952"]
[{"$f":"IF(E311=0,\"\",1+MAX($A$2:A310))","v":""},"K3500 Spares","Keurig®","ASM DRIP TRAY K3500",null,"5000349994","ASM DRIP TRAY K3500",1,null,"EA",1,null,null,30.84,30.84]
[{"$f":"IF(E312=0,\"\",1+MAX($A$2:A311))","v":""},"K3500 Spares","Keurig®","ASM PCB MAIN 4.XX SPARE K3500 ",null,"5000358045","ASM PCB MAIN 4.XX SPARE K3500 ",0,null,"EA",1,null,null,48,48,"10611247389031","611247389034"]
[{"$f":"IF(E313=0,\"\",1+MAX($A$2:A312))","v":""},"K3500 Spares","Keurig®","ASM HOT WATER TANK K3500",null,"5000349995","ASM HOT WATER TANK K3500",1,null,"EA",1,null,null,161.21,161.21]
[{"$f":"IF(E314=0,\"\",1+MAX($A$2:A313))","v":""},"K3500 Spares","Keurig®","ASM CONTROL PANEL K3500",null,"5000349996","ASM CONTROL PANEL K3500",1,null,"EA",1,null,null,322.49,322.49]
[{"$f":"IF(E315=0,\"\",1+MAX($A$2:A314))","v":""},"K3500 Spares","Keurig®","ASM VENT VALVE K3500",null,"5000349997","ASM VENT VALVE K3500",1,null,"EA",1,null,null,17.399999999999999,17.399999999999999]
[{"$f":"IF(E316=0,\"\",1+MAX($A$2:A315))","v":""},"K3500 Spares","Keurig®","ASM COLD WATER TANK K3500",null,"5000349993","ASM COLD WATER TANK K3500",1,null,"EA",1,null,null,87.29,87.29]
[{"$f":"IF(E317=0,\"\",1+MAX($A$2:A316))","v":""},"K3500 Spares","Keurig®","ASM SIDE PANELS K3500",null,"5000364079","ASM SIDE PANELS K3500",1,1,"EA",1,null,null,54,54,"10611247392291","611247392294"]
[{"$f":"IF(E318=0,\"\",1+MAX($A$2:A317))","v":""},"K3500 Spares","Keurig®","HOT WATER DISPENSE VALVE B3000/K3000",null,"5000051204","HOT WATER DISPENSE VALVE B3000/K3000",1,null,"EA",1,null,null,74.69,74.69]
[{"$f":"IF(E319=0,\"\",1+MAX($A$2:A318))","v":""},"K3500 Spares","Keurig®","ASM POD HOLDER PIVOT BLACK K3500",null,"5000385620","ASM POD HOLDER PIVOT BLACK K3500",1,null,"EA",1,null,null,6.72,6.72,10611247406820,611247406823]
[{"$f":"IF(E320=0,\"\",1+MAX($A$2:A319))","v":""},"K3500 Spares","Keurig®","ASM CONTROL PANEL 3550",null,5000392806,"ASM CONTROL PANEL 3550",1,null,"EA",1,null,null,165,165,10611247410292,611247410295]
[{"$f":"IF(E321=0,\"\",1+MAX($A$2:A320))","v":""},"K4500 Spares","Keurig®","VALVE, INLET WATER",null,"5000366690","VALVE, INLET WATER",1,null,"EA",1,null,null,18,18]
[{"$f":"IF(E322=0,\"\",1+MAX($A$2:A321))","v":""},"K4500 Spares","Keurig®","ASM, CWT SPARE",null,"5000366691","ASM, CWT SPARE",1,null,"EA",1,null,null,54,54]
[{"$f":"IF(E323=0,\"\",1+MAX($A$2:A322))","v":""},"K4500 Spares","Keurig®","ASM, AIR PUMP, PURGE (AS0000007495)",null,"5000366692","ASM, AIR PUMP, PURGE (AS0000007495)",1,null,"EA",1,null,null,12,12]
[{"$f":"IF(E324=0,\"\",1+MAX($A$2:A323))","v":""},"K4500 Spares","Keurig®","ASM, AIR PUMP, ANTI FOG (AS0000007496)  ",null,"5000366889","ASM, AIR PUMP, ANTI FOG (AS0000007496)  ",1,null,"EA",1,null,null,12,12]
[{"$f":"IF(E325=0,\"\",1+MAX($A$2:A324))","v":""},"K4500 Spares","Keurig®","ASM, HWT Spare",null,"5000366895","ASM, HWT Spare",1,null,"EA",1,null,null,42,42]
[{"$f":"IF(E326=0,\"\",1+MAX($A$2:A325))","v":""},"K4500 Spares","Keurig®","ASM, MAIN PCBA & SOFTWARE",null,"5000366896","ASM, MAIN PCBA & SOFTWARE",1,null,"EA",1,null,null,48,48]
[{"$f":"IF(E327=0,\"\",1+MAX($A$2:A326))","v":""},"K4500 Spares","Keurig®","ASM,POWDER PCBA",null,"5000366897","ASM,POWDER PCBA",1,null,"EA",1,null,null,42,42]
[{"$f":"IF(E328=0,\"\",1+MAX($A$2:A327))","v":""},"K4500 Spares","Keurig®","12/24V_POWER_SUPPLY",null,"5000366898","12/24V_POWER_SUPPLY",1,null,"EA",1,null,null,42,42]
[{"$f":"IF(E329=0,\"\",1+MAX($A$2:A328))","v":""},"K4500 Spares","Keurig®","ASM, FTH",null,"5000366899","ASM, FTH",1,null,"EA",1,null,null,24,24]
[{"$f":"IF(E330=0,\"\",1+MAX($A$2:A329))","v":""},"K4500 Spares","Keurig®","ASM, PRV",null,"5000366900","ASM, PRV",1,null,"EA",1,null,null,12,12]
[{"$f":"IF(E331=0,\"\",1+MAX($A$2:A330))","v":""},"K4500 Spares","Keurig®","MICRO LOAD CELL",null,"5000366904","MICRO LOAD CELL",1,null,"EA",1,null,null,12,12]
[{"$f":"IF(E332=0,\"\",1+MAX($A$2:A331))","v":""},"K4500 Spares","Keurig®","Powder Auger motor",null,"5000367811","Powder Auger motor",1,null,"EA",1,null,null,30,30]
[{"$f":"IF(E333=0,\"\",1+MAX($A$2:A332))","v":""},"K4500 Spares","Keurig®","MOTOR, 24VDC, WHIPPER",null,"5000366905","MOTOR, 24VDC, WHIPPER",1,null,"EA",1,null,null,24,24]
[{"$f":"IF(E334=0,\"\",1+MAX($A$2:A333))","v":""},"K4500 Spares","Keurig®","ASM,POWDER WIND",null,"5000366927","ASM,POWDER WIND",1,null,"EA",1,null,null,36,36]
[{"$f":"IF(E335=0,\"\",1+MAX($A$2:A334))","v":""},"K4500 Spares","Keurig®","AC VALVE SPARE",null,"5000366928","AC VALVE SPARE",1,null,"EA",1,null,null,24,24]
[{"$f":"IF(E336=0,\"\",1+MAX($A$2:A335))","v":""},"K4500 Spares","Keurig®","DC VALVE SPARE",null,"5000366929","DC VALVE SPARE",1,null,"EA",1,null,null,12,12]
[{"$f":"IF(E337=0,\"\",1+MAX($A$2:A336))","v":""},"K4500 Spares","Keurig®","ASM, MANIFOLD,VALVE SPARE",null,"5000366941","ASM, MANIFOLD,VALVE SPARE",1,null,"EA",1,null,null,18,18]
[{"$f":"IF(E338=0,\"\",1+MAX($A$2:A337))","v":""},"K4500 Spares","Keurig®","PUNCTURE MECHANISM SPARE",null,"5000366942","PUNCTURE MECHANISM SPARE",1,null,"EA",1,null,null,204,204]
[{"$f":"IF(E339=0,\"\",1+MAX($A$2:A338))","v":""},"K4500 Spares","Keurig®","HMI MODLUE (PT0000010049)",null,"5000366952","HMI MODLUE (PT0000010049)",1,null,"EA",1,null,null,300,300]
[{"$f":"IF(E340=0,\"\",1+MAX($A$2:A339))","v":""},"K4500 Spares","Keurig®","ASM, DISPLAY DOOR (No HMI)",null,"5000366953","ASM, DISPLAY DOOR (No HMI)",1,null,"EA",1,null,null,36,36]
[{"$f":"IF(E341=0,\"\",1+MAX($A$2:A340))","v":""},"K4500 Spares","Keurig®","ASM, Cell_MODEM (no sim card)",null,"5000366954","ASM, Cell_MODEM (no sim card)",1,null,"EA",1,null,null,102,102]
[{"$f":"IF(E342=0,\"\",1+MAX($A$2:A341))","v":""},"K4500 Spares","Keurig®","ASM, WATER PUMP, Spare",null,"5000366955","ASM, WATER PUMP, Spare",1,null,"EA",1,null,null,12,12]
[{"$f":"IF(E343=0,\"\",1+MAX($A$2:A342))","v":""},"K4500 Spares","Keurig®","ASM, MULTI - NEEDLE WATER PATH",null,"5000366956","ASM, MULTI - NEEDLE WATER PATH",1,null,"EA",1,null,null,18,18]
[{"$f":"IF(E344=0,\"\",1+MAX($A$2:A343))","v":""},"K4500 Spares","Keurig®","ASM RECOGNITION SPARE",null,"5000366957","ASM RECOGNITION SPARE",1,null,"EA",1,null,null,36,36]
[{"$f":"IF(E345=0,\"\",1+MAX($A$2:A344))","v":""},"K4500 Spares","Keurig®","ENTRANCE NEEDLE GASKET, MULTI NEEDLE",null,"5000366960","ENTRANCE NEEDLE GASKET, MULTI NEEDLE",1,null,"EA",1,null,null,6,6]
[{"$f":"IF(E346=0,\"\",1+MAX($A$2:A345))","v":""},"K4500 Spares","Keurig®","ASM, COVER, TOP, PM",null,"5000367280","ASM, COVER, TOP, PM",1,null,"EA",1,null,null,24,24]
[{"$f":"IF(E347=0,\"\",1+MAX($A$2:A346))","v":""},"K4500 Spares","Keurig®","POD HOLDER PIVOT",null,"5000366962","POD HOLDER PIVOT",1,null,"EA",1,null,null,6,6]
[{"$f":"IF(E348=0,\"\",1+MAX($A$2:A347))","v":""},"K4500 Spares","Keurig®","ASSY, POD HOLDER,",null,"5000366968","ASSY, POD HOLDER,",1,null,"EA",1,null,null,12,12]
[{"$f":"IF(E349=0,\"\",1+MAX($A$2:A348))","v":""},"K4500 Spares","Keurig®","ASM, PANEL, BACK",null,"5000366969","ASM, PANEL, BACK",1,null,"EA",1,null,null,42,42]
[{"$f":"IF(E350=0,\"\",1+MAX($A$2:A349))","v":""},"K4500 Spares","Keurig®","DOOR, POD BIN Spare (no mug tray)",null,"5000366970","DOOR, POD BIN Spare (no mug tray)",1,null,"EA",1,null,null,30,30]
[{"$f":"IF(E351=0,\"\",1+MAX($A$2:A350))","v":""},"K4500 Spares","Keurig®"," MUG TRAY",null,"5000366971"," MUG TRAY",1,null,"EA",1,null,null,24,24]
[{"$f":"IF(E352=0,\"\",1+MAX($A$2:A351))","v":""},"K4500 Spares","Keurig®","ASM,DRIP TRAY, (tray and base)",null,"5000366972","ASM,DRIP TRAY, (tray and base)",1,null,"EA",1,null,null,24,24]
[{"$f":"IF(E353=0,\"\",1+MAX($A$2:A352))","v":""},"K4500 Spares","Keurig®","PANEL,TOP_PANEL",null,"5000366973","PANEL,TOP_PANEL",1,null,"EA",1,null,null,36,36]
[{"$f":"IF(E354=0,\"\",1+MAX($A$2:A353))","v":""},"K4500 Spares","Keurig®"," PANEL, SIDE",null,"5000366974"," PANEL, SIDE",1,null,"EA",1,null,null,60,60]
[{"$f":"IF(E355=0,\"\",1+MAX($A$2:A354))","v":""},"K4500 Spares","Keurig®","Cleaning Kit",null,"5000366975","Cleaning Kit",1,null,"EA",1,null,null,48,48,"611247395851","10611247395858"]
[{"$f":"IF(E356=0,\"\",1+MAX($A$2:A355))","v":""},"K4500 Spares","Keurig®","ASM, POWDER BIN,2POUND ",null,"5000366976","ASM, POWDER BIN,2POUND ",1,null,"EA",1,null,null,24,24]
[{"$f":"IF(E357=0,\"\",1+MAX($A$2:A356))","v":""},"K4500 Spares","Keurig®","ASM, POWDER BIN, 3POUND ",null,"5000366977","ASM, POWDER BIN, 3POUND ",1,null,"EA",1,null,null,24,24]
[{"$f":"IF(E358=0,\"\",1+MAX($A$2:A357))","v":""},"K4500 Spares","Keurig®","Asm Dust tray",null,"5000366978","SM DUST TRAY KEUR BRWR K4500",1,null,"EA",1,null,null,12,12,"10611247395889","611247395882"]
[{"$f":"IF(E359=0,\"\",1+MAX($A$2:A358))","v":""},"K4500 Spares","Keurig®","Asm Mixing Bowls",null,"5000366979","Asm Mixing Bowls",1,null,"EA",1,null,null,30,30]
[{"$f":"IF(E360=0,\"\",1+MAX($A$2:A359))","v":""},"K4500 Spares","Keurig®","Asm, Manifold lid",null,"5000366980","Asm, Manifold lid",1,null,"EA",1,null,null,12,12]
[{"$f":"IF(E361=0,\"\",1+MAX($A$2:A360))","v":""},"K4500 Spares","Keurig®","TUBE 4.6mmOD X 2.4mmID",null,"5000366981","TUBE 4.6mmOD X 2.4mmID",1,null,"EA",1,null,null,6,6]
[{"$f":"IF(E362=0,\"\",1+MAX($A$2:A361))","v":""},"K4500 Spares","Keurig®","TUBING  ODØ24.0 x IDØ16.0",null,"5000366982","TUBING  ODØ24.0 x IDØ16.0",1,null,"EA",1,null,null,6,6]
[{"$f":"IF(E363=0,\"\",1+MAX($A$2:A362))","v":""},"K4500 Spares","Keurig®","TUBING  ODØ8.0 x IDØ4.0",null,"5000366983","TUBING  ODØ8.0 x IDØ4.0",1,null,"EA",1,null,null,6,6]
[{"$f":"IF(E364=0,\"\",1+MAX($A$2:A363))","v":""},"K4500 Spares","Keurig®","TUBING  ODØ9.0 x IDØ5.0",null,"5000366984","TUBING  ODØ9.0 x IDØ5.0",1,null,"EA",1,null,null,6,6]
[{"$f":"IF(E365=0,\"\",1+MAX($A$2:A364))","v":""},"K-Cup® Pod","Barista Prima Coffeehouse®","Barista Prima Coffeehouse® Colombia Coffee, 24ct",null,"5000330094","Barista Prima Coffeehouse® Colombia Coffee, 24ct",4,24,"CS",20,100,null,59.24,58.48,"10099555066132","99555066135"]
[{"$f":"IF(E366=0,\"\",1+MAX($A$2:A365))","v":""},"K-Cup® Pod","Barista Prima Coffeehouse®","Barista Prima Coffeehouse® Decaf Italian Roast, 24ct",null,"5000355677","Barista Prima Coffeehouse® Decaf Italian Roast, 24ct",4,24,"CS",20,100,null,59.24,58.48,"10611247385064","611247385067"]
[{"$f":"IF(E367=0,\"\",1+MAX($A$2:A366))","v":""},"K-Cup® Pod","Barista Prima Coffeehouse®","Barista Prima Coffeehouse® Espresso Roast, 24ct",null,"5000356561","Barista Prima Coffeehouse® Espresso Roast, 24ct",4,24,"CS",20,100,null,59.24,58.48,"10611247388096","611247388099"]
[{"$f":"IF(E368=0,\"\",1+MAX($A$2:A367))","v":""},"K-Cup® Pod","Barista Prima Coffeehouse®","Barista Prima Coffeehouse® French Roast, 24ct",null,"5000330092","Barista Prima Coffeehouse® French Roast, 24ct",4,24,"CS",20,100,null,59.24,58.48,"10099555066118","99555066111"]
[{"$f":"IF(E369=0,\"\",1+MAX($A$2:A368))","v":""},"K-Cup® Pod","Barista Prima Coffeehouse®","Barista Prima Coffeehouse® Italian Roast, 24ct",null,"5000355673","Barista Prima Coffeehouse® Italian Roast, 24ct",4,24,"CS",20,100,null,59.24,58.48,"10611247385002","611247385005"]
[{"$f":"IF(E370=0,\"\",1+MAX($A$2:A369))","v":""},"K-Cup® Pod","Bigelow® ","Bigelow® Earl Grey Tea, 24ct",null,"5000363675","Bigelow® Earl Grey Tea, 24ct",4,24,"CS",20,100,null,52.64,52.04,"10072310421230","72310421233"]
[{"$f":"IF(E371=0,\"\",1+MAX($A$2:A370))","v":""},"K-Cup® Pod","Bigelow® ","Bigelow® English Breakfast Tea, 24ct",null,"5000363676","Bigelow® English Breakfast Tea, 24ct",4,24,"CS",20,100,null,52.64,52.04,"10072310421445","72310421448"]
[{"$f":"IF(E372=0,\"\",1+MAX($A$2:A371))","v":""},"K-Cup® Pod","Bigelow® ","Bigelow® Green Tea, 24ct",null,"5000363992","Bigelow® Green Tea, 24ct",4,24,"CS",20,100,null,52.64,52.04,"10072310428475","72310428478"]
[{"$f":"IF(E373=0,\"\",1+MAX($A$2:A372))","v":""},"K-Cup® Pod","Bigelow® ","Bigelow® Stay Well® Herbal Tea, 22ct",null,"5000359645","Bigelow® Stay Well® Herbal Tea, 22ct",4,22,"CS",20,100,null,52.64,52.04,"10072310420257","72310420250"]
[{"$f":"IF(E374=0,\"\",1+MAX($A$2:A373))","v":""},"K-Cup® Pod","Bigelow® ","Bigelow® Tropical Iced Green Tea, 22ct",null,"5000364656","Bigelow® Tropical Iced Green Tea, 22ct",4,22,"CS",20,100,null,52.64,52.04,"10072310428703","72310428706"]
[{"$f":"IF(E375=0,\"\",1+MAX($A$2:A374))","v":""},"K-Cup® Pod","BLK & BOLD®","BLK & BOLD® Brighter Days, 20 ct",null,"5000372406","BLK & BOLD® Brighter Days, 20 ct",4,20,"CS",20,100,null,62.32,61.6,"10810060900571","810060900574"]
[{"$f":"IF(E376=0,\"\",1+MAX($A$2:A375))","v":""},"K-Cup® Pod","BLK & BOLD®","BLK & BOLD® Rise & GRND, 20 ct",null,"5000372407","BLK & BOLD® Rise & GRND, 20 ct",4,20,"CS",20,100,null,62.32,61.6,"10810060900557","810060900550"]
[{"$f":"IF(E377=0,\"\",1+MAX($A$2:A376))","v":""},"K-Cup® Pod","BLK & BOLD®","BLK & BOLD® Smoove Operator, 20 ct",null,"5000372408","BLK & BOLD® Smoove Operator, 20 ct",4,20,"CS",20,100,null,62.32,61.6,"10810060900564","810060900567"]
[{"$f":"IF(E378=0,\"\",1+MAX($A$2:A377))","v":""},"K-Cup® Pod","Black Rifle® Coffee Company","Black Rifle® Coffee Company Beyond Black, 22ct ",null,"5000384043","Black Rifle® Coffee Company Beyond Black, 22ct ",4,22,"CS",20,100,null,62.32,61.6,"10810087104990","810087104993"]
[{"$f":"IF(E379=0,\"\",1+MAX($A$2:A378))","v":""},"K-Cup® Pod","Black Rifle® Coffee Company","Black Rifle® Coffee Company Just Black, 22ct",null,"5000384042","Black Rifle® Coffee Company Just Black, 22ct",4,22,"CS",20,100,null,62.32,61.6,"10810087105478","810087105471"]
[{"$f":"IF(E380=0,\"\",1+MAX($A$2:A379))","v":""},"K-Cup® Pod","Black Rifle® Coffee Company","Black Rifle® Coffee Company Tactisquatch, 22ct",null,"5000384045","Black Rifle® Coffee Company Tactisquatch, 22ct",4,22,"CS",20,100,null,62.32,61.6,"10810087104907","810087104900"]
[{"$f":"IF(E381=0,\"\",1+MAX($A$2:A380))","v":""},"K-Cup® Pod","Black Rifle® Coffee Company","Black Rifle® Coffee Company Loyal Spirit, 22ct",null,"5000384046","Black Rifle® Coffee Company Loyal Spirit, 22ct",4,22,"CS",20,100,null,62.32,61.6,"10810087105713","810087105716"]
[{"$f":"IF(E382=0,\"\",1+MAX($A$2:A381))","v":""},"K-Cup® Pod","Black Rifle® Coffee Company","Black Rifle® Coffee Company Blackbeard's Delight® Coffee 22ct",null,5000384804,"Black Rifle® Coffee Company Blackbeard's Delight® Coffee 22ct",4,22," CS",20,100,null,62.32,61.6,"10810119704303","810119704306"]
[{"$f":"IF(E383=0,\"\",1+MAX($A$2:A382))","v":""},"K-Cup® Pod","Black Rifle® Coffee Company","Black Rifle® Coffee Company Fur Missile® Coffee 22ct",null,5000384047,"Black Rifle® Coffee Company Fur Missile® Coffee 22ct",4,22," CS",20,100,null,62.32,61.6,"10810140155105","810140155108"]
[{"$f":"IF(E384=0,\"\",1+MAX($A$2:A383))","v":""},"K-Cup® Pod","Black Rifle® Coffee Company","Black Rifle® Coffee Company Spirit of '76® Coffee 22ct",null,5000384044,"BRCC KCUP SPIRIT OF '76 22CT",4,22," CS",20,100,null,62.32,61.6,"10810087105010","810087105013"]
[{"$f":"IF(E385=0,\"\",1+MAX($A$2:A384))","v":""},"K-Cup® Pod","Café Bustelo®","Café Bustelo® Espresso Style Coffee, 24ct",null,"5000363549","Café Bustelo® Espresso Style Coffee, 24ct",4,24,"CS",20,100,null,57.6,56.84,"10074471289964","74471289967"]
[{"$f":"IF(E386=0,\"\",1+MAX($A$2:A385))","v":""},"K-Cup® Pod","Café Bustelo®","Café Bustelo® Café con Leche, 24ct",null,"5000376427","Café Bustelo® Café con Leche, 24ct",4,24,"CS",20,100,null,57.6,56.84,"10074471018946","74471018949"]
[{"$f":"IF(E387=0,\"\",1+MAX($A$2:A386))","v":""},"K-Cup® Pod","Café Bustelo®","Café Bustelo® Dark Roast, 22ct",null,5000389574,"Café Bustelo® Dark Roast, 22ct",4,22," CS",20,100,null,57.6,56.84,"074471779543","00074471779543"]
[{"$f":"IF(E388=0,\"\",1+MAX($A$2:A387))","v":""},"K-Cup® Pod","Café Bustelo®","Café Bustelo® Dulce de Leche, 22ct",null,5000389577,"Café Bustelo® Dulce de Leche, 22ct",4,22," CS",20,100,null,57.6,56.84,"074471905379","00074471905379"]
[{"$f":"IF(E389=0,\"\",1+MAX($A$2:A388))","v":""},"K-Cup® Pod","Café Bustelo®","Café Bustelo® Light Roast, 22ct",null,5000389553,"Café Bustelo® Light Roast, 22ct",4,22," CS",20,100,null,57.6,56.84,"074471830855","00074471830855"]
[{"$f":"IF(E390=0,\"\",1+MAX($A$2:A389))","v":""},"K-Cup® Pod","Café Bustelo®","Café Bustelo® Medium Roast, 22ct",null,5000389554,"Café Bustelo® Medium Roast, 22ct",4,22," CS",20,100,null,57.6,56.84,"074471828616","00074471828616 "]
[{"$f":"IF(E391=0,\"\",1+MAX($A$2:A390))","v":""},"K-Cup® Pod","Café Escapes®","Café Escapes® Café Caramel, 24ct",null,"5000330126","Café Escapes® Café Caramel, 24ct",4,24,"CS",20,100,null,64.08,63.4,"10099555068136","99555068139"]
[{"$f":"IF(E392=0,\"\",1+MAX($A$2:A391))","v":""},"K-Cup® Pod","Café Escapes®","Café Escapes® Café Mocha, 24ct",null,"5000330123","Café Escapes® Café Mocha, 24ct",4,24,"CS",20,100,null,64.08,63.4,"10099555068037","99555068030"]
[{"$f":"IF(E393=0,\"\",1+MAX($A$2:A392))","v":""},"K-Cup® Pod","Café Escapes®","Café Escapes® Café Vanilla, 24ct",null,"5000330125","Café Escapes® Café Vanilla, 24ct",4,24,"CS",20,100,null,64.08,63.4,"10099555068129","99555068122"]
[{"$f":"IF(E394=0,\"\",1+MAX($A$2:A393))","v":""},"K-Cup® Pod","Café Escapes®","Café Escapes® Chai Latte, 24ct",null,"5000330124","Café Escapes® Chai Latte, 24ct",4,24,"CS",20,100,null,64.08,63.4,"10099555068051","99555068054"]
[{"$f":"IF(E395=0,\"\",1+MAX($A$2:A394))","v":""},"K-Cup® Pod","Café Escapes®","Café Escapes® Dark Chocolate Hot Cocoa, 24ct",null,"5000330122","Café Escapes® Dark Chocolate Hot Cocoa, 24ct",4,24,"CS",20,100,null,64.08,63.4,"10099555068020","99555068023"]
[{"$f":"IF(E396=0,\"\",1+MAX($A$2:A395))","v":""},"K-Cup® Pod","Café Escapes®","Café Escapes® Milk Chocolate Hot Cocoa, 24ct",null,"5000330121","Café Escapes® Milk Chocolate Hot Cocoa, 24ct",4,24,"CS",20,100,null,64.08,63.4,"10099555068013","99555068016"]
[{"$f":"IF(E397=0,\"\",1+MAX($A$2:A396))","v":""},"K-Cup® Pod","Caribou Coffee®","Caribou Coffee® Daybreak Morning Blend Coffee, 10ct",null,"5000381432","Caribou Coffee® Daybreak Morning Blend Coffee, 10ct",6,10,"CS",20,140,null,54.72,54.72,"10611247401108","611247401101"]
[{"$f":"IF(E398=0,\"\",1+MAX($A$2:A397))","v":""},"K-Cup® Pod","Caribou Coffee®","Caribou Coffee® Caribou Blend, 10ct",null,"5000381415","Caribou Coffee® Caribou Blend, 10ct",6,10,"CS",20,140,null,54.72,54.72,"10611247401092","611247401095"]
[{"$f":"IF(E399=0,\"\",1+MAX($A$2:A398))","v":""},"K-Cup® Pod","Caribou Coffee®","Caribou Coffee® Caramel Hideaway, 24ct",null,"5000330787","Caribou Coffee® Caramel Hideaway, 24ct",4,24,"CS",20,100,null,59.24,58.48,"10611247366858","611247366851"]
[{"$f":"IF(E400=0,\"\",1+MAX($A$2:A399))","v":""},"K-Cup® Pod","Caribou Coffee®","Caribou Coffee® Caribou Blend Decaf, 24ct",null,"5000330137","Caribou Coffee® Caribou Blend Decaf, 24ct",4,24,"CS",20,100,null,59.24,58.48,"10611247376710","611247376713"]
[{"$f":"IF(E401=0,\"\",1+MAX($A$2:A400))","v":""},"K-Cup® Pod","Caribou Coffee®","Caribou Coffee® Caribou Blend, 24ct",null,"5000330135","Caribou Coffee® Caribou Blend, 24ct",4,24,"CS",20,100,null,59.24,58.48,"10611247376703","611247376706"]
[{"$f":"IF(E402=0,\"\",1+MAX($A$2:A401))","v":""},"K-Cup® Pod","Caribou Coffee®","Caribou Coffee® Daybreak Blend, 24ct",null,"5000330136","Caribou Coffee® Daybreak Blend, 24ct",4,24,"CS",20,100,null,59.24,58.48,"10611247376697","611247376690"]
[{"$f":"IF(E403=0,\"\",1+MAX($A$2:A402))","v":""},"K-Cup® Pod","Caribou Coffee®","Caribou Coffee® Lakeshore Blend, 24ct",null,"5000346384","Caribou Coffee® Lakeshore Blend, 24ct",4,24,"CS",20,100,null,59.24,58.48,"10611247374266","611247374269"]
[{"$f":"IF(E404=0,\"\",1+MAX($A$2:A403))","v":""},"K-Cup® Pod","Caribou Coffee®","Caribou Coffee® Mahogany, 24ct",null,"5000330134","Caribou Coffee® Mahogany, 24ct",4,24,"CS",20,100,null,59.24,58.48,"10611247376734","611247376737"]
[{"$f":"IF(E405=0,\"\",1+MAX($A$2:A404))","v":""},"K-Cup® Pod","Caribou Coffee®","Caribou Coffee® Obsidian, 24ct",null,"5000355659","Caribou Coffee® Obsidian, 24ct",4,24,"CS",20,100,null,59.24,58.48,"10611247384951","611247384954"]
[{"$f":"IF(E406=0,\"\",1+MAX($A$2:A405))","v":""},"K-Cup® Pod","Caribou Coffee®","Caribou Coffee® Reindeer Blend, 22ct (Winter Seasonal)",null,"5000357727","Caribou Coffee® Reindeer Blend, 22ct",4,22,"CS",20,100,null,59.24,58.48,"10611247382384","611247382387"]
[{"$f":"IF(E407=0,\"\",1+MAX($A$2:A406))","v":""},"K-Cup® Pod","Caribou Coffee®","Caribou Coffee® Vanilla Vibes Oat Milk Latte, 20ct",null,"5000379885","Caribou Coffee® Vanilla Vibes Oat Milk Latte, 20ct",4,20,"CS",20,100,null,63.92,63.08,"10611247402730","611247402733"]
[{"$f":"IF(E408=0,\"\",1+MAX($A$2:A407))","v":""},"K-Cup® Pod","Caribou Coffee®","Caribou Coffee® Caramel Comfort Oat Milk Latte, 20ct",null,"5000379886","Caribou Coffee® Caramel Comfort Oat Milk Latte, 20ct",4,20,"CS",20,100,null,63.92,63.08,"10611247402747","611247402740"]
[{"$f":"IF(E409=0,\"\",1+MAX($A$2:A408))","v":""},"K-Cup® Pod","Caribou Coffee®","Caribou Coffee® BOU YAH, 22ct (Spring Seasonal)",null,"5000368779","Caribou Coffee® BOU YAH, 22ct",4,22,"CS",20,100,null,59.24,58.48,"10611247396862","611247396865"]
[{"$f":"IF(E410=0,\"\",1+MAX($A$2:A409))","v":""},"K-Cup® Pod","Celestial Seasonings®","Celestial Seasonings® Decaf Green Tea, 24ct",null,"5000330012","Celestial Seasonings® Decaf Green Tea, 24ct",4,24,"CS",20,100,null,52.64,52.04,"10099555147374","99555147377"]
[{"$f":"IF(E411=0,\"\",1+MAX($A$2:A410))","v":""},"K-Cup® Pod","Celestial Seasonings®","Celestial Seasonings® English Breakfast Tea, 24ct",null,"5000330008","Celestial Seasonings® English Breakfast Tea, 24ct",4,24,"CS",20,100,null,52.64,52.04,"10099555147312","99555147315"]
[{"$f":"IF(E412=0,\"\",1+MAX($A$2:A411))","v":""},"K-Cup® Pod","Celestial Seasonings®","Celestial Seasonings® India Spice Chai, 24ct",null,"5000330013","Celestial Seasonings® India Spice Chai, 24ct",4,24,"CS",20,100,null,52.64,52.04,"10099555147381","99555147384"]
[{"$f":"IF(E413=0,\"\",1+MAX($A$2:A412))","v":""},"K-Cup® Pod","Celestial Seasonings®","Celestial Seasonings® Mandarin Orange Spice Tea, 24ct",null,"5000330011","Celestial Seasonings® Mandarin Orange Spice Tea, 24ct",4,24,"CS",20,100,null,52.64,52.04,"10099555147350","99555147353"]
[{"$f":"IF(E414=0,\"\",1+MAX($A$2:A413))","v":""},"K-Cup® Pod","Celestial Seasonings®","Celestial Seasonings® Green Tea, 24ct",null,"5000330010","Celestial Seasonings® Green Tea, 24ct",4,24,"CS",20,100,null,52.64,52.04,"10099555147343","99555147346"]
[{"$f":"IF(E415=0,\"\",1+MAX($A$2:A414))","v":""},"K-Cup® Pod","Celestial Seasonings®","Celestial Seasonings® Sleepytime Herbal Tea, 24ct",null,"5000330014","Celestial Seasonings® Sleepytime Herbal Tea, 24ct",4,24,"CS",20,100,null,52.64,52.04,"10099555147398","99555147391"]
[{"$f":"IF(E416=0,\"\",1+MAX($A$2:A415))","v":""},"K-Cup® Pod","Chock full o'Nuts®","Chock full o'Nuts® Colombian, 24ct",null,"5000385605","Chock full o'Nuts® Colombian, 24ct",4,24,"CS",20,100,null,46.76,46.2,"10071038000949","71038000942"]
[{"$f":"IF(E417=0,\"\",1+MAX($A$2:A416))","v":""},"K-Cup® Pod","Chock full o'Nuts®","Chock full o'Nuts® Midtown Manhattan, 24ct",null,"5000385189","Chock full o'Nuts® Midtown Manhattan, 24ct",4,24,"CS",20,100,null,46.76,46.2,"10071038000994","71038000997"]
[{"$f":"IF(E418=0,\"\",1+MAX($A$2:A417))","v":""},"K-Cup® Pod","Cinnabon®","Cinnabon® Caramel Pecan, 24ct",null,"5000369043","Cinnabon® Caramel Pecan, 24ct",4,24,"CS",20,100,null,59.24,58.48,"10611247397289","611247397282"]
[{"$f":"IF(E419=0,\"\",1+MAX($A$2:A418))","v":""},"K-Cup® Pod","Cinnabon®","Cinnabon® Classic Cinnamon Roll Coffee, 24ct",null,"5000330074","Cinnabon® Classic Cinnamon Roll Coffee, 24ct",4,24,"CS",20,100,null,59.24,58.48,"10099555063056","99555063059"]
[{"$f":"IF(E420=0,\"\",1+MAX($A$2:A419))","v":""},"K-Cup® Pod","Community Coffee®","Community Coffee® Breakfast Blend Coffee, 24ct",null,"5000374324","Community Coffee® Breakfast Blend Coffee, 24ct",4,24,"CS",20,100,null,59.24,58.48,"10035700164063","35700164066"]
[{"$f":"IF(E421=0,\"\",1+MAX($A$2:A420))","v":""},"K-Cup® Pod","Community Coffee®","Community Coffee® Café Special Coffee, 24ct",null,"5000374325","Community Coffee® Café Special Coffee, 24ct",4,24,"CS",20,100,null,59.24,58.48,"10035700164056","35700164059"]
[{"$f":"IF(E422=0,\"\",1+MAX($A$2:A421))","v":""},"K-Cup® Pod","Community Coffee®","Community Coffee® Café Special Decaf Coffee, 24ct",null,"5000374327","Community Coffee® Café Special Decaf Coffee, 24ct",4,24,"CS",20,100,null,59.24,58.48,"10035700164087","35700164080"]
[{"$f":"IF(E423=0,\"\",1+MAX($A$2:A422))","v":""},"K-Cup® Pod","Community Coffee®","Community Coffee® Coffee & Chicory Coffee, 24ct",null,"5000374326","Community Coffee® Coffee & Chicory Coffee, 24ct",4,24,"CS",20,100,null,59.24,58.48,"10035700164148","35700164141"]
[{"$f":"IF(E424=0,\"\",1+MAX($A$2:A423))","v":""},"K-Cup® Pod","Community Coffee®","Community Coffee® Signature  Blend Coffee, 24ct",null,"5000374328","Community Coffee® Signature  Blend Coffee, 24ct",4,24,"CS",20,100,null,59.24,58.48,"10035700164049","35700164042"]
[{"$f":"IF(E425=0,\"\",1+MAX($A$2:A424))","v":""},"K-Cup® Pod","Dunkin'® ","Dunkin'® Caramel Me Crazy, 22ct",null,"5000364900","Dunkin'® Caramel Me Crazy, 22ct",4,22,"CS",20,100,null,62.32,61.6,"10881334012771","881334012774"]
[{"$f":"IF(E426=0,\"\",1+MAX($A$2:A425))","v":""},"K-Cup® Pod","Dunkin'® ","Dunkin'® Decaf, 22ct",null,"5000380568","KEUR DD KCUP DECAF 22CT IHR",4,22,"CS",20,100,null,62.32,61.6,"10611247403171","611247403174"]
[{"$f":"IF(E427=0,\"\",1+MAX($A$2:A426))","v":""},"K-Cup® Pod","Dunkin'® ","Dunkin'® Midnight, 22ct",null,"5000380335","KEUR DD KCUP MDNT JMS 22CT IHR",4,22,"CS",20,100,null,62.32,61.6,"10611247403164","611247403167"]
[{"$f":"IF(E428=0,\"\",1+MAX($A$2:A427))","v":""},"K-Cup® Pod","Dunkin'® ","Dunkin'® French Vanilla, 22ct",null,"5000363272","Dunkin'® French Vanilla, 22ct",4,22,"CS",20,100,null,62.32,61.6,"10881334012689","881334012682"]
[{"$f":"IF(E429=0,\"\",1+MAX($A$2:A428))","v":""},"K-Cup® Pod","Dunkin'® ","Dunkin'® Hazelnut, 22ct",null,"5000363273","Dunkin'® Hazelnut, 22ct",4,22,"CS",20,100,null,62.32,61.6,"10881334012702","881334012705"]
[{"$f":"IF(E430=0,\"\",1+MAX($A$2:A429))","v":""},"K-Cup® Pod","Dunkin'® ","Dunkin'® Milk Chocolate Hot Cocoa, 22ct",null,"5000363547","Dunkin'® Milk Chocolate Hot Cocoa, 22ct",4,22,"CS",20,100,null,62.32,61.6,"10881334012610","881334012613"]
[{"$f":"IF(E431=0,\"\",1+MAX($A$2:A430))","v":""},"K-Cup® Pod","Dunkin'® ","Dunkin'® Original Blend, 22ct",null,"5000380509","KEUR DD KCUP ORIG BL 22CT IHR",4,22,"CS",20,100,null,62.32,61.6,"10611247403157","611247403150"]
[{"$f":"IF(E432=0,\"\",1+MAX($A$2:A431))","v":""},"K-Cup® Pod","Dunkin'® ","Dunkin'® Polar Peppermint, 22ct (Winter Seasonal)",null,"5000358858","Dunkin'® Polar Peppermint, 22ct",4,22,"CS",20,100,null,62.32,61.6,"10881334014256","881334014259"]
[{"$f":"IF(E433=0,\"\",1+MAX($A$2:A432))","v":""},"K-Cup® Pod","Dunkin'® ","Dunkin'® Turtle Love, 22ct",null,"5000367615","Dunkin'® Turtle Love, 22ct",4,22,"CS",20,100,null,62.32,61.6,"10881334014805","881334014808"]
[{"$f":"IF(E434=0,\"\",1+MAX($A$2:A433))","v":""},"K-Cup® Pod","Dunkin'® ","Dunkin' COLD, 22ct",null,"5000369251","Dunkin' COLD, 22ct",4,22,"CS",20,100,null,62.32,61.6,"10881334015161","881334015164"]
[{"$f":"IF(E435=0,\"\",1+MAX($A$2:A434))","v":""},"K-Cup® Pod","Dunkin'® ","Dunkin'® Falling for Maple, 22ct",null,"5000364865","Dunkin'® Falling for Maple, 22ct",4,22,"CS",20,100,null,62.32,61.6,"10881334014782","881334014785"]
[{"$f":"IF(E436=0,\"\",1+MAX($A$2:A435))","v":""},"K-Cup® Pod","Dunkin'® ","Dunkin'® Pumpkin Spice, 22ct (Fall Seasonal)",null,"5000364868","Dunkin'® Pumpkin Spice, 22ct",4,22,"CS",20,100,null,62.32,61.6,"10881334012719","881334012712"]
[{"$f":"IF(E437=0,\"\",1+MAX($A$2:A436))","v":""},"K-Cup® Pod","Dunkin'® ","Dunkin' COLD Caramel, 22ct",null,"5000375314","Dunkin' COLD Caramel, 22ct",4,22,"CS",20,100,null,62.32,61.6,"10881334016243","881334016146"]
[{"$f":"IF(E438=0,\"\",1+MAX($A$2:A437))","v":""},"K-Cup® Pod","Eight O'Clock®","Eight O'Clock® Coffee Colombian Peaks, 24ct",null,"5000359067","Eight O'Clock® Coffee Colombian Peaks, 24ct",4,24,"CS",20,100,null,52.32,51.64,"10011141106329","11141106322"]
[{"$f":"IF(E439=0,\"\",1+MAX($A$2:A438))","v":""},"K-Cup® Pod","Eight O'Clock®","Eight O'Clock® Coffee Dark Italian Roast, 24ct",null,"5000359068","Eight O'Clock® Coffee Dark Italian Roast, 24ct",4,24,"CS",20,100,null,52.32,51.64,"10011141106312","11141106315"]
[{"$f":"IF(E440=0,\"\",1+MAX($A$2:A439))","v":""},"K-Cup® Pod","Eight O'Clock®","Eight O'Clock® Coffee Hazelnut, 24ct",null,"5000359069","Eight O'Clock® Coffee Hazelnut, 24ct",4,24,"CS",20,100,null,52.32,51.64,"10011141106336","11141106339"]
[{"$f":"IF(E441=0,\"\",1+MAX($A$2:A440))","v":""},"K-Cup® Pod","Eight O'Clock®","Eight O'Clock® Coffee The Original Decaf, 24ct",null,"5000384811","Eight O'Clock® Coffee The Original Decaf, 24ct",4,24,"CS",20,100,null,52.32,51.64,"10011141106381","011141106384"]
[{"$f":"IF(E442=0,\"\",1+MAX($A$2:A441))","v":""},"K-Cup® Pod","Eight O'Clock®","Eight O'Clock® Coffee The Original, 24ct",null,"5000356156","Eight O'Clock® Coffee The Original, 24ct",4,24,"CS",20,100,null,52.32,51.64,"10011141106572","11141106575"]
[{"$f":"IF(E443=0,\"\",1+MAX($A$2:A442))","v":""},"K-Cup® Pod","Emeril's®","Emeril's® Big Easy Bold, 24ct",null,"5000376327","Emeril's® Big Easy Bold, 24ct",4,24,"CS",20,100,null,59.24,58.48,"10842115810368","842115810361"]
[{"$f":"IF(E444=0,\"\",1+MAX($A$2:A443))","v":""},"K-Cup® Pod","Folgers®","Folgers® 100% Colombian Coffee, 24ct",null,"5000363990","Folgers® 100% Colombian Coffee, 24ct",4,24,"CS",20,100,null,54.4,53.72,"10025500774593","25500774596"]
[{"$f":"IF(E445=0,\"\",1+MAX($A$2:A444))","v":""},"K-Cup® Pod","Folgers®","Folgers® 100% Colombian Decaf Coffee, 24ct",null,"5000363988","Folgers® 100% Colombian Decaf Coffee, 24ct",4,24,"CS",20,100,null,54.4,53.72,"10025500774609","25500774602"]
[{"$f":"IF(E446=0,\"\",1+MAX($A$2:A445))","v":""},"K-Cup® Pod","Folgers®","Folgers® Black Silk, 24ct",null,"5000368733","Folgers® Black Silk, 24ct",4,24,"CS",20,100,null,54.4,53.72,"10025500774579","25500774572"]
[{"$f":"IF(E447=0,\"\",1+MAX($A$2:A446))","v":""},"K-Cup® Pod","Folgers®","Folgers® Breakfast Blend, 24ct",null,"5000370677","Folgers® Breakfast Blend, 24ct",4,24,"CS",20,100,null,54.4,53.72,"10025500934515","25500934518"]
[{"$f":"IF(E448=0,\"\",1+MAX($A$2:A447))","v":""},"K-Cup® Pod","Folgers®","Folgers® Buttery Caramel, 24ct",null,"5000363977","Folgers® Buttery Caramel, 24ct",4,24,"CS",20,100,null,54.4,53.72,"10025500774616","25500774619"]
[{"$f":"IF(E449=0,\"\",1+MAX($A$2:A448))","v":""},"K-Cup® Pod","Folgers®","Folgers® Classic Roast, 24ct",null,"5000368730","Folgers® Classic Roast, 24ct",4,24,"CS",20,100,null,54.4,53.72,"10025500774562","25500774565"]
[{"$f":"IF(E450=0,\"\",1+MAX($A$2:A449))","v":""},"K-Cup® Pod","Folgers®","Folgers® Toasty Hazelnut, 24ct",null,"5000363978","Folgers® Toasty Hazelnut, 24ct",4,24,"CS",20,100,null,54.4,53.72,"10025500774630","25500774633"]
[{"$f":"IF(E451=0,\"\",1+MAX($A$2:A450))","v":""},"K-Cup® Pod","Folgers®","Folgers® French Vanilla, 24ct",null,"5000363991","Folgers® French Vanilla, 24ct",4,24,"CS",20,100,null,54.4,53.72,"10025500774623","25500774626"]
[{"$f":"IF(E452=0,\"\",1+MAX($A$2:A451))","v":""},"K-Cup® Pod","GEVALIA","GEVALIA Colombia, 24ct",null,"5000363380","GEVALIA Colombia, 24ct",4,24,"CS",20,100,null,64.08,63.4,"10043000080334","43000080337"]
[{"$f":"IF(E453=0,\"\",1+MAX($A$2:A452))","v":""},"K-Cup® Pod","GEVALIA","GEVALIA Dark Royal Roast, 24ct",null,"5000363998","GEVALIA Dark Royal Roast, 24ct",4,24,"CS",20,100,null,64.08,63.4,"10043000080327","43000080320"]
[{"$f":"IF(E454=0,\"\",1+MAX($A$2:A453))","v":""},"K-Cup® Pod","GEVALIA","GEVALIA Signature Blend, 24ct",null,"5000363381","GEVALIA Signature Blend, 24ct",4,24,"CS",20,100,null,64.08,63.4,"10043000080341","43000080344"]
[{"$f":"IF(E455=0,\"\",1+MAX($A$2:A454))","v":""},"K-Cup® Pod","Gloria Jean's®","Gloria Jean's® Butter Toffee, 24ct",null,"5000330066","Gloria Jean's® Butter Toffee, 24ct",4,24,"CS",20,100,null,59.24,58.48,"10834259005007","834259005000"]
[{"$f":"IF(E456=0,\"\",1+MAX($A$2:A455))","v":""},"K-Cup® Pod","Gloria Jean's®","Gloria Jean's® Hazelnut, 24ct",null,"5000330068","Gloria Jean's® Hazelnut, 24ct",4,24,"CS",20,100,null,59.24,58.48,"10834259005038","834259005031"]
[{"$f":"IF(E457=0,\"\",1+MAX($A$2:A456))","v":""},"K-Cup® Pod","Gloria Jean's®","Gloria Jean's® Raspberry Chocolate Lava, 24ct",null,"5000330907","Gloria Jean's® Raspberry Chocolate Lava, 24ct",4,24,"CS",20,100,null,59.24,58.48,"10611247369583","611247369586"]
[{"$f":"IF(E458=0,\"\",1+MAX($A$2:A457))","v":""},"K-Cup® Pod","Gloria Jean's®","Gloria Jean's® French Vanilla Supreme, 24ct",null,"5000330067","Gloria Jean's® French Vanilla Supreme, 24ct",4,24,"CS",20,100,null,59.24,58.48,"10834259005021","834259005024"]
[{"$f":"IF(E459=0,\"\",1+MAX($A$2:A458))","v":""},"K-Cup® Pod","Gloria Jean's®","Gloria Jean's® Macadamia Cookie, 24ct",null,"5000355465","Gloria Jean's® Macadamia Cookie, 24ct",4,24,"CS",20,100,null,59.24,58.48,"10611247374402","611247374405"]
[{"$f":"IF(E460=0,\"\",1+MAX($A$2:A459))","v":""},"K-Cup® Pod","Green Mountain Coffee Roasters®","Green Mountain Coffee Roasters® Black Granite, 10ct",null,"5000382117","Green Mountain Coffee Roasters® Black Granite, 10ct",6,10,"CS",20,140,null,54.72,54.72,"10611247404451","611247404454"]
[{"$f":"IF(E461=0,\"\",1+MAX($A$2:A460))","v":""},"K-Cup® Pod","Green Mountain Coffee Roasters®","Green Mountain Coffee Roasters® Breakfast Blend Decaf, 10ct",null,"5000382122","Green Mountain Coffee Roasters® Breakfast Blend Decaf, 10ct",6,10,"CS",20,140,null,54.72,54.72,"10611247404505","611247404508"]
[{"$f":"IF(E462=0,\"\",1+MAX($A$2:A461))","v":""},"K-Cup® Pod","Green Mountain Coffee Roasters®","Green Mountain Coffee Roasters® Breakfast Blend, 10ct",null,"5000380888","Green Mountain Coffee Roasters® Breakfast Blend, 10ct",6,10,"CS",20,140,null,54.72,54.72,"10611247403539","611247403532"]
[{"$f":"IF(E463=0,\"\",1+MAX($A$2:A462))","v":""},"K-Cup® Pod","Green Mountain Coffee Roasters®","Green Mountain Coffee Roasters® Brown Sugar Crumble, 10ct",null,"5000382145","Green Mountain Coffee Roasters® Brown Sugar Crumble, 10ct",6,10,"CS",20,140,null,54.72,54.72,"10611247404734","611247404737"]
[{"$f":"IF(E464=0,\"\",1+MAX($A$2:A463))","v":""},"K-Cup® Pod","Green Mountain Coffee Roasters®","Green Mountain Coffee Roasters® Caramel Vanilla Cream, 10ct",null,"5000382124","Green Mountain Coffee Roasters® Caramel Vanilla Cream, 10ct",6,10,"CS",20,140,null,54.72,54.72,"10611247404529","611247404522"]
[{"$f":"IF(E465=0,\"\",1+MAX($A$2:A464))","v":""},"K-Cup® Pod","Green Mountain Coffee Roasters®","Green Mountain Coffee Roasters® Cinnamon Sugar Cookie, 10ct (Winter Seasonal)",null,"5000376650","Green Mountain Coffee Roasters® Cinnamon Sugar Cookie, 10ct",6,10,"CS",20,140,null,54.72,54.72,"10611247400774","611247400777"]
[{"$f":"IF(E466=0,\"\",1+MAX($A$2:A465))","v":""},"K-Cup® Pod","Green Mountain Coffee Roasters®","Green Mountain Coffee Roasters® Colombia Select, 10ct",null,"5000382132","Green Mountain Coffee Roasters® Colombia Select, 10ct",6,10,"CS",20,140,null,54.72,54.72,"10611247404604","611247404607"]
[{"$f":"IF(E467=0,\"\",1+MAX($A$2:A466))","v":""},"K-Cup® Pod","Green Mountain Coffee Roasters®","Green Mountain Coffee Roasters® Costa Rica Paraiso, 10ct",null,"5000382146","Green Mountain Coffee Roasters® Costa Rica Paraiso, 10ct",6,10,"CS",20,140,null,54.72,54.72,"10611247404741","611247404744"]
[{"$f":"IF(E468=0,\"\",1+MAX($A$2:A467))","v":""},"K-Cup® Pod","Green Mountain Coffee Roasters®","Green Mountain Coffee Roasters® Dark Chocolate Hazelnut, 10ct (Fall Seasonal)",null,"5000376647","Green Mountain Coffee Roasters® Dark Chocolate Hazelnut, 10ct",6,10,"CS",20,140,null,54.72,54.72,"10611247400750","611247400753"]
[{"$f":"IF(E469=0,\"\",1+MAX($A$2:A468))","v":""},"K-Cup® Pod","Green Mountain Coffee Roasters®","Green Mountain Coffee Roasters® Dark Magic Decaf, 10ct",null,"5000382127","Green Mountain Coffee Roasters® Dark Magic Decaf, 10ct",6,10,"CS",20,140,null,54.72,54.72,"10611247404550","611247404553"]
[{"$f":"IF(E470=0,\"\",1+MAX($A$2:A469))","v":""},"K-Cup® Pod","Green Mountain Coffee Roasters®","Green Mountain Coffee Roasters® Dark Magic, 10ct",null,"5000380890","Green Mountain Coffee Roasters® Dark Magic, 10ct",6,10,"CS",20,140,null,54.72,54.72,"10611247403553","611247403556"]
[{"$f":"IF(E471=0,\"\",1+MAX($A$2:A470))","v":""},"K-Cup® Pod","Green Mountain Coffee Roasters®","Green Mountain Coffee Roasters® Double Diamond, 10ct",null,"5000382128","Green Mountain Coffee Roasters® Double Diamond, 10ct",6,10,"CS",20,140,null,54.72,54.72,"10611247404567","611247404560"]
[{"$f":"IF(E472=0,\"\",1+MAX($A$2:A471))","v":""},"K-Cup® Pod","Green Mountain Coffee Roasters®","Green Mountain Coffee Roasters® Ethiopia Supreme Coffee, 10ct",null,"5000382120","Green Mountain Coffee Roasters® Ethiopia Supreme Coffee, 10ct",6,10,"CS",20,140,null,54.72,54.72,"10611247404482","611247404485"]
[{"$f":"IF(E473=0,\"\",1+MAX($A$2:A472))","v":""},"K-Cup® Pod","Green Mountain Coffee Roasters®","Green Mountain Coffee Roasters® French Roast, 10ct",null,"5000382129","Green Mountain Coffee Roasters® French Roast, 10ct",6,10,"CS",20,140,null,54.72,54.72,"10611247404574","611247404577"]
[{"$f":"IF(E474=0,\"\",1+MAX($A$2:A473))","v":""},"K-Cup® Pod","Green Mountain Coffee Roasters®","Green Mountain Coffee Roasters® French Vanilla Decaf, 10ct",null,"5000382131","Green Mountain Coffee Roasters® French Vanilla Decaf, 10ct",6,10,"CS",20,140,null,54.72,54.72,"10611247404598","611247404591"]
[{"$f":"IF(E475=0,\"\",1+MAX($A$2:A474))","v":""},"K-Cup® Pod","Green Mountain Coffee Roasters®","Green Mountain Coffee Roasters® French Vanilla, 10ct",null,"5000382130","Green Mountain Coffee Roasters® French Vanilla, 10ct",6,10,"CS",20,140,null,54.72,54.72,"10611247404581","611247404584"]
[{"$f":"IF(E476=0,\"\",1+MAX($A$2:A475))","v":""},"K-Cup® Pod","Green Mountain Coffee Roasters®","Green Mountain Coffee Roasters® Half Caff, 10ct",null,"5000382138","Green Mountain Coffee Roasters® Half Caff, 10ct",6,10,"CS",20,140,null,54.72,54.72,"10611247404666","611247404669"]
[{"$f":"IF(E477=0,\"\",1+MAX($A$2:A476))","v":""},"K-Cup® Pod","Green Mountain Coffee Roasters®","Green Mountain Coffee Roasters® Hazelnut Decaf, 10ct",null,"5000382140","Green Mountain Coffee Roasters® Hazelnut Decaf, 10ct",6,10,"CS",20,140,null,54.72,54.72,"10611247404680","611247404683"]
[{"$f":"IF(E478=0,\"\",1+MAX($A$2:A477))","v":""},"K-Cup® Pod","Green Mountain Coffee Roasters®","Green Mountain Coffee Roasters® Hazelnut, 10ct",null,"5000382139","Green Mountain Coffee Roasters® Hazelnut, 10ct",6,10,"CS",20,140,null,54.72,54.72,"10611247404673","611247404676"]
[{"$f":"IF(E479=0,\"\",1+MAX($A$2:A478))","v":""},"K-Cup® Pod","Green Mountain Coffee Roasters®","Green Mountain Coffee Roasters® Holiday Blend, 10ct (Winter Seasonal)",null,"5000376662","Green Mountain Coffee Roasters® Holiday Blend, 10ct",6,10,"CS",20,140,null,54.72,54.72,"10611247400835","611247400838"]
[{"$f":"IF(E480=0,\"\",1+MAX($A$2:A479))","v":""},"K-Cup® Pod","Green Mountain Coffee Roasters®","Green Mountain Coffee Roasters® ICED Classic Black, 10ct",null,"5000382149","Green Mountain Coffee Roasters® ICED Classic Black, 10ct",6,10,"CS",20,140,null,54.72,54.72,"10611247404772","611247404775"]
[{"$f":"IF(E481=0,\"\",1+MAX($A$2:A480))","v":""},"K-Cup® Pod","Green Mountain Coffee Roasters®","Green Mountain Coffee Roasters® ICED Hazelnut Cream, 10ct",null,"5000382151","Green Mountain Coffee Roasters® ICED Hazelnut Cream, 10ct",6,10,"CS",20,140,null,54.72,54.72,"10611247404796","611247404799"]
[{"$f":"IF(E482=0,\"\",1+MAX($A$2:A481))","v":""},"K-Cup® Pod","Green Mountain Coffee Roasters®","Green Mountain Coffee Roasters® ICED Pumpkin Spice, 10ct (Fall Seasonal)",null,"5000376616","Green Mountain Coffee Roasters® ICED Pumpkin Spice, 10ct",6,10,"CS",20,140,null,54.72,54.72,"10611247400736","611247400739"]
[{"$f":"IF(E483=0,\"\",1+MAX($A$2:A482))","v":""},"K-Cup® Pod","Green Mountain Coffee Roasters®","Green Mountain Coffee Roasters® ICED Vanilla Caramel, 10ct",null,"5000382150","Green Mountain Coffee Roasters® ICED Vanilla Caramel, 10ct",6,10,"CS",20,140,null,54.72,54.72,"10611247404789","611247404782"]
[{"$f":"IF(E484=0,\"\",1+MAX($A$2:A483))","v":""},"K-Cup® Pod","Green Mountain Coffee Roasters®","Green Mountain Coffee Roasters® Maple Pecan, 10ct (Fall Seasonal)",null,"5000376661","Green Mountain Coffee Roasters® Maple Pecan, 10ct",6,10,"CS",20,140,null,54.72,54.72,"10611247400828","611247400821"]
[{"$f":"IF(E485=0,\"\",1+MAX($A$2:A484))","v":""},"K-Cup® Pod","Green Mountain Coffee Roasters®","Green Mountain Coffee Roasters® Nantucket Blend, 10ct",null,"5000382142","Green Mountain Coffee Roasters® Nantucket Blend, 10ct",6,10,"CS",20,140,null,54.72,54.72,"10611247404703","611247404706"]
[{"$f":"IF(E486=0,\"\",1+MAX($A$2:A485))","v":""},"K-Cup® Pod","Green Mountain Coffee Roasters®","Green Mountain Coffee Roasters® Pumpkin Spice, 10ct (Fall Seasonal)",null,"5000376660","Green Mountain Coffee Roasters® Pumpkin Spice, 10ct",4,10,"CS",20,140,null,54.72,54.72,"10611247400811​","611247400814"]
[{"$f":"IF(E487=0,\"\",1+MAX($A$2:A486))","v":""},"K-Cup® Pod","Green Mountain Coffee Roasters®","Green Mountain Coffee Roasters® Southern Pecan, 10ct",null,"5000382144","Green Mountain Coffee Roasters® Southern Pecan, 10ct",6,10,"CS",20,140,null,54.72,54.72,"10611247404727","611247404720"]
[{"$f":"IF(E488=0,\"\",1+MAX($A$2:A487))","v":""},"K-Cup® Pod","Green Mountain Coffee Roasters®","Green Mountain Coffee Roasters® Sumatra Reserve, 10ct",null,"5000382135","Green Mountain Coffee Roasters® Sumatra Reserve, 10ct",6,10,"CS",20,140,null,54.72,54.72,"10611247404635","611247404638"]
[{"$f":"IF(E489=0,\"\",1+MAX($A$2:A488))","v":""},"K-Cup® Pod","Green Mountain Coffee Roasters®","Green Mountain Coffee Roasters® Vermont Country, 10ct",null,"5000382148","Green Mountain Coffee Roasters® Vermont Country, 10ct",6,10,"CS",20,140,null,54.72,54.72,"10611247404765","611247404768"]
[{"$f":"IF(E490=0,\"\",1+MAX($A$2:A489))","v":""},"K-Cup® Pod","Green Mountain Coffee Roasters®","Green Mountain Coffee Roasters® Wild Mountain Blueberry, 10ct",null,"5000382134","Green Mountain Coffee Roasters® Wild Mountain Blueberry, 10ct",6,10,"CS",20,140,null,54.72,54.72,"10611247404628","611247404621"]
[{"$f":"IF(E491=0,\"\",1+MAX($A$2:A490))","v":""},"K-Cup® Pod","Green Mountain Coffee Roasters®","Green Mountain Coffee Roasters® Black Granite, 24ct",null,"5000366650","Green Mountain Coffee Roasters® Black Granite, 24ct",4,24,"CS",20,100,null,57.6,56.84,"10611247395308","611247395301"]
[{"$f":"IF(E492=0,\"\",1+MAX($A$2:A491))","v":""},"K-Cup® Pod","Green Mountain Coffee Roasters®","Green Mountain Coffee Roasters® Breakfast Blend Decaf, 24ct",null,"5000378812","Green Mountain Coffee Roasters® Breakfast Blend Decaf, 24ct",4,24,"CS",20,100,null,57.6,56.84,"10099555075226","99555075229"]
[{"$f":"IF(E493=0,\"\",1+MAX($A$2:A492))","v":""},"K-Cup® Pod","Green Mountain Coffee Roasters®","Green Mountain Coffee Roasters® Breakfast Blend, 24ct",null,"5000330085","Green Mountain Coffee Roasters® Breakfast Blend, 24ct",4,24,"CS",20,100,null,57.6,56.84,"10099555065203","99555065206"]
[{"$f":"IF(E494=0,\"\",1+MAX($A$2:A493))","v":""},"K-Cup® Pod","Green Mountain Coffee Roasters®","Green Mountain Coffee Roasters® Brown Sugar Crumble, 24ct",null,"5000356556","Green Mountain Coffee Roasters® Brown Sugar Crumble, 24ct",4,24,"CS",20,100,null,57.6,56.84,"10611247388058","611247388051"]
[{"$f":"IF(E495=0,\"\",1+MAX($A$2:A494))","v":""},"K-Cup® Pod","Green Mountain Coffee Roasters®","Green Mountain Coffee Roasters® Caramel Vanilla Cream, 24ct",null,"5000330109","Green Mountain Coffee Roasters® Caramel Vanilla Cream, 24ct",4,24,"CS",20,100,null,57.6,56.84,"10099555067009","99555067002"]
[{"$f":"IF(E496=0,\"\",1+MAX($A$2:A495))","v":""},"K-Cup® Pod","Green Mountain Coffee Roasters®","Green Mountain Coffee Roasters® Chocolate Dipped Pistachio, 24ct (Spring Seasonal)",null,"5000378228","Green Mountain Coffee Roasters® Chocolate Dipped Pistachio, 24ct",4,24,"CS",20,100,null,57.6,56.84,"10611247401580","611247401583"]
[{"$f":"IF(E497=0,\"\",1+MAX($A$2:A496))","v":""},"K-Cup® Pod","Green Mountain Coffee Roasters®","Green Mountain Coffee Roasters® Cinnamon Honey Drizzle, 24ct (Spring Seasonal)",null,"5000378226","Green Mountain Coffee Roasters® Cinnamon Honey Drizzle, 24ct",4,24,"CS",20,100,null,57.6,56.84,"10611247401566","611247401569"]
[{"$f":"IF(E498=0,\"\",1+MAX($A$2:A497))","v":""},"K-Cup® Pod","Green Mountain Coffee Roasters®","Green Mountain Coffee Roasters® Cinnamon Sugar Cookie, 24ct (Winter Seasonal)",null,"5000369066","Green Mountain Coffee Roasters® Cinnamon Sugar Cookie, 24ct",4,24,"CS",20,100,null,57.6,56.84,"10611247358143","611247358146"]
[{"$f":"IF(E499=0,\"\",1+MAX($A$2:A498))","v":""},"K-Cup® Pod","Green Mountain Coffee Roasters®","Green Mountain Coffee Roasters® Colombia Select, 24ct",null,"5000330056","Green Mountain Coffee Roasters® Colombia Select, 24ct",4,24,"CS",20,100,null,57.6,56.84,"10099555060031","99555060034"]
[{"$f":"IF(E500=0,\"\",1+MAX($A$2:A499))","v":""},"K-Cup® Pod","Green Mountain Coffee Roasters®","Green Mountain Coffee Roasters® Costa Rica Paraiso, 24ct",null,"5000346538","Green Mountain Coffee Roasters® Costa Rica Paraiso, 24ct",4,24,"CS",20,100,null,57.6,56.84,"10611247380878","611247380871"]
[{"$f":"IF(E501=0,\"\",1+MAX($A$2:A500))","v":""},"K-Cup® Pod","Green Mountain Coffee Roasters®","Green Mountain Coffee Roasters® Dark Magic Decaf, 24ct",null,"5000378924","Green Mountain Coffee Roasters® Dark Magic Decaf, 24ct",4,24,"CS",20,100,null,57.6,56.84,"10099555040675","99555040678"]
[{"$f":"IF(E502=0,\"\",1+MAX($A$2:A501))","v":""},"K-Cup® Pod","Green Mountain Coffee Roasters®","Green Mountain Coffee Roasters® Dark Magic, 24ct",null,"5000378882","Green Mountain Coffee Roasters® Dark Magic, 24ct",4,24,"CS",20,100,null,57.6,56.84,"10099555040613","99555040616"]
[{"$f":"IF(E503=0,\"\",1+MAX($A$2:A502))","v":""},"K-Cup® Pod","Green Mountain Coffee Roasters®","Green Mountain Coffee Roasters® Double Diamond, 24ct",null,"5000330051","Green Mountain Coffee Roasters® Double Diamond, 24ct",4,24,"CS",20,100,null,57.6,56.84,"10099555040668","99555040661"]
[{"$f":"IF(E504=0,\"\",1+MAX($A$2:A503))","v":""},"K-Cup® Pod","Green Mountain Coffee Roasters®","Green Mountain Coffee Roasters® Ethiopia Supreme Coffee, 24ct",null,"5000349061","Green Mountain Coffee Roasters® Ethiopia Supreme Coffee, 24ct",4,24,"CS",20,100,null,57.6,56.84,"10611247384883","611247384886"]
[{"$f":"IF(E505=0,\"\",1+MAX($A$2:A504))","v":""},"K-Cup® Pod","Green Mountain Coffee Roasters®","Green Mountain Coffee Roasters® French Roast, 24ct",null,"5000330108","Green Mountain Coffee Roasters® French Roast, 24ct",4,24,"CS",20,100,null,57.6,56.84,"10099555066941","99555066944"]
[{"$f":"IF(E506=0,\"\",1+MAX($A$2:A505))","v":""},"K-Cup® Pod","Green Mountain Coffee Roasters®","Green Mountain Coffee Roasters® French Vanilla Decaf, 24ct",null,"5000330142","Green Mountain Coffee Roasters® French Vanilla Decaf, 24ct",4,24,"CS",20,100,null,57.6,56.84,"10099555077329","99555077322"]
[{"$f":"IF(E507=0,\"\",1+MAX($A$2:A506))","v":""},"K-Cup® Pod","Green Mountain Coffee Roasters®","Green Mountain Coffee Roasters® French Vanilla, 24ct",null,"5000330112","Green Mountain Coffee Roasters® French Vanilla, 24ct",4,24,"CS",20,100,null,57.6,56.84,"10099555067320","99555067323"]
[{"$f":"IF(E508=0,\"\",1+MAX($A$2:A507))","v":""},"K-Cup® Pod","Green Mountain Coffee Roasters®","Green Mountain Coffee Roasters® Half Caff, 24ct",null,"5000330138","Green Mountain Coffee Roasters® Half Caff, 24ct",4,24,"CS",20,100,null,57.6,56.84,"10099555069997","99555069990"]
[{"$f":"IF(E509=0,\"\",1+MAX($A$2:A508))","v":""},"K-Cup® Pod","Green Mountain Coffee Roasters®","Green Mountain Coffee Roasters® Hazelnut Decaf, 24ct",null,"5000330143","Green Mountain Coffee Roasters® Hazelnut Decaf, 24ct",4,24,"CS",20,100,null,57.6,56.84,"10099555077923","99555077926"]
[{"$f":"IF(E510=0,\"\",1+MAX($A$2:A509))","v":""},"K-Cup® Pod","Green Mountain Coffee Roasters®","Green Mountain Coffee Roasters® Hazelnut, 24ct",null,"5000330120","Green Mountain Coffee Roasters® Hazelnut, 24ct",4,24,"CS",20,100,null,57.6,56.84,"10099555067924","99555067927"]
[{"$f":"IF(E511=0,\"\",1+MAX($A$2:A510))","v":""},"K-Cup® Pod","Green Mountain Coffee Roasters®","Green Mountain Coffee Roasters® Holiday Blend, 24ct (Winter Seasonal)",null,"5000373747","Green Mountain Coffee Roasters® Holiday Blend, 24ct",4,24,"CS",20,100,null,57.6,56.84,"10099555062042","99555062045"]
[{"$f":"IF(E512=0,\"\",1+MAX($A$2:A511))","v":""},"K-Cup® Pod","Green Mountain Coffee Roasters®","Green Mountain Coffee Roasters® ICED Classic Black, 24ct",null,"5000359622","Green Mountain Coffee Roasters® ICED Classic Black, 24ct",4,24,"CS",20,100,null,57.6,56.84,"10611247390273","611247390276"]
[{"$f":"IF(E513=0,\"\",1+MAX($A$2:A512))","v":""},"K-Cup® Pod","Green Mountain Coffee Roasters®","Green Mountain Coffee Roasters® ICED Hazelnut Cream, 24ct",null,"5000359624","Green Mountain Coffee Roasters® ICED Hazelnut Cream, 24ct",4,24,"CS",20,100,null,57.6,56.84,"10611247390297","611247390290"]
[{"$f":"IF(E514=0,\"\",1+MAX($A$2:A513))","v":""},"K-Cup® Pod","Green Mountain Coffee Roasters®","Green Mountain Coffee Roasters® ICED Vanilla Caramel, 24ct",null,"5000359623","Green Mountain Coffee Roasters® ICED Vanilla Caramel, 24ct",4,24,"CS",20,100,null,57.6,56.84,"10611247390280","611247390283"]
[{"$f":"IF(E515=0,\"\",1+MAX($A$2:A514))","v":""},"K-Cup® Pod","Green Mountain Coffee Roasters®","Green Mountain Coffee Roasters® Kevin Costner Horizon Blend, 24ct ",null,"5000381879","Green Mountain Coffee Roasters® Kevin Costner Horizon Blend, 24ct ",4,24,"CS",20,140,null,57.6,56.84,"10611247402518","611247402511"]
[{"$f":"IF(E516=0,\"\",1+MAX($A$2:A515))","v":""},"K-Cup® Pod","Green Mountain Coffee Roasters®","Green Mountain Coffee Roasters® Island Coconut, 24ct (Spring Seasonal)",null,"5000365434","Green Mountain Coffee Roasters® Island Coconut, 24ct",4,24,"CS",20,100,null,57.6,56.84,"10099555067207","99555067200"]
[{"$f":"IF(E517=0,\"\",1+MAX($A$2:A516))","v":""},"K-Cup® Pod","Green Mountain Coffee Roasters®","Green Mountain Coffee Roasters® Lake & Lodge, 24ct",null,"5000359049","Green Mountain Coffee Roasters® Lake & Lodge, 24ct",4,24,"CS",20,100,null,57.6,56.84,"10099555065234","99555065237"]
[{"$f":"IF(E518=0,\"\",1+MAX($A$2:A517))","v":""},"K-Cup® Pod","Green Mountain Coffee Roasters®","Green Mountain Coffee Roasters® Nantucket Blend, 24ct",null,"5000378842","Green Mountain Coffee Roasters® Nantucket Blend, 24ct",4,24,"CS",20,100,null,57.6,56.84,"10099555066637","99555066630"]
[{"$f":"IF(E519=0,\"\",1+MAX($A$2:A518))","v":""},"K-Cup® Pod","Green Mountain Coffee Roasters®","Green Mountain Coffee Roasters® Our Blend, 24ct",null,"5000355594","Green Mountain Coffee Roasters® Our Blend, 24ct",4,24,"CS",20,100,null,57.6,56.84,"10099555065708","99555065701"]
[{"$f":"IF(E520=0,\"\",1+MAX($A$2:A519))","v":""},"K-Cup® Pod","Green Mountain Coffee Roasters®","Green Mountain Coffee Roasters® Southern Pecan, 24ct",null,"5000330118","Green Mountain Coffee Roasters® Southern Pecan, 24ct",4,24,"CS",20,100,null,57.6,56.84,"10099555067726","99555067729"]
[{"$f":"IF(E521=0,\"\",1+MAX($A$2:A520))","v":""},"K-Cup® Pod","Green Mountain Coffee Roasters®","Green Mountain Coffee Roasters® Sumatra Reserve, 24ct",null,"5000366637","Green Mountain Coffee Roasters® Sumatra Reserve, 24ct",4,24,"CS",20,100,null,57.6,56.84,"10099555040606","99555040609"]
[{"$f":"IF(E522=0,\"\",1+MAX($A$2:A521))","v":""},"K-Cup® Pod","Green Mountain Coffee Roasters®","Green Mountain Coffee Roasters® Vermont Country Blend Decaf, 24ct",null,"5000330141","Green Mountain Coffee Roasters® Vermont Country Blend Decaf, 24ct",4,24,"CS",20,100,null,57.6,56.84,"10099555076025","99555076028"]
[{"$f":"IF(E523=0,\"\",1+MAX($A$2:A522))","v":""},"K-Cup® Pod","Green Mountain Coffee Roasters®","Green Mountain Coffee Roasters® Vermont Country Blend, 24ct",null,"5000355581","Green Mountain Coffee Roasters® Vermont Country Blend, 24ct",4,24,"CS",20,100,null,57.6,56.84,"10099555066026","99555066029"]
[{"$f":"IF(E524=0,\"\",1+MAX($A$2:A523))","v":""},"K-Cup® Pod","Green Mountain Coffee Roasters®","Green Mountain Coffee Roasters® Wild Mountain Blueberry, 24ct",null,"5000366902","Green Mountain Coffee Roasters® Wild Mountain Blueberry, 24ct",4,24,"CS",20,100,null,57.6,56.84,"10099555067832","99555067835"]
[{"$f":"IF(E525=0,\"\",1+MAX($A$2:A524))","v":""},"K-Cup® Pod","Green Mountain Coffee Roasters®","Green Mountain Coffee Roasters® ICED Cold Brew Almond Vanilla, 20ct ",null,"5000372045","Green Mountain Coffee Roasters® ICED Cold Brew Almond Vanilla, 20ct ",4,20,"CS",20,100,null,57.6,56.84,"10611247398309","611247398302"]
[{"$f":"IF(E526=0,\"\",1+MAX($A$2:A525))","v":""},"K-Cup® Pod","Green Mountain Coffee Roasters®","Green Mountain Coffee Roasters® ICED Cold Brew Black, 20ct ",null,"5000372042","Green Mountain Coffee Roasters® ICED Cold Brew Black, 20ct ",4,20,"CS",20,100,null,57.6,56.84,"10611247398286","611247398289"]
[{"$f":"IF(E527=0,\"\",1+MAX($A$2:A526))","v":""},"K-Cup® Pod","Green Mountain Coffee Roasters®","Green Mountain Coffee Roasters® Kevin Costner Horizon Blend, 24ct ",null,"5000379575","Green Mountain Coffee Roasters® Kevin Costner Horizon Blend, 24ct ",4,24,"CS",20,140,null,57.6,56.84,"10611247402518","611247402511"]
[{"$f":"IF(E528=0,\"\",1+MAX($A$2:A527))","v":""},"K-Cup® Pod","Green Mountain Coffee Roasters®","Keurig® Flavored Coffee Variety Pack, 24ct",null,"5000374160","Keurig® Flavored Coffee Variety Pack, 24ct",4,24,"CS",20,100,null,62.48,61.72,"10611247399757","611247399750"]
[{"$f":"IF(E529=0,\"\",1+MAX($A$2:A528))","v":""},"K-Cup® Pod","Green Mountain Coffee Roasters®","Keurig® Regular Coffee Variety Pack, 24ct",null,"5000374159","Keurig® Regular Coffee Variety Pack, 24ct",4,24,"CS",20,100,null,62.48,61.72,"10611247399740","611247399743"]
[{"$f":"IF(E530=0,\"\",1+MAX($A$2:A529))","v":""},"K-Cup® Pod","Green Mountain Coffee Roasters®","Green Mountain Coffee Roasters® Dark Chocolate Hazelnut, 24ct (Fall Seasonal)",null,"5000373746","Green Mountain Coffee Roasters® Dark Chocolate Hazelnut, 24ct",4,24,"CS",20,100,null,57.6,56.84,"10611247391409","611247391402"]
[{"$f":"IF(E531=0,\"\",1+MAX($A$2:A530))","v":""},"K-Cup® Pod","Green Mountain Coffee Roasters®","Green Mountain Coffee Roasters® Maple Pecan, 24ct (Fall Seasonal)",null,"5000369064","Green Mountain Coffee Roasters® Maple Pecan, 24ct",4,24,"CS",20,100,null,57.6,56.84,"10611247376741","611247376744"]
[{"$f":"IF(E532=0,\"\",1+MAX($A$2:A531))","v":""},"K-Cup® Pod","Green Mountain Coffee Roasters®","Green Mountain Coffee Roasters® Pumpkin Spice, 24ct (Fall Seasonal)",null,"5000368942","Green Mountain Coffee Roasters® Pumpkin Spice, 24ct",4,24,"CS",20,100,null,57.6,56.84,"10099555067580","99555067583"]
[{"$f":"IF(E533=0,\"\",1+MAX($A$2:A532))","v":""},"K-Cup® Pod","illy®","illy® Classico, 20ct",null,"5000363678","illy® Classico, 20ct",4,20,"CS",20,100,null,64.08,63.4,"10733411077817","733411077810"]
[{"$f":"IF(E534=0,\"\",1+MAX($A$2:A533))","v":""},"K-Cup® Pod","illy®","illy® Intenso, 20ct",null,"5000363677","illy® Intenso, 20ct",4,20,"CS",20,100,null,64.08,63.4,"10733411077824","733411077827"]
[{"$f":"IF(E535=0,\"\",1+MAX($A$2:A534))","v":""},"K-Cup® Pod","Intelligentsia","Intelligentsia El Gallo, 20ct",null,"5000371867","Intelligentsia El Gallo, 20ct",4,20,"CS",20,100,null,77.400000000000006,76.36,"10800222001543","800222001546"]
[{"$f":"IF(E536=0,\"\",1+MAX($A$2:A535))","v":""},"K-Cup® Pod","Intelligentsia","Intelligentsia House Blend, 20ct",null,"5000371868","Intelligentsia House Blend, 20ct",4,20,"CS",20,100,null,77.400000000000006,76.36,"10800222001536","800222001539"]
[{"$f":"IF(E537=0,\"\",1+MAX($A$2:A536))","v":""},"K-Cup® Pod","Kahawa 1893","Kahawa 1893 Safari Blend, 20ct",null,"5000384027","Kahawa 1893 Safari Blend, 20ct",4,20,"CS",20,100,null,63.92,63.08,"850033957297","10850033957294"]
[{"$f":"IF(E538=0,\"\",1+MAX($A$2:A537))","v":""},"K-Cup® Pod","Kahawa 1893","Kahawa 1893 Serengeti Blend, 20ct",null,"5000384025","Kahawa 1893 Serengeti Blend, 20ct",4,20,"CS",20,100,null,63.92,63.08,"850033957310","10850033957317"]
[{"$f":"IF(E539=0,\"\",1+MAX($A$2:A538))","v":""},"K-Cup® Pod","Kauai Coffee® Company","Kauai Coffee® Company Nā Pali Coast, 22ct",null,5000386248,"Kauai Coffee® Company Nā Pali Coast, 22ct",4,22," CS",20,100,null,57.6,56.84,"10782605163706","782605163709"]
[{"$f":"IF(E540=0,\"\",1+MAX($A$2:A539))","v":""},"K-Cup® Pod","Kauai Coffee® Company","Kauai Coffee® Company Vanilla Macadamia Nut, 22ct",null,5000386250,"Kauai Coffee® Company Vanilla Macadamia Nut, 22ct",4,22," CS",20,100,null,57.6,56.84,"10782605163744","782605163747"]
[{"$f":"IF(E541=0,\"\",1+MAX($A$2:A540))","v":""},"K-Cup® Pod","Krispy Kreme® Doughnuts Coffee","Krispy Kreme® Doughnuts Coffee Classic Decaf, 24ct",null,"5000330037","Krispy Kreme® Doughnuts Coffee Classic Decaf, 24ct",4,24,"CS",20,100,null,59.24,58.48,"10099555061113","99555061116"]
[{"$f":"IF(E542=0,\"\",1+MAX($A$2:A541))","v":""},"K-Cup® Pod","Krispy Kreme® Doughnuts Coffee","Krispy Kreme® Doughnuts Coffee Classic, 24ct",null,"5000330036","Krispy Kreme® Doughnuts Coffee Classic, 24ct",4,24,"CS",20,100,null,59.24,58.48,"10099555061106","99555061109"]
[{"$f":"IF(E543=0,\"\",1+MAX($A$2:A542))","v":""},"K-Cup® Pod","Krispy Kreme® Doughnuts Coffee","Krispy Kreme® Doughnuts Coffee Original Glazed Doughnut, 24ct",null,"5000346001","Krispy Kreme® Doughnuts Coffee Original Glazed Doughnut, 24ct",4,24,"CS",20,100,null,59.24,58.48,"10611247372217","611247372210"]
[{"$f":"IF(E544=0,\"\",1+MAX($A$2:A543))","v":""},"K-Cup® Pod","Laughing Man","Laughing Man Colombia Huila",null,"5000345773","Laughing Man Colombia Huila",4,20,"CS",20,100,null,59.24,58.48,"10611247383374","611247383377"]
[{"$f":"IF(E545=0,\"\",1+MAX($A$2:A544))","v":""},"K-Cup® Pod","Laughing Man","Laughing Man Dukales Blend",null,"5000345777","Laughing Man Dukales Blend",4,20,"CS",20,100,null,59.24,58.48,"10611247383381","611247383384"]
[{"$f":"IF(E546=0,\"\",1+MAX($A$2:A545))","v":""},"K-Cup® Pod","Lipton®","Lipton® Classic Unsweetened Iced Tea",null,"5000367654","Lipton® Classic Unsweetened Iced Tea",4,24,"CS",20,100,null,57.44,56.68,"10041000005432","41000005435"]
[{"$f":"IF(E547=0,\"\",1+MAX($A$2:A546))","v":""},"K-Cup® Pod","Lipton®","Lipton® Southern Sweet Iced Tea",null,"5000367653","Lipton® Southern Sweet Iced Tea",4,24,"CS",20,100,null,57.44,56.68,"10041000005456","41000005459"]
[{"$f":"IF(E548=0,\"\",1+MAX($A$2:A547))","v":""},"K-Cup® Pod","Maxwell House®","Maxwell House® House Blend Decaf, 24ct",null,"5000363384","Maxwell House® House Blend Decaf, 24ct",4,24,"CS",20,100,null,46.76,46.2,"10043000080402","43000080405"]
[{"$f":"IF(E549=0,\"\",1+MAX($A$2:A548))","v":""},"K-Cup® Pod","Maxwell House®","Maxwell House® House Blend, 24ct",null,"5000363643","Maxwell House® House Blend, 24ct",4,24,"CS",20,100,null,46.76,46.2,"10043000080471","43000080474"]
[{"$f":"IF(E550=0,\"\",1+MAX($A$2:A549))","v":""},"K-Cup® Pod","Maxwell House®","Maxwell House® Original Roast, 24ct",null,"5000363999","Maxwell House® Original Roast, 24ct",4,24,"CS",20,100,null,46.76,46.2,"10043000080433","43000080436"]
[{"$f":"IF(E551=0,\"\",1+MAX($A$2:A550))","v":""},"K-Cup® Pod","McCafé®","McCafe® Baked Apple Pie, 24ct",null,"5000364135","McCafe® Baked Apple Pie, 24ct",4,24,"CS",20,100,null,50.88,50.24,"10611247392345","611247392348"]
[{"$f":"IF(E552=0,\"\",1+MAX($A$2:A551))","v":""},"K-Cup® Pod","McCafé®","McCafé® Breakfast Blend, 24ct",null,"5000358127","McCafé® Breakfast Blend, 24ct",4,24,"CS",20,100,null,50.88,50.24,"10043000080419","43000080412"]
[{"$f":"IF(E553=0,\"\",1+MAX($A$2:A552))","v":""},"K-Cup® Pod","McCafé®","McCafé® Café Styles of Latin America Café de Olla, 20ct",null,"5000373153","McCafé® Café Styles of Latin America Café de Olla, 20ct",4,20,"CS",20,100,null,50.88,50.24,"10611247398880","611247398883"]
[{"$f":"IF(E554=0,\"\",1+MAX($A$2:A553))","v":""},"K-Cup® Pod","McCafé®","McCafé® Café Styles of Latin America Horchata Latte, 20ct",null,"5000373156","McCafé® Café Styles of Latin America Horchata Latte, 20ct",4,20,"CS",20,100,null,50.88,50.24,"10611247398910","611247398913"]
[{"$f":"IF(E555=0,\"\",1+MAX($A$2:A554))","v":""},"K-Cup® Pod","McCafé®","McCafé® Chocolate Mocha, 24ct",null,"5000358128","McCafé® Chocolate Mocha, 24ct",4,24,"CS",20,100,null,50.88,50.24,"10611247389628","611247389621"]
[{"$f":"IF(E556=0,\"\",1+MAX($A$2:A555))","v":""},"K-Cup® Pod","McCafé®","McCafé® Colombian, 24ct",null,"5000358113","McCafé® Colombian, 24ct",4,24,"CS",20,100,null,50.88,50.24,"10043000080396","43000080399"]
[{"$f":"IF(E557=0,\"\",1+MAX($A$2:A556))","v":""},"K-Cup® Pod","McCafé®","McCafé® Espresso Roast, 24ct",null,5000390261,"McCafé® Espresso Roast, 24ct",4,24," CS",20,100,null,50.88,50.24,"611247408667",10611247408664]
[{"$f":"IF(E558=0,\"\",1+MAX($A$2:A557))","v":""},"K-Cup® Pod","McCafé®","McCafé® French Roast, 24ct",null,"5000358126","McCafé® French Roast, 24ct",4,24,"CS",20,100,null,50.88,50.24,"10043000080426","43000080429"]
[{"$f":"IF(E559=0,\"\",1+MAX($A$2:A558))","v":""},"K-Cup® Pod","McCafé®","McCafé® Iced One Step Mocha Frappe, 20ct",null,"5000372394","McCafé® Iced One Step Mocha Frappe, 20ct",4,20,"CS",20,100,null,50.88,50.24,"10611247398453","611247398456"]
[{"$f":"IF(E560=0,\"\",1+MAX($A$2:A559))","v":""},"K-Cup® Pod","McCafé®","McCafé® Irish Mocha, 24ct (Spring Seasonal)",null,"5000365843","McCafé® Irish Mocha, 24ct",4,24,"CS",20,100,null,50.88,50.24,"10611247394592","611247394595"]
[{"$f":"IF(E561=0,\"\",1+MAX($A$2:A560))","v":""},"K-Cup® Pod","McCafé®","McCafé® Paris Café, 24ct",null,"5000361629","McCafé® Paris Café, 24ct",4,24,"CS",20,100,null,50.88,50.24,"10611247390839","611247390832"]
[{"$f":"IF(E562=0,\"\",1+MAX($A$2:A561))","v":""},"K-Cup® Pod","McCafé®","McCafé® Premium Roast Decaf, 24ct",null,"5000358125","McCafé® Premium Roast Decaf, 24ct",4,24,"CS",20,100,null,50.88,50.24,"10043000080440","43000080443"]
[{"$f":"IF(E563=0,\"\",1+MAX($A$2:A562))","v":""},"K-Cup® Pod","McCafé®","McCafé® Premium Roast, 24ct",null,"5000358124","McCafé® Premium Roast, 24ct",4,24,"CS",20,100,null,50.88,50.24,"10043000080372","43000080375"]
[{"$f":"IF(E564=0,\"\",1+MAX($A$2:A563))","v":""},"K-Cup® Pod","McCafé®","McCafe® Affogato, 24ct",null,"5000380446","McCafe® Affogato, 24ct",4,24,"CS",20,100,null,50.88,50.24,"10611247403096","611247403099"]
[{"$f":"IF(E565=0,\"\",1+MAX($A$2:A564))","v":""},"K-Cup® Pod","McCafé®","McCafé® Venice Café, 24ct",null,"5000361631","McCafé® Venice Café, 24ct",4,24,"CS",20,100,null,50.88,50.24,"10611247390853","611247390856"]
[{"$f":"IF(E566=0,\"\",1+MAX($A$2:A565))","v":""},"K-Cup® Pod","Mott's®","Mott's® Hot Apple Cider, 24ct",null,"5000350498","Mott's® Hot Apple Cider, 24ct",4,24,"CS",20,100,null,63.68,62.84,"10611247386047","611247386040"]
[{"$f":"IF(E567=0,\"\",1+MAX($A$2:A566))","v":""},"K-Cup® Pod","Multi-Brand","Keurig® Decaf Coffee Variety Sampler, 24ct",null,"5000374162","Keurig® Decaf Coffee Variety Sampler, 24ct",4,24,"CS",20,100,null,62.48,61.72,"10611247399771","611247399774"]
[{"$f":"IF(E568=0,\"\",1+MAX($A$2:A567))","v":""},"K-Cup® Pod","Multi-Brand","ICED & HOT Coffeehouse K-Cup® Pod Collection, 24ct",null,5000377226,"ICED & HOT Coffeehouse K-Cup® Pod Collection, 24ct",4,24,"CS",20,100,null,57.6,56.84,"10611247401290","611247401293"]
[{"$f":"IF(E569=0,\"\",1+MAX($A$2:A568))","v":""},"K-Cup® Pod","Multi-Brand","ICED Coffeehouse K-Cup® Pod Collection, 24ct",null,5000377225,"ICED Coffeehouse K-Cup® Pod Collection, 24ct",4,24,"CS",20,100,null,57.6,56.84,"10611247401290","611247401286"]
[{"$f":"IF(E570=0,\"\",1+MAX($A$2:A569))","v":""},"K-Cup® Pod","Newman's Own® Organics","Newman's Own® Organics Newman's Special Blend Decaf, 24ct",null,"5000351722","Newman's Own® Organics Newman's Special Blend Decaf, 24ct",4,24,"CS",20,100,null,59.24,58.48,"10099555040514","99555040517"]
[{"$f":"IF(E571=0,\"\",1+MAX($A$2:A570))","v":""},"K-Cup® Pod","Newman's Own® Organics","Newman's Own® Organics Newman's Special Blend, 24ct",null,"5000373975","Newman's Own® Organics Newman's Special Blend, 24ct",4,24,"CS",20,100,null,59.24,58.48,"10099555040507","99555040500"]
[{"$f":"IF(E572=0,\"\",1+MAX($A$2:A571))","v":""},"K-Cup® Pod","Peet's Coffee®","Peet's Coffee® Big Bang Coffee, 22ct",null,"5000377811","Peet's Coffee® Big Bang Coffee, 22ct",4,22,"CS",20,100,null,62.32,61.6,"10785357024073","785357024076"]
[{"$f":"IF(E573=0,\"\",1+MAX($A$2:A572))","v":""},"K-Cup® Pod","Peet's Coffee®","Peet's Coffee® Brazil Minas Naturais Coffee, 22ct",null,"5000379656","Peet's Coffee® Brazil Minas Naturais Coffee, 22ct",4,22,"CS",20,100,null,62.32,61.6,"10785357024097","785357024090"]
[{"$f":"IF(E574=0,\"\",1+MAX($A$2:A573))","v":""},"K-Cup® Pod","Peet's Coffee®","Peet's Coffee® Cafe Domingo, 22ct",null,"5000377659","Peet's Coffee® Cafe Domingo, 22ct",4,22,"CS",20,100,null,62.32,61.6,"10785357024042","785357024045"]
[{"$f":"IF(E575=0,\"\",1+MAX($A$2:A574))","v":""},"K-Cup® Pod","Peet's Coffee®","Peet's Coffee® French Roast, 22ct",null,"5000377806","Peet's Coffee® French Roast, 22ct",4,22,"CS",20,100,null,62.32,61.6,"10785357024059","785357024052"]
[{"$f":"IF(E576=0,\"\",1+MAX($A$2:A575))","v":""},"K-Cup® Pod","Peet's Coffee®","Peet's Coffee® House Blend, 22ct",null,"5000379613","Peet's Coffee® House Blend, 22ct",4,22,"CS",20,100,null,62.32,61.6,"10785357024103","785357024106"]
[{"$f":"IF(E577=0,\"\",1+MAX($A$2:A576))","v":""},"K-Cup® Pod","Peet's Coffee®","Peet's Coffee® Luminosa Breakfast Blend, 22ct",null,"5000379616","Peet's Coffee® Luminosa Breakfast Blend, 22ct",4,22,"CS",20,100,null,62.32,61.6,"10785357024066","785357024069"]
[{"$f":"IF(E578=0,\"\",1+MAX($A$2:A577))","v":""},"K-Cup® Pod","Peet's Coffee®","Peet's Coffee® Major Dickason's Blend, 22ct",null,"5000377638","Peet's Coffee® Major Dickason's Blend, 22ct",4,22,"CS",20,100,null,62.32,61.6,"10785357024035","785357024038"]
[{"$f":"IF(E579=0,\"\",1+MAX($A$2:A578))","v":""},"K-Cup® Pod","Punk Bunny Coffee™","Punk Bunny Coffee™ Father of All..., 10ct ",null,"5000382864","Punk Bunny Coffee™ Father of All..., 10ct ",6,10,"CS",20,140,null,64.5,64.5,"850058035055","850058035055"]
[{"$f":"IF(E580=0,\"\",1+MAX($A$2:A579))","v":""},"K-Cup® Pod","Punk Bunny Coffee™","Punk Bunny Coffee™ Father of All..., 22ct ",null,"5000390380","Punk Bunny Coffee™ Father of All..., 22ct ",4,22,"CS",20,100,null,63.92,63.08,"10850058035298","850058035291"]
[{"$f":"IF(E581=0,\"\",1+MAX($A$2:A580))","v":""},"K-Cup® Pod","Punk Bunny Coffee™","Punk Bunny Coffee™ Last Ride In, 10ct ",null,"5000382866","Punk Bunny Coffee™ Last Ride In, 10ct ",6,10,"CS",20,140,null,64.5,64.5,"00850058035062​","850058035062"]
[{"$f":"IF(E582=0,\"\",1+MAX($A$2:A581))","v":""},"K-Cup® Pod","Punk Bunny Coffee™","Punk Bunny Coffee™ Last Ride In, 22ct ",null,"5000390387","Punk Bunny Coffee™ Last Ride In, 22ct ",4,22,"CS",20,100,null,63.92,63.08,"10850058035311","850058035314"]
[{"$f":"IF(E583=0,\"\",1+MAX($A$2:A582))","v":""},"K-Cup® Pod","Punk Bunny Coffee™","Punk Bunny Coffee™ Light Club, 10ct ",null,"5000382867","Punk Bunny Coffee™ Light Club, 10ct ",6,10,"CS",20,140,null,64.5,64.5,"00850058035079​","850058035079"]
[{"$f":"IF(E584=0,\"\",1+MAX($A$2:A583))","v":""},"K-Cup® Pod","Punk Bunny Coffee™","Punk Bunny Coffee™ Light Club, 22ct ",null,"5000390389","Punk Bunny Coffee™ Light Club, 22ct ",4,22,"CS",20,100,null,63.92,63.08,"10850058035328","850058035321"]
[{"$f":"IF(E585=0,\"\",1+MAX($A$2:A584))","v":""},"K-Cup® Pod","Punk Bunny Coffee™","Punk Bunny Coffee™ Soundcheck, 10ct ",null,"5000382865","Punk Bunny Coffee™ Soundcheck, 10ct ",6,10,"CS",20,140,null,64.5,64.5,"00850058035086​","850058035086"]
[{"$f":"IF(E586=0,\"\",1+MAX($A$2:A585))","v":""},"K-Cup® Pod","Punk Bunny Coffee™","Punk Bunny Coffee™ Soundcheck, 22ct ",null,"5000390388","Punk Bunny Coffee™ Soundcheck, 22ct ",4,22,"CS",20,100,null,63.92,63.08,"10850058035304","850058035307"]
[{"$f":"IF(E587=0,\"\",1+MAX($A$2:A586))","v":""},"K-Cup® Pod","REVV®","REVV® Afterburner Coffee, 24ct",null,"5000330814","REVV® Afterburner Coffee, 24ct",4,24,"CS",20,100,null,64.08,63.4,"10611247367275","611247367278"]
[{"$f":"IF(E588=0,\"\",1+MAX($A$2:A587))","v":""},"K-Cup® Pod","REVV®","REVV® No Surrender Coffee, 24ct",null,"5000355485","REVV® No Surrender Coffee, 24ct",4,24,"CS",20,100,null,64.08,63.4,"10611247368739","611247368732"]
[{"$f":"IF(E589=0,\"\",1+MAX($A$2:A588))","v":""},"K-Cup® Pod","REVV®","REVV® Turbocharger Coffee, 24ct",null,"5000330815","REVV® Turbocharger Coffee, 24ct",4,24,"CS",20,100,null,64.08,63.4,"10611247367282","611247367285"]
[{"$f":"IF(E590=0,\"\",1+MAX($A$2:A589))","v":""},"K-Cup® Pod","Swiss Miss®","Swiss Miss® Milk Chocolate Hot Cocoa, 22ct",null,"5000345150","Swiss Miss® Milk Chocolate Hot Cocoa, 22ct",4,22,"CS",20,100,null,57.08,56.48,"10611247382926","611247382929"]
[{"$f":"IF(E591=0,\"\",1+MAX($A$2:A590))","v":""},"K-Cup® Pod","Swiss Miss®","Swiss Miss® Peppermint Hot Cocoa, 22ct (Winter Seasonal)",null,"5000355689","Swiss Miss® Peppermint Hot Cocoa, 22ct",4,22,"CS",20,100,null,57.08,56.48,"10611247385262","611247385265"]
[{"$f":"IF(E592=0,\"\",1+MAX($A$2:A591))","v":""},"K-Cup® Pod","Swiss Miss®","Swiss Miss® Reduced Calorie Hot Cocoa, 22ct",null,"5000349563","Swiss Miss® Reduced Calorie Hot Cocoa, 22ct",4,22,"CS",20,100,null,57.08,56.48,"10611247385255","611247385258"]
[{"$f":"IF(E593=0,\"\",1+MAX($A$2:A592))","v":""},"K-Cup® Pod","Swiss Miss®","Swiss Miss® Pumpkin Spice Hot Cocoa, 22ct (Fall Seasonal)",null,"5000374210","Swiss Miss® Pumpkin Spice Hot Cocoa, 22ct",4,22,"CS",20,100,null,57.08,56.48,"10611247399795","611247399798"]
[{"$f":"IF(E594=0,\"\",1+MAX($A$2:A593))","v":""},"K-Cup® Pod","Swiss Miss®","Swiss Miss® Salted Caramel Hot Cocoa, 22ct",null,"5000369264","Swiss Miss® Salted Caramel Hot Cocoa, 22ct",4,22,"CS",20,100,null,57.08,56.48,"10611247397388","611247397381"]
[{"$f":"IF(E595=0,\"\",1+MAX($A$2:A594))","v":""},"K-Cup® Pod","The Original Donut Shop®","The Original Donut Shop® Caramel Apple Pie, 10ct (Fall Seasonal)",null,"5000376657","The Original Donut Shop® Caramel Apple Pie, 10ct",6,10,"CS",20,140,null,54.72,54.72,"10611247400781","611247400784"]
[{"$f":"IF(E596=0,\"\",1+MAX($A$2:A595))","v":""},"K-Cup® Pod","The Original Donut Shop®","The Original Donut Shop® Caramel Latte, 10ct",null,"5000341221","The Original Donut Shop® Caramel Latte, 10ct",6,10,"CS",20,140,null,54.72,54.72,"10611247381332","611247381335"]
[{"$f":"IF(E597=0,\"\",1+MAX($A$2:A596))","v":""},"K-Cup® Pod","The Original Donut Shop®","The Original Donut Shop® Chocolate Glazed Donut, 10ct",null,"5000382063","The Original Donut Shop® Chocolate Glazed Donut, 10ct",6,10,"CS",20,140,null,54.72,54.72,"10611247404383","611247404386"]
[{"$f":"IF(E598=0,\"\",1+MAX($A$2:A597))","v":""},"K-Cup® Pod","The Original Donut Shop®","The Original Donut Shop® Cinnamon Dulce Cappuccino, 10ct",null,"5000361527","The Original Donut Shop® Cinnamon Dulce Cappuccino, 10ct",6,10,"CS",20,140,null,54.72,54.72,"10611247390730","611247390733"]
[{"$f":"IF(E599=0,\"\",1+MAX($A$2:A598))","v":""},"K-Cup® Pod","The Original Donut Shop®","The Original Donut Shop® Classic Cappuccino, 10ct",null,"5000361526","The Original Donut Shop® Classic Cappuccino, 10ct",6,10,"CS",20,140,null,54.72,54.72,"10611247390723","611247390726"]
[{"$f":"IF(E600=0,\"\",1+MAX($A$2:A599))","v":""},"K-Cup® Pod","The Original Donut Shop®","The Original Donut Shop® Dark, 10ct",null,"5000382058","The Original Donut Shop® Dark, 10ct",6,10,"CS",20,140,null,54.72,54.72,"10611247404321","611247404324"]
[{"$f":"IF(E601=0,\"\",1+MAX($A$2:A600))","v":""},"K-Cup® Pod","The Original Donut Shop®","The Original Donut Shop® Decaf, 10ct",null,"5000382062","The Original Donut Shop® Decaf, 10ct",6,10,"CS",20,140,null,54.72,54.72,"10611247404369","611247404362"]
[{"$f":"IF(E602=0,\"\",1+MAX($A$2:A601))","v":""},"K-Cup® Pod","The Original Donut Shop®","The Original Donut Shop® Duos Chocolate + Blueberry, 10ct",null,"5000382064","The Original Donut Shop® Duos Chocolate + Blueberry, 10ct",6,10,"CS",20,140,null,54.72,54.72,"10611247404390","611247404393"]
[{"$f":"IF(E603=0,\"\",1+MAX($A$2:A602))","v":""},"K-Cup® Pod","The Original Donut Shop®","The Original Donut Shop® Duos Coconut + Mocha, 10ct",null,"5000382059","The Original Donut Shop® Duos Coconut + Mocha, 10ct",6,10,"CS",20,140,null,54.72,54.72,"10611247404338","611247404331"]
[{"$f":"IF(E604=0,\"\",1+MAX($A$2:A603))","v":""},"K-Cup® Pod","The Original Donut Shop®","The Original Donut Shop® Duos Nutty + Caramel, 10ct",null,"5000382066","The Original Donut Shop® Duos Nutty + Caramel, 10ct",6,10,"CS",20,140,null,54.72,54.72,"10611247404413","611247404416"]
[{"$f":"IF(E605=0,\"\",1+MAX($A$2:A604))","v":""},"K-Cup® Pod","The Original Donut Shop®","The Original Donut Shop® Duos White Chocolate + Vanilla, 10ct",null,"5000382065","The Original Donut Shop® Duos White Chocolate + Vanilla, 10ct",6,10,"CS",20,140,null,54.72,54.72,"10611247404406","611247404409"]
[{"$f":"IF(E606=0,\"\",1+MAX($A$2:A605))","v":""},"K-Cup® Pod","The Original Donut Shop®","The Original Donut Shop® Iced Duos Cookie + Caramel, 10ct",null,"5000382069","The Original Donut Shop® Iced Duos Cookie + Caramel, 10ct",6,10,"CS",20,140,null,53.34,53.34,"10611247404444","611247404447"]
[{"$f":"IF(E607=0,\"\",1+MAX($A$2:A606))","v":""},"K-Cup® Pod","The Original Donut Shop®","The Original Donut Shop® Mocha Latte, 10ct",null,"5000341219","The Original Donut Shop® Mocha Latte, 10ct",6,10,"CS",20,140,null,54.72,54.72,"10611247381356","611247381359"]
[{"$f":"IF(E608=0,\"\",1+MAX($A$2:A607))","v":""},"K-Cup® Pod","The Original Donut Shop®","The Original Donut Shop® Peppermint Bark, 10ct (Winter Seasonal)",null,"5000376659","The Original Donut Shop® Peppermint Bark, 10ct",6,10,"CS",20,140,null,54.72,54.72,"10611247400804","611247400807"]
[{"$f":"IF(E609=0,\"\",1+MAX($A$2:A608))","v":""},"K-Cup® Pod","The Original Donut Shop®","The Original Donut Shop® Pumpkin Caramel Cheesecake Latte, 10ct (Fall Seasonal)",null,"5000375773","The Original Donut Shop® Pumpkin Caramel Cheesecake Latte, 10ct",6,10,"CS",20,140,null,54.72,54.72,"10611247400408","611247400401"]
[{"$f":"IF(E610=0,\"\",1+MAX($A$2:A609))","v":""},"K-Cup® Pod","The Original Donut Shop®","The Original Donut Shop® Red Velvet Latte, 10ct (Winter Seasonal)",null,"5000362051","The Original Donut Shop® Red Velvet Latte, 10ct",6,10,"CS",20,140,null,54.72,54.72,"10611247391232","611247391235"]
[{"$f":"IF(E611=0,\"\",1+MAX($A$2:A610))","v":""},"K-Cup® Pod","The Original Donut Shop®","The Original Donut Shop® Regular, 10ct",null,"5000380886","The Original Donut Shop® Regular, 10ct",6,10,"CS",20,140,null,54.72,54.72,"10611247403515","611247403518"]
[{"$f":"IF(E612=0,\"\",1+MAX($A$2:A611))","v":""},"K-Cup® Pod","The Original Donut Shop®","The Original Donut Shop® Snickers, 10ct",null,"5000380889","The Original Donut Shop® Snickers, 10ct",6,10,"CS",20,140,null,54.72,54.72,"10611247403546","611247403549"]
[{"$f":"IF(E613=0,\"\",1+MAX($A$2:A612))","v":""},"K-Cup® Pod","The Original Donut Shop®","The Original Donut Shop® Twix™, 10ct",null,"5000382067","The Original Donut Shop® Twix™, 10ct",6,10,"CS",20,140,null,54.72,54.72,"10611247404420","611247404423"]
[{"$f":"IF(E614=0,\"\",1+MAX($A$2:A613))","v":""},"K-Cup® Pod","The Original Donut Shop®","The Original Donut Shop® Vanilla Cream Puff, 10ct",null,"5000382179","The Original Donut Shop® Vanilla Cream Puff, 10ct",6,10,"CS",20,140,null,54.72,54.72,"10611247404376","611247404379"]
[{"$f":"IF(E615=0,\"\",1+MAX($A$2:A614))","v":""},"K-Cup® Pod","The Original Donut Shop®","The Original Donut Shop® Vanilla Latte, 10ct",null,"5000341223","The Original Donut Shop® Vanilla Latte, 10ct",6,10,"CS",20,140,null,54.72,54.72,"10611247381318","611247381311"]
[{"$f":"IF(E616=0,\"\",1+MAX($A$2:A615))","v":""},"K-Cup® Pod","The Original Donut Shop®","The Original Donut Shop® Caramel Latte, 20ct",null,"5000341534","The Original Donut Shop® Caramel Latte, 20ct",4,20,"CS",20,100,null,57.52,56.76,"10611247381783","611247381786"]
[{"$f":"IF(E617=0,\"\",1+MAX($A$2:A616))","v":""},"K-Cup® Pod","The Original Donut Shop®","The Original Donut Shop® Chocolate Glazed Donut, 24ct",null,"5000346394","The Original Donut Shop® Chocolate Glazed Donut, 24ct",4,24,"CS",20,100,null,57.52,56.76,"10611247372767","611247372760"]
[{"$f":"IF(E618=0,\"\",1+MAX($A$2:A617))","v":""},"K-Cup® Pod","The Original Donut Shop®","The Original Donut Shop® Cinnamon Dulce Cappuccino, 20ct",null,"5000361531","The Original Donut Shop® Cinnamon Dulce Cappuccino, 20ct",4,20,"CS",20,100,null,57.52,56.76,"10611247390778","611247390771"]
[{"$f":"IF(E619=0,\"\",1+MAX($A$2:A618))","v":""},"K-Cup® Pod","The Original Donut Shop®","The Original Donut Shop® Cinnamon Toast Crunch Latte, 20ct ",null,"5000377785","The Original Donut Shop® Cinnamon Toast Crunch Latte, 20ct ",4,20,"CS",20,100,null,57.52,56.76,"10611247401412","611247401415"]
[{"$f":"IF(E620=0,\"\",1+MAX($A$2:A619))","v":""},"K-Cup® Pod","The Original Donut Shop®","The Original Donut Shop® Classic Cappuccino, 20ct",null,"5000361529","The Original Donut Shop® Classic Cappuccino, 20ct",4,20,"CS",20,100,null,57.52,56.76,"10611247390754","611247390757"]
[{"$f":"IF(E621=0,\"\",1+MAX($A$2:A620))","v":""},"K-Cup® Pod","The Original Donut Shop®","The Original Donut Shop® Cookie Dough So Delicious, 24ct (Spring Seasonal)",null,"5000366665","The Original Donut Shop® Cookie Dough So Delicious, 24ct",4,24,"CS",20,100,null,57.6,56.84,"10611247395346","611247395349"]
[{"$f":"IF(E622=0,\"\",1+MAX($A$2:A621))","v":""},"K-Cup® Pod","The Original Donut Shop®","The Original Donut Shop® Dark, 24ct",null,"5000355417","The Original Donut Shop® Dark, 24ct",4,24,"CS",20,100,null,57.6,56.84,"10611247373986","611247373989"]
[{"$f":"IF(E623=0,\"\",1+MAX($A$2:A622))","v":""},"K-Cup® Pod","The Original Donut Shop®","The Original Donut Shop® Decaf, 24ct",null,"5000341140","The Original Donut Shop® Decaf, 24ct",4,24,"CS",20,100,null,57.6,56.84,"10611247374013","611247374016"]
[{"$f":"IF(E624=0,\"\",1+MAX($A$2:A623))","v":""},"K-Cup® Pod","The Original Donut Shop®","The Original Donut Shop® Duos Coconut + Mocha, 24ct",null,"5000361500","The Original Donut Shop® Duos Coconut + Mocha, 24ct",4,24,"CS",20,100,null,57.6,56.84,"10099555062486","99555062489"]
[{"$f":"IF(E625=0,\"\",1+MAX($A$2:A624))","v":""},"K-Cup® Pod","The Original Donut Shop®","The Original Donut Shop® Duos Nutty + Caramel, 24ct",null,"5000361499","The Original Donut Shop® Duos Nutty + Caramel, 24ct",4,24,"CS",20,100,null,57.6,56.84,"10611247374761","611247374764"]
[{"$f":"IF(E626=0,\"\",1+MAX($A$2:A625))","v":""},"K-Cup® Pod","The Original Donut Shop®","The Original Donut Shop® Duos White Chocolate + Vanilla, 24ct",null,"5000359676","The Original Donut Shop® Duos White Chocolate + Vanilla, 24ct",4,24,"CS",20,100,null,57.6,56.84,"10611247390358","611247390351"]
[{"$f":"IF(E627=0,\"\",1+MAX($A$2:A626))","v":""},"K-Cup® Pod","The Original Donut Shop®","The Original Donut Shop® Iced Duos Cookie + Caramel, 24ct",null,"5000373021","The Original Donut Shop® Iced Duos Cookie + Caramel, 24ct",4,24,"CS",20,100,null,57.6,56.84,"10611247398811","611247398814"]
[{"$f":"IF(E628=0,\"\",1+MAX($A$2:A627))","v":""},"K-Cup® Pod","The Original Donut Shop®","The Original Donut Shop® Mocha Latte, 20ct",null,"5000341535","The Original Donut Shop® Mocha Latte, 20ct",4,20,"CS",20,100,null,57.52,56.76,"10611247381790","611247381793"]
[{"$f":"IF(E629=0,\"\",1+MAX($A$2:A628))","v":""},"K-Cup® Pod","The Original Donut Shop®","The Original Donut Shop® Peppermint Bark, 24ct (Winter Seasonal)",null,"5000376365","The Original Donut Shop® Peppermint Bark, 24ct",4,24,"CS",20,100,null,57.52,56.76,"10611247374280","611247374283"]
[{"$f":"IF(E630=0,\"\",1+MAX($A$2:A629))","v":""},"K-Cup® Pod","The Original Donut Shop®","The Original Donut Shop® Red Velvet Latte, 20ct (Winter Seasonal)",null,"5000362053","The Original Donut Shop® Red Velvet Latte, 20ct",4,20,"CS",20,100,null,57.52,56.76,"10611247391256","611247391259"]
[{"$f":"IF(E631=0,\"\",1+MAX($A$2:A630))","v":""},"K-Cup® Pod","The Original Donut Shop®","The Original Donut Shop® ICED Refreshers-Berry Chill, 20ct ",null,"5000384762","The Original Donut Shop® ICED Refreshers-Berry Chill, 20ct ",4,20,"CS",20,100,null,63.92,63.08,"10611247406318","611247406311"]
[{"$f":"IF(E632=0,\"\",1+MAX($A$2:A631))","v":""},"K-Cup® Pod","The Original Donut Shop®","The Original Donut Shop® ICED Refreshers- Mango Dragonfruit Lemonade, 20ct ",null,"5000382824","The Original Donut Shop® ICED Refreshers- Mango Dragonfruit Lemonade, 20ct ",4,20,"CS",20,100,null,63.92,63.08,"10611247405328","611247405321"]
[{"$f":"IF(E633=0,\"\",1+MAX($A$2:A632))","v":""},"K-Cup® Pod","The Original Donut Shop®","The Original Donut Shop® ICED Refreshers- Pineapple Passionfruit, 20ct ",null,"5000379381","The Original Donut Shop® ICED Refreshers- Pineapple Passionfruit, 20ct ",4,20,"CS",20,100,null,63.92,63.08,"10611247402365","611247402368"]
[{"$f":"IF(E634=0,\"\",1+MAX($A$2:A633))","v":""},"K-Cup® Pod","The Original Donut Shop®","The Original Donut Shop® ICED Refreshers- Strawberry Acai, 20ct ",null,"5000379382","The Original Donut Shop® ICED Refreshers- Strawberry Acai, 20ct ",4,20,"CS",20,100,null,63.92,63.08,"10611247402372","611247402375"]
[{"$f":"IF(E635=0,\"\",1+MAX($A$2:A634))","v":""},"K-Cup® Pod","The Original Donut Shop®","The Original Donut Shop® ICED Refresher Variety Pack",null,5000388932,"The Original Donut Shop® ICED Refresher Variety Pack",4,20," CS",20,100,null,63.92,63.08,"10611247407988","611247407981"]
[{"$f":"IF(E636=0,\"\",1+MAX($A$2:A635))","v":""},"K-Cup® Pod","The Original Donut Shop®","The Original Donut Shop® Regular, 24ct",null,"5000330069","The Original Donut Shop® Regular, 24ct",4,24,"CS",20,100,null,57.6,56.84,"10834259007056","834259007059"]
[{"$f":"IF(E637=0,\"\",1+MAX($A$2:A636))","v":""},"K-Cup® Pod","The Original Donut Shop®","The Original Donut Shop® Snickers, 24ct",null,"5000367239","The Original Donut Shop® Snickers, 24ct",4,24,"CS",20,100,null,57.6,56.84,"10611247396084","611247396087"]
[{"$f":"IF(E638=0,\"\",1+MAX($A$2:A637))","v":""},"K-Cup® Pod","The Original Donut Shop®","The Original Donut Shop® Vanilla Cream Puff, 24ct",null,"5000356557","The Original Donut Shop® Vanilla Cream Puff, 24ct",4,24,"CS",20,100,null,57.6,56.84,"10611247388065","611247388068"]
[{"$f":"IF(E639=0,\"\",1+MAX($A$2:A638))","v":""},"K-Cup® Pod","The Original Donut Shop®","The Original Donut Shop® Vanilla Latte, 20ct",null,"5000341533","The Original Donut Shop® Vanilla Latte, 20ct",4,20,"CS",20,100,null,57.52,56.76,"10611247381776","611247381779"]
[{"$f":"IF(E640=0,\"\",1+MAX($A$2:A639))","v":""},"K-Cup® Pod","The Original Donut Shop®","The Original Donut Shop® Caramel Apple Pie, 24ct (Fall Seasonal)",null,"5000355500","The Original Donut Shop® Caramel Apple Pie, 24ct",4,24,"CS",20,100,null,57.6,56.84,"10611247381011","611247381014"]
[{"$f":"IF(E641=0,\"\",1+MAX($A$2:A640))","v":""},"K-Cup® Pod","The Original Donut Shop®","The Original Donut Shop® Coffee TwixTM, 24ct",null,"5000368824","The Original Donut Shop® Coffee TwixTM, 24ct",4,24,"CS",20,100,null,57.6,56.84,"10611247396947","611247396947"]
[{"$f":"IF(E642=0,\"\",1+MAX($A$2:A641))","v":""},"K-Cup® Pod","The Original Donut Shop®","The Original Donut Shop® Frosted Gingerbread Latte, 20ct",null,5000388896,"The Original Donut Shop® Frosted Gingerbread Latte, 20ct",4,20," CS",20,100,null,57.52,56.76,"10611247407964","611247407967"]
[{"$f":"IF(E643=0,\"\",1+MAX($A$2:A642))","v":""},"K-Cup® Pod","Tim Hortons® ","Tim Hortons® Dark Roast Coffee, 24ct",null,"5000376432","Tim Hortons® Dark Roast Coffee, 24ct",4,24,"CS",20,90,null,55.92,55.28,"10063209112797","63209112790"]
[{"$f":"IF(E644=0,\"\",1+MAX($A$2:A643))","v":""},"K-Cup® Pod","Tim Hortons® ","Tim Hortons® Decaf Coffee, 24ct ",null,"5000349629","Tim Hortons® Decaf Coffee, 24ct ",4,24,"CS",20,90,null,55.92,55.28,"10063209112803","63209112806"]
[{"$f":"IF(E645=0,\"\",1+MAX($A$2:A644))","v":""},"K-Cup® Pod","Tim Hortons® ","Tim Hortons® Original Blend Coffee, 24ct",null,"5000376437","Tim Hortons® Original Blend Coffee, 24ct",4,24,"CS",20,90,null,55.92,55.28,"10063209112810","63209112813"]
[{"$f":"IF(E646=0,\"\",1+MAX($A$2:A645))","v":""},"K-Cup® Pod","La Colombe®","La Colombe® Corsica, 20ct",null,"5000380614","La Colombe® Corsica, 20ct",4,20,"CS",20,100,null,63.92,63.08,"10611247403287","611247403280"]
[{"$f":"IF(E647=0,\"\",1+MAX($A$2:A646))","v":""},"K-Cup® Pod","La Colombe®","La Colombe® Nizza, 20ct",null,"5000380612","La Colombe® Nizza, 20ct",4,20,"CS",20,100,null,63.92,63.08,"10611247403270","611247403273"]
[{"$f":"IF(E648=0,\"\",1+MAX($A$2:A647))","v":""},"K-Cup® Pod","Lavazza","Lavazza, Caramel Biscotti, 22ct",null,"5000384732","Lavazza, Caramel Biscotti, 22ct",4,22,"CS",20,100,null,63.92,63.08,"10611247406288","611247406281"]
[{"$f":"IF(E649=0,\"\",1+MAX($A$2:A648))","v":""},"K-Cup® Pod","Lavazza","Lavazza, Classico Decaf, 22ct",null,"5000384755","Lavazza, Classico Decaf, 22ct",4,22,"CS",20,100,null,63.92,63.08,"00041953004745","41953004738"]
[{"$f":"IF(E650=0,\"\",1+MAX($A$2:A649))","v":""},"K-Cup® Pod","Lavazza","Lavazza, Classico, 22ct",null,"5000384743","Lavazza, Classico, 22ct",4,22,"CS",20,100,null,63.92,63.08,"00041953004349","41953004332"]
[{"$f":"IF(E651=0,\"\",1+MAX($A$2:A650))","v":""},"K-Cup® Pod","Lavazza","Lavazza, Espresso, 22ct",null,"5000382577","Lavazza, Espresso, 22ct",4,22,"CS",20,100,null,63.92,63.08,"00041953004509","41953004516"]
[{"$f":"IF(E652=0,\"\",1+MAX($A$2:A651))","v":""},"K-Cup® Pod","Lavazza","Lavazza, Gran Aroma, 22ct",null,"5000384748","Lavazza, Gran Aroma, 22ct",4,22,"CS",20,100,null,63.92,63.08,"00041953004479","41953004462"]
[{"$f":"IF(E653=0,\"\",1+MAX($A$2:A652))","v":""},"K-Cup® Pod","Lavazza","Lavazza, Gran Selezione, 22ct",null,"5000382579","Lavazza, Gran Selezione, 22ct",4,22,"CS",20,100,null,63.92,63.08,"41953004301","41953004295"]
[{"$f":"IF(E654=0,\"\",1+MAX($A$2:A653))","v":""},"K-Cup® Pod","Lavazza","Lavazza, Perfetto, 22ct",null,"5000384754","Lavazza, Perfetto, 22ct",4,22,"CS",20,100,null,63.92,63.08,"00041953004493","41953004486"]
[{"$f":"IF(E655=0,\"\",1+MAX($A$2:A654))","v":""},"K-Cup® Pod","Lavazza","Lavazza, Tiramisu, 22ct",null,"5000384724","Lavazza, Tiramisu, 22ct",4,22,"CS",20,100,null,63.92,63.08,"10611247406264","611247406267"]
[{"$f":"IF(E656=0,\"\",1+MAX($A$2:A655))","v":""},"K-Cup® Pod","Lavazza","Lavazza, Vanilla Affogato, 22ct",null,"5000384733","Lavazza, Vanilla Affogato, 22ct",4,22,"CS",20,100,null,63.92,63.08,"10611247406295","611247406298"]
[{"$f":"IF(E657=0,\"\",1+MAX($A$2:A656))","v":""},"K-Cup® Pod","Lavazza","Lavazza Variety Pack, 20ct",null,"5000390216","Lavazza Variety Pack, 20ct",4,20," CS",20,100,null,63.92,63.08,"10611247408626","611247408629"]
[{"$f":"IF(E658=0,\"\",1+MAX($A$2:A657))","v":""},"K-Cup® Pod","Philz Coffee®","Philz Coffee® Philtered Soul, 20ct",null,"5000376957","Philz Coffee® Philtered Soul, 20ct",4,20,"CS",20,100,null,63.92,63.08,"10611247401191","611247401194"]
[{"$f":"IF(E659=0,\"\",1+MAX($A$2:A658))","v":""},"K-Cup® Pod","Philz Coffee®","Philz Coffee® Tesora Blend, 20ct ",null,"5000376959","Philz Coffee® Tesora Blend, 20ct ",4,20,"CS",20,100,null,63.92,63.08,"10611247401207","611247401200"]
[{"$f":"IF(E660=0,\"\",1+MAX($A$2:A659))","v":""},"K-Cup® Pod","Philz Coffee®","Philz Coffee Philtered Soul, 10ct",null,"5000376949","Philz Coffee Philtered Soul, 10ct",6,10,"CS",20,140,null,64.5,64.5,"10611247401160","611247401163"]
[{"$f":"IF(E661=0,\"\",1+MAX($A$2:A660))","v":""},"K-Cup® Pod","Philz Coffee®","Philz Coffee Tesora Blend, 10ct",null,"5000376951","Philz Coffee Tesora Blend, 10ct",6,10,"CS",20,140,null,64.5,64.5,"10611247401177","611247401170"]
[{"$f":"IF(E662=0,\"\",1+MAX($A$2:A661))","v":""},"K-Cup® Pod","La Colombe®","La Colombe® Corsica, 10ct",null,"5000380610","La Colombe® Corsica, 10ct",6,10,"CS",20,140,null,55.32,55.32,"10611247403256","611247403259"]
[{"$f":"IF(E663=0,\"\",1+MAX($A$2:A662))","v":""},"K-Cup® Pod","La Colombe®","La Colombe® Nizza, 10ct",null,"5000380609","La Colombe® Nizza, 10ct",6,10,"CS",20,140,null,55.32,55.32,"10611247403249","611247403242"]
[{"$f":"IF(E664=0,\"\",1+MAX($A$2:A663))","v":""},"K-Cup® Pod","Brooklyn Roasting Company","Brooklyn Roasting Company Java Mocha, 10ct",null,"5000380828","Brooklyn Roasting Company Java Mocha, 10ct",6,10,"CS",20,140,null,64.5,64.5,"10611247403454","611247403457"]
[{"$f":"IF(E665=0,\"\",1+MAX($A$2:A664))","v":""},"K-Cup® Pod","Brooklyn Roasting Company","Brooklyn Roasting Company Coney Island Blend, 10ct",null,"5000381283","Brooklyn Roasting Company Coney Island Blend, 10ct",6,10,"CS",20,140,null,64.5,64.5,"10611247403737","611247403730"]
[{"$f":"IF(E666=0,\"\",1+MAX($A$2:A665))","v":""},"K-Cup® Pod","Tully's®","Tully's® Coffee Breakfast Blend, 24ct",null,"5000330027","Tully's® Coffee Breakfast Blend, 24ct",4,24,"CS",20,100,null,59.24,58.48,"10681427002814","681427002817"]
[{"$f":"IF(E667=0,\"\",1+MAX($A$2:A666))","v":""},"K-Cup® Pod","Tully's®","Tully's® Coffee French Roast Decaf, 24ct",null,"5000330024","Tully's® Coffee French Roast Decaf, 24ct",4,24,"CS",20,100,null,59.24,58.48,"10681427002821","681427002824"]
[{"$f":"IF(E668=0,\"\",1+MAX($A$2:A667))","v":""},"K-Cup® Pod","Tully's®","Tully's® Coffee French Roast, 24ct",null,"5000373779","Tully's® Coffee French Roast, 24ct",4,24,"CS",20,100,null,59.24,58.48,"10681427002852","681427002855"]
[{"$f":"IF(E669=0,\"\",1+MAX($A$2:A668))","v":""},"K-Cup® Pod","Tully's®","Tully's® Coffee Hawaiian Blend, 24ct",null,"5000373793","Tully's® Coffee Hawaiian Blend, 24ct",4,24,"CS",20,100,null,59.24,58.48,"10099555066064","99555066067"]
[{"$f":"IF(E670=0,\"\",1+MAX($A$2:A669))","v":""},"K-Cup® Pod","Tully's®","Tully's® Coffee Italian Roast, 24ct",null,"5000330029","Tully's® Coffee Italian Roast, 24ct",4,24,"CS",20,100,null,59.24,58.48,"10681427002883","681427002886"]
[{"$f":"IF(E671=0,\"\",1+MAX($A$2:A670))","v":""},"Portion Ground (frac)","Coffee People","Coffee People Morning Blend, 2.2oz",null,"5000380637","Coffee People Morning Blend, 2.2oz",50,"2.2oz","CS",13,65,null,54.74,54.19,"10611247403386","611247403389"]
[{"$f":"IF(E672=0,\"\",1+MAX($A$2:A671))","v":""},"Portion Ground (frac)","Coffee People","Coffee People Morning Blend Decaf, 2.2oz",null,"5000380644","Coffee People Morning Blend Decaf, 2.2oz",50,"2.2oz","CS",13,65,null,54.74,54.19,"10611247403393","611247403396"]
[{"$f":"IF(E673=0,\"\",1+MAX($A$2:A672))","v":""},"Portion Ground (frac)","Coffee People","Coffee People Best Blend, 2.2oz",null,"5000380636","Coffee People Best Blend, 2.2oz",50,"2.2oz","CS",13,65,null,54.74,54.19,"10611247403379","611247403372"]
[{"$f":"IF(E674=0,\"\",1+MAX($A$2:A673))","v":""},"Portion Ground (frac)","Coffee People","Coffee People Deliciously Dark, 2.2oz",null,"5000380619","Coffee People Deliciously Dark, 2.2oz",50,"2.2oz","CS",13,65,null,54.74,54.19,"10611247403331","611247403334"]
[{"$f":"IF(E675=0,\"\",1+MAX($A$2:A674))","v":""},"Portion Ground (frac)","Coffee People","Coffee People French Vanilla, 2.2oz",null,"5000380732","Coffee People French Vanilla, 2.2oz",50,"2.2oz","CS",13,65,null,54.74,54.19,"10611247403430","611247403433"]
[{"$f":"IF(E676=0,\"\",1+MAX($A$2:A675))","v":""},"Portion Ground (frac)","Green Mountain Coffee Roasters®","Green Mountain Coffee Roasters® Caramel Vanilla Cream Coffee, 2.2oz",null,"5000364511","Green Mountain Coffee Roasters® Caramel Vanilla Cream Coffee, 2.2oz",50,"2.2OZ","CS",13,65,null,70.709999999999994,69.83,"10099555047001","99555047004"]
[{"$f":"IF(E677=0,\"\",1+MAX($A$2:A676))","v":""},"Portion Ground (frac)","Green Mountain Coffee Roasters®","Green Mountain Coffee Roasters® Cinnamon Sugar Cookie Coffee, 2.2oz (Winter Seasonal)",null,"5000369556","Green Mountain Coffee Roasters® Cinnamon Sugar Cookie Coffee, 2.2oz",50,"2.2OZ","CS",13,65,null,70.709999999999994,69.83,"10611247363352","611247363355"]
[{"$f":"IF(E678=0,\"\",1+MAX($A$2:A677))","v":""},"Portion Ground (frac)","Green Mountain Coffee Roasters®","Green Mountain Coffee Roasters® Chocolate Dipped Pistachio, 2.2oz (Spring Seasonal)",null,"5000385095","Green Mountain Coffee Roasters® Chocolate Dipped Pistachio, 2.2oz",50,"2.2OZ","CS",13,65,null,70.709999999999994,69.83,"10611247406646","611247406649"]
[{"$f":"IF(E679=0,\"\",1+MAX($A$2:A678))","v":""},"Portion Ground (frac)","Green Mountain Coffee Roasters®","Green Mountain Coffee Roasters® Dark Magic Coffee, 2.2oz",null,"5000379131","Green Mountain Coffee Roasters® Dark Magic Coffee, 2.2oz",50,"2.2OZ","CS",13,65,null,70.709999999999994,69.83,"10099555046707","99555046700"]
[{"$f":"IF(E680=0,\"\",1+MAX($A$2:A679))","v":""},"Portion Ground (frac)","Green Mountain Coffee Roasters®","Green Mountain Coffee Roasters® French Roast Coffee, 2.2oz",null,"5000052530","Green Mountain Coffee Roasters® French Roast Coffee, 2.2oz",50,"2.2OZ","CS",13,65,null,70.709999999999994,69.83,"10099555044413","99555044416"]
[{"$f":"IF(E681=0,\"\",1+MAX($A$2:A680))","v":""},"Portion Ground (frac)","Green Mountain Coffee Roasters®","Green Mountain Coffee Roasters® French Vanilla Coffee, 2.2oz",null,"5000364509","Green Mountain Coffee Roasters® French Vanilla Coffee, 2.2oz",50,"2.2OZ","CS",13,65,null,70.709999999999994,69.83,"10099555047322","99555047325"]
[{"$f":"IF(E682=0,\"\",1+MAX($A$2:A681))","v":""},"Portion Ground (frac)","Green Mountain Coffee Roasters®","Green Mountain Coffee Roasters® Colombian Decaf Coffee, 2.2oz",null,"5000052782","Green Mountain Coffee Roasters® Colombian Decaf Coffee, 2.2oz",50,"2.2OZ","CS",13,65,null,70.709999999999994,69.83,"10099555055310","99555055313"]
[{"$f":"IF(E683=0,\"\",1+MAX($A$2:A682))","v":""},"Portion Ground (frac)","Green Mountain Coffee Roasters®","Green Mountain Coffee Roasters® Hazelnut Coffee, 2.2oz",null,"5000364510","Green Mountain Coffee Roasters® Hazelnut Coffee, 2.2oz",50,"2.2OZ","CS",13,65,null,70.709999999999994,69.83,"10099555047926","99555047929"]
[{"$f":"IF(E684=0,\"\",1+MAX($A$2:A683))","v":""},"Portion Ground (frac)","Green Mountain Coffee Roasters®","Green Mountain Coffee Roasters® Island Coconut® Coffee, 2.2oz (Spring Seasonal)",null,"5000365358","Green Mountain Coffee Roasters® Island Coconut® Coffee, 2.2oz",50,"2.2OZ","CS",13,65,null,70.709999999999994,69.83,"10099555047209","99555047202"]
[{"$f":"IF(E685=0,\"\",1+MAX($A$2:A684))","v":""},"Portion Ground (frac)","Green Mountain Coffee Roasters®","Green Mountain Coffee Roasters® Lake & Lodge® Coffee, 2.2oz",null,"5000052534","Green Mountain Coffee Roasters® Lake & Lodge® Coffee, 2.2oz",50,"2.2OZ","CS",13,65,null,70.709999999999994,69.83,"10099555045243","99555045246"]
[{"$f":"IF(E686=0,\"\",1+MAX($A$2:A685))","v":""},"Portion Ground (frac)","Green Mountain Coffee Roasters®","Green Mountain Coffee Roasters® Nantucket Blend® Coffee, 2.2oz",null,"5000379129","Green Mountain Coffee Roasters® Nantucket Blend® Coffee, 2.2oz",50,"2.2OZ","CS",13,65,null,70.709999999999994,69.83,"10099555044611","99555044614"]
[{"$f":"IF(E687=0,\"\",1+MAX($A$2:A686))","v":""},"Portion Ground (frac)","Green Mountain Coffee Roasters®","Green Mountain Coffee Roasters® Pumpkin Spice Coffee, 2.2oz (Fall Seasonal)",null,"5000369557","Green Mountain Coffee Roasters® Pumpkin Spice Coffee, 2.2oz",50,"2.2OZ","CS",13,65,null,70.709999999999994,69.83,"10099555047575","99555047578"]
[{"$f":"IF(E688=0,\"\",1+MAX($A$2:A687))","v":""},"Portion Ground (frac)","Green Mountain Coffee Roasters®","Green Mountain Coffee Roasters® Single Origin Sumatra Reserve Coffee, 2.2oz",null,"5000366907","Green Mountain Coffee Roasters® Single Origin Sumatra Reserve Coffee, 2.2oz",50,"2.2OZ","CS",13,65,null,70.709999999999994,69.83,"10611247382872","611247382875"]
[{"$f":"IF(E689=0,\"\",1+MAX($A$2:A688))","v":""},"Portion Ground (frac)","Green Mountain Coffee Roasters®","Green Mountain Coffee Roasters® Vermont Country Blend® Decaf Coffee, 2.2oz",null,"5000052757","Green Mountain Coffee Roasters® Vermont Country Blend® Decaf Coffee, 2.2oz",50,"2.2OZ","CS",13,65,null,70.709999999999994,69.83,"10099555051619","99555051612"]
[{"$f":"IF(E690=0,\"\",1+MAX($A$2:A689))","v":""},"Portion Ground (frac)","Green Mountain Coffee Roasters®","Green Mountain Coffee Roasters® Wild Mountain Blueberry® Coffee, 2.2oz",null,"5000364512","Green Mountain Coffee Roasters® Wild Mountain Blueberry® Coffee, 2.2oz",50,"2.2OZ","CS",13,65,null,70.709999999999994,69.83,"10099555047834","99555047837"]
[{"$f":"IF(E691=0,\"\",1+MAX($A$2:A690))","v":""},"Portion Ground (frac)","Green Mountain Coffee Roasters®","Green Mountain Coffee Roasters® Breakfast Blend Coffee, 2.2oz",null,"5000391255","Green Mountain Coffee Roasters® Breakfast Blend Coffee, 2.2oz",100,"2.2OZ","CS",9,36,null,141.35,139.6,"10099555044321","99555044324"]
[{"$f":"IF(E692=0,\"\",1+MAX($A$2:A691))","v":""},"Portion Ground (frac)","Green Mountain Coffee Roasters®","Green Mountain Coffee Roasters® Our Blend Coffee, 2.2oz",null,"5000345754","Green Mountain Coffee Roasters® Our Blend Coffee, 2.2oz",100,"2.2OZ","CS",9,36,null,141.35,139.6,"10099555043324","99555043327"]
[{"$f":"IF(E693=0,\"\",1+MAX($A$2:A692))","v":""},"Portion Ground (frac)","Green Mountain Coffee Roasters®","Green Mountain Coffee Roasters® Single Origin Colombia Select Coffee, 2.2oz",null,"5000204403","Green Mountain Coffee Roasters® Single Origin Colombia Select Coffee, 2.2oz",100,"2.2OZ","CS",9,36,null,141.35,139.6,"10611247378431","611247378434"]
[{"$f":"IF(E694=0,\"\",1+MAX($A$2:A693))","v":""},"Portion Ground (frac)","Green Mountain Coffee Roasters®","Green Mountain Coffee Roasters® Vermont Country Blend® Coffee, 2.2oz",null,"5000345756","Green Mountain Coffee Roasters® Vermont Country Blend® Coffee, 2.2oz",100,"2.2OZ","CS",9,36,null,141.35,139.6,"10099555041627","99555041620"]
[{"$f":"IF(E695=0,\"\",1+MAX($A$2:A694))","v":""},"Portion Ground (frac)","The Original Donut Shop®","The Original Donut Shop® Regular Coffee, 2.2oz",null,"5000384450","The Original Donut Shop® Regular Coffee, 2.2oz",100,"2.2oz","CS",9,36,null,141.35,139.6,"10611247405021","611247405024"]
[{"$f":"IF(E696=0,\"\",1+MAX($A$2:A695))","v":""},"Portion Ground (frac)","The Original Donut Shop®","The Original Donut Shop® Decaf Coffee, 2.2oz",null,"5000384453","The Original Donut Shop® Decaf Coffee, 2.2oz",100,"2.2oz","CS",9,36,null,141.35,139.6,"10611247405038","611247405031"]
[{"$f":"IF(E697=0,\"\",1+MAX($A$2:A696))","v":""},"Portion Ground (frac)","The Original Donut Shop®","The Original Donut Shop® Cookie Dough So Delicious Coffee, 2.2oz",null,"5000382346","The Original Donut Shop® Cookie Dough So Delicious Coffee, 2.2oz",50,"2.2oz","CS",13,65,null,70.709999999999994,69.83,"10611247405045","611247405048"]
[{"$f":"IF(E698=0,\"\",1+MAX($A$2:A697))","v":""},"Portion Ground (frac)","The Original Donut Shop®","The Original Donut Shop® Duos Nutty + Caramel, 2.2oz",null,"5000382347","The Original Donut Shop® Duos Nutty + Caramel, 2.2oz",50,"2.2oz","CS",13,65,null,70.709999999999994,69.83,"10611247405052","611247405055"]
[{"$f":"IF(E699=0,\"\",1+MAX($A$2:A698))","v":""},"Portion Ground (frac)","REVV®","REVV® No Surrender® Coffee, 2.8oz",null,"5000052541","REVV® No Surrender® Coffee, 2.8oz",40,"2.8 OZ","CS",13,65,null,71.97,71.06,"10099555046806","99555046809"]
[{"$f":"IF(E700=0,\"\",1+MAX($A$2:A699))","v":""},"Portion Ground (frac)","Green Mountain Coffee Roasters®","Green Mountain Coffee Roasters® Fair Trade Organic House Blend",null,"5000052533","Green Mountain Coffee Roasters® Fair Trade Organic House Blend",50,"2.5 OZ","CS",13,65,null,88.7,87.6,"10099555044932","99555044935"]
[{"$f":"IF(E701=0,\"\",1+MAX($A$2:A700))","v":""},"Portion Ground (frac)","Green Mountain Coffee Roasters®","Green Mountain Coffee Roasters®  Fair Trade Organic House Blend Decaf WP",null,"5000052781","Green Mountain Coffee Roasters®  Fair Trade Organic House Blend Decaf WP",50,"2.5 OZ","CS",13,null,null,88.7,87.6,"10099555054931","99555054934"]
[{"$f":"IF(E702=0,\"\",1+MAX($A$2:A701))","v":""},"Portion Ground (frac)","Green Mountain Coffee Roasters®","Green Mountain Coffee Roasters®  Our Blend ",null,"5000345755","Green Mountain Coffee Roasters®  Our Blend ",50,"6.6 OZ","CS",9,27,null,211.4,208.77,"10099555043683","99555043686"]
[{"$f":"IF(E703=0,\"\",1+MAX($A$2:A702))","v":""},"Portion Ground (frac)","Green Mountain Coffee Roasters®","Green Mountain Coffee Roasters®  Vermont Country Blend®  ",null,"5000345757","Green Mountain Coffee Roasters®  Vermont Country Blend®  ",50,"6.6 OZ","CS",9,27,null,211.4,208.77,"10099555041689","99555041682"]
[{"$f":"IF(E704=0,\"\",1+MAX($A$2:A703))","v":""},"Portion Powder","Keurig® ","Keurig® Chocolate Powder, 1lb ",null,"5000370312","Keurig® Chocolate Powder, 1lb ",12,"1LB","CS",15,90,null,75,75,"10611247397968","611247397961"]
[{"$f":"IF(E705=0,\"\",1+MAX($A$2:A704))","v":""},"Portion Powder","Keurig® ","Keurig® Milk Powder, 1lb ",null,"5000370311","Keurig® Milk Powder, 1lb ",12,"1LB","CS",15,90,null,75,75,"10611247397951","611247397954"]
[{"$f":"IF(E706=0,\"\",1+MAX($A$2:A705))","v":""},"Portion Powder","Keurig® ","Keurig® French Vanilla Powder, 1lb ",null,"5000370310","Keurig® French Vanilla Powder, 1lb ",12,"1LB","CS",15,90,null,75,75,"10611247397944","611247397947"]
[{"$f":"IF(E707=0,\"\",1+MAX($A$2:A706))","v":""},"Whole Bean (bagged) ","Coffee People","Coffee People Morning Blend Decaf, 2lbs Whole Bean Coffee",null,"5000380616","Coffee People Morning Blend Decaf, 2lbs Whole Bean Coffee",6,"2lbs","CS",12,48,null,73.98,73.260000000000005,"10611247403300","611247403303"]
[{"$f":"IF(E708=0,\"\",1+MAX($A$2:A707))","v":""},"Whole Bean (bagged) ","Coffee People","Coffee People Best Blend, 2lbs Whole Bean Coffee",null,"5000380670","Coffee People Best Blend, 2lbs Whole Bean Coffee",6,"2lbs","CS",12,48,null,73.98,73.260000000000005,"10611247403409","611247403402"]
[{"$f":"IF(E709=0,\"\",1+MAX($A$2:A708))","v":""},"Whole Bean (bagged) ","Coffee People","Coffee People Morning Blend, 2lbs Whole Bean Coffee",null,"5000380671","Coffee People Morning Blend, 2lbs Whole Bean Coffee",6,"2lbs","CS",12,48,null,73.98,73.260000000000005,"10611247403416","611247403419"]
[{"$f":"IF(E710=0,\"\",1+MAX($A$2:A709))","v":""},"Whole Bean (bagged) ","Coffee People","Coffee People Deliciously Dark, 2lbs Whole Bean Coffee",null,"5000380672","Coffee People Deliciously Dark, 2lbs Whole Bean Coffee",6,"2lbs","CS",12,48,null,73.98,73.260000000000005,"10611247403423","611247403426"]
[{"$f":"IF(E711=0,\"\",1+MAX($A$2:A710))","v":""},"Whole Bean (bagged) ","Green Mountain Coffee Roasters®","Green Mountain Coffee Roasters® Single Origin Costa Rica Paraiso™ 18oz Whole Bean Coffee",null,"5000374322","Green Mountain Coffee Roasters® Single Origin Costa Rica Paraiso™ 18oz Whole Bean Coffee",6,"18 OZ","CS",16,80,null,66.84,66,"10611247399870","611247399873"]
[{"$f":"IF(E712=0,\"\",1+MAX($A$2:A711))","v":""},"Whole Bean (bagged) ","Green Mountain Coffee Roasters®","Green Mountain Coffee Roasters® Single Origin Colombia Select 18oz Whole Bean Coffee",null,"5000374323","Green Mountain Coffee Roasters® Single Origin Colombia Select 18oz Whole Bean Coffee",6,"18 OZ","CS",16,80,null,66.84,66,"10611247399887","611247399880"]
[{"$f":"IF(E713=0,\"\",1+MAX($A$2:A712))","v":""},"Whole Bean (bagged) ","Green Mountain Coffee Roasters®","Green Mountain Coffee Roasters® Breakfast Blend 18oz Whole Bean Coffee",null,"5000391260","Green Mountain Coffee Roasters® Breakfast Blend 18oz Whole Bean Coffee",6,"18 OZ","CS",16,80,null,66.84,66,"10611247375676","611247375679"]
[{"$f":"IF(E714=0,\"\",1+MAX($A$2:A713))","v":""},"Whole Bean (bagged) ","Green Mountain Coffee Roasters®","Green Mountain Coffee Roasters® Breakfast Blend Decaf 18oz Whole Bean Coffee",null,"5000379038","Green Mountain Coffee Roasters® Breakfast Blend Decaf 18oz Whole Bean Coffee",6,"18 OZ","CS",16,80,null,66.84,66,"10611247375690","611247375693"]
[{"$f":"IF(E715=0,\"\",1+MAX($A$2:A714))","v":""},"Whole Bean (bagged) ","Green Mountain Coffee Roasters®","Green Mountain Coffee Roasters® Dark Magic 18oz Whole Bean Coffee",null,"5000379134","Green Mountain Coffee Roasters® Dark Magic 18oz Whole Bean Coffee",6,"18 OZ","CS",16,80,null,66.84,66,"10611247375683","611247375686"]
[{"$f":"IF(E716=0,\"\",1+MAX($A$2:A715))","v":""},"Whole Bean (bagged) ","Green Mountain Coffee Roasters®","Green Mountain Coffee Roasters® Single Origin Sumatra Reserve 18oz Whole Bean Coffee",null,"5000366683","Green Mountain Coffee Roasters® Single Origin Sumatra Reserve 18oz Whole Bean Coffee",6,"18 OZ","CS",16,80,null,66.84,66,"10611247375713","611247375716"]
[{"$f":"IF(E717=0,\"\",1+MAX($A$2:A716))","v":""}]
[{"$f":"IF(E718=0,\"\",1+MAX($A$2:A717))","v":""}]
[{"$f":"IF(E719=0,\"\",1+MAX($A$2:A718))","v":""}]
[{"$f":"IF(E720=0,\"\",1+MAX($A$2:A719))","v":""}]
[{"$f":"IF(E721=0,\"\",1+MAX($A$2:A720))","v":""}]
[{"$f":"IF(E722=0,\"\",1+MAX($A$2:A721))","v":""}]
[{"$f":"IF(E723=0,\"\",1+MAX($A$2:A722))","v":""}]
[{"$f":"IF(E724=0,\"\",1+MAX($A$2:A723))","v":""}]
[{"$f":"IF(E725=0,\"\",1+MAX($A$2:A724))","v":""}]
[{"$f":"IF(E726=0,\"\",1+MAX($A$2:A725))","v":""}]
[{"$f":"IF(E727=0,\"\",1+MAX($A$2:A726))","v":""}]
[{"$f":"IF(E728=0,\"\",1+MAX($A$2:A727))","v":""}]
[{"$f":"IF(E729=0,\"\",1+MAX($A$2:A728))","v":""}]
[{"$f":"IF(E730=0,\"\",1+MAX($A$2:A729))","v":""}]
[{"$f":"IF(E731=0,\"\",1+MAX($A$2:A730))","v":""}]
[{"$f":"IF(E732=0,\"\",1+MAX($A$2:A731))","v":""}]
[{"$f":"IF(E733=0,\"\",1+MAX($A$2:A732))","v":""}]
[{"$f":"IF(E734=0,\"\",1+MAX($A$2:A733))","v":""}]
[{"$f":"IF(E735=0,\"\",1+MAX($A$2:A734))","v":""}]
[{"$f":"IF(E736=0,\"\",1+MAX($A$2:A735))","v":""}]
[{"$f":"IF(E737=0,\"\",1+MAX($A$2:A736))","v":""}]
[{"$f":"IF(E738=0,\"\",1+MAX($A$2:A737))","v":""}]
[{"$f":"IF(E739=0,\"\",1+MAX($A$2:A738))","v":""}]
[{"$f":"IF(E740=0,\"\",1+MAX($A$2:A739))","v":""}]
[{"$f":"IF(E741=0,\"\",1+MAX($A$2:A740))","v":""}]
[{"$f":"IF(E742=0,\"\",1+MAX($A$2:A741))","v":""}]
[{"$f":"IF(E743=0,\"\",1+MAX($A$2:A742))","v":""}]
[{"$f":"IF(E744=0,\"\",1+MAX($A$2:A743))","v":""}]
[{"$f":"IF(E745=0,\"\",1+MAX($A$2:A744))","v":""}]
[{"$f":"IF(E746=0,\"\",1+MAX($A$2:A745))","v":""}]
[{"$f":"IF(E747=0,\"\",1+MAX($A$2:A746))","v":""}]
[{"$f":"IF(E748=0,\"\",1+MAX($A$2:A747))","v":""}]
[{"$f":"IF(E749=0,\"\",1+MAX($A$2:A748))","v":""}]
[{"$f":"IF(E750=0,\"\",1+MAX($A$2:A749))","v":""}]
[{"$f":"IF(E751=0,\"\",1+MAX($A$2:A750))","v":""}]
[{"$f":"IF(E752=0,\"\",1+MAX($A$2:A751))","v":""}]
[{"$f":"IF(E753=0,\"\",1+MAX($A$2:A752))","v":""}]
[{"$f":"IF(E754=0,\"\",1+MAX($A$2:A753))","v":""}]
[{"$f":"IF(E755=0,\"\",1+MAX($A$2:A754))","v":""}]
[{"$f":"IF(E756=0,\"\",1+MAX($A$2:A755))","v":""}]
[{"$f":"IF(E757=0,\"\",1+MAX($A$2:A756))","v":""}]
[{"$f":"IF(E758=0,\"\",1+MAX($A$2:A757))","v":""}]
[{"$f":"IF(E759=0,\"\",1+MAX($A$2:A758))","v":""}]
[{"$f":"IF(E760=0,\"\",1+MAX($A$2:A759))","v":""}]
[{"$f":"IF(E761=0,\"\",1+MAX($A$2:A760))","v":""}]
[{"$f":"IF(E762=0,\"\",1+MAX($A$2:A761))","v":""}]
[{"$f":"IF(E763=0,\"\",1+MAX($A$2:A762))","v":""}]
[{"$f":"IF(E764=0,\"\",1+MAX($A$2:A763))","v":""}]
[{"$f":"IF(E765=0,\"\",1+MAX($A$2:A764))","v":""}]
[{"$f":"IF(E766=0,\"\",1+MAX($A$2:A765))","v":""}]
[{"$f":"IF(E767=0,\"\",1+MAX($A$2:A766))","v":""}]
[{"$f":"IF(E768=0,\"\",1+MAX($A$2:A767))","v":""}]
[{"$f":"IF(E769=0,\"\",1+MAX($A$2:A768))","v":""}]
[{"$f":"IF(E770=0,\"\",1+MAX($A$2:A769))","v":""}]
[{"$f":"IF(E771=0,\"\",1+MAX($A$2:A770))","v":""}]
[{"$f":"IF(E772=0,\"\",1+MAX($A$2:A771))","v":""}]
[{"$f":"IF(E773=0,\"\",1+MAX($A$2:A772))","v":""}]
[{"$f":"IF(E774=0,\"\",1+MAX($A$2:A773))","v":""}]
[{"$f":"IF(E775=0,\"\",1+MAX($A$2:A774))","v":""}]
[{"$f":"IF(E776=0,\"\",1+MAX($A$2:A775))","v":""}]
[{"$f":"IF(E777=0,\"\",1+MAX($A$2:A776))","v":""}]
[{"$f":"IF(E778=0,\"\",1+MAX($A$2:A777))","v":""}]
[{"$f":"IF(E779=0,\"\",1+MAX($A$2:A778))","v":""}]
[{"$f":"IF(E780=0,\"\",1+MAX($A$2:A779))","v":""}]
[{"$f":"IF(E781=0,\"\",1+MAX($A$2:A780))","v":""}]
[{"$f":"IF(E782=0,\"\",1+MAX($A$2:A781))","v":""}]
[{"$f":"IF(E783=0,\"\",1+MAX($A$2:A782))","v":""}]
[{"$f":"IF(E784=0,\"\",1+MAX($A$2:A783))","v":""}]
[{"$f":"IF(E785=0,\"\",1+MAX($A$2:A784))","v":""}]
[{"$f":"IF(E786=0,\"\",1+MAX($A$2:A785))","v":""}]
[{"$f":"IF(E787=0,\"\",1+MAX($A$2:A786))","v":""}]
[{"$f":"IF(E788=0,\"\",1+MAX($A$2:A787))","v":""}]
[{"$f":"IF(E789=0,\"\",1+MAX($A$2:A788))","v":""}]
[{"$f":"IF(E790=0,\"\",1+MAX($A$2:A789))","v":""}]
[{"$f":"IF(E791=0,\"\",1+MAX($A$2:A790))","v":""}]
[{"$f":"IF(E792=0,\"\",1+MAX($A$2:A791))","v":""}]
[{"$f":"IF(E793=0,\"\",1+MAX($A$2:A792))","v":""}]
[{"$f":"IF(E794=0,\"\",1+MAX($A$2:A793))","v":""}]
[{"$f":"IF(E795=0,\"\",1+MAX($A$2:A794))","v":""}]
[{"$f":"IF(E796=0,\"\",1+MAX($A$2:A795))","v":""}]
[{"$f":"IF(E797=0,\"\",1+MAX($A$2:A796))","v":""}]
[{"$f":"IF(E798=0,\"\",1+MAX($A$2:A797))","v":""}]
[{"$f":"IF(E799=0,\"\",1+MAX($A$2:A798))","v":""}]
[{"$f":"IF(E800=0,\"\",1+MAX($A$2:A799))","v":""}]
[{"$f":"IF(E801=0,\"\",1+MAX($A$2:A800))","v":""}]
[{"$f":"IF(E802=0,\"\",1+MAX($A$2:A801))","v":""}]
[{"$f":"IF(E803=0,\"\",1+MAX($A$2:A802))","v":""}]
[{"$f":"IF(E804=0,\"\",1+MAX($A$2:A803))","v":""}]
[{"$f":"IF(E805=0,\"\",1+MAX($A$2:A804))","v":""}]
[{"$f":"IF(E806=0,\"\",1+MAX($A$2:A805))","v":""}]
[{"$f":"IF(E807=0,\"\",1+MAX($A$2:A806))","v":""}]
[{"$f":"IF(E808=0,\"\",1+MAX($A$2:A807))","v":""}]
[{"$f":"IF(E809=0,\"\",1+MAX($A$2:A808))","v":""}]
[{"$f":"IF(E810=0,\"\",1+MAX($A$2:A809))","v":""}]
[{"$f":"IF(E811=0,\"\",1+MAX($A$2:A810))","v":""}]
[{"$f":"IF(E812=0,\"\",1+MAX($A$2:A811))","v":""}]
[{"$f":"IF(E813=0,\"\",1+MAX($A$2:A812))","v":""}]
[{"$f":"IF(E814=0,\"\",1+MAX($A$2:A813))","v":""}]
[{"$f":"IF(E815=0,\"\",1+MAX($A$2:A814))","v":""}]
[{"$f":"IF(E816=0,\"\",1+MAX($A$2:A815))","v":""}]
[{"$f":"IF(E817=0,\"\",1+MAX($A$2:A816))","v":""}]
[{"$f":"IF(E818=0,\"\",1+MAX($A$2:A817))","v":""}]
[{"$f":"IF(E819=0,\"\",1+MAX($A$2:A818))","v":""}]
[{"$f":"IF(E820=0,\"\",1+MAX($A$2:A819))","v":""}]
[{"$f":"IF(E821=0,\"\",1+MAX($A$2:A820))","v":""}]
[{"$f":"IF(E822=0,\"\",1+MAX($A$2:A821))","v":""}]
[{"$f":"IF(E823=0,\"\",1+MAX($A$2:A822))","v":""}]
[{"$f":"IF(E824=0,\"\",1+MAX($A$2:A823))","v":""}]
[{"$f":"IF(E825=0,\"\",1+MAX($A$2:A824))","v":""}]
[{"$f":"IF(E826=0,\"\",1+MAX($A$2:A825))","v":""}]
[{"$f":"IF(E827=0,\"\",1+MAX($A$2:A826))","v":""}]
[{"$f":"IF(E828=0,\"\",1+MAX($A$2:A827))","v":""}]
[{"$f":"IF(E829=0,\"\",1+MAX($A$2:A828))","v":""}]
[{"$f":"IF(E830=0,\"\",1+MAX($A$2:A829))","v":""}]
[{"$f":"IF(E831=0,\"\",1+MAX($A$2:A830))","v":""}]
[{"$f":"IF(E832=0,\"\",1+MAX($A$2:A831))","v":""}]
[{"$f":"IF(E833=0,\"\",1+MAX($A$2:A832))","v":""}]
[{"$f":"IF(E834=0,\"\",1+MAX($A$2:A833))","v":""}]
[{"$f":"IF(E835=0,\"\",1+MAX($A$2:A834))","v":""}]
[{"$f":"IF(E836=0,\"\",1+MAX($A$2:A835))","v":""}]
[{"$f":"IF(E837=0,\"\",1+MAX($A$2:A836))","v":""}]
[{"$f":"IF(E838=0,\"\",1+MAX($A$2:A837))","v":""}]
[{"$f":"IF(E839=0,\"\",1+MAX($A$2:A838))","v":""}]
[{"$f":"IF(E840=0,\"\",1+MAX($A$2:A839))","v":""}]
[{"$f":"IF(E841=0,\"\",1+MAX($A$2:A840))","v":""}]
[{"$f":"IF(E842=0,\"\",1+MAX($A$2:A841))","v":""}]
[{"$f":"IF(E843=0,\"\",1+MAX($A$2:A842))","v":""}]
[{"$f":"IF(E844=0,\"\",1+MAX($A$2:A843))","v":""}]
[{"$f":"IF(E845=0,\"\",1+MAX($A$2:A844))","v":""}]
[{"$f":"IF(E846=0,\"\",1+MAX($A$2:A845))","v":""}]
[{"$f":"IF(E847=0,\"\",1+MAX($A$2:A846))","v":""}]
[{"$f":"IF(E848=0,\"\",1+MAX($A$2:A847))","v":""}]
[{"$f":"IF(E849=0,\"\",1+MAX($A$2:A848))","v":""}]
[{"$f":"IF(E850=0,\"\",1+MAX($A$2:A849))","v":""}]
[{"$f":"IF(E851=0,\"\",1+MAX($A$2:A850))","v":""}]
[{"$f":"IF(E852=0,\"\",1+MAX($A$2:A851))","v":""}]
[{"$f":"IF(E853=0,\"\",1+MAX($A$2:A852))","v":""}]
[{"$f":"IF(E854=0,\"\",1+MAX($A$2:A853))","v":""}]
[{"$f":"IF(E855=0,\"\",1+MAX($A$2:A854))","v":""}]
[{"$f":"IF(E856=0,\"\",1+MAX($A$2:A855))","v":""}]
[{"$f":"IF(E857=0,\"\",1+MAX($A$2:A856))","v":""}]
[{"$f":"IF(E858=0,\"\",1+MAX($A$2:A857))","v":""}]
[{"$f":"IF(E859=0,\"\",1+MAX($A$2:A858))","v":""}]
[{"$f":"IF(E860=0,\"\",1+MAX($A$2:A859))","v":""}]
[{"$f":"IF(E861=0,\"\",1+MAX($A$2:A860))","v":""}]
[{"$f":"IF(E862=0,\"\",1+MAX($A$2:A861))","v":""}]
[{"$f":"IF(E863=0,\"\",1+MAX($A$2:A862))","v":""}]
[{"$f":"IF(E864=0,\"\",1+MAX($A$2:A863))","v":""}]
[{"$f":"IF(E865=0,\"\",1+MAX($A$2:A864))","v":""}]
[{"$f":"IF(E866=0,\"\",1+MAX($A$2:A865))","v":""}]
[{"$f":"IF(E867=0,\"\",1+MAX($A$2:A866))","v":""}]
[{"$f":"IF(E868=0,\"\",1+MAX($A$2:A867))","v":""}]
[{"$f":"IF(E869=0,\"\",1+MAX($A$2:A868))","v":""}]
[{"$f":"IF(E870=0,\"\",1+MAX($A$2:A869))","v":""}]
[{"$f":"IF(E871=0,\"\",1+MAX($A$2:A870))","v":""}]
[{"$f":"IF(E872=0,\"\",1+MAX($A$2:A871))","v":""}]
[{"$f":"IF(E873=0,\"\",1+MAX($A$2:A872))","v":""}]
[{"$f":"IF(E874=0,\"\",1+MAX($A$2:A873))","v":""}]
[{"$f":"IF(E875=0,\"\",1+MAX($A$2:A874))","v":""}]
[{"$f":"IF(E876=0,\"\",1+MAX($A$2:A875))","v":""}]
[{"$f":"IF(E877=0,\"\",1+MAX($A$2:A876))","v":""}]
[{"$f":"IF(E878=0,\"\",1+MAX($A$2:A877))","v":""}]
[{"$f":"IF(E879=0,\"\",1+MAX($A$2:A878))","v":""}]
[{"$f":"IF(E880=0,\"\",1+MAX($A$2:A879))","v":""}]
[{"$f":"IF(E881=0,\"\",1+MAX($A$2:A880))","v":""}]
[{"$f":"IF(E882=0,\"\",1+MAX($A$2:A881))","v":""}]
[{"$f":"IF(E883=0,\"\",1+MAX($A$2:A882))","v":""}]
[{"$f":"IF(E884=0,\"\",1+MAX($A$2:A883))","v":""}]
[{"$f":"IF(E885=0,\"\",1+MAX($A$2:A884))","v":""}]
[{"$f":"IF(E886=0,\"\",1+MAX($A$2:A885))","v":""}]
[{"$f":"IF(E887=0,\"\",1+MAX($A$2:A886))","v":""}]
[{"$f":"IF(E888=0,\"\",1+MAX($A$2:A887))","v":""}]
[{"$f":"IF(E889=0,\"\",1+MAX($A$2:A888))","v":""}]
[{"$f":"IF(E890=0,\"\",1+MAX($A$2:A889))","v":""}]
[{"$f":"IF(E891=0,\"\",1+MAX($A$2:A890))","v":""}]
[{"$f":"IF(E892=0,\"\",1+MAX($A$2:A891))","v":""}]
[{"$f":"IF(E893=0,\"\",1+MAX($A$2:A892))","v":""}]
[{"$f":"IF(E894=0,\"\",1+MAX($A$2:A893))","v":""}]
[{"$f":"IF(E895=0,\"\",1+MAX($A$2:A894))","v":""}]
[{"$f":"IF(E896=0,\"\",1+MAX($A$2:A895))","v":""}]
[{"$f":"IF(E897=0,\"\",1+MAX($A$2:A896))","v":""}]
[{"$f":"IF(E898=0,\"\",1+MAX($A$2:A897))","v":""}]